Workbook

Sheet DISCLAIMER

Sheet OVERVIEW (hidden)
B4: Overview | C4: The BEIS Whole Life Cost of Energy Calculator has been prepared to better enable potential heat, cooling and power offtakers from a district network understand their whole life cost of energy. This is intended to support constructive dialogue between network developers and energy offtakers when establishing what a sensible starting point for tariff negotiations should be. This tool does not provide a final tariff. Instead it provides a time value adjusted cost (in p/kWh) of different energy types that are currently 'self-supplied' by the potential energy offtaker by converting one form of energy to another, e.g. conversion of gas to LTHW using on-site boilers. Any energy tariff proposed by a district network operator / developer would need to demonstrate that the price offered was at least no worse than the current whole life cost of energy calculated by this tool.
B5: Purpose | C5: Energy Supply Agreements (ESA) detail arrangements between an energy offtaker ('Offtaker') and an energy supplier ('Supplier').
C6: A key factor to be negotiated is the tariff payable by the Offtaker for the energy supplied.
C7: This Calculator has been developed by BEIS to help inform the tariff setting process, supporting an open book approach to tariff negotiation.
B10: Outputs | C10: The primary output of the Calculator is the Levelised Cost of energy (heat, power and cooling) expressed as p/kWh.
B12: Primary inputs | C12: The Calculator seeks to capture whole life costs associated with energy generation in existing buildings and groups of buildings.
C13: Where a district energy network ('Supplier') is looking to replace an Offtaker's existing arrangements it is important for both parties to understand the full cost of that existing supply in order to agree an appropriate tariff for the new supply from the network.
C14: Understanding the full costs of supply - i.e. not just the fuel and operating costs but also the capital and replacement costs - is important to a negotation to the extent that the Offtaker will no longer incur these costs once connected to the district energy supply.
C15: Whole life costs include: - energy input costs (e.g. cost of gas) - plant efficiency (e.g. an estimatation of heat generated by a boiler from gas purchased) - maintenance costs, of plant and plant rooms - age of plant and plant replacement costs
B17: Energy efficiency | C17: It is anticipated that Offtakers will be looking to reduce their energy use over time through investment in energy efficiency measures.
C18: These measures have a two fold impact on negotiations: 1 - if energy demand is forecast to reduce, the Supplier needs to factor that reduction into its operating model to ensure that capital investment can still be recovered. This may impact on its view of what is an acceptable heat tariff. 2 - some planned capital investment may be within a plant room (e.g. investment in gas CHP rather than gas boilers) and as such be avoided by the Offtaker if it connects to the network; some planned capital investment may be elsewhere within a building (e.g. new insulation) and as such will be paid by the Offtaker whether it connects to the network or not.
C19: This Calculator seeks to capture such effects while recognising their complexity.
B22: Data sources | C22: It is anticipated that input data will be provided by those operating the plant, it may also require inputs from finance colleagues.
B25: Methodology | C25: The methodology for calculating Levelised Cost is available from HNDU (hndu@beis.gov.uk)
B28: Confidentiality | C28: Confidentiality of data within the Calculator needs to be managed and agreed between the parties. BEIS takes no responsibility in this regard.
B31: Reliability | C31: Whilst endeavours have been taken to reduce calculation errors, it is not possible to fully mitigate the risk that errors still remain. Users of the BEIS Whole Life Cost Energy Calculator therefore do so wholly at their own risk.

Sheet USER GUIDANCE (hidden)
B4: A separate User Guide is also available
B6: Tab | C6: Description | D6: Instructions
B7: WORKBOOK RESET | C7: This tab has a button for resetting the whole workbook to 'factory' settings i.e. it clears out all previous data entered by other users. | D7: If you are a new user, click the Global Reset button to ensure you are starting with a clean workbook.
B8: INPT; User Input Form | C8: This is the primary input sheet used to capture all information needed to calculate the LCOE | D8: Follow instructions on the tab.
D9: Information you will need: - technical data for all plant items in all plant rooms - maintenance cost data - plant replacement plans and cost data - financial data on all fuel purchases
D10: You can review your inputs via the Visualisation button at the top of this tab and / or by reviewing the output sheets - see below.
D11: Note - if you have large numbers of plant rooms / plant data you may find it easier to input directly to the Flat File - see under INPT; FlatFile below.
D12: The Calculator generally works on the basis of single cell inputs entered here. However, it is recognised that in some cases variables may be forecast to change over time, e.g. planned energy efficiency measures may be put in place that will reduce fuel requirements over time. In this case, time profiles can be entered manually via the relevant plant room LCOE calculation tab (see under >>>[1]<<< below).
B13: INPT; General | C13: This sheet contains general inputs such as start dates, VAT rates, fuel indices etc | D13: Check entries and amend as appropriate. Note that fuel indices are selected here.
B14: INPT; Fuel Indices | C14: This tab has been pre-populated with a number of alternative fuel indices (note these are REAL foreward price curves). There is space allowed for you to input your own price curves if you prefer. | D14: You can add your own bespoke fuel indices here if you wish; these are then selected for use in the model via the INPT; General tab.
B15: INPT; Flat File | C15: This tab is populated automatically with data that you input via the User Input Form and is the core 'data base' from which the LCOE is calculated. You can input data directly here if easier (e.g. if you have large numbers of plant rooms etc.). | D15: If you have input data via the User Input Form, you should not need to touch this tab. If you prefer to input your data directly here, follow the instructions on the tab.
B16: OUTP; Visualisation | C16: Provides a visual representation of energy in and energy out per plant room along with relevant costs | D16: The Visualisation is created by clicking on the Visualisation tab on the User Input Form. Once this has been done, you can review here and use as appropriate.
B17: OUTP; Portfolio Summary | C17: Summarises inputs across all plant rooms in a tabular form. | D17: Review and use as appropriate.
B18: OUTP; Plant v fuel rec | C18: Energy import data is input in relation to each piece of plant (See Section 3 of the User Input Form) and in relation to each delivery point (see Section 4 of the User Input Form). This tabs compares the two sources of energy import data to highlight any inconsistencies. | D18: Review for inconsistencies. These may be readily explained or may highlight areas in which input data needs to be reviewed and amended.
B19: OUTP; Plant Data | C19: Single worksheet with all plant data as entered for all plant rooms. | D19: Review your inputs. If corrections need to be made, you can select the relevant plant room / plant item / fuel data on the User Input Form and amend accordingly.
B20: OUTP; Fuel Data | C20: Single worksheet with all fuel data as entered for all fuel delivery points. | D20: Review your inputs. If corrections need to be made, you can select the relevant plant room / plant item / fuel data on the User Input Form and amend accordingly.
B21: CALC; Plant & Energy | C21: Calcuates outputs for display on the output tabs. | D21: Do not amend!
B22: CALC; Fuel Costs | C22: Calcuates outputs for display on the output tabs. | D22: Do not amend!
B23: CALC; LCOE WholeSYS | C23: This tab sums all the individual plant room LCOE calcs (see below) and creates an overall portfolio LCOE. | D23: Do not amend!
B24: >>>[1] [2] [n]<<< | C24: A separate tab is created for each plant room (numbered 1,2…). This happens automatically when a new plant room is added via the User Input Form. The individual plant room tab then calculates the LCOE for the different energy output types (i.e. LTHW, steam etc), in that plant room. There is potential to add more detail via these tabs that over-rides inputs from the User Input Form. | D24: The Calculator generally works on the basis of single cell inputs entered via the User Input Form. However, it is recognised that in some cases variables may be forecast to change over time, e.g. planned energy efficiency measures may be put in place that will reduce fuel requirements over time. In this case, you can input a time variable profile here. All yellow cells on these tabs can be used for manual inputs but this is not necessary. If no modifications are made to these tabs, the Calculator will default to using the data entered via the User Input Form.

Sheet WORKBOOK RESET (hidden)

Sheet INPT; User Input Form (hidden)
C1: BEIS WHOLE LIFE COST OF ENERGY CALCULATOR
C2: USER INPUT FORM
C3: Tool integrity checks: | E3: =sysIntegrityCheck -> 0
C5: SECTION 1: ADD PLANT ROOM DETAILS | R5: NOTES
C7: To add a new plant room: 1. Add plant room name and other relevant information in the yellow boxes. 2. Press 'ADD NEW PLANT ROOM' - summary information will appear in the box to the right. This may take time. 3. Repeat for each plant room. | R7: 1. Input plant room data as instructed. This will update the file and enable plant data to be added below. 2. To amend details, select the plant room that needs amending using the adjacent text box, amend the data in the yellow boxes and click 'Amend Plant Room Details'. 3. It is NOT possible to delete the first plant room, but all subsequent plant rooms can be deleted if necessary.
C12: ='INPT; FlatFile'!B10 -> Plant room name: | E12: text
C13: ='INPT; FlatFile'!C10 -> Maintenance costs - external | D13: i.e. maintenance procured from third party suppliers | E13: £ / pa
C14: ='INPT; FlatFile'!D10 -> Mgt & maintenance - internal | D14: i.e. mgt & maintenance provided by internal FM team | E14: £ / pa
C19: SECTION 2: SELECT PLANT ROOM
C21: Select the plant room from the drop down list for which you want to add information on plant / equipment (Section 3) and on fuel (Section 4). | G21: =IF(dcRecordNr <> 0,INDEX(lstFlatFilePlantRooms,dcRecordNr,1),"") -> 0
C25: SECTION 3: ADD PLANT & EQUIPMENT DATA
C27: To add information on the pieces of generating plant in the plant room selected: 1. Enter details in the yellow boxes in the form below 2. Press 'ADD NEW PLANT ITEM' 3. Repeat for each additional item (up to a maximum of 15) | R27: 4. To change plant data that has already been entered, select the item you want to amend by highlighting it in the list box, enter the revised details in yellow boxes in col F and click on the 'Amend Existing Plant Item' button. 5. If you want to delete an item of plant, select it in the listbox and press 'Delete Existing'. 6. If you have entered information in yellow boxes and want to use this to create a new item but have already selected an item in the list box, press the 'Deselect Plant From Listbox' button and then press 'Add New Plant Item'.
C32: ='INPT; FlatFile'!A10 -> Plant room ID | F32: =dcRecordNr -> 1
C33: ='INPT; FlatFile'!B10 -> Plant room name: | F33: =IFERROR(INDEX(rngFlatFileData,MATCH(dcRecordNr,'INPT; FlatFile'!$A$13:$A$56,0),MATCH(C33,rngFlatFileLabels,0)),"") -> 
C36: ='INPT; FlatFile'!E10 -> Plant name | D36: Your own internal reference | E36: text
C37: ='INPT; FlatFile'!F10 -> Plant type | E37: drop down
C38: ='INPT; FlatFile'!G10 -> Fuel input type | E38: drop down
C39: ='INPT; FlatFile'!H10 -> Fuel supply point | D39: i.e. supply point for fuel used by this item | E39: Location / MPAN
C40: ='INPT; FlatFile'!I10 -> Avg annual fuel use (metered) | E40: kWh
C41: ='INPT; FlatFile'!J10 -> Replacement cost | D41: Use today's prices | E41: £
C42: ='INPT; FlatFile'!K10 -> Original purchase date | E42: yyyy
C43: ='INPT; FlatFile'!L10 -> Estimated life | E43: Nr. yrs
C44: ='INPT; FlatFile'!M10 -> Avg annual maintenance costs | D44: Costs specific to this item | E44: £/pa
C45: ='INPT; FlatFile'!N10 -> Heat output type | D45: i.e. what form of heat is generated? | E45: drop down
C46: ='INPT; FlatFile'!O10 -> Thermal capacity (rated / installed) | E46: kW
C47: ='INPT; FlatFile'!P10 -> Avg annual thermal capacity factor | D47: set at 100% if not known | E47: %
C48: ='INPT; FlatFile'!Q10 -> Gross thermal efficiency (boiler plate) | E48: %
C49: ='INPT; FlatFile'!R10 -> Gross thermal efficiency (actual) | D49: gross thermal output (kWh) as % of fuel input | E49: %
C50: ='INPT; FlatFile'!S10 -> Is efficiency estimated or measured? (heat) | E50: drop down
C51: ='INPT; FlatFile'!T10 -> Electrical output - % used on site | E51: %
C52: ='INPT; FlatFile'!U10 -> Electrical capacity (rated / installed) | E52: kW
C53: ='INPT; FlatFile'!V10 -> Avg annual electrical capacity factor | D53: set at 100% if not known | E53: %
C54: ='INPT; FlatFile'!W10 -> Electrical efficiency (boiler plate) | E54: %
C55: ='INPT; FlatFile'!X10 -> Electrical efficiency (actual) | D55: electrical output (kWh) as % of fuel input | E55: %
C56: ='INPT; FlatFile'!Y10 -> Is efficiency estimated or measured? (elec) | E56: drop down
C57: ='INPT; FlatFile'!Z10 -> Cooling output | D57: Cooling type i.e. refrigeration or space cooling? | E57: drop down
C58: ='INPT; FlatFile'!AA10 -> Cooling capacity (rated / installed) | E58: kW
C59: ='INPT; FlatFile'!AB10 -> Avg annual cooling capacity factor | D59: set at 100% if not known | E59: %
C60: ='INPT; FlatFile'!AC10 -> Cooling efficiency (boiler plate) | E60: %
C61: ='INPT; FlatFile'!AD10 -> Cooling efficiency (actual) | E61: %
C62: ='INPT; FlatFile'!AE10 -> Is efficiency estimated or measured? (cool) | E62: drop down
C64: SECTION 4: ADD DATA REGARDING FUEL USE WITHIN EACH PLANT ROOM / AREA
C66: To add information on fuel used in the plant room selected (IMPORTANT: READ NOTES IN COL R): 1. Enter details in the yellow boxes in the form below 2. Press 'ADD NEW FUEL SOURCE' 3. Repeat for each additional item (up to a maximum of 10) | R66: 7. This is where fuel costs are entered; if no data is input here the LCOE cannot be calculated. 8. All fuel sources which supply a particular plant room need to be added. 9. Where a fuel source / delivery point (e.g. a particular fiscal meter) supplies more than one plant room, it is important to ensure that only the portion of fuel that is used in the plant room selected is included here.
C71: ='INPT; FlatFile'!A10 -> Plant room ID | F71: =dcRecordNr -> 1
C72: ='INPT; FlatFile'!B10 -> Plant room name: | F72: =IFERROR(INDEX(rngFlatFileData,MATCH(dcRecordNr,'INPT; FlatFile'!$A$13:$A$56,0),MATCH(C72,rngFlatFileLabels,0)),"") -> 
C75: ='INPT; FlatFile'!OT10 -> Fuel | E75: type
C76: ='INPT; FlatFile'!OU10 -> Delivery point / meter no. | E76: Location / MPAN
C77: ='INPT; FlatFile'!OV10 -> Avg annual import | D77: say, 3 year average - as used by the PLANT ROOM (note 9) | E77: kWh
C78: ='INPT; FlatFile'!OW10 -> Unit cost | D78: as per current invoice | E78: p/kWh
C79: ='INPT; FlatFile'!OX10 -> Standing charge | D79: as per current invoice | E79: £/day
C80: ='INPT; FlatFile'!OY10 -> CCL | D80: as per current invoice | E80: p/kWh
C81: ='INPT; FlatFile'!OZ10 -> Other charges | D81: as per current invoice | E81: p/kWh
C83: END OF PAGE

Sheet INPT; General (hidden)
A1: =RIGHT(CELL("filename", A1), LEN(CELL("filename", A1)) - SEARCH("]", CELL("filename", A1))) -> INPT; General
B3: Appraisal start year | C3: Year | D3: 2020
B4: Month start | C4: Month | D4: Jan | E4: =MATCH(D4,lstMonths,0) -> 1
B5: Appraisal period | C5: Years | D5: 40
B6: Discount rate (for LCOE calcs) | C6: % | D6: 0.03
B8: CAPITAL REPLACEMENT ASSUMPTIONS
B10: Lead in time for capital replacement | C10: Years | D10: 1
B13: VAT ASSUMPTIONS
B15: Note: global VAT assumptions input here can be over-ridden on each plant room LCOE calculation tab (between >>> and <<< on the tab list)
D16: Rate | F16: % VAT irrecoverable
B17: VAT on fuel purchases | C17: % | D17: 0.2 | F17: 0
B18: VAT on repex | C18: % | D18: 0.2 | F18: 0
B19: VAT on opex | C19: % | D19: 0.2 | F19: 0
B21: SELECTED FUEL INDICES
B23: User needs to select an appropriate fuel index using drop downs associated with yellow cells below. Bespoke indices can be added on the INPT; Fuel Indices tab.
B25: =Lists!C4 -> Biofuel | C25: index | D25: [USER INPUT PROFILE 4] | G25: =IFERROR(MATCH(D25,rngUserIndices,0),0) -> 13
B26: =Lists!C5 -> Biomass | C26: index | G26: 0
B27: =Lists!C6 -> Coal | C27: index | G27: 0
B28: =Lists!C7 -> Electricity | C28: index | D28: IAG Central Electricity: Commercial/ Public sector | G28: 3
B29: =Lists!C8 -> Gas | C29: index | D29: IAG Central Gas: Commercial/ Public sector | G29: 6
B30: =Lists!C9 -> Heat | C30: index | G30: 0
B31: =Lists!C10 -> LPG | C31: index | G31: 0
B32: =Lists!C11 -> Oil | C32: index | D32: IAG Central Oil: Domestic | G32: 8
B33: =Lists!C12 -> Other | C33: index | G33: 0
B34: =Lists!C13 -> RDF | C34: index | G34: 0
B36: UNIT CONVERSIONS
B38: p to £ | C38: Factor | D38: 100
B39: kW to MW | C39: Factor | D39: 1000
B40: Days in year | C40: Days | D40: 365
B43: END OF SHEET

Sheet INPT; Fuel Indices (hidden)
A1: =RIGHT(CELL("filename", A1), LEN(CELL("filename", A1)) - SEARCH("]", CELL("filename", A1))) -> INPT; Fuel Indices
J2: =Lists!J18 -> 2020 | K2: =Lists!K18 -> 2021 | L2: =Lists!L18 -> 2022 | M2: =Lists!M18 -> 2023 | N2: =Lists!N18 -> 2024 | O2: =Lists!O18 -> 2025 | P2: =Lists!P18 -> 2026 | Q2: =Lists!Q18 -> 2027 | R2: =Lists!R18 -> 2028 | S2: =Lists!S18 -> 2029 | T2: =Lists!T18 -> 2030 | U2: =Lists!U18 -> 2031 | V2: =Lists!V18 -> 2032 | W2: =Lists!W18 -> 2033 | X2: =Lists!X18 -> 2034 | Y2: =Lists!Y18 -> 2035 | Z2: =Lists!Z18 -> 2036 | AA2: =Lists!AA18 -> 2037 | AB2: =Lists!AB18 -> 2038 | AC2: =Lists!AC18 -> 2039 | AD2: =Lists!AD18 -> 2040 | AE2: =Lists!AE18 -> 2041 | AF2: =Lists!AF18 -> 2042 | AG2: =Lists!AG18 -> 2043 | AH2: =Lists!AH18 -> 2044 | AI2: =Lists!AI18 -> 2045 | AJ2: =Lists!AJ18 -> 2046 | AK2: =Lists!AK18 -> 2047 | AL2: =Lists!AL18 -> 2048 | AM2: =Lists!AM18 -> 2049 | AN2: =Lists!AN18 -> 2050 | AO2: =Lists!AO18 -> 2051 | AP2: =Lists!AP18 -> 2052 | AQ2: =Lists!AQ18 -> 2053 | AR2: =Lists!AR18 -> 2054 | AS2: =Lists!AS18 -> 2055 | AT2: =Lists!AT18 -> 2056 | AU2: =Lists!AU18 -> 2057 | AV2: =Lists!AV18 -> 2058 | AW2: =Lists!AW18 -> 2059 | AX2: =Lists!AX18 -> 2060 | AY2: =Lists!AY18 -> 2061 | AZ2: =Lists!AZ18 -> 2062 | BA2: =Lists!BA18 -> 2063 | BB2: =Lists!BB18 -> 2064 | BC2: =Lists!BC18 -> 2065 | BD2: =Lists!BD18 -> 2066 | BE2: =Lists!BE18 -> 2067 | BF2: =Lists!BF18 -> 2068 | BG2: =Lists!BG18 -> 2069 | BH2: =Lists!BH18 -> 2070 | BI2: =Lists!BI18 -> 2071 | BJ2: =Lists!BJ18 -> 2072 | BK2: =Lists!BK18 -> 2073 | BL2: =Lists!BL18 -> 2074 | BM2: =Lists!BM18 -> 2075 | BN2: =Lists!BN18 -> 2076 | BO2: =Lists!BO18 -> 2077 | BP2: =Lists!BP18 -> 2078 | BQ2: =Lists!BQ18 -> 2079
B5: Note: the indices given below are REAL, that is, they do not take account of general inflation. Users can add their own bespoke indices below if they wish and select them for use in the model via the INPT; General tab.
B12: PRICES | H12: [updated for data published March 2019]
A14: =B14&" "&D14&": "&F14 -> IAG Central Electricity: Domestic | B14: IAG Central | D14: Electricity | F14: Domestic | H14: Source: Data tables 4-8 | I14: p/kWh | J14: 18.15818545 | K14: 18.52689722 | L14: 18.21135092 | M14: 18.18912769 | N14: 18.32934402 | O14: 18.39362222 | P14: 18.66412331 | Q14: 18.8071864 | R14: 18.69335014 | S14: 18.31658094 | T14: 18.28665717 | U14: 18.61829232 | V14: =U14 -> 18.61829232 | W14: =V14 -> 18.61829232 | X14: =W14 -> 18.61829232 | Y14: =X14 -> 18.61829232 | Z14: =Y14 -> 18.61829232 | AA14: =Z14 -> 18.61829232 | AB14: =AA14 -> 18.61829232 | AC14: =AB14 -> 18.61829232 | AD14: =AC14 -> 18.61829232 | AE14: =AD14 -> 18.61829232 | AF14: =AE14 -> 18.61829232 | AG14: =AF14 -> 18.61829232 | AH14: =AG14 -> 18.61829232 | AI14: =AH14 -> 18.61829232 | AJ14: =AI14 -> 18.61829232 | AK14: =AJ14 -> 18.61829232 | AL14: =AK14 -> 18.61829232 | AM14: =AL14 -> 18.61829232 | AN14: =AM14 -> 18.61829232 | AO14: =AN14 -> 18.61829232 | AP14: =AO14 -> 18.61829232 | AQ14: =AP14 -> 18.61829232 | AR14: =AQ14 -> 18.61829232 | AS14: =AR14 -> 18.61829232 | AT14: =AS14 -> 18.61829232 | AU14: =AT14 -> 18.61829232 | AV14: =AU14 -> 18.61829232 | AW14: =AV14 -> 18.61829232 | AX14: =AW14 -> 18.61829232 | AY14: =AX14 -> 18.61829232 | AZ14: =AY14 -> 18.61829232 | BA14: =AZ14 -> 18.61829232 | BB14: =BA14 -> 18.61829232 | BC14: =BB14 -> 18.61829232 | BD14: =BC14 -> 18.61829232 | BE14: =BD14 -> 18.61829232 | BF14: =BE14 -> 18.61829232 | BG14: =BF14 -> 18.61829232 | BH14: =BG14 -> 18.61829232 | BI14: =BH14 -> 18.61829232 | BJ14: =BI14 -> 18.61829232 | BK14: =BJ14 -> 18.61829232 | BL14: =BK14 -> 18.61829232 | BM14: =BL14 -> 18.61829232 | BN14: =BM14 -> 18.61829232 | BO14: =BN14 -> 18.61829232 | BP14: =BO14 -> 18.61829232 | BQ14: =BP14 -> 18.61829232
A15: IAG Central Electricity: Commercial/ Public sector | B15: IAG Central | D15: Electricity | F15: Commercial/ Public sector | H15: Source: Data tables 4-8 | I15: p/kWh | J15: 13.67450527 | K15: 13.74692146 | L15: 13.86557398 | M15: 14.00650587 | N15: 14.14389635 | O15: 14.2471289 | P15: 14.51722742 | Q15: 14.91912469 | R15: 14.36533825 | S15: 14.18071911 | T15: 14.53422936 | U15: 14.47162986 | V15: 14.47162986 | W15: 14.47162986 | X15: 14.47162986 | Y15: 14.47162986 | Z15: 14.47162986 | AA15: 14.47162986 | AB15: 14.47162986 | AC15: 14.47162986 | AD15: 14.47162986 | AE15: 14.47162986 | AF15: 14.47162986 | AG15: 14.47162986 | AH15: 14.47162986 | AI15: 14.47162986 | AJ15: 14.47162986 | AK15: 14.47162986 | AL15: 14.47162986 | AM15: 14.47162986 | AN15: 14.47162986 | AO15: 14.47162986 | AP15: 14.47162986 | AQ15: 14.47162986 | AR15: 14.47162986 | AS15: 14.47162986 | AT15: 14.47162986 | AU15: 14.47162986 | AV15: 14.47162986 | AW15: 14.47162986 | AX15: 14.47162986 | AY15: 14.47162986 | AZ15: 14.47162986 | BA15: 14.47162986 | BB15: 14.47162986 | BC15: 14.47162986 | BD15: 14.47162986 | BE15: 14.47162986 | BF15: 14.47162986 | BG15: 14.47162986 | BH15: 14.47162986 | BI15: 14.47162986 | BJ15: 14.47162986 | BK15: 14.47162986 | BL15: 14.47162986 | BM15: 14.47162986 | BN15: 14.47162986 | BO15: 14.47162986 | BP15: 14.47162986 | BQ15: 14.47162986
A16: IAG Central Electricity: Industrial | B16: IAG Central | D16: Electricity | F16: Industrial | H16: Source: Data tables 4-8 | I16: p/kWh | J16: 12.33560539 | K16: 12.29381176 | L16: 12.36304382 | M16: 12.42965791 | N16: 12.53307764 | O16: 12.61749793 | P16: 12.8286641 | Q16: 13.0995846 | R16: 12.58120069 | S16: 12.38901103 | T16: 12.6958113 | U16: 12.64534879 | V16: 12.64534879 | W16: 12.64534879 | X16: 12.64534879 | Y16: 12.64534879 | Z16: 12.64534879 | AA16: 12.64534879 | AB16: 12.64534879 | AC16: 12.64534879 | AD16: 12.64534879 | AE16: 12.64534879 | AF16: 12.64534879 | AG16: 12.64534879 | AH16: 12.64534879 | AI16: 12.64534879 | AJ16: 12.64534879 | AK16: 12.64534879 | AL16: 12.64534879 | AM16: 12.64534879 | AN16: 12.64534879 | AO16: 12.64534879 | AP16: 12.64534879 | AQ16: 12.64534879 | AR16: 12.64534879 | AS16: 12.64534879 | AT16: 12.64534879 | AU16: 12.64534879 | AV16: 12.64534879 | AW16: 12.64534879 | AX16: 12.64534879 | AY16: 12.64534879 | AZ16: 12.64534879 | BA16: 12.64534879 | BB16: 12.64534879 | BC16: 12.64534879 | BD16: 12.64534879 | BE16: 12.64534879 | BF16: 12.64534879 | BG16: 12.64534879 | BH16: 12.64534879 | BI16: 12.64534879 | BJ16: 12.64534879 | BK16: 12.64534879 | BL16: 12.64534879 | BM16: 12.64534879 | BN16: 12.64534879 | BO16: 12.64534879 | BP16: 12.64534879 | BQ16: 12.64534879
A17: IAG Central Gas: Domestic | B17: IAG Central | D17: Gas | F17: Domestic | H17: Source: Data tables 4-8 | I17: p/kWh | J17: 4.442237013 | K17: 4.577807359 | L17: 4.252881672 | M17: 4.297479089 | N17: 4.372333544 | O17: 4.401791681 | P17: 4.478003236 | Q17: 4.557023903 | R17: 4.597668829 | S17: 4.650366804 | T17: 4.68403108 | U17: 4.768647512 | V17: 4.768647512 | W17: 4.768647512 | X17: 4.768647512 | Y17: 4.768647512 | Z17: 4.768647512 | AA17: 4.768647512 | AB17: 4.768647512 | AC17: 4.768647512 | AD17: 4.768647512 | AE17: 4.768647512 | AF17: 4.768647512 | AG17: 4.768647512 | AH17: 4.768647512 | AI17: 4.768647512 | AJ17: 4.768647512 | AK17: 4.768647512 | AL17: 4.768647512 | AM17: 4.768647512 | AN17: 4.768647512 | AO17: 4.768647512 | AP17: 4.768647512 | AQ17: 4.768647512 | AR17: 4.768647512 | AS17: 4.768647512 | AT17: 4.768647512 | AU17: 4.768647512 | AV17: 4.768647512 | AW17: 4.768647512 | AX17: 4.768647512 | AY17: 4.768647512 | AZ17: 4.768647512 | BA17: 4.768647512 | BB17: 4.768647512 | BC17: 4.768647512 | BD17: 4.768647512 | BE17: 4.768647512 | BF17: 4.768647512 | BG17: 4.768647512 | BH17: 4.768647512 | BI17: 4.768647512 | BJ17: 4.768647512 | BK17: 4.768647512 | BL17: 4.768647512 | BM17: 4.768647512 | BN17: 4.768647512 | BO17: 4.768647512 | BP17: 4.768647512 | BQ17: 4.768647512
A18: IAG Central Gas: Commercial/ Public sector | B18: IAG Central | D18: Gas | F18: Commercial/ Public sector | H18: Source: Data tables 4-8 | I18: p/kWh | J18: 2.968477521 | K18: 2.871658037 | L18: 2.90714107 | M18: 3.073028142 | N18: 3.196226415 | O18: 3.359190363 | P18: 3.523139383 | Q18: 3.568255715 | R18: 3.652532798 | S18: 3.697989527 | T18: 3.782248331 | U18: 3.827447339 | V18: 3.827447339 | W18: 3.827447339 | X18: 3.827447339 | Y18: 3.827447339 | Z18: 3.827447339 | AA18: 3.827447339 | AB18: 3.827447339 | AC18: 3.827447339 | AD18: 3.827447339 | AE18: 3.827447339 | AF18: 3.827447339 | AG18: 3.827447339 | AH18: 3.827447339 | AI18: 3.827447339 | AJ18: 3.827447339 | AK18: 3.827447339 | AL18: 3.827447339 | AM18: 3.827447339 | AN18: 3.827447339 | AO18: 3.827447339 | AP18: 3.827447339 | AQ18: 3.827447339 | AR18: 3.827447339 | AS18: 3.827447339 | AT18: 3.827447339 | AU18: 3.827447339 | AV18: 3.827447339 | AW18: 3.827447339 | AX18: 3.827447339 | AY18: 3.827447339 | AZ18: 3.827447339 | BA18: 3.827447339 | BB18: 3.827447339 | BC18: 3.827447339 | BD18: 3.827447339 | BE18: 3.827447339 | BF18: 3.827447339 | BG18: 3.827447339 | BH18: 3.827447339 | BI18: 3.827447339 | BJ18: 3.827447339 | BK18: 3.827447339 | BL18: 3.827447339 | BM18: 3.827447339 | BN18: 3.827447339 | BO18: 3.827447339 | BP18: 3.827447339 | BQ18: 3.827447339
A19: IAG Central Gas: Industrial | B19: IAG Central | D19: Gas | F19: Industrial | H19: Source: Data tables 4-8 | I19: p/kWh | J19: 2.372019568 | K19: 2.231269922 | L19: 2.251389583 | M19: 2.375562324 | N19: 2.455629957 | O19: 2.575028065 | P19: 2.694891684 | Q19: 2.737129933 | R19: 2.818468185 | S19: 2.860955068 | T19: 2.942256529 | U19: 2.984516025 | V19: 2.984516025 | W19: 2.984516025 | X19: 2.984516025 | Y19: 2.984516025 | Z19: 2.984516025 | AA19: 2.984516025 | AB19: 2.984516025 | AC19: 2.984516025 | AD19: 2.984516025 | AE19: 2.984516025 | AF19: 2.984516025 | AG19: 2.984516025 | AH19: 2.984516025 | AI19: 2.984516025 | AJ19: 2.984516025 | AK19: 2.984516025 | AL19: 2.984516025 | AM19: 2.984516025 | AN19: 2.984516025 | AO19: 2.984516025 | AP19: 2.984516025 | AQ19: 2.984516025 | AR19: 2.984516025 | AS19: 2.984516025 | AT19: 2.984516025 | AU19: 2.984516025 | AV19: 2.984516025 | AW19: 2.984516025 | AX19: 2.984516025 | AY19: 2.984516025 | AZ19: 2.984516025 | BA19: 2.984516025 | BB19: 2.984516025 | BC19: 2.984516025 | BD19: 2.984516025 | BE19: 2.984516025 | BF19: 2.984516025 | BG19: 2.984516025 | BH19: 2.984516025 | BI19: 2.984516025 | BJ19: 2.984516025 | BK19: 2.984516025 | BL19: 2.984516025 | BM19: 2.984516025 | BN19: 2.984516025 | BO19: 2.984516025 | BP19: 2.984516025 | BQ19: 2.984516025
A20: IAG Central Oil: Domestic | B20: IAG Central | D20: Oil | F20: Domestic | H20: Source: Data tables 4-8 | I20: p/kWh | J20: 46.67208504 | K20: 46.54252326 | L20: 46.47884431 | M20: 46.98614036 | N20: 47.50021453 | O20: 48.01428869 | P20: 48.52836285 | Q20: 49.55651118 | R20: 50.07058535 | S20: 50.58465951 | T20: 51.61280784 | U20: 52.126882 | V20: 52.126882 | W20: 52.126882 | X20: 52.126882 | Y20: 52.126882 | Z20: 52.126882 | AA20: 52.126882 | AB20: 52.126882 | AC20: 52.126882 | AD20: 52.126882 | AE20: 52.126882 | AF20: 52.126882 | AG20: 52.126882 | AH20: 52.126882 | AI20: 52.126882 | AJ20: 52.126882 | AK20: 52.126882 | AL20: 52.126882 | AM20: 52.126882 | AN20: 52.126882 | AO20: 52.126882 | AP20: 52.126882 | AQ20: 52.126882 | AR20: 52.126882 | AS20: 52.126882 | AT20: 52.126882 | AU20: 52.126882 | AV20: 52.126882 | AW20: 52.126882 | AX20: 52.126882 | AY20: 52.126882 | AZ20: 52.126882 | BA20: 52.126882 | BB20: 52.126882 | BC20: 52.126882 | BD20: 52.126882 | BE20: 52.126882 | BF20: 52.126882 | BG20: 52.126882 | BH20: 52.126882 | BI20: 52.126882 | BJ20: 52.126882 | BK20: 52.126882 | BL20: 52.126882 | BM20: 52.126882 | BN20: 52.126882 | BO20: 52.126882 | BP20: 52.126882 | BQ20: 52.126882
A22: =B22 -> [USER INPUT PROFILE 1] | B22: [USER INPUT PROFILE 1] | I22: p/kWh
A23: =B23 -> [USER INPUT PROFILE 2] | B23: [USER INPUT PROFILE 2] | I23: p/kWh
A24: [USER INPUT PROFILE 3] | B24: [USER INPUT PROFILE 3] | I24: p/kWh
A25: [USER INPUT PROFILE 4] | B25: [USER INPUT PROFILE 4] | I25: p/kWh
A26: [USER INPUT PROFILE 5] | B26: [USER INPUT PROFILE 5] | I26: p/kWh
A27: [USER INPUT PROFILE 6] | B27: [USER INPUT PROFILE 6] | I27: p/kWh
A28: [USER INPUT PROFILE 7] | B28: [USER INPUT PROFILE 7] | I28: p/kWh
A29: [USER INPUT PROFILE 8] | B29: [USER INPUT PROFILE 8] | I29: p/kWh
A30: [USER INPUT PROFILE 9] | B30: [USER INPUT PROFILE 9] | I30: p/kWh
A31: [USER INPUT PROFILE 10] | B31: [USER INPUT PROFILE 10] | I31: p/kWh
B33: COMPOUND INDEXATION
B35: =B14 -> IAG Central | D35: =D14 -> Electricity | F35: =F14 -> Domestic | J35: 1 | K35: =IFERROR(J35*(1+((K14-J14)/J14)),1) -> 1.02030554 | L35: 1.002927907 | M35: 1.001704038 | N35: 1.009425973 | O35: 1.012965876 | P35: 1.027862798 | Q35: 1.035741509 | R35: 1.029472366 | S35: 1.00872309 | T35: 1.007075141 | U35: 1.025338813 | V35: 1.025338813 | W35: 1.025338813 | X35: 1.025338813 | Y35: 1.025338813 | Z35: 1.025338813 | AA35: 1.025338813 | AB35: 1.025338813 | AC35: 1.025338813 | AD35: 1.025338813 | AE35: 1.025338813 | AF35: 1.025338813 | AG35: 1.025338813 | AH35: 1.025338813 | AI35: 1.025338813 | AJ35: 1.025338813 | AK35: 1.025338813 | AL35: 1.025338813 | AM35: 1.025338813 | AN35: 1.025338813 | AO35: 1.025338813 | AP35: 1.025338813 | AQ35: =IFERROR(AP35*(1+((AQ14-AP14)/AP14)),1) -> 1.025338813 | AR35: 1.025338813 | AS35: 1.025338813 | AT35: 1.025338813 | AU35: 1.025338813 | AV35: 1.025338813 | AW35: 1.025338813 | AX35: 1.025338813 | AY35: 1.025338813 | AZ35: 1.025338813 | BA35: 1.025338813 | BB35: 1.025338813 | BC35: 1.025338813 | BD35: 1.025338813 | BE35: 1.025338813 | BF35: 1.025338813 | BG35: 1.025338813 | BH35: 1.025338813 | BI35: 1.025338813 | BJ35: 1.025338813 | BK35: 1.025338813 | BL35: 1.025338813 | BM35: 1.025338813 | BN35: 1.025338813 | BO35: 1.025338813 | BP35: 1.025338813 | BQ35: 1.025338813
B36: IAG Central | D36: Electricity | F36: Commercial/ Public sector | J36: 1 | K36: =IFERROR(J36*(1+((K15-J15)/J15)),1) -> 1.005295709 | L36: 1.013972624 | M36: 1.024278802 | N36: 1.034326001 | O36: 1.041875273 | P36: 1.06162725 | Q36: 1.09101751 | R36: 1.050519779 | S36: 1.037018805 | T36: 1.062870581 | U36: 1.058292755 | V36: 1.058292755 | W36: 1.058292755 | X36: 1.058292755 | Y36: 1.058292755 | Z36: 1.058292755 | AA36: 1.058292755 | AB36: 1.058292755 | AC36: 1.058292755 | AD36: 1.058292755 | AE36: 1.058292755 | AF36: 1.058292755 | AG36: 1.058292755 | AH36: 1.058292755 | AI36: 1.058292755 | AJ36: 1.058292755 | AK36: 1.058292755 | AL36: 1.058292755 | AM36: 1.058292755 | AN36: 1.058292755 | AO36: 1.058292755 | AP36: 1.058292755 | AQ36: =IFERROR(AP36*(1+((AQ15-AP15)/AP15)),1) -> 1.058292755 | AR36: 1.058292755 | AS36: 1.058292755 | AT36: 1.058292755 | AU36: 1.058292755 | AV36: 1.058292755 | AW36: 1.058292755 | AX36: 1.058292755 | AY36: 1.058292755 | AZ36: 1.058292755 | BA36: 1.058292755 | BB36: 1.058292755 | BC36: 1.058292755 | BD36: 1.058292755 | BE36: 1.058292755 | BF36: 1.058292755 | BG36: 1.058292755 | BH36: 1.058292755 | BI36: 1.058292755 | BJ36: 1.058292755 | BK36: 1.058292755 | BL36: 1.058292755 | BM36: 1.058292755 | BN36: 1.058292755 | BO36: 1.058292755 | BP36: 1.058292755 | BQ36: 1.058292755
B37: IAG Central | D37: Electricity | F37: Industrial | J37: 1 | K37: =IFERROR(J37*(1+((K16-J16)/J16)),1) -> 0.9966119513 | L37: 1.002224328 | M37: 1.007624475 | N37: 1.016008315 | O37: 1.022851943 | P37: 1.03997037 | Q37: 1.061932851 | R37: 1.019909465 | S37: 1.00432939 | T37: 1.029200506 | U37: 1.025109705 | V37: 1.025109705 | W37: 1.025109705 | X37: 1.025109705 | Y37: 1.025109705 | Z37: 1.025109705 | AA37: 1.025109705 | AB37: 1.025109705 | AC37: 1.025109705 | AD37: 1.025109705 | AE37: 1.025109705 | AF37: 1.025109705 | AG37: 1.025109705 | AH37: 1.025109705 | AI37: 1.025109705 | AJ37: 1.025109705 | AK37: 1.025109705 | AL37: 1.025109705 | AM37: 1.025109705 | AN37: 1.025109705 | AO37: 1.025109705 | AP37: 1.025109705 | AQ37: =IFERROR(AP37*(1+((AQ16-AP16)/AP16)),1) -> 1.025109705 | AR37: 1.025109705 | AS37: 1.025109705 | AT37: 1.025109705 | AU37: 1.025109705 | AV37: 1.025109705 | AW37: 1.025109705 | AX37: 1.025109705 | AY37: 1.025109705 | AZ37: 1.025109705 | BA37: 1.025109705 | BB37: 1.025109705 | BC37: 1.025109705 | BD37: 1.025109705 | BE37: 1.025109705 | BF37: 1.025109705 | BG37: 1.025109705 | BH37: 1.025109705 | BI37: 1.025109705 | BJ37: 1.025109705 | BK37: 1.025109705 | BL37: 1.025109705 | BM37: 1.025109705 | BN37: 1.025109705 | BO37: 1.025109705 | BP37: 1.025109705 | BQ37: 1.025109705
B38: IAG Central | D38: Gas | F38: Domestic | J38: 1 | K38: =IFERROR(J38*(1+((K17-J17)/J17)),1) -> 1.030518486 | L38: 0.9573738771 | M38: 0.9674132821 | N38: 0.9842639039 | O38: 0.9908952783 | P38: 1.008051399 | Q38: 1.025839884 | R38: 1.034989537 | S38: 1.046852473 | T38: 1.054430699 | U38: 1.073478857 | V38: 1.073478857 | W38: 1.073478857 | X38: 1.073478857 | Y38: 1.073478857 | Z38: 1.073478857 | AA38: 1.073478857 | AB38: 1.073478857 | AC38: 1.073478857 | AD38: 1.073478857 | AE38: 1.073478857 | AF38: 1.073478857 | AG38: 1.073478857 | AH38: 1.073478857 | AI38: 1.073478857 | AJ38: 1.073478857 | AK38: 1.073478857 | AL38: 1.073478857 | AM38: 1.073478857 | AN38: 1.073478857 | AO38: 1.073478857 | AP38: 1.073478857 | AQ38: =IFERROR(AP38*(1+((AQ17-AP17)/AP17)),1) -> 1.073478857 | AR38: 1.073478857 | AS38: 1.073478857 | AT38: 1.073478857 | AU38: 1.073478857 | AV38: 1.073478857 | AW38: 1.073478857 | AX38: 1.073478857 | AY38: 1.073478857 | AZ38: 1.073478857 | BA38: 1.073478857 | BB38: 1.073478857 | BC38: 1.073478857 | BD38: 1.073478857 | BE38: 1.073478857 | BF38: 1.073478857 | BG38: 1.073478857 | BH38: 1.073478857 | BI38: 1.073478857 | BJ38: 1.073478857 | BK38: 1.073478857 | BL38: 1.073478857 | BM38: 1.073478857 | BN38: 1.073478857 | BO38: 1.073478857 | BP38: 1.073478857 | BQ38: 1.073478857
B39: IAG Central | D39: Gas | F39: Commercial/ Public sector | J39: 1 | K39: =IFERROR(J39*(1+((K18-J18)/J18)),1) -> 0.9673841276 | L39: 0.9793374042 | M39: 1.035220284 | N39: 1.076722459 | O39: 1.131620617 | P39: 1.186850619 | Q39: 1.202049094 | R39: 1.23043977 | S39: 1.245752916 | T39: 1.274137434 | U39: 1.289363761 | V39: 1.289363761 | W39: 1.289363761 | X39: 1.289363761 | Y39: 1.289363761 | Z39: 1.289363761 | AA39: 1.289363761 | AB39: 1.289363761 | AC39: 1.289363761 | AD39: 1.289363761 | AE39: 1.289363761 | AF39: 1.289363761 | AG39: 1.289363761 | AH39: 1.289363761 | AI39: 1.289363761 | AJ39: 1.289363761 | AK39: 1.289363761 | AL39: 1.289363761 | AM39: 1.289363761 | AN39: 1.289363761 | AO39: 1.289363761 | AP39: 1.289363761 | AQ39: =IFERROR(AP39*(1+((AQ18-AP18)/AP18)),1) -> 1.289363761 | AR39: 1.289363761 | AS39: 1.289363761 | AT39: 1.289363761 | AU39: 1.289363761 | AV39: 1.289363761 | AW39: 1.289363761 | AX39: 1.289363761 | AY39: 1.289363761 | AZ39: 1.289363761 | BA39: 1.289363761 | BB39: 1.289363761 | BC39: 1.289363761 | BD39: 1.289363761 | BE39: 1.289363761 | BF39: 1.289363761 | BG39: 1.289363761 | BH39: 1.289363761 | BI39: 1.289363761 | BJ39: 1.289363761 | BK39: 1.289363761 | BL39: 1.289363761 | BM39: 1.289363761 | BN39: 1.289363761 | BO39: 1.289363761 | BP39: 1.289363761 | BQ39: 1.289363761
B40: IAG Central | D40: Gas | F40: Industrial | J40: 1 | K40: =IFERROR(J40*(1+((K19-J19)/J19)),1) -> 0.9406625273 | L40: 0.9491446077 | M40: 1.001493561 | N40: 1.035248608 | O40: 1.085584663 | P40: 1.13611697 | Q40: 1.153923842 | R40: 1.188214559 | S40: 1.206126251 | T40: 1.240401457 | U40: 1.258217286 | V40: 1.258217286 | W40: 1.258217286 | X40: 1.258217286 | Y40: 1.258217286 | Z40: 1.258217286 | AA40: 1.258217286 | AB40: 1.258217286 | AC40: 1.258217286 | AD40: 1.258217286 | AE40: 1.258217286 | AF40: 1.258217286 | AG40: 1.258217286 | AH40: 1.258217286 | AI40: 1.258217286 | AJ40: 1.258217286 | AK40: 1.258217286 | AL40: 1.258217286 | AM40: 1.258217286 | AN40: 1.258217286 | AO40: 1.258217286 | AP40: 1.258217286 | AQ40: =IFERROR(AP40*(1+((AQ19-AP19)/AP19)),1) -> 1.258217286 | AR40: 1.258217286 | AS40: 1.258217286 | AT40: 1.258217286 | AU40: 1.258217286 | AV40: 1.258217286 | AW40: 1.258217286 | AX40: 1.258217286 | AY40: 1.258217286 | AZ40: 1.258217286 | BA40: 1.258217286 | BB40: 1.258217286 | BC40: 1.258217286 | BD40: 1.258217286 | BE40: 1.258217286 | BF40: 1.258217286 | BG40: 1.258217286 | BH40: 1.258217286 | BI40: 1.258217286 | BJ40: 1.258217286 | BK40: 1.258217286 | BL40: 1.258217286 | BM40: 1.258217286 | BN40: 1.258217286 | BO40: 1.258217286 | BP40: 1.258217286 | BQ40: 1.258217286
B41: IAG Central | D41: Oil | F41: Domestic | J41: 1 | K41: =IFERROR(J41*(1+((K20-J20)/J20)),1) -> 0.9972239985 | L41: 0.9958596078 | M41: 1.006728976 | N41: 1.017743572 | O41: 1.028758168 | P41: 1.039772764 | Q41: 1.061801956 | R41: 1.072816552 | S41: 1.083831148 | T41: 1.10586034 | U41: 1.116874936 | V41: 1.116874936 | W41: 1.116874936 | X41: 1.116874936 | Y41: 1.116874936 | Z41: 1.116874936 | AA41: 1.116874936 | AB41: 1.116874936 | AC41: 1.116874936 | AD41: 1.116874936 | AE41: 1.116874936 | AF41: 1.116874936 | AG41: 1.116874936 | AH41: 1.116874936 | AI41: 1.116874936 | AJ41: 1.116874936 | AK41: 1.116874936 | AL41: 1.116874936 | AM41: 1.116874936 | AN41: 1.116874936 | AO41: 1.116874936 | AP41: 1.116874936 | AQ41: =IFERROR(AP41*(1+((AQ20-AP20)/AP20)),1) -> 1.116874936 | AR41: 1.116874936 | AS41: 1.116874936 | AT41: 1.116874936 | AU41: 1.116874936 | AV41: 1.116874936 | AW41: 1.116874936 | AX41: 1.116874936 | AY41: 1.116874936 | AZ41: 1.116874936 | BA41: 1.116874936 | BB41: 1.116874936 | BC41: 1.116874936 | BD41: 1.116874936 | BE41: 1.116874936 | BF41: 1.116874936 | BG41: 1.116874936 | BH41: 1.116874936 | BI41: 1.116874936 | BJ41: 1.116874936 | BK41: 1.116874936 | BL41: 1.116874936 | BM41: 1.116874936 | BN41: 1.116874936 | BO41: 1.116874936 | BP41: 1.116874936 | BQ41: 1.116874936
B43: =B22 -> [USER INPUT PROFILE 1] | J43: 1 | K43: =IFERROR(J43*(1+((K22-J22)/J22)),1) -> 1 | L43: 1 | M43: 1 | N43: 1 | O43: 1 | P43: 1 | Q43: 1 | R43: 1 | S43: 1 | T43: 1 | U43: 1 | V43: 1 | W43: 1 | X43: 1 | Y43: 1 | Z43: 1 | AA43: 1 | AB43: 1 | AC43: 1 | AD43: 1 | AE43: 1 | AF43: 1 | AG43: 1 | AH43: 1 | AI43: 1 | AJ43: 1 | AK43: 1 | AL43: 1 | AM43: 1 | AN43: 1 | AO43: 1 | AP43: 1 | AQ43: =IFERROR(AP43*(1+((AQ22-AP22)/AP22)),1) -> 1 | AR43: 1 | AS43: 1 | AT43: 1 | AU43: 1 | AV43: 1 | AW43: 1 | AX43: 1 | AY43: 1 | AZ43: 1 | BA43: 1 | BB43: 1 | BC43: 1 | BD43: 1 | BE43: 1 | BF43: 1 | BG43: 1 | BH43: 1 | BI43: 1 | BJ43: 1 | BK43: 1 | BL43: 1 | BM43: 1 | BN43: 1 | BO43: 1 | BP43: 1 | BQ43: 1
B44: [USER INPUT PROFILE 2] | J44: 1 | K44: =IFERROR(J44*(1+((K23-J23)/J23)),1) -> 1 | L44: 1 | M44: 1 | N44: 1 | O44: 1 | P44: 1 | Q44: 1 | R44: 1 | S44: 1 | T44: 1 | U44: 1 | V44: 1 | W44: 1 | X44: 1 | Y44: 1 | Z44: 1 | AA44: 1 | AB44: 1 | AC44: 1 | AD44: 1 | AE44: 1 | AF44: 1 | AG44: 1 | AH44: 1 | AI44: 1 | AJ44: 1 | AK44: 1 | AL44: 1 | AM44: 1 | AN44: 1 | AO44: 1 | AP44: 1 | AQ44: =IFERROR(AP44*(1+((AQ23-AP23)/AP23)),1) -> 1 | AR44: 1 | AS44: 1 | AT44: 1 | AU44: 1 | AV44: 1 | AW44: 1 | AX44: 1 | AY44: 1 | AZ44: 1 | BA44: 1 | BB44: 1 | BC44: 1 | BD44: 1 | BE44: 1 | BF44: 1 | BG44: 1 | BH44: 1 | BI44: 1 | BJ44: 1 | BK44: 1 | BL44: 1 | BM44: 1 | BN44: 1 | BO44: 1 | BP44: 1 | BQ44: 1
B45: [USER INPUT PROFILE 3] | J45: 1 | K45: =IFERROR(J45*(1+((K24-J24)/J24)),1) -> 1 | L45: 1 | M45: 1 | N45: 1 | O45: 1 | P45: 1 | Q45: 1 | R45: 1 | S45: 1 | T45: 1 | U45: 1 | V45: 1 | W45: 1 | X45: 1 | Y45: 1 | Z45: 1 | AA45: 1 | AB45: 1 | AC45: 1 | AD45: 1 | AE45: 1 | AF45: 1 | AG45: 1 | AH45: 1 | AI45: 1 | AJ45: 1 | AK45: 1 | AL45: 1 | AM45: 1 | AN45: 1 | AO45: 1 | AP45: 1 | AQ45: =IFERROR(AP45*(1+((AQ24-AP24)/AP24)),1) -> 1 | AR45: 1 | AS45: 1 | AT45: 1 | AU45: 1 | AV45: 1 | AW45: 1 | AX45: 1 | AY45: 1 | AZ45: 1 | BA45: 1 | BB45: 1 | BC45: 1 | BD45: 1 | BE45: 1 | BF45: 1 | BG45: 1 | BH45: 1 | BI45: 1 | BJ45: 1 | BK45: 1 | BL45: 1 | BM45: 1 | BN45: 1 | BO45: 1 | BP45: 1 | BQ45: 1
B46: [USER INPUT PROFILE 4] | J46: 1 | K46: =IFERROR(J46*(1+((K25-J25)/J25)),1) -> 1 | L46: 1 | M46: 1 | N46: 1 | O46: 1 | P46: 1 | Q46: 1 | R46: 1 | S46: 1 | T46: 1 | U46: 1 | V46: 1 | W46: 1 | X46: 1 | Y46: 1 | Z46: 1 | AA46: 1 | AB46: 1 | AC46: 1 | AD46: 1 | AE46: 1 | AF46: 1 | AG46: 1 | AH46: 1 | AI46: 1 | AJ46: 1 | AK46: 1 | AL46: 1 | AM46: 1 | AN46: 1 | AO46: 1 | AP46: 1 | AQ46: =IFERROR(AP46*(1+((AQ25-AP25)/AP25)),1) -> 1 | AR46: 1 | AS46: 1 | AT46: 1 | AU46: 1 | AV46: 1 | AW46: 1 | AX46: 1 | AY46: 1 | AZ46: 1 | BA46: 1 | BB46: 1 | BC46: 1 | BD46: 1 | BE46: 1 | BF46: 1 | BG46: 1 | BH46: 1 | BI46: 1 | BJ46: 1 | BK46: 1 | BL46: 1 | BM46: 1 | BN46: 1 | BO46: 1 | BP46: 1 | BQ46: 1
B47: [USER INPUT PROFILE 5] | J47: 1 | K47: =IFERROR(J47*(1+((K26-J26)/J26)),1) -> 1 | L47: 1 | M47: 1 | N47: 1 | O47: 1 | P47: 1 | Q47: 1 | R47: 1 | S47: 1 | T47: 1 | U47: 1 | V47: 1 | W47: 1 | X47: 1 | Y47: 1 | Z47: 1 | AA47: 1 | AB47: 1 | AC47: 1 | AD47: 1 | AE47: 1 | AF47: 1 | AG47: 1 | AH47: 1 | AI47: 1 | AJ47: 1 | AK47: 1 | AL47: 1 | AM47: 1 | AN47: 1 | AO47: 1 | AP47: 1 | AQ47: =IFERROR(AP47*(1+((AQ26-AP26)/AP26)),1) -> 1 | AR47: 1 | AS47: 1 | AT47: 1 | AU47: 1 | AV47: 1 | AW47: 1 | AX47: 1 | AY47: 1 | AZ47: 1 | BA47: 1 | BB47: 1 | BC47: 1 | BD47: 1 | BE47: 1 | BF47: 1 | BG47: 1 | BH47: 1 | BI47: 1 | BJ47: 1 | BK47: 1 | BL47: 1 | BM47: 1 | BN47: 1 | BO47: 1 | BP47: 1 | BQ47: 1
B48: [USER INPUT PROFILE 6] | J48: 1 | K48: =IFERROR(J48*(1+((K27-J27)/J27)),1) -> 1 | L48: 1 | M48: 1 | N48: 1 | O48: 1 | P48: 1 | Q48: 1 | R48: 1 | S48: 1 | T48: 1 | U48: 1 | V48: 1 | W48: 1 | X48: 1 | Y48: 1 | Z48: 1 | AA48: 1 | AB48: 1 | AC48: 1 | AD48: 1 | AE48: 1 | AF48: 1 | AG48: 1 | AH48: 1 | AI48: 1 | AJ48: 1 | AK48: 1 | AL48: 1 | AM48: 1 | AN48: 1 | AO48: 1 | AP48: 1 | AQ48: =IFERROR(AP48*(1+((AQ27-AP27)/AP27)),1) -> 1 | AR48: 1 | AS48: 1 | AT48: 1 | AU48: 1 | AV48: 1 | AW48: 1 | AX48: 1 | AY48: 1 | AZ48: 1 | BA48: 1 | BB48: 1 | BC48: 1 | BD48: 1 | BE48: 1 | BF48: 1 | BG48: 1 | BH48: 1 | BI48: 1 | BJ48: 1 | BK48: 1 | BL48: 1 | BM48: 1 | BN48: 1 | BO48: 1 | BP48: 1 | BQ48: 1
B49: [USER INPUT PROFILE 7] | J49: 1 | K49: =IFERROR(J49*(1+((K28-J28)/J28)),1) -> 1 | L49: 1 | M49: 1 | N49: 1 | O49: 1 | P49: 1 | Q49: 1 | R49: 1 | S49: 1 | T49: 1 | U49: 1 | V49: 1 | W49: 1 | X49: 1 | Y49: 1 | Z49: 1 | AA49: 1 | AB49: 1 | AC49: 1 | AD49: 1 | AE49: 1 | AF49: 1 | AG49: 1 | AH49: 1 | AI49: 1 | AJ49: 1 | AK49: 1 | AL49: 1 | AM49: 1 | AN49: 1 | AO49: 1 | AP49: 1 | AQ49: =IFERROR(AP49*(1+((AQ28-AP28)/AP28)),1) -> 1 | AR49: 1 | AS49: 1 | AT49: 1 | AU49: 1 | AV49: 1 | AW49: 1 | AX49: 1 | AY49: 1 | AZ49: 1 | BA49: 1 | BB49: 1 | BC49: 1 | BD49: 1 | BE49: 1 | BF49: 1 | BG49: 1 | BH49: 1 | BI49: 1 | BJ49: 1 | BK49: 1 | BL49: 1 | BM49: 1 | BN49: 1 | BO49: 1 | BP49: 1 | BQ49: 1
B50: [USER INPUT PROFILE 8] | J50: 1 | K50: =IFERROR(J50*(1+((K29-J29)/J29)),1) -> 1 | L50: 1 | M50: 1 | N50: 1 | O50: 1 | P50: 1 | Q50: 1 | R50: 1 | S50: 1 | T50: 1 | U50: 1 | V50: 1 | W50: 1 | X50: 1 | Y50: 1 | Z50: 1 | AA50: 1 | AB50: 1 | AC50: 1 | AD50: 1 | AE50: 1 | AF50: 1 | AG50: 1 | AH50: 1 | AI50: 1 | AJ50: 1 | AK50: 1 | AL50: 1 | AM50: 1 | AN50: 1 | AO50: 1 | AP50: 1 | AQ50: =IFERROR(AP50*(1+((AQ29-AP29)/AP29)),1) -> 1 | AR50: 1 | AS50: 1 | AT50: 1 | AU50: 1 | AV50: 1 | AW50: 1 | AX50: 1 | AY50: 1 | AZ50: 1 | BA50: 1 | BB50: 1 | BC50: 1 | BD50: 1 | BE50: 1 | BF50: 1 | BG50: 1 | BH50: 1 | BI50: 1 | BJ50: 1 | BK50: 1 | BL50: 1 | BM50: 1 | BN50: 1 | BO50: 1 | BP50: 1 | BQ50: 1
B51: [USER INPUT PROFILE 9] | J51: 1 | K51: =IFERROR(J51*(1+((K30-J30)/J30)),1) -> 1 | L51: 1 | M51: 1 | N51: 1 | O51: 1 | P51: 1 | Q51: 1 | R51: 1 | S51: 1 | T51: 1 | U51: 1 | V51: 1 | W51: 1 | X51: 1 | Y51: 1 | Z51: 1 | AA51: 1 | AB51: 1 | AC51: 1 | AD51: 1 | AE51: 1 | AF51: 1 | AG51: 1 | AH51: 1 | AI51: 1 | AJ51: 1 | AK51: 1 | AL51: 1 | AM51: 1 | AN51: 1 | AO51: 1 | AP51: 1 | AQ51: =IFERROR(AP51*(1+((AQ30-AP30)/AP30)),1) -> 1 | AR51: 1 | AS51: 1 | AT51: 1 | AU51: 1 | AV51: 1 | AW51: 1 | AX51: 1 | AY51: 1 | AZ51: 1 | BA51: 1 | BB51: 1 | BC51: 1 | BD51: 1 | BE51: 1 | BF51: 1 | BG51: 1 | BH51: 1 | BI51: 1 | BJ51: 1 | BK51: 1 | BL51: 1 | BM51: 1 | BN51: 1 | BO51: 1 | BP51: 1 | BQ51: 1
B52: [USER INPUT PROFILE 10] | J52: 1 | K52: =IFERROR(J52*(1+((K31-J31)/J31)),1) -> 1 | L52: 1 | M52: 1 | N52: 1 | O52: 1 | P52: 1 | Q52: 1 | R52: 1 | S52: 1 | T52: 1 | U52: 1 | V52: 1 | W52: 1 | X52: 1 | Y52: 1 | Z52: 1 | AA52: 1 | AB52: 1 | AC52: 1 | AD52: 1 | AE52: 1 | AF52: 1 | AG52: 1 | AH52: 1 | AI52: 1 | AJ52: 1 | AK52: 1 | AL52: 1 | AM52: 1 | AN52: 1 | AO52: 1 | AP52: 1 | AQ52: =IFERROR(AP52*(1+((AQ31-AP31)/AP31)),1) -> 1 | AR52: 1 | AS52: 1 | AT52: 1 | AU52: 1 | AV52: 1 | AW52: 1 | AX52: 1 | AY52: 1 | AZ52: 1 | BA52: 1 | BB52: 1 | BC52: 1 | BD52: 1 | BE52: 1 | BF52: 1 | BG52: 1 | BH52: 1 | BI52: 1 | BJ52: 1 | BK52: 1 | BL52: 1 | BM52: 1 | BN52: 1 | BO52: 1 | BP52: 1 | BQ52: 1
B55: END OF SHEET

Sheet INPT; FlatFile (hidden)
M2: FLAT FILE INTEGRITY CHECK: | N2: =SUM(C7:RK7) -> 0
M3: LC INTEGRITY CHECK: | N3: =SUM('>>>'!E5) -> 0
M4: TOOL INTEGRITY CHECK: | N4: =SUM(N2:N3) -> 0
A7: Length Check | E7: =IF(ROWS(rngPlantDataTitles)=COLUMNS($E$8:$AE$8),0,1) -> 0 | AF7: =IF(COLUMNS(AF8:BF8)=COLUMNS($E$8:$AE$8),0,1) -> 0 | BG7: =IF(COLUMNS(BG8:CG8)=COLUMNS($E$8:$AE$8),0,1) -> 0 | CH7: =IF(COLUMNS(CH8:DH8)=COLUMNS($E$8:$AE$8),0,1) -> 0 | DI7: =IF(COLUMNS(DI8:EI8)=COLUMNS($E$8:$AE$8),0,1) -> 0 | EJ7: =IF(COLUMNS(EJ8:FJ8)=COLUMNS($E$8:$AE$8),0,1) -> 0 | FK7: =IF(COLUMNS(FK8:GK8)=COLUMNS($E$8:$AE$8),0,1) -> 0 | GL7: =IF(COLUMNS(GL8:HL8)=COLUMNS($E$8:$AE$8),0,1) -> 0 | HM7: =IF(COLUMNS(HM8:IM8)=COLUMNS($E$8:$AE$8),0,1) -> 0 | IN7: =IF(COLUMNS(IN8:JN8)=COLUMNS($E$8:$AE$8),0,1) -> 0 | JO7: =IF(COLUMNS(JO8:KO8)=COLUMNS($E$8:$AE$8),0,1) -> 0 | KP7: =IF(COLUMNS(KP8:LP8)=COLUMNS($E$8:$AE$8),0,1) -> 0 | LQ7: =IF(COLUMNS(LQ8:MQ8)=COLUMNS($E$8:$AE$8),0,1) -> 0 | MR7: =IF(COLUMNS(MR8:NR8)=COLUMNS($E$8:$AE$8),0,1) -> 0 | NS7: =IF(COLUMNS(NS8:OS8)=COLUMNS($E$8:$AE$8),0,1) -> 0 | OT7: =IF(ROWS(rngFuelDataTitles)=COLUMNS($OT$8:$OZ$8),0,1) -> 0 | PA7: =IF(COLUMNS(PA8:PG8)=COLUMNS($OT$8:$OZ$8),0,1) -> 0 | PH7: =IF(COLUMNS(PH8:PN8)=COLUMNS($OT$8:$OZ$8),0,1) -> 0 | PO7: =IF(COLUMNS(PO8:PU8)=COLUMNS($OT$8:$OZ$8),0,1) -> 0 | PV7: =IF(COLUMNS(PV8:QB8)=COLUMNS($OT$8:$OZ$8),0,1) -> 0 | QC7: =IF(COLUMNS(QC8:QI8)=COLUMNS($OT$8:$OZ$8),0,1) -> 0 | QJ7: =IF(COLUMNS(QJ8:QP8)=COLUMNS($OT$8:$OZ$8),0,1) -> 0 | QQ7: =IF(COLUMNS(QQ8:QW8)=COLUMNS($OT$8:$OZ$8),0,1) -> 0 | QX7: =IF(COLUMNS(QX8:RD8)=COLUMNS($OT$8:$OZ$8),0,1) -> 0 | RE7: =IF(COLUMNS(RE8:RK8)=COLUMNS($OT$8:$OZ$8),0,1) -> 0
OT8: 1 | OU8: 2 | OV8: 3 | OW8: 4 | OX8: 5 | OY8: 6 | OZ8: 7 | PA8: 1 | PB8: 2 | PC8: 3 | PD8: 4 | PE8: 5 | PF8: 6 | PG8: 7 | PH8: 1 | PI8: 2 | PJ8: 3 | PK8: 4 | PL8: 5 | PM8: 6 | PN8: 7 | PO8: 1 | PP8: 2 | PQ8: 3 | PR8: 4 | PS8: 5 | PT8: 6 | PU8: 7 | PV8: 1 | PW8: 2 | PX8: 3 | PY8: 4 | PZ8: 5 | QA8: 6 | QB8: 7 | QC8: 1 | QD8: 2 | QE8: 3 | QF8: 4 | QG8: 5 | QH8: 6 | QI8: 7 | QJ8: 1 | QK8: 2 | QL8: 3 | QM8: 4 | QN8: 5 | QO8: 6 | QP8: 7 | QQ8: 1 | QR8: 2 | QS8: 3 | QT8: 4 | QU8: 5 | QV8: 6 | QW8: 7 | QX8: 1 | QY8: 2 | QZ8: 3 | RA8: 4 | RB8: 5 | RC8: 6 | RD8: 7 | RE8: 1 | RF8: 2 | RG8: 3 | RH8: 4 | RI8: 5 | RJ8: 6 | RK8: 7
E9: 1 | F9: =E9 -> 1 | G9: =F9 -> 1 | H9: 1 | I9: 1 | J9: 1 | K9: 1 | L9: 1 | M9: 1 | N9: 1 | O9: 1 | P9: 1 | Q9: 1 | R9: 1 | S9: 1 | T9: 1 | U9: 1 | V9: 1 | W9: 1 | X9: 1 | Y9: 1 | Z9: 1 | AA9: 1 | AB9: 1 | AC9: 1 | AD9: 1 | AE9: 1 | AF9: =E9+1 -> 2 | AG9: =AF9 -> 2 | AH9: =AG9 -> 2 | AI9: 2 | AJ9: 2 | AK9: 2 | AL9: 2 | AM9: 2 | AN9: 2 | AO9: 2 | AP9: 2 | AQ9: 2 | AR9: 2 | AS9: 2 | AT9: 2 | AU9: 2 | AV9: 2 | AW9: 2 | AX9: 2 | AY9: 2 | AZ9: 2 | BA9: =AZ9 -> 2 | BB9: =BA9 -> 2 | BC9: =BB9 -> 2 | BD9: =BC9 -> 2 | BE9: =BD9 -> 2 | BF9: =BE9 -> 2 | BG9: =AF9+1 -> 3 | BH9: =BG9 -> 3 | BI9: =BH9 -> 3 | BJ9: 3 | BK9: 3 | BL9: 3 | BM9: 3 | BN9: 3 | BO9: 3 | BP9: 3 | BQ9: 3 | BR9: 3 | BS9: 3 | BT9: 3 | BU9: 3 | BV9: 3 | BW9: 3 | BX9: 3 | BY9: 3 | BZ9: 3 | CA9: 3 | CB9: =CA9 -> 3 | CC9: =CB9 -> 3 | CD9: =CC9 -> 3 | CE9: =CD9 -> 3 | CF9: =CE9 -> 3 | CG9: =CF9 -> 3 | CH9: =BG9+1 -> 4 | CI9: =CH9 -> 4 | CJ9: =CI9 -> 4 | CK9: 4 | CL9: 4 | CM9: 4 | CN9: 4 | CO9: 4 | CP9: 4 | CQ9: 4 | CR9: 4 | CS9: 4 | CT9: 4 | CU9: 4 | CV9: 4 | CW9: 4 | CX9: 4 | CY9: 4 | CZ9: 4 | DA9: 4 | DB9: 4 | DC9: =DB9 -> 4 | DD9: =DC9 -> 4 | DE9: =DD9 -> 4 | DF9: =DE9 -> 4 | DG9: =DF9 -> 4 | DH9: =DG9 -> 4 | DI9: =CH9+1 -> 5 | DJ9: =DI9 -> 5 | DK9: =DJ9 -> 5 | DL9: =DK9 -> 5 | DM9: =DL9 -> 5 | DN9: 5 | DO9: 5 | DP9: 5 | DQ9: 5 | DR9: 5 | DS9: 5 | DT9: 5 | DU9: 5 | DV9: 5 | DW9: 5 | DX9: 5 | DY9: 5 | DZ9: 5 | EA9: 5 | EB9: 5 | EC9: 5 | ED9: =EC9 -> 5 | EE9: =ED9 -> 5 | EF9: =EE9 -> 5 | EG9: =EF9 -> 5 | EH9: =EG9 -> 5 | EI9: =EH9 -> 5 | EJ9: =DI9+1 -> 6 | EK9: =EJ9 -> 6 | EL9: =EK9 -> 6 | EM9: 6 | EN9: 6 | EO9: 6 | EP9: 6 | EQ9: 6 | ER9: 6 | ES9: 6 | ET9: 6 | EU9: 6 | EV9: 6 | EW9: 6 | EX9: 6 | EY9: 6 | EZ9: 6 | FA9: 6 | FB9: 6 | FC9: 6 | FD9: 6 | FE9: =FD9 -> 6 | FF9: =FE9 -> 6 | FG9: =FF9 -> 6 | FH9: =FG9 -> 6 | FI9: =FH9 -> 6 | FJ9: =FI9 -> 6 | FK9: =EJ9+1 -> 7 | FL9: =FK9 -> 7 | FM9: =FL9 -> 7 | FN9: 7 | FO9: 7 | FP9: 7 | FQ9: 7 | FR9: 7 | FS9: 7 | FT9: 7 | FU9: 7 | FV9: 7 | FW9: 7 | FX9: 7 | FY9: 7 | FZ9: 7 | GA9: 7 | GB9: 7 | GC9: 7 | GD9: 7 | GE9: 7 | GF9: =GE9 -> 7 | GG9: =GF9 -> 7 | GH9: =GG9 -> 7 | GI9: =GH9 -> 7 | GJ9: =GI9 -> 7 | GK9: =GJ9 -> 7 | GL9: =FK9+1 -> 8 | GM9: =GL9 -> 8 | GN9: =GM9 -> 8 | GO9: 8 | GP9: 8 | GQ9: 8 | GR9: 8 | GS9: 8 | GT9: 8 | GU9: 8 | GV9: 8 | GW9: 8 | GX9: 8 | GY9: 8 | GZ9: 8 | HA9: 8 | HB9: 8 | HC9: 8 | HD9: 8 | HE9: 8 | HF9: 8 | HG9: =HF9 -> 8 | HH9: =HG9 -> 8 | HI9: =HH9 -> 8 | HJ9: =HI9 -> 8 | HK9: =HJ9 -> 8 | HL9: =HK9 -> 8 | HM9: =GL9+1 -> 9 | HN9: =HM9 -> 9 | HO9: =HN9 -> 9 | HP9: 9 | HQ9: 9 | HR9: 9 | HS9: 9 | HT9: 9 | HU9: 9 | HV9: 9 | HW9: 9 | HX9: 9 | HY9: 9 | HZ9: 9 | IA9: 9 | IB9: 9 | IC9: 9 | ID9: 9 | IE9: 9 | IF9: 9 | IG9: 9 | IH9: =IG9 -> 9 | II9: =IH9 -> 9 | IJ9: =II9 -> 9 | IK9: =IJ9 -> 9 | IL9: =IK9 -> 9 | IM9: =IL9 -> 9 | IN9: =HM9+1 -> 10 | IO9: =IN9 -> 10 | IP9: =IO9 -> 10 | IQ9: 10 | IR9: 10 | IS9: 10 | IT9: 10 | IU9: 10 | IV9: 10 | IW9: 10 | IX9: 10 | IY9: 10 | IZ9: 10 | JA9: 10 | JB9: 10 | JC9: 10 | JD9: 10 | JE9: 10 | JF9: 10 | JG9: 10 | JH9: 10 | JI9: =JH9 -> 10 | JJ9: =JI9 -> 10 | JK9: =JJ9 -> 10 | JL9: =JK9 -> 10 | JM9: =JL9 -> 10 | JN9: =JM9 -> 10 | JO9: =IN9+1 -> 11 | JP9: =JO9 -> 11 | JQ9: =JP9 -> 11 | JR9: 11 | JS9: 11 | JT9: 11 | JU9: 11 | JV9: 11 | JW9: 11 | JX9: 11 | JY9: 11 | JZ9: 11 | KA9: 11 | KB9: 11 | KC9: 11 | KD9: 11 | KE9: 11 | KF9: 11 | KG9: 11 | KH9: 11 | KI9: 11 | KJ9: =KI9 -> 11 | KK9: =KJ9 -> 11 | KL9: =KK9 -> 11 | KM9: =KL9 -> 11 | KN9: =KM9 -> 11 | KO9: =KN9 -> 11 | KP9: =JO9+1 -> 12 | KQ9: =KP9 -> 12 | KR9: =KQ9 -> 12 | KS9: 12 | KT9: 12 | KU9: 12 | KV9: 12 | KW9: 12 | KX9: 12 | KY9: 12 | KZ9: 12 | LA9: 12 | LB9: 12 | LC9: 12 | LD9: 12 | LE9: 12 | LF9: 12 | LG9: 12 | LH9: 12 | LI9: 12 | LJ9: 12 | LK9: =LJ9 -> 12 | LL9: =LK9 -> 12 | LM9: =LL9 -> 12 | LN9: =LM9 -> 12 | LO9: =LN9 -> 12 | LP9: =LO9 -> 12 | LQ9: =KP9+1 -> 13 | LR9: =LQ9 -> 13 | LS9: =LR9 -> 13 | LT9: 13 | LU9: 13 | LV9: 13 | LW9: 13 | LX9: 13 | LY9: 13 | LZ9: 13 | MA9: 13 | MB9: 13 | MC9: 13 | MD9: 13 | ME9: 13 | MF9: 13 | MG9: 13 | MH9: 13 | MI9: 13 | MJ9: 13 | MK9: 13 | ML9: =MK9 -> 13 | MM9: =ML9 -> 13 | MN9: =MM9 -> 13 | MO9: =MN9 -> 13 | MP9: =MO9 -> 13 | MQ9: =MP9 -> 13 | MR9: =LQ9+1 -> 14 | MS9: =MR9 -> 14 | MT9: =MS9 -> 14 | MU9: 14 | MV9: 14 | MW9: 14 | MX9: 14 | MY9: 14 | MZ9: 14 | NA9: 14 | NB9: 14 | NC9: 14 | ND9: 14 | NE9: 14 | NF9: 14 | NG9: 14 | NH9: 14 | NI9: 14 | NJ9: 14 | NK9: 14 | NL9: 14 | NM9: =NL9 -> 14 | NN9: =NM9 -> 14 | NO9: =NN9 -> 14 | NP9: =NO9 -> 14 | NQ9: =NP9 -> 14 | NR9: =NQ9 -> 14 | NS9: =MR9+1 -> 15 | NT9: =NS9 -> 15 | NU9: =NT9 -> 15 | NV9: 15 | NW9: 15 | NX9: 15 | NY9: 15 | NZ9: 15 | OA9: 15 | OB9: 15 | OC9: 15 | OD9: 15 | OE9: 15 | OF9: 15 | OG9: 15 | OH9: 15 | OI9: 15 | OJ9: 15 | OK9: 15 | OL9: 15 | OM9: 15 | ON9: =OM9 -> 15 | OO9: =ON9 -> 15 | OP9: =OO9 -> 15 | OQ9: =OP9 -> 15 | OR9: =OQ9 -> 15 | OS9: =OR9 -> 15 | OT9: 1 | OU9: =$OT9 -> 1 | OV9: =$OT9 -> 1 | OW9: 1 | OX9: 1 | OY9: 1 | OZ9: 1 | PA9: =OT9+1 -> 2 | PB9: =$PA9 -> 2 | PC9: =$PA9 -> 2 | PD9: 2 | PE9: 2 | PF9: 2 | PG9: 2 | PH9: =PA9+1 -> 3 | PI9: =$PH9 -> 3 | PJ9: =$PH9 -> 3 | PK9: 3 | PL9: 3 | PM9: 3 | PN9: 3 | PO9: =PH9+1 -> 4 | PP9: =$PO9 -> 4 | PQ9: =$PO9 -> 4 | PR9: 4 | PS9: 4 | PT9: 4 | PU9: 4 | PV9: =PO9+1 -> 5 | PW9: =$PV9 -> 5 | PX9: =$PV9 -> 5 | PY9: 5 | PZ9: 5 | QA9: 5 | QB9: 5 | QC9: =PV9+1 -> 6 | QD9: =$QC9 -> 6 | QE9: =$QC9 -> 6 | QF9: 6 | QG9: 6 | QH9: 6 | QI9: 6 | QJ9: =QC9+1 -> 7 | QK9: =$QJ9 -> 7 | QL9: =$QJ9 -> 7 | QM9: 7 | QN9: 7 | QO9: 7 | QP9: 7 | QQ9: =QJ9+1 -> 8 | QR9: =$QQ9 -> 8 | QS9: =$QQ9 -> 8 | QT9: 8 | QU9: 8 | QV9: 8 | QW9: 8 | QX9: =QQ9+1 -> 9 | QY9: =$QX9 -> 9 | QZ9: =$QX9 -> 9 | RA9: 9 | RB9: 9 | RC9: 9 | RD9: 9 | RE9: =QX9+1 -> 10 | RF9: =$RE9 -> 10 | RG9: =$RE9 -> 10 | RH9: 10 | RI9: 10 | RJ9: 10 | RK9: 10
A10: Plant room ID | B10: Plant room name: | C10: Maintenance costs - external | D10: Mgt & maintenance - internal | E10: Plant name | F10: Plant type | G10: Fuel input type | H10: Fuel supply point | I10: Avg annual fuel use (metered) | J10: Replacement cost | K10: Original purchase date | L10: Estimated life | M10: Avg annual maintenance costs | N10: Heat output type | O10: Thermal capacity (rated / installed) | P10: Avg annual thermal capacity factor | Q10: Gross thermal efficiency (boiler plate) | R10: Gross thermal efficiency (actual) | S10: Is efficiency estimated or measured? (heat) | T10: Electrical output - % used on site | U10: Electrical capacity (rated / installed) | V10: Avg annual electrical capacity factor | W10: Electrical efficiency (boiler plate) | X10: Electrical efficiency (actual) | Y10: Is efficiency estimated or measured? (elec) | Z10: Cooling output | AA10: Cooling capacity (rated / installed) | AB10: Avg annual cooling capacity factor | AC10: Cooling efficiency (boiler plate) | AD10: Cooling efficiency (actual) | AE10: Is efficiency estimated or measured? (cool) | AF10: =E10 -> Plant name | AG10: Plant type | AH10: Fuel input type | AI10: Fuel supply point | AJ10: Avg annual fuel use (metered) | AK10: Replacement cost | AL10: Original purchase date | AM10: Estimated life | AN10: Avg annual maintenance costs | AO10: Heat output type | AP10: Thermal capacity (rated / installed) | AQ10: Avg annual thermal capacity factor | AR10: Gross thermal efficiency (boiler plate) | AS10: Gross thermal efficiency (actual) | AT10: Is efficiency estimated or measured? (heat) | AU10: Electrical output - % used on site | AV10: Electrical capacity (rated / installed) | AW10: Avg annual electrical capacity factor | AX10: Electrical efficiency (boiler plate) | AY10: Electrical efficiency (actual) | AZ10: Is efficiency estimated or measured? (elec) | BA10: Cooling output | BB10: Cooling capacity (rated / installed) | BC10: Avg annual cooling capacity factor | BD10: Cooling efficiency (boiler plate) | BE10: Cooling efficiency (actual) | BF10: Is efficiency estimated or measured? (cool) | BG10: Plant name | BH10: Plant type | BI10: Fuel input type | BJ10: Fuel supply point | BK10: Avg annual fuel use (metered) | BL10: Replacement cost | BM10: Original purchase date | BN10: Estimated life | BO10: Avg annual maintenance costs | BP10: Heat output type | BQ10: Thermal capacity (rated / installed) | BR10: Avg annual thermal capacity factor | BS10: Gross thermal efficiency (boiler plate) | BT10: Gross thermal efficiency (actual) | BU10: Is efficiency estimated or measured? (heat) | BV10: Electrical output - % used on site | BW10: Electrical capacity (rated / installed) | BX10: Avg annual electrical capacity factor | BY10: Electrical efficiency (boiler plate) | BZ10: Electrical efficiency (actual) | CA10: Is efficiency estimated or measured? (elec) | CB10: Cooling output | CC10: Cooling capacity (rated / installed) | CD10: Avg annual cooling capacity factor | CE10: Cooling efficiency (boiler plate) | CF10: Cooling efficiency (actual) | CG10: Is efficiency estimated or measured? (cool) | CH10: Plant name | CI10: Plant type | CJ10: Fuel input type | CK10: Fuel supply point | CL10: Avg annual fuel use (metered) | CM10: Replacement cost | CN10: Original purchase date | CO10: Estimated life | CP10: Avg annual maintenance costs | CQ10: Heat output type | CR10: =BQ10 -> Thermal capacity (rated / installed) | CS10: Avg annual thermal capacity factor | CT10: Gross thermal efficiency (boiler plate) | CU10: Gross thermal efficiency (actual) | CV10: Is efficiency estimated or measured? (heat) | CW10: Electrical output - % used on site | CX10: Electrical capacity (rated / installed) | CY10: Avg annual electrical capacity factor | CZ10: Electrical efficiency (boiler plate) | DA10: Electrical efficiency (actual) | DB10: Is efficiency estimated or measured? (elec) | DC10: Cooling output | DD10: Cooling capacity (rated / installed) | DE10: Avg annual cooling capacity factor | DF10: Cooling efficiency (boiler plate) | DG10: Cooling efficiency (actual) | DH10: Is efficiency estimated or measured? (cool) | DI10: Plant name | DJ10: Plant type | DK10: Fuel input type | DL10: Fuel supply point | DM10: Avg annual fuel use (metered) | DN10: Replacement cost | DO10: Original purchase date | DP10: Estimated life | DQ10: Avg annual maintenance costs | DR10: Heat output type | DS10: Thermal capacity (rated / installed) | DT10: Avg annual thermal capacity factor | DU10: Gross thermal efficiency (boiler plate) | DV10: Gross thermal efficiency (actual) | DW10: Is efficiency estimated or measured? (heat) | DX10: Electrical output - % used on site | DY10: Electrical capacity (rated / installed) | DZ10: Avg annual electrical capacity factor | EA10: Electrical efficiency (boiler plate) | EB10: Electrical efficiency (actual) | EC10: Is efficiency estimated or measured? (elec) | ED10: Cooling output | EE10: Cooling capacity (rated / installed) | EF10: Avg annual cooling capacity factor | EG10: Cooling efficiency (boiler plate) | EH10: Cooling efficiency (actual) | EI10: Is efficiency estimated or measured? (cool) | EJ10: Plant name | EK10: Plant type | EL10: Fuel input type | EM10: Fuel supply point | EN10: Avg annual fuel use (metered) | EO10: Replacement cost | EP10: Original purchase date | EQ10: Estimated life | ER10: Avg annual maintenance costs | ES10: Heat output type | ET10: Thermal capacity (rated / installed) | EU10: Avg annual thermal capacity factor | EV10: Gross thermal efficiency (boiler plate) | EW10: Gross thermal efficiency (actual) | EX10: Is efficiency estimated or measured? (heat) | EY10: Electrical output - % used on site | EZ10: Electrical capacity (rated / installed) | FA10: Avg annual electrical capacity factor | FB10: Electrical efficiency (boiler plate) | FC10: Electrical efficiency (actual) | FD10: =EC10 -> Is efficiency estimated or measured? (elec) | FE10: Cooling output | FF10: Cooling capacity (rated / installed) | FG10: Avg annual cooling capacity factor | FH10: Cooling efficiency (boiler plate) | FI10: Cooling efficiency (actual) | FJ10: Is efficiency estimated or measured? (cool) | FK10: Plant name | FL10: Plant type | FM10: Fuel input type | FN10: Fuel supply point | FO10: Avg annual fuel use (metered) | FP10: Replacement cost | FQ10: Original purchase date | FR10: Estimated life | FS10: Avg annual maintenance costs | FT10: Heat output type | FU10: Thermal capacity (rated / installed) | FV10: Avg annual thermal capacity factor | FW10: Gross thermal efficiency (boiler plate) | FX10: Gross thermal efficiency (actual) | FY10: Is efficiency estimated or measured? (heat) | FZ10: Electrical output - % used on site | GA10: Electrical capacity (rated / installed) | GB10: Avg annual electrical capacity factor | GC10: Electrical efficiency (boiler plate) | GD10: Electrical efficiency (actual) | GE10: Is efficiency estimated or measured? (elec) | GF10: Cooling output | GG10: Cooling capacity (rated / installed) | GH10: Avg annual cooling capacity factor | GI10: Cooling efficiency (boiler plate) | GJ10: Cooling efficiency (actual) | GK10: Is efficiency estimated or measured? (cool) | GL10: Plant name | GM10: Plant type | GN10: Fuel input type | GO10: Fuel supply point | GP10: Avg annual fuel use (metered) | GQ10: Replacement cost | GR10: Original purchase date | GS10: Estimated life | GT10: Avg annual maintenance costs | GU10: Heat output type | GV10: Thermal capacity (rated / installed) | GW10: Avg annual thermal capacity factor | GX10: Gross thermal efficiency (boiler plate) | GY10: Gross thermal efficiency (actual) | GZ10: Is efficiency estimated or measured? (heat) | HA10: Electrical output - % used on site | HB10: Electrical capacity (rated / installed) | HC10: Avg annual electrical capacity factor | HD10: Electrical efficiency (boiler plate) | HE10: Electrical efficiency (actual) | HF10: Is efficiency estimated or measured? (elec) | HG10: Cooling output | HH10: Cooling capacity (rated / installed) | HI10: Avg annual cooling capacity factor | HJ10: Cooling efficiency (boiler plate) | HK10: Cooling efficiency (actual) | HL10: Is efficiency estimated or measured? (cool) | HM10: Plant name | HN10: Plant type | HO10: Fuel input type | HP10: =GO10 -> Fuel supply point | HQ10: Avg annual fuel use (metered) | HR10: Replacement cost | HS10: Original purchase date | HT10: Estimated life | HU10: Avg annual maintenance costs | HV10: Heat output type | HW10: Thermal capacity (rated / installed) | HX10: Avg annual thermal capacity factor | HY10: Gross thermal efficiency (boiler plate) | HZ10: Gross thermal efficiency (actual) | IA10: Is efficiency estimated or measured? (heat) | IB10: Electrical output - % used on site | IC10: Electrical capacity (rated / installed) | ID10: Avg annual electrical capacity factor | IE10: Electrical efficiency (boiler plate) | IF10: Electrical efficiency (actual) | IG10: Is efficiency estimated or measured? (elec) | IH10: Cooling output | II10: Cooling capacity (rated / installed) | IJ10: Avg annual cooling capacity factor | IK10: Cooling efficiency (boiler plate) | IL10: Cooling efficiency (actual) | IM10: Is efficiency estimated or measured? (cool) | IN10: Plant name | IO10: Plant type | IP10: Fuel input type | IQ10: Fuel supply point | IR10: Avg annual fuel use (metered) | IS10: Replacement cost | IT10: Original purchase date | IU10: Estimated life | IV10: Avg annual maintenance costs | IW10: Heat output type | IX10: Thermal capacity (rated / installed) | IY10: Avg annual thermal capacity factor | IZ10: Gross thermal efficiency (boiler plate) | JA10: Gross thermal efficiency (actual) | JB10: Is efficiency estimated or measured? (heat) | JC10: Electrical output - % used on site | JD10: Electrical capacity (rated / installed) | JE10: Avg annual electrical capacity factor | JF10: Electrical efficiency (boiler plate) | JG10: Electrical efficiency (actual) | JH10: Is efficiency estimated or measured? (elec) | JI10: Cooling output | JJ10: Cooling capacity (rated / installed) | JK10: Avg annual cooling capacity factor | JL10: Cooling efficiency (boiler plate) | JM10: Cooling efficiency (actual) | JN10: Is efficiency estimated or measured? (cool) | JO10: Plant name | JP10: Plant type | JQ10: Fuel input type | JR10: Fuel supply point | JS10: Avg annual fuel use (metered) | JT10: Replacement cost | JU10: Original purchase date | JV10: Estimated life | JW10: Avg annual maintenance costs | JX10: Heat output type | JY10: Thermal capacity (rated / installed) | JZ10: Avg annual thermal capacity factor | KA10: Gross thermal efficiency (boiler plate) | KB10: =JA10 -> Gross thermal efficiency (actual) | KC10: Is efficiency estimated or measured? (heat) | KD10: Electrical output - % used on site | KE10: Electrical capacity (rated / installed) | KF10: Avg annual electrical capacity factor | KG10: Electrical efficiency (boiler plate) | KH10: Electrical efficiency (actual) | KI10: Is efficiency estimated or measured? (elec) | KJ10: Cooling output | KK10: Cooling capacity (rated / installed) | KL10: Avg annual cooling capacity factor | KM10: Cooling efficiency (boiler plate) | KN10: Cooling efficiency (actual) | KO10: Is efficiency estimated or measured? (cool) | KP10: Plant name | KQ10: Plant type | KR10: Fuel input type | KS10: Fuel supply point | KT10: Avg annual fuel use (metered) | KU10: Replacement cost | KV10: Original purchase date | KW10: Estimated life | KX10: Avg annual maintenance costs | KY10: Heat output type | KZ10: Thermal capacity (rated / installed) | LA10: Avg annual thermal capacity factor | LB10: Gross thermal efficiency (boiler plate) | LC10: Gross thermal efficiency (actual) | LD10: Is efficiency estimated or measured? (heat) | LE10: Electrical output - % used on site | LF10: Electrical capacity (rated / installed) | LG10: Avg annual electrical capacity factor | LH10: Electrical efficiency (boiler plate) | LI10: Electrical efficiency (actual) | LJ10: Is efficiency estimated or measured? (elec) | LK10: Cooling output | LL10: Cooling capacity (rated / installed) | LM10: Avg annual cooling capacity factor | LN10: Cooling efficiency (boiler plate) | LO10: Cooling efficiency (actual) | LP10: Is efficiency estimated or measured? (cool) | LQ10: Plant name | LR10: Plant type | LS10: Fuel input type | LT10: Fuel supply point | LU10: Avg annual fuel use (metered) | LV10: Replacement cost | LW10: Original purchase date | LX10: Estimated life | LY10: Avg annual maintenance costs | LZ10: Heat output type | MA10: Thermal capacity (rated / installed) | MB10: Avg annual thermal capacity factor | MC10: Gross thermal efficiency (boiler plate) | MD10: Gross thermal efficiency (actual) | ME10: Is efficiency estimated or measured? (heat) | MF10: Electrical output - % used on site | MG10: Electrical capacity (rated / installed) | MH10: Avg annual electrical capacity factor | MI10: Electrical efficiency (boiler plate) | MJ10: Electrical efficiency (actual) | MK10: Is efficiency estimated or measured? (elec) | ML10: Cooling output | MM10: Cooling capacity (rated / installed) | MN10: =LM10 -> Avg annual cooling capacity factor | MO10: Cooling efficiency (boiler plate) | MP10: Cooling efficiency (actual) | MQ10: Is efficiency estimated or measured? (cool) | MR10: Plant name | MS10: Plant type | MT10: Fuel input type | MU10: Fuel supply point | MV10: Avg annual fuel use (metered) | MW10: Replacement cost | MX10: Original purchase date | MY10: Estimated life | MZ10: Avg annual maintenance costs | NA10: Heat output type | NB10: Thermal capacity (rated / installed) | NC10: Avg annual thermal capacity factor | ND10: Gross thermal efficiency (boiler plate) | NE10: Gross thermal efficiency (actual) | NF10: Is efficiency estimated or measured? (heat) | NG10: Electrical output - % used on site | NH10: Electrical capacity (rated / installed) | NI10: Avg annual electrical capacity factor | NJ10: Electrical efficiency (boiler plate) | NK10: Electrical efficiency (actual) | NL10: Is efficiency estimated or measured? (elec) | NM10: Cooling output | NN10: Cooling capacity (rated / installed) | NO10: Avg annual cooling capacity factor | NP10: Cooling efficiency (boiler plate) | NQ10: Cooling efficiency (actual) | NR10: Is efficiency estimated or measured? (cool) | NS10: Plant name | NT10: Plant type | NU10: Fuel input type | NV10: Fuel supply point | NW10: Avg annual fuel use (metered) | NX10: Replacement cost | NY10: Original purchase date | NZ10: Estimated life | OA10: Avg annual maintenance costs | OB10: Heat output type | OC10: Thermal capacity (rated / installed) | OD10: Avg annual thermal capacity factor | OE10: Gross thermal efficiency (boiler plate) | OF10: Gross thermal efficiency (actual) | OG10: Is efficiency estimated or measured? (heat) | OH10: Electrical output - % used on site | OI10: Electrical capacity (rated / installed) | OJ10: Avg annual electrical capacity factor | OK10: Electrical efficiency (boiler plate) | OL10: Electrical efficiency (actual) | OM10: Is efficiency estimated or measured? (elec) | ON10: Cooling output | OO10: Cooling capacity (rated / installed) | OP10: Avg annual cooling capacity factor | OQ10: Cooling efficiency (boiler plate) | OR10: Cooling efficiency (actual) | OS10: Is efficiency estimated or measured? (cool) | OT10: Fuel | OU10: Delivery point / meter no. | OV10: Avg annual import | OW10: Unit cost | OX10: Standing charge | OY10: CCL | OZ10: Other charges | PA10: =OT10 -> Fuel | PB10: Delivery point / meter no. | PC10: Avg annual import | PD10: Unit cost | PE10: Standing charge | PF10: CCL | PG10: Other charges | PH10: Fuel | PI10: Delivery point / meter no. | PJ10: Avg annual import | PK10: Unit cost | PL10: Standing charge | PM10: CCL | PN10: Other charges | PO10: Fuel | PP10: Delivery point / meter no. | PQ10: Avg annual import | PR10: Unit cost | PS10: Standing charge | PT10: CCL | PU10: Other charges | PV10: Fuel | PW10: Delivery point / meter no. | PX10: Avg annual import | PY10: Unit cost | PZ10: Standing charge | QA10: CCL | QB10: Other charges | QC10: Fuel | QD10: Delivery point / meter no. | QE10: Avg annual import | QF10: Unit cost | QG10: =PZ10 -> Standing charge | QH10: CCL | QI10: Other charges | QJ10: Fuel | QK10: Delivery point / meter no. | QL10: Avg annual import | QM10: Unit cost | QN10: Standing charge | QO10: CCL | QP10: Other charges | QQ10: Fuel | QR10: Delivery point / meter no. | QS10: Avg annual import | QT10: Unit cost | QU10: Standing charge | QV10: CCL | QW10: Other charges | QX10: Fuel | QY10: Delivery point / meter no. | QZ10: Avg annual import | RA10: Unit cost | RB10: Standing charge | RC10: CCL | RD10: Other charges | RE10: Fuel | RF10: Delivery point / meter no. | RG10: Avg annual import | RH10: Unit cost | RI10: Standing charge | RJ10: CCL | RK10: Other charges
A11: =A10 -> Plant room ID | B11: =B10 -> Plant room name: | C11: =C10 -> Maintenance costs - external | D11: Mgt & maintenance - internal | E11: =CONCATENATE(E10," ",E9) -> Plant name 1 | F11: =CONCATENATE(F10," ",F9) -> Plant type 1 | G11: Fuel input type 1 | H11: Fuel supply point 1 | I11: Avg annual fuel use (metered) 1 | J11: Replacement cost 1 | K11: Original purchase date 1 | L11: Estimated life 1 | M11: Avg annual maintenance costs 1 | N11: Heat output type 1 | O11: Thermal capacity (rated / installed) 1 | P11: Avg annual thermal capacity factor 1 | Q11: Gross thermal efficiency (boiler plate) 1 | R11: Gross thermal efficiency (actual) 1 | S11: Is efficiency estimated or measured? (heat) 1 | T11: Electrical output - % used on site 1 | U11: Electrical capacity (rated / installed) 1 | V11: Avg annual electrical capacity factor 1 | W11: Electrical efficiency (boiler plate) 1 | X11: Electrical efficiency (actual) 1 | Y11: Is efficiency estimated or measured? (elec) 1 | Z11: Cooling output 1 | AA11: Cooling capacity (rated / installed) 1 | AB11: Avg annual cooling capacity factor 1 | AC11: Cooling efficiency (boiler plate) 1 | AD11: Cooling efficiency (actual) 1 | AE11: Is efficiency estimated or measured? (cool) 1 | AF11: =CONCATENATE(AF10," ",AF9) -> Plant name 2 | AG11: Plant type 2 | AH11: Fuel input type 2 | AI11: Fuel supply point 2 | AJ11: Avg annual fuel use (metered) 2 | AK11: Replacement cost 2 | AL11: Original purchase date 2 | AM11: Estimated life 2 | AN11: Avg annual maintenance costs 2 | AO11: Heat output type 2 | AP11: Thermal capacity (rated / installed) 2 | AQ11: Avg annual thermal capacity factor 2 | AR11: Gross thermal efficiency (boiler plate) 2 | AS11: Gross thermal efficiency (actual) 2 | AT11: Is efficiency estimated or measured? (heat) 2 | AU11: Electrical output - % used on site 2 | AV11: Electrical capacity (rated / installed) 2 | AW11: Avg annual electrical capacity factor 2 | AX11: Electrical efficiency (boiler plate) 2 | AY11: Electrical efficiency (actual) 2 | AZ11: Is efficiency estimated or measured? (elec) 2 | BA11: =CONCATENATE(BA10," ",BA9) -> Cooling output 2 | BB11: Cooling capacity (rated / installed) 2 | BC11: Avg annual cooling capacity factor 2 | BD11: Cooling efficiency (boiler plate) 2 | BE11: Cooling efficiency (actual) 2 | BF11: Is efficiency estimated or measured? (cool) 2 | BG11: Plant name 3 | BH11: Plant type 3 | BI11: Fuel input type 3 | BJ11: Fuel supply point 3 | BK11: Avg annual fuel use (metered) 3 | BL11: Replacement cost 3 | BM11: Original purchase date 3 | BN11: Estimated life 3 | BO11: Avg annual maintenance costs 3 | BP11: Heat output type 3 | BQ11: Thermal capacity (rated / installed) 3 | BR11: Avg annual thermal capacity factor 3 | BS11: Gross thermal efficiency (boiler plate) 3 | BT11: Gross thermal efficiency (actual) 3 | BU11: Is efficiency estimated or measured? (heat) 3 | BV11: Electrical output - % used on site 3 | BW11: Electrical capacity (rated / installed) 3 | BX11: Avg annual electrical capacity factor 3 | BY11: =CONCATENATE(BY10," ",BY9) -> Electrical efficiency (boiler plate) 3 | BZ11: Electrical efficiency (actual) 3 | CA11: Is efficiency estimated or measured? (elec) 3 | CB11: =CONCATENATE(CB10," ",CB9) -> Cooling output 3 | CC11: Cooling capacity (rated / installed) 3 | CD11: Avg annual cooling capacity factor 3 | CE11: Cooling efficiency (boiler plate) 3 | CF11: Cooling efficiency (actual) 3 | CG11: Is efficiency estimated or measured? (cool) 3 | CH11: Plant name 4 | CI11: Plant type 4 | CJ11: Fuel input type 4 | CK11: Fuel supply point 4 | CL11: Avg annual fuel use (metered) 4 | CM11: Replacement cost 4 | CN11: Original purchase date 4 | CO11: Estimated life 4 | CP11: Avg annual maintenance costs 4 | CQ11: Heat output type 4 | CR11: Thermal capacity (rated / installed) 4 | CS11: Avg annual thermal capacity factor 4 | CT11: Gross thermal efficiency (boiler plate) 4 | CU11: Gross thermal efficiency (actual) 4 | CV11: Is efficiency estimated or measured? (heat) 4 | CW11: Electrical output - % used on site 4 | CX11: Electrical capacity (rated / installed) 4 | CY11: Avg annual electrical capacity factor 4 | CZ11: Electrical efficiency (boiler plate) 4 | DA11: Electrical efficiency (actual) 4 | DB11: Is efficiency estimated or measured? (elec) 4 | DC11: =CONCATENATE(DC10," ",DC9) -> Cooling output 4 | DD11: Cooling capacity (rated / installed) 4 | DE11: Avg annual cooling capacity factor 4 | DF11: Cooling efficiency (boiler plate) 4 | DG11: Cooling efficiency (actual) 4 | DH11: Is efficiency estimated or measured? (cool) 4 | DI11: Plant name 5 | DJ11: Plant type 5 | DK11: Fuel input type 5 | DL11: Fuel supply point 5 | DM11: Avg annual fuel use (metered) 5 | DN11: Replacement cost 5 | DO11: Original purchase date 5 | DP11: Estimated life 5 | DQ11: Avg annual maintenance costs 5 | DR11: Heat output type 5 | DS11: Thermal capacity (rated / installed) 5 | DT11: Avg annual thermal capacity factor 5 | DU11: Gross thermal efficiency (boiler plate) 5 | DV11: Gross thermal efficiency (actual) 5 | DW11: Is efficiency estimated or measured? (heat) 5 | DX11: Electrical output - % used on site 5 | DY11: Electrical capacity (rated / installed) 5 | DZ11: Avg annual electrical capacity factor 5 | EA11: Electrical efficiency (boiler plate) 5 | EB11: Electrical efficiency (actual) 5 | EC11: Is efficiency estimated or measured? (elec) 5 | ED11: =CONCATENATE(ED10," ",ED9) -> Cooling output 5 | EE11: Cooling capacity (rated / installed) 5 | EF11: Avg annual cooling capacity factor 5 | EG11: Cooling efficiency (boiler plate) 5 | EH11: Cooling efficiency (actual) 5 | EI11: Is efficiency estimated or measured? (cool) 5 | EJ11: Plant name 6 | EK11: Plant type 6 | EL11: Fuel input type 6 | EM11: Fuel supply point 6 | EN11: Avg annual fuel use (metered) 6 | EO11: Replacement cost 6 | EP11: Original purchase date 6 | EQ11: Estimated life 6 | ER11: Avg annual maintenance costs 6 | ES11: Heat output type 6 | ET11: Thermal capacity (rated / installed) 6 | EU11: Avg annual thermal capacity factor 6 | EV11: Gross thermal efficiency (boiler plate) 6 | EW11: =CONCATENATE(EW10," ",EW9) -> Gross thermal efficiency (actual) 6 | EX11: Is efficiency estimated or measured? (heat) 6 | EY11: Electrical output - % used on site 6 | EZ11: Electrical capacity (rated / installed) 6 | FA11: Avg annual electrical capacity factor 6 | FB11: Electrical efficiency (boiler plate) 6 | FC11: Electrical efficiency (actual) 6 | FD11: Is efficiency estimated or measured? (elec) 6 | FE11: =CONCATENATE(FE10," ",FE9) -> Cooling output 6 | FF11: Cooling capacity (rated / installed) 6 | FG11: Avg annual cooling capacity factor 6 | FH11: Cooling efficiency (boiler plate) 6 | FI11: Cooling efficiency (actual) 6 | FJ11: Is efficiency estimated or measured? (cool) 6 | FK11: Plant name 7 | FL11: Plant type 7 | FM11: Fuel input type 7 | FN11: Fuel supply point 7 | FO11: Avg annual fuel use (metered) 7 | FP11: Replacement cost 7 | FQ11: Original purchase date 7 | FR11: Estimated life 7 | FS11: Avg annual maintenance costs 7 | FT11: Heat output type 7 | FU11: Thermal capacity (rated / installed) 7 | FV11: Avg annual thermal capacity factor 7 | FW11: Gross thermal efficiency (boiler plate) 7 | FX11: Gross thermal efficiency (actual) 7 | FY11: Is efficiency estimated or measured? (heat) 7 | FZ11: Electrical output - % used on site 7 | GA11: Electrical capacity (rated / installed) 7 | GB11: Avg annual electrical capacity factor 7 | GC11: Electrical efficiency (boiler plate) 7 | GD11: Electrical efficiency (actual) 7 | GE11: Is efficiency estimated or measured? (elec) 7 | GF11: =CONCATENATE(GF10," ",GF9) -> Cooling output 7 | GG11: Cooling capacity (rated / installed) 7 | GH11: Avg annual cooling capacity factor 7 | GI11: Cooling efficiency (boiler plate) 7 | GJ11: Cooling efficiency (actual) 7 | GK11: Is efficiency estimated or measured? (cool) 7 | GL11: Plant name 8 | GM11: Plant type 8 | GN11: Fuel input type 8 | GO11: Fuel supply point 8 | GP11: Avg annual fuel use (metered) 8 | GQ11: Replacement cost 8 | GR11: Original purchase date 8 | GS11: Estimated life 8 | GT11: Avg annual maintenance costs 8 | GU11: Heat output type 8 | GV11: Thermal capacity (rated / installed) 8 | GW11: Avg annual thermal capacity factor 8 | GX11: Gross thermal efficiency (boiler plate) 8 | GY11: Gross thermal efficiency (actual) 8 | GZ11: Is efficiency estimated or measured? (heat) 8 | HA11: Electrical output - % used on site 8 | HB11: Electrical capacity (rated / installed) 8 | HC11: Avg annual electrical capacity factor 8 | HD11: Electrical efficiency (boiler plate) 8 | HE11: Electrical efficiency (actual) 8 | HF11: Is efficiency estimated or measured? (elec) 8 | HG11: =CONCATENATE(HG10," ",HG9) -> Cooling output 8 | HH11: Cooling capacity (rated / installed) 8 | HI11: Avg annual cooling capacity factor 8 | HJ11: Cooling efficiency (boiler plate) 8 | HK11: Cooling efficiency (actual) 8 | HL11: Is efficiency estimated or measured? (cool) 8 | HM11: Plant name 9 | HN11: Plant type 9 | HO11: Fuel input type 9 | HP11: Fuel supply point 9 | HQ11: Avg annual fuel use (metered) 9 | HR11: Replacement cost 9 | HS11: Original purchase date 9 | HT11: Estimated life 9 | HU11: =CONCATENATE(HU10," ",HU9) -> Avg annual maintenance costs 9 | HV11: Heat output type 9 | HW11: Thermal capacity (rated / installed) 9 | HX11: Avg annual thermal capacity factor 9 | HY11: Gross thermal efficiency (boiler plate) 9 | HZ11: Gross thermal efficiency (actual) 9 | IA11: Is efficiency estimated or measured? (heat) 9 | IB11: Electrical output - % used on site 9 | IC11: Electrical capacity (rated / installed) 9 | ID11: Avg annual electrical capacity factor 9 | IE11: Electrical efficiency (boiler plate) 9 | IF11: Electrical efficiency (actual) 9 | IG11: Is efficiency estimated or measured? (elec) 9 | IH11: =CONCATENATE(IH10," ",IH9) -> Cooling output 9 | II11: Cooling capacity (rated / installed) 9 | IJ11: Avg annual cooling capacity factor 9 | IK11: Cooling efficiency (boiler plate) 9 | IL11: Cooling efficiency (actual) 9 | IM11: Is efficiency estimated or measured? (cool) 9 | IN11: Plant name 10 | IO11: Plant type 10 | IP11: Fuel input type 10 | IQ11: Fuel supply point 10 | IR11: Avg annual fuel use (metered) 10 | IS11: Replacement cost 10 | IT11: Original purchase date 10 | IU11: Estimated life 10 | IV11: Avg annual maintenance costs 10 | IW11: Heat output type 10 | IX11: Thermal capacity (rated / installed) 10 | IY11: Avg annual thermal capacity factor 10 | IZ11: Gross thermal efficiency (boiler plate) 10 | JA11: Gross thermal efficiency (actual) 10 | JB11: Is efficiency estimated or measured? (heat) 10 | JC11: Electrical output - % used on site 10 | JD11: Electrical capacity (rated / installed) 10 | JE11: Avg annual electrical capacity factor 10 | JF11: Electrical efficiency (boiler plate) 10 | JG11: Electrical efficiency (actual) 10 | JH11: Is efficiency estimated or measured? (elec) 10 | JI11: =CONCATENATE(JI10," ",JI9) -> Cooling output 10 | JJ11: Cooling capacity (rated / installed) 10 | JK11: Avg annual cooling capacity factor 10 | JL11: Cooling efficiency (boiler plate) 10 | JM11: Cooling efficiency (actual) 10 | JN11: Is efficiency estimated or measured? (cool) 10 | JO11: Plant name 11 | JP11: Plant type 11 | JQ11: Fuel input type 11 | JR11: Fuel supply point 11 | JS11: Avg annual fuel use (metered) 11 | JT11: Replacement cost 11 | JU11: Original purchase date 11 | JV11: Estimated life 11 | JW11: Avg annual maintenance costs 11 | JX11: Heat output type 11 | JY11: Thermal capacity (rated / installed) 11 | JZ11: Avg annual thermal capacity factor 11 | KA11: Gross thermal efficiency (boiler plate) 11 | KB11: Gross thermal efficiency (actual) 11 | KC11: Is efficiency estimated or measured? (heat) 11 | KD11: Electrical output - % used on site 11 | KE11: Electrical capacity (rated / installed) 11 | KF11: Avg annual electrical capacity factor 11 | KG11: Electrical efficiency (boiler plate) 11 | KH11: Electrical efficiency (actual) 11 | KI11: Is efficiency estimated or measured? (elec) 11 | KJ11: =CONCATENATE(KJ10," ",KJ9) -> Cooling output 11 | KK11: Cooling capacity (rated / installed) 11 | KL11: Avg annual cooling capacity factor 11 | KM11: Cooling efficiency (boiler plate) 11 | KN11: Cooling efficiency (actual) 11 | KO11: Is efficiency estimated or measured? (cool) 11 | KP11: Plant name 12 | KQ11: Plant type 12 | KR11: Fuel input type 12 | KS11: Fuel supply point 12 | KT11: =CONCATENATE(KT10," ",KT9) -> Avg annual fuel use (metered) 12 | KU11: Replacement cost 12 | KV11: Original purchase date 12 | KW11: Estimated life 12 | KX11: Avg annual maintenance costs 12 | KY11: Heat output type 12 | KZ11: Thermal capacity (rated / installed) 12 | LA11: Avg annual thermal capacity factor 12 | LB11: Gross thermal efficiency (boiler plate) 12 | LC11: Gross thermal efficiency (actual) 12 | LD11: Is efficiency estimated or measured? (heat) 12 | LE11: Electrical output - % used on site 12 | LF11: Electrical capacity (rated / installed) 12 | LG11: Avg annual electrical capacity factor 12 | LH11: Electrical efficiency (boiler plate) 12 | LI11: Electrical efficiency (actual) 12 | LJ11: Is efficiency estimated or measured? (elec) 12 | LK11: =CONCATENATE(LK10," ",LK9) -> Cooling output 12 | LL11: Cooling capacity (rated / installed) 12 | LM11: Avg annual cooling capacity factor 12 | LN11: Cooling efficiency (boiler plate) 12 | LO11: Cooling efficiency (actual) 12 | LP11: Is efficiency estimated or measured? (cool) 12 | LQ11: Plant name 13 | LR11: Plant type 13 | LS11: Fuel input type 13 | LT11: Fuel supply point 13 | LU11: Avg annual fuel use (metered) 13 | LV11: Replacement cost 13 | LW11: Original purchase date 13 | LX11: Estimated life 13 | LY11: Avg annual maintenance costs 13 | LZ11: Heat output type 13 | MA11: Thermal capacity (rated / installed) 13 | MB11: Avg annual thermal capacity factor 13 | MC11: Gross thermal efficiency (boiler plate) 13 | MD11: Gross thermal efficiency (actual) 13 | ME11: Is efficiency estimated or measured? (heat) 13 | MF11: Electrical output - % used on site 13 | MG11: Electrical capacity (rated / installed) 13 | MH11: Avg annual electrical capacity factor 13 | MI11: Electrical efficiency (boiler plate) 13 | MJ11: Electrical efficiency (actual) 13 | MK11: Is efficiency estimated or measured? (elec) 13 | ML11: =CONCATENATE(ML10," ",ML9) -> Cooling output 13 | MM11: Cooling capacity (rated / installed) 13 | MN11: Avg annual cooling capacity factor 13 | MO11: Cooling efficiency (boiler plate) 13 | MP11: Cooling efficiency (actual) 13 | MQ11: Is efficiency estimated or measured? (cool) 13 | MR11: Plant name 14 | MS11: Plant type 14 | MT11: Fuel input type 14 | MU11: Fuel supply point 14 | MV11: Avg annual fuel use (metered) 14 | MW11: Replacement cost 14 | MX11: Original purchase date 14 | MY11: Estimated life 14 | MZ11: Avg annual maintenance costs 14 | NA11: Heat output type 14 | NB11: Thermal capacity (rated / installed) 14 | NC11: Avg annual thermal capacity factor 14 | ND11: Gross thermal efficiency (boiler plate) 14 | NE11: Gross thermal efficiency (actual) 14 | NF11: Is efficiency estimated or measured? (heat) 14 | NG11: Electrical output - % used on site 14 | NH11: Electrical capacity (rated / installed) 14 | NI11: Avg annual electrical capacity factor 14 | NJ11: Electrical efficiency (boiler plate) 14 | NK11: Electrical efficiency (actual) 14 | NL11: Is efficiency estimated or measured? (elec) 14 | NM11: =CONCATENATE(NM10," ",NM9) -> Cooling output 14 | NN11: Cooling capacity (rated / installed) 14 | NO11: Avg annual cooling capacity factor 14 | NP11: Cooling efficiency (boiler plate) 14 | NQ11: Cooling efficiency (actual) 14 | NR11: Is efficiency estimated or measured? (cool) 14 | NS11: =CONCATENATE(NS10," ",NS9) -> Plant name 15 | NT11: Plant type 15 | NU11: Fuel input type 15 | NV11: Fuel supply point 15 | NW11: Avg annual fuel use (metered) 15 | NX11: Replacement cost 15 | NY11: Original purchase date 15 | NZ11: Estimated life 15 | OA11: Avg annual maintenance costs 15 | OB11: Heat output type 15 | OC11: Thermal capacity (rated / installed) 15 | OD11: Avg annual thermal capacity factor 15 | OE11: Gross thermal efficiency (boiler plate) 15 | OF11: Gross thermal efficiency (actual) 15 | OG11: Is efficiency estimated or measured? (heat) 15 | OH11: Electrical output - % used on site 15 | OI11: Electrical capacity (rated / installed) 15 | OJ11: Avg annual electrical capacity factor 15 | OK11: Electrical efficiency (boiler plate) 15 | OL11: Electrical efficiency (actual) 15 | OM11: Is efficiency estimated or measured? (elec) 15 | ON11: =CONCATENATE(ON10," ",ON9) -> Cooling output 15 | OO11: Cooling capacity (rated / installed) 15 | OP11: Avg annual cooling capacity factor 15 | OQ11: Cooling efficiency (boiler plate) 15 | OR11: Cooling efficiency (actual) 15 | OS11: Is efficiency estimated or measured? (cool) 15 | OT11: Fuel 1 | OU11: Delivery point / meter no. 1 | OV11: Avg annual import 1 | OW11: Unit cost 1 | OX11: Standing charge 1 | OY11: CCL 1 | OZ11: Other charges 1 | PA11: Fuel 2 | PB11: Delivery point / meter no. 2 | PC11: Avg annual import 2 | PD11: Unit cost 2 | PE11: Standing charge 2 | PF11: CCL 2 | PG11: Other charges 2 | PH11: Fuel 3 | PI11: Delivery point / meter no. 3 | PJ11: Avg annual import 3 | PK11: Unit cost 3 | PL11: Standing charge 3 | PM11: CCL 3 | PN11: Other charges 3 | PO11: Fuel 4 | PP11: Delivery point / meter no. 4 | PQ11: Avg annual import 4 | PR11: Unit cost 4 | PS11: Standing charge 4 | PT11: CCL 4 | PU11: Other charges 4 | PV11: Fuel 5 | PW11: Delivery point / meter no. 5 | PX11: Avg annual import 5 | PY11: Unit cost 5 | PZ11: Standing charge 5 | QA11: CCL 5 | QB11: Other charges 5 | QC11: Fuel 6 | QD11: =CONCATENATE(QD10," ",QD9) -> Delivery point / meter no. 6 | QE11: Avg annual import 6 | QF11: Unit cost 6 | QG11: Standing charge 6 | QH11: CCL 6 | QI11: Other charges 6 | QJ11: Fuel 7 | QK11: Delivery point / meter no. 7 | QL11: Avg annual import 7 | QM11: Unit cost 7 | QN11: Standing charge 7 | QO11: CCL 7 | QP11: Other charges 7 | QQ11: Fuel 8 | QR11: Delivery point / meter no. 8 | QS11: Avg annual import 8 | QT11: Unit cost 8 | QU11: Standing charge 8 | QV11: CCL 8 | QW11: Other charges 8 | QX11: Fuel 9 | QY11: Delivery point / meter no. 9 | QZ11: Avg annual import 9 | RA11: Unit cost 9 | RB11: Standing charge 9 | RC11: CCL 9 | RD11: Other charges 9 | RE11: Fuel 10 | RF11: Delivery point / meter no. 10 | RG11: Avg annual import 10 | RH11: Unit cost 10 | RI11: Standing charge 10 | RJ11: CCL 10 | RK11: Other charges 10
A12: # | C12: £ | D12: £ | E12: text | F12: type | G12: type | H12: MPAN no. | I12: KWh | J12: £ | K12: mm/yy | L12: Nr. yrs | M12: £ | N12: type | O12: kW | P12: % | Q12: % | R12: % | S12: text | T12: % | U12: kW | V12: % | W12: % | X12: % | Y12: text | Z12: type | AA12: kW | AB12: % | AC12: % | AD12: % | AE12: text | AF12: text | AG12: type | AH12: type | AI12: MPAN no. | AJ12: KWh | AK12: £ | AL12: mm/yy | AM12: Nr. yrs | AN12: £ | AO12: type | AP12: kW | AQ12: % | AR12: % | AS12: % | AT12: text | AU12: % | AV12: kW | AW12: % | AX12: % | AY12: % | AZ12: text | BA12: type | BB12: kW | BC12: % | BD12: % | BE12: % | BF12: text | BG12: text | BH12: type | BI12: type | BJ12: MPAN no. | BK12: KWh | BL12: £ | BM12: mm/yy | BN12: Nr. yrs | BO12: £ | BP12: type | BQ12: kW | BR12: % | BS12: % | BT12: % | BU12: text | BV12: % | BW12: kW | BX12: % | BY12: % | BZ12: % | CA12: text | CB12: type | CC12: kW | CD12: % | CE12: % | CF12: % | CG12: text | CH12: text | CI12: type | CJ12: type | CK12: MPAN no. | CL12: KWh | CM12: £ | CN12: mm/yy | CO12: Nr. yrs | CP12: £ | CQ12: type | CR12: kW | CS12: % | CT12: % | CU12: % | CV12: text | CW12: % | CX12: kW | CY12: % | CZ12: % | DA12: % | DB12: text | DC12: type | DD12: kW | DE12: % | DF12: % | DG12: % | DH12: text | DI12: text | DJ12: type | DK12: type | DL12: MPAN no. | DM12: KWh | DN12: £ | DO12: mm/yy | DP12: Nr. yrs | DQ12: £ | DR12: type | DS12: kW | DT12: % | DU12: % | DV12: % | DW12: text | DX12: % | DY12: kW | DZ12: % | EA12: % | EB12: % | EC12: text | ED12: type | EE12: kW | EF12: % | EG12: % | EH12: % | EI12: text | EJ12: text | EK12: type | EL12: type | EM12: MPAN no. | EN12: KWh | EO12: £ | EP12: mm/yy | EQ12: Nr. yrs | ER12: £ | ES12: type | ET12: kW | EU12: % | EV12: % | EW12: % | EX12: text | EY12: % | EZ12: kW | FA12: % | FB12: % | FC12: % | FD12: text | FE12: type | FF12: kW | FG12: % | FH12: % | FI12: % | FJ12: text | FK12: text | FL12: type | FM12: type | FN12: MPAN no. | FO12: KWh | FP12: £ | FQ12: mm/yy | FR12: Nr. yrs | FS12: £ | FT12: type | FU12: kW | FV12: % | FW12: % | FX12: % | FY12: text | FZ12: % | GA12: kW | GB12: % | GC12: % | GD12: % | GE12: text | GF12: type | GG12: kW | GH12: % | GI12: % | GJ12: % | GK12: text | GL12: text | GM12: type | GN12: type | GO12: MPAN no. | GP12: KWh | GQ12: £ | GR12: mm/yy | GS12: Nr. yrs | GT12: £ | GU12: type | GV12: kW | GW12: % | GX12: % | GY12: % | GZ12: text | HA12: % | HB12: kW | HC12: % | HD12: % | HE12: % | HF12: text | HG12: type | HH12: kW | HI12: % | HJ12: % | HK12: % | HL12: text | HM12: text | HN12: type | HO12: type | HP12: MPAN no. | HQ12: KWh | HR12: £ | HS12: mm/yy | HT12: Nr. yrs | HU12: £ | HV12: type | HW12: kW | HX12: % | HY12: % | HZ12: % | IA12: text | IB12: % | IC12: kW | ID12: % | IE12: % | IF12: % | IG12: text | IH12: type | II12: kW | IJ12: % | IK12: % | IL12: % | IM12: text | IN12: text | IO12: type | IP12: type | IQ12: MPAN no. | IR12: KWh | IS12: £ | IT12: mm/yy | IU12: Nr. yrs | IV12: £ | IW12: type | IX12: kW | IY12: % | IZ12: % | JA12: % | JB12: text | JC12: % | JD12: kW | JE12: % | JF12: % | JG12: % | JH12: text | JI12: type | JJ12: kW | JK12: % | JL12: % | JM12: % | JN12: text | JO12: text | JP12: type | JQ12: type | JR12: MPAN no. | JS12: KWh | JT12: £ | JU12: mm/yy | JV12: Nr. yrs | JW12: £ | JX12: type | JY12: kW | JZ12: % | KA12: % | KB12: % | KC12: text | KD12: % | KE12: kW | KF12: % | KG12: % | KH12: % | KI12: text | KJ12: type | KK12: kW | KL12: % | KM12: % | KN12: % | KO12: text | KP12: text | KQ12: type | KR12: type | KS12: MPAN no. | KT12: KWh | KU12: £ | KV12: mm/yy | KW12: Nr. yrs | KX12: £ | KY12: type | KZ12: kW | LA12: % | LB12: % | LC12: % | LD12: text | LE12: % | LF12: kW | LG12: % | LH12: % | LI12: % | LJ12: text | LK12: type | LL12: kW | LM12: % | LN12: % | LO12: % | LP12: text | LQ12: text | LR12: type | LS12: type | LT12: MPAN no. | LU12: KWh | LV12: £ | LW12: mm/yy | LX12: Nr. yrs | LY12: £ | LZ12: type | MA12: kW | MB12: % | MC12: % | MD12: % | ME12: text | MF12: % | MG12: kW | MH12: % | MI12: % | MJ12: % | MK12: text | ML12: type | MM12: kW | MN12: % | MO12: % | MP12: % | MQ12: text | MR12: text | MS12: type | MT12: type | MU12: MPAN no. | MV12: KWh | MW12: £ | MX12: mm/yy | MY12: Nr. yrs | MZ12: £ | NA12: type | NB12: kW | NC12: % | ND12: % | NE12: % | NF12: text | NG12: % | NH12: kW | NI12: % | NJ12: % | NK12: % | NL12: text | NM12: type | NN12: kW | NO12: % | NP12: % | NQ12: % | NR12: text | NS12: text | NT12: type | NU12: type | NV12: MPAN no. | NW12: KWh | NX12: £ | NY12: mm/yy | NZ12: Nr. yrs | OA12: £ | OB12: type | OC12: kW | OD12: % | OE12: % | OF12: % | OG12: text | OH12: % | OI12: kW | OJ12: % | OK12: % | OL12: % | OM12: text | ON12: type | OO12: kW | OP12: % | OQ12: % | OR12: % | OS12: text | OT12: type | OU12: MPAN | OV12: kWh | OW12: p/kWh | OX12: £/day | OY12: p/kWh | OZ12: p/kWh | PA12: type | PB12: MPAN | PC12: kWh | PD12: p/kWh | PE12: £/day | PF12: p/kWh | PG12: p/kWh | PH12: type | PI12: MPAN | PJ12: kWh | PK12: p/kWh | PL12: £/day | PM12: p/kWh | PN12: p/kWh | PO12: type | PP12: MPAN | PQ12: kWh | PR12: p/kWh | PS12: £/day | PT12: p/kWh | PU12: p/kWh | PV12: type | PW12: MPAN | PX12: kWh | PY12: p/kWh | PZ12: £/day | QA12: p/kWh | QB12: p/kWh | QC12: type | QD12: MPAN | QE12: kWh | QF12: p/kWh | QG12: £/day | QH12: p/kWh | QI12: p/kWh | QJ12: type | QK12: MPAN | QL12: kWh | QM12: p/kWh | QN12: £/day | QO12: p/kWh | QP12: p/kWh | QQ12: type | QR12: MPAN | QS12: kWh | QT12: p/kWh | QU12: £/day | QV12: p/kWh | QW12: p/kWh | QX12: type | QY12: MPAN | QZ12: kWh | RA12: p/kWh | RB12: £/day | RC12: p/kWh | RD12: p/kWh | RE12: type | RF12: MPAN | RG12: kWh | RH12: p/kWh | RI12: £/day | RJ12: p/kWh | RK12: p/kWh

Sheet OUTP; Visualisation (hidden)

Sheet sysScheme (hidden)

Sheet sysVisualisationTool (hidden)
B2: MACRO - SELECTIONS
B4: Plant Room: | C4: 2
B5: Engine Count | C5: =COUNTIF($Y$91:$Y$105,"<>0") -> 15
B6: Engine: | C6: 2
B8: Export Energy Count: | C8: =COUNTIF($G$91:$G$135,TRUE) -> 0
B9: Export selected: | C9: 2
B10: Import Energy Count | C10: =COUNTIF($G$149:$G$163,TRUE) -> 0
B11: Import selected: | C11: 2
B14: VALUE MAPPING TO SHAPES AND ASSOCIATED SHAPE GROUPS
B16: Shape Group | C16: Shape Name | D16: Value | E16: Format | F16: Flat File Master Label | G16: Flat File Look up label | H16: Match
B18: G1 | C18: shpG1bPlantMaintCost | D18: =INDIRECT("'" & sysPlantRoomID & "'!dcPlantRoomMaintenance") ->  | E18: Currency | F18: ='INPT; FlatFile'!M10 -> Avg annual maintenance costs | G18: =F18&" "&sysEngineID -> Avg annual maintenance costs 2 | H18: =MATCH(G18,'INPT; FlatFile'!$A$11:$RK$11,0) -> 40
B19: G1 | C19: shpG1bPlantFuelCost | D19: =INDIRECT("'" & sysPlantRoomID & "'!dcAnnualFuelCost") ->  | E19: Currency
B20: G1 | C20: shpG1bPlantRunningCost | D20: =SUM(D18:D19) ->  | E20: Currency
B21: G2 | C21: shpG2bTotalMaintCost | D21: ='CALC; LCOE WholeSYS'!D1167 -> 0 | E21: Currency
B22: G2 | C22: shpG2bPlantMaintCost | D22: ='CALC; LCOE WholeSYS'!D1166 -> 0 | E22: Currency
B23: G2 | C23: shpG2bTotalFuelCost | D23: ='CALC; LCOE WholeSYS'!D1165 -> 0 | E23: Currency
B24: G2 | C24: shpG2bTotalRunningCost | D24: =SUM(D21:D23) -> 0 | E24: Currency
B25: G2 | C25: shpG2bTotalRepex | D25: ='CALC; LCOE WholeSYS'!D1168 -> 0 | E25: Currency
B26: G3 | C26: shpG3bTotalLC1Cost | D26: ='CALC; LCOE WholeSYS'!D174 -> 0 | E26: p/kWh
B27: G3 | C27: shpG3bTotalLC2Cost | D27: ='CALC; LCOE WholeSYS'!D332 -> 0 | E27: p/kWh
B28: G3 | C28: shpG3bTotalLC3Cost | D28: ='CALC; LCOE WholeSYS'!D490 -> 0 | E28: p/kWh
B29: G3 | C29: shpG3bTotalLC4Cost | D29: ='CALC; LCOE WholeSYS'!D648 -> 0 | E29: p/kWh
B30: G3 | C30: shpG3bTotalLC5Cost | D30: ='CALC; LCOE WholeSYS'!D806 -> 0 | E30: p/kWh
B31: G3 | C31: shpG3bTotalLC6Cost | D31: ='CALC; LCOE WholeSYS'!D1000 -> 0 | E31: p/kWh
B32: G3 | C32: shpG3bTotalLC7Cost | D32: ='CALC; LCOE WholeSYS'!D1158 -> 0 | E32: p/kWh
B33: G3 | C33: shpG3aTotalLC1 | D33: =Lists!D4 -> DHW | E33: Text
B34: G3 | C34: shpG3aTotalLC2 | D34: =Lists!D5 -> LTHW | E34: Text
B35: G3 | C35: shpG3aTotalLC3 | D35: =Lists!D6 -> MTHW | E35: Text
B36: G3 | C36: shpG3aTotalLC4 | D36: =Lists!D7 -> HTHW | E36: Text
B37: G3 | C37: shpG3aTotalLC5 | D37: =Lists!D8 -> Steam | E37: Text
B38: G3 | C38: shpG3aTotalLC6 | D38: Cooling | E38: Text
B39: G3 | C39: shpG3aTotalLC7 | D39: Electricity | E39: Text
B40: G4 | C40: shpG4bPlantExportkWh | D40: =INDEX($R$137:$R$143,sysExportID,1)/unitkWMW -> 0 | E40: kWh
B41: G4 | C41: shpG4bPlantExportLCpkWh | D41: =INDIRECT("'" & sysPlantRoomID & "'!dcLC" & INDEX($I$137:$I$143,sysExportID,1)) ->  | E41: p/kWh
B42: G4 | C42: shpG4PlantExportArrow | D42: =INDEX($H$137:$H$143,sysExportID,1) ->  | E42: Text | F42: ='INPT; FlatFile'!G10 -> Fuel input type | G42: =F42&" "&sysEngineID -> Fuel input type 2 | H42: =MATCH(G42,'INPT; FlatFile'!$A$11:$RK$11,0) -> 34
B43: G5 | C43: shpG5bPlantImportkWh | D43: =IF(INDEX(rngFlatFileData,sysPlantRoomID,H43)/unitkWMW=0,"",INDEX(rngFlatFileData,sysPlantRoomID,H43)/unitkWMW) ->  | E43: kWh | F43: ='INPT; FlatFile'!I10 -> Avg annual fuel use (metered) | G43: =F43&" "&sysEngineID -> Avg annual fuel use (metered) 2 | H43: =MATCH(G43,'INPT; FlatFile'!$A$11:$RK$11,0) -> 36
B44: G5 | C44: shpG5bPlantUnitCostpKWh | D44: =INDEX($K$149:$K$163,sysImportID,1) ->  | E44: p/kWh
B45: G5 | C45: shpG5PlantImportArrow | D45: =INDEX($H$165:$H$171,sysImportID,1) ->  | E45: Text
B46: G6 | C46: shpG6PlantEngine | D46: =INDEX($Y$91:$Y$105,sysEngineID,1) ->  | E46: Text
B47: G6 | C47: shpG6bPlantEngineFuelkWh | D47: =IF(INDEX(rngFlatFileData,sysPlantRoomID,H47)/unitkWMW=0,"",INDEX(rngFlatFileData,sysPlantRoomID,H47)/unitkWMW) ->  | E47: kWh | F47: ='INPT; FlatFile'!$I$10 -> Avg annual fuel use (metered) | G47: =F47&" "&sysEngineID -> Avg annual fuel use (metered) 2 | H47: =MATCH(G47,'INPT; FlatFile'!$A$11:$RK$11,0) -> 36
B48: G6 | C48: shpG6bPlantEngineEnergy1kWh | D48: =IFERROR(INDEX($J$48:$J$50,MATCH(I55,$L$55:$L$57,0)),"") ->  | E48: kWh | F48: ='INPT; FlatFile'!$N$10 -> Heat output type | G48: Heat output type 2 | H48: =MATCH(G48,$D$91:$D$135,0) -> 4 | J48: =IF(INDEX($R$91:$R$135,H48,1)/unitkWMW=0,"",INDEX($R$91:$R$135,H48,1)/unitkWMW) -> 
B49: G6 | C49: shpG6bPlantEngineEnergy2kWh | D49: =IFERROR(INDEX($J$48:$J$50,MATCH(I56,$L$55:$L$57,0)),"") ->  | E49: kWh | F49: ='INPT; FlatFile'!$T$10 -> Electrical output - % used on site | G49: Electrical output - % used on site 2 | H49: =MATCH(G49,$D$91:$D$135,0) -> 5 | J49: =IF(INDEX($R$91:$R$135,H49,1)/unitkWMW=0,"",INDEX($R$91:$R$135,H49,1)/unitkWMW) -> 
B50: G6 | C50: shpG6bPlantEngineEnergy3kWh | E50: kWh | F50: ='INPT; FlatFile'!$Z$10 -> Cooling output | G50: Cooling output 2 | H50: =MATCH(G50,$D$91:$D$135,0) -> 6 | J50: =IF(INDEX($R$91:$R$135,H50,1)/unitkWMW=0,"",INDEX($R$91:$R$135,H50,1)/unitkWMW) -> 
B51: G6 | C51: shpG6dPlantEngineRepCost | D51: =INDEX(rngFlatFileData,sysPlantRoomID,H51) ->  | E51: Currency | F51: ='INPT; FlatFile'!$J$10 -> Replacement cost | G51: Replacement cost 2 | H51: =MATCH(G51,'INPT; FlatFile'!$A$11:$RK$11,0) -> 37
B52: G6 | C52: shpG6dPlantEnginePurDate | D52: =INDEX(rngFlatFileData,sysPlantRoomID,H52) ->  | E52: General | F52: ='INPT; FlatFile'!$K$10 -> Original purchase date | G52: Original purchase date 2 | H52: =MATCH(G52,'INPT; FlatFile'!$A$11:$RK$11,0) -> 38
B53: G6 | C53: shpG6dPlantEngineEff | D53: =INDEX($T$91:$T$135,H53,1) -> 0 | E53: Percent | F53: ='INPT; FlatFile'!$N$10 -> Heat output type | G53: Heat output type 2 | H53: =MATCH(G53,$D$91:$D$135,0) -> 4
B54: G6 | C54: shpG6aPlantEngineFuel | D54: =IF(INDEX($K$91:$K$135,H54,1)="","",INDEX($K$91:$K$135,H54,1)&" (MWh)") ->  | E54: Text | F54: ='INPT; FlatFile'!$N$10 -> Heat output type | G54: Heat output type 2 | H54: =MATCH(G54,$D$91:$D$135,0) -> 4
B55: G6 | C55: shpG6aPlantEngineEnergy1 | D55: =IFERROR(INDEX($K$55:$K$57,MATCH(I55,$L$55:$L$57,0)),"") ->  | E55: Text | F55: ='INPT; FlatFile'!$N$10 -> Heat output type | G55: =F55&" "&sysEngineID -> Heat output type 2 | H55: =MATCH(G55,$D$91:$D$135,0) -> 4 | I55: =I54+1 -> 1 | J55: =IF(INDEX($S$91:$S$135,H55,1)="","",INDEX($S$91:$S$135,H55,1) & " (MWh)") ->  | K55: =IFERROR(IF(VALUE(LEFT(J55,1))=0,"",J55),J55) ->  | L55: =IF(K55="",0,MAX(L$54:L54)+1) -> 
B56: G6 | C56: shpG6aPlantEngineEnergy2 | D56: =IFERROR(INDEX($K$55:$K$57,MATCH(I56,$L$55:$L$57,0)),"") ->  | E56: Text | F56: ='INPT; FlatFile'!$T$10 -> Electrical output - % used on site | G56: Electrical output - % used on site 2 | H56: =MATCH(G56,$D$91:$D$135,0) -> 5 | I56: =I55+1 -> 2 | J56: =IF(INDEX($S$91:$S$135,H56,1)="","",INDEX($S$91:$S$135,H56,1) & " (MWh)") ->  | K56: =J56 ->  | L56: =IF(K56="",0,MAX(L$54:L55)+1) -> 
B57: G6 | C57: shpG6aPlantEngineEnergy3 | D57: =IFERROR(INDEX($K$55:$K$57,MATCH(I57,$L$55:$L$57,0)),"") ->  | E57: Text | F57: ='INPT; FlatFile'!$Z$10 -> Cooling output | G57: Cooling output 2 | H57: =MATCH(G57,$D$91:$D$135,0) -> 6 | I57: =I56+1 -> 3 | J57: =IF(INDEX($S$91:$S$135,H57,1)="","",INDEX($S$91:$S$135,H57,1) & " (MWh)") ->  | K57: =J57 ->  | L57: =IF(K57="",0,MAX(L$54:L56)+1) -> 
B58: G7 | C58: shpG7bTotalExport1 | D58: ='CALC; LCOE WholeSYS'!D1177/unitkWMW -> 0 | E58: kWh
B59: G7 | C59: shpG7bTotalExport2 | D59: ='CALC; LCOE WholeSYS'!D1178/unitkWMW -> 0 | E59: kWh
B60: G7 | C60: shpG7bTotalExport3 | D60: ='CALC; LCOE WholeSYS'!D1179/unitkWMW -> 0 | E60: kWh
B61: G7 | C61: shpG7bTotalExport4 | D61: ='CALC; LCOE WholeSYS'!D1180/unitkWMW -> 0 | E61: kWh
B62: G7 | C62: shpG7bTotalExport5 | D62: ='CALC; LCOE WholeSYS'!D1181/unitkWMW -> 0 | E62: kWh
B63: G7 | C63: shpG7bTotalExport6 | D63: ='CALC; LCOE WholeSYS'!D1182/unitkWMW -> 0 | E63: kWh
B64: G7 | C64: shpG7bTotalExport7 | D64: ='CALC; LCOE WholeSYS'!D1183/unitkWMW -> 0 | E64: kWh
B65: G7 | C65: shpG7aTotalExport1 | D65: =Lists!D4 -> DHW | E65: Text
B66: G7 | C66: shpG7aTotalExport2 | D66: =Lists!D5 -> LTHW | E66: Text
B67: G7 | C67: shpG7aTotalExport3 | D67: =Lists!D6 -> MTHW | E67: Text
B68: G7 | C68: shpG7aTotalExport4 | D68: =Lists!D7 -> HTHW | E68: Text
B69: G7 | C69: shpG7aTotalExport5 | D69: =Lists!D8 -> Steam | E69: Text
B70: G7 | C70: shpG7aTotalExport6 | D70: =Lists!D9 -> Cooling | E70: Text
B71: G7 | C71: shpG7aTotalExport7 | D71: =Lists!D10 -> Electricity | E71: Text
B72: G8 | C72: shpG8bTotalImport1 | D72: =IF(ISERROR(H72),"",INDEX('CALC; LCOE WholeSYS'!$J$1173:$S$1173,1,H72)/unitkWMW) ->  | E72: kWh | G72: 1 | H72: =MATCH(G72,'CALC; LCOE WholeSYS'!$J$1174:$S$1174,0) -> 
B73: G8 | C73: shpG8bTotalImport2 | D73: =IF(ISERROR(H73),"",INDEX('CALC; LCOE WholeSYS'!$J$1173:$S$1173,1,H73)/unitkWMW) ->  | E73: kWh | G73: 2 | H73: =MATCH(G73,'CALC; LCOE WholeSYS'!$J$1174:$S$1174,0) -> 
B74: G8 | C74: shpG8bTotalImport3 | D74: =IF(ISERROR(H74),"",INDEX('CALC; LCOE WholeSYS'!$J$1173:$S$1173,1,H74)/unitkWMW) ->  | E74: kWh | G74: 3 | H74: =MATCH(G74,'CALC; LCOE WholeSYS'!$J$1174:$S$1174,0) -> 
B75: G8 | C75: shpG8bTotalImport4 | D75: =IF(ISERROR(H75),"",INDEX('CALC; LCOE WholeSYS'!$J$1173:$S$1173,1,H75)/unitkWMW) ->  | E75: kWh | G75: 4 | H75: =MATCH(G75,'CALC; LCOE WholeSYS'!$J$1174:$S$1174,0) -> 
B76: G8 | C76: shpG8bTotalImport5 | D76: =IF(ISERROR(H76),"",INDEX('CALC; LCOE WholeSYS'!$J$1173:$S$1173,1,H76)/unitkWMW) ->  | E76: kWh | G76: 5 | H76: =MATCH(G76,'CALC; LCOE WholeSYS'!$J$1174:$S$1174,0) -> 
B77: G8 | C77: shpG8bTotalImport6 | D77: =IF(ISERROR(H77),"",INDEX('CALC; LCOE WholeSYS'!$J$1173:$S$1173,1,H77)/unitkWMW) ->  | E77: kWh | G77: 6 | H77: =MATCH(G77,'CALC; LCOE WholeSYS'!$J$1174:$S$1174,0) -> 
B78: G8 | C78: shpG8bTotalImport7 | D78: =IF(ISERROR(H78),"",INDEX('CALC; LCOE WholeSYS'!$J$1173:$S$1173,1,H78)/unitkWMW) ->  | E78: kWh | G78: 7 | H78: =MATCH(G78,'CALC; LCOE WholeSYS'!$J$1174:$S$1174,0) -> 
B79: G8 | C79: shpG8aTotalImport1 | D79: =IF(ISERROR(H79),"",INDEX('CALC; LCOE WholeSYS'!$J$1171:$S$1171,1,H79)) ->  | E79: Text | G79: 1 | H79: =MATCH(G79,'CALC; LCOE WholeSYS'!$J$1174:$S$1174,0) -> 
B80: G8 | C80: shpG8aTotalImport2 | D80: =IF(ISERROR(H80),"",INDEX('CALC; LCOE WholeSYS'!$J$1171:$S$1171,1,H80)) ->  | E80: Text | G80: 2 | H80: =MATCH(G80,'CALC; LCOE WholeSYS'!$J$1174:$S$1174,0) -> 
B81: G8 | C81: shpG8aTotalImport3 | D81: =IF(ISERROR(H81),"",INDEX('CALC; LCOE WholeSYS'!$J$1171:$S$1171,1,H81)) ->  | E81: Text | G81: 3 | H81: =MATCH(G81,'CALC; LCOE WholeSYS'!$J$1174:$S$1174,0) -> 
B82: G8 | C82: shpG8aTotalImport4 | D82: =IF(ISERROR(H82),"",INDEX('CALC; LCOE WholeSYS'!$J$1171:$S$1171,1,H82)) ->  | E82: Text | G82: 4 | H82: =MATCH(G82,'CALC; LCOE WholeSYS'!$J$1174:$S$1174,0) -> 
B83: G8 | C83: shpG8aTotalImport5 | D83: =IF(ISERROR(H83),"",INDEX('CALC; LCOE WholeSYS'!$J$1171:$S$1171,1,H83)) ->  | E83: Text | G83: 5 | H83: =MATCH(G83,'CALC; LCOE WholeSYS'!$J$1174:$S$1174,0) -> 
B84: G8 | C84: shpG8aTotalImport6 | D84: =IF(ISERROR(H84),"",INDEX('CALC; LCOE WholeSYS'!$J$1171:$S$1171,1,H84)) ->  | E84: Text | G84: 6 | H84: =MATCH(G84,'CALC; LCOE WholeSYS'!$J$1174:$S$1174,0) -> 
B85: G8 | C85: shpG8aTotalImport7 | D85: =IF(ISERROR(H85),"",INDEX('CALC; LCOE WholeSYS'!$J$1171:$S$1171,1,H85)) ->  | E85: Text | G85: 7 | H85: =MATCH(G85,'CALC; LCOE WholeSYS'!$J$1174:$S$1174,0) -> 
C86: shpPlantRect | D86: =INDEX(rngFlatFileData,sysPlantRoomID,H86) ->  | E86: Text | G86: ='INPT; FlatFile'!B10 -> Plant room name: | H86: =MATCH(G86,'INPT; FlatFile'!$A$11:$RK$11,0) -> 2
B88: Energy Export by plant in each plant room
B90: Energy | C90: # | D90: Label | E90: Match | F90: Look up | G90: Include? | H90: Energy Type | I90: Label | J90: Match | K90: Fuel | L90: Label | M90: Match | N90: Fuel Input | O90: Label | P90: Match | Q90: Efficiency | R90: Output | S90: Type | T90: Eff | V90: Engines | W90: ='INPT; FlatFile'!$E$10 -> Plant name | X90: Match | Y90: Name
A91: =IF(G91,MAX(A$90:A90)+1,0) ->  | C91: =MAX($C$90:C90)+1 -> 1 | D91: ='INPT; FlatFile'!$N$10&" "&C91 -> Heat output type 1 | E91: =MATCH(D91,'INPT; FlatFile'!$A$11:$RK$11,0) -> 14 | F91: =INDEX(rngFlatFileData,sysPlantRoomID,E91) ->  | G91: =IF(AND(F91<>0,COUNTIF(F$91:F91,F91)=1),TRUE,FALSE) ->  | H91: =IF(G91,F91,"") ->  | I91: ='INPT; FlatFile'!$G$10&" "&C91 -> Fuel input type 1 | J91: =MATCH(I91,'INPT; FlatFile'!$A$11:$RK$11,0) -> 7 | K91: =INDEX(rngFlatFileData,sysPlantRoomID,J91) ->  | L91: ='INPT; FlatFile'!$I$10&" "&C91 -> Avg annual fuel use (metered) 1 | M91: =MATCH(L91,'INPT; FlatFile'!$A$11:$RK$11,0) -> 9 | N91: =INDEX(rngFlatFileData,sysPlantRoomID,M91) ->  | O91: ='INPT; FlatFile'!$R$10 & " " & C91 -> Gross thermal efficiency (actual) 1 | P91: =MATCH(O91,'INPT; FlatFile'!$A$11:$RK$11,0) -> 18 | Q91: =INDEX(rngFlatFileData,sysPlantRoomID,P91) ->  | R91: =N91*Q91 ->  | S91: =F91 ->  | T91: =IFERROR(SUM(R91:R93)/N91,0) -> 0 | V91: 1 | W91: =$W$90&" "&V91 -> Plant name 1 | X91: =MATCH(W91,'INPT; FlatFile'!$A$11:$RK$11,0) -> 5 | Y91: =INDEX(rngFlatFileData,sysPlantRoomID,X91) -> 
A92: =IF(G92,MAX(A$90:A91)+1,0) ->  | B92: Electricity | C92: =C91 -> 1 | D92: ='INPT; FlatFile'!$T$10&" "&C92 -> Electrical output - % used on site 1 | E92: =MATCH(D92,'INPT; FlatFile'!$A$11:$RK$11,0) -> 20 | F92: =INDEX(rngFlatFileData,sysPlantRoomID,E92) ->  | G92: =IF(AND(F92<>0,COUNTIF(F$91:F92,F92)=1),TRUE,FALSE) ->  | H92: =IF(G92,B92,"") ->  | I92: ='INPT; FlatFile'!$G$10&" "&C92 -> Fuel input type 1 | J92: =MATCH(I92,'INPT; FlatFile'!$A$11:$RK$11,0) -> 7 | L92: ='INPT; FlatFile'!$I$10&" "&C92 -> Avg annual fuel use (metered) 1 | M92: =MATCH(L92,'INPT; FlatFile'!$A$11:$RK$11,0) -> 9 | N92: =INDEX(rngFlatFileData,sysPlantRoomID,M92) ->  | O92: ='INPT; FlatFile'!$X$10 & " " & C92 -> Electrical efficiency (actual) 1 | P92: =MATCH(O92,'INPT; FlatFile'!$A$11:$RK$11,0) -> 24 | S92: =IF(F92,B92,"") ->  | V92: =V91+1 -> 2 | W92: Plant name 2 | X92: =MATCH(W92,'INPT; FlatFile'!$A$11:$RK$11,0) -> 32
A93: =IF(G93,MAX(A$90:A92)+1,0) ->  | B93: Cooling | C93: =C91 -> 1 | D93: ='INPT; FlatFile'!$Z$10&" "&C93 -> Cooling output 1 | E93: =MATCH(D93,'INPT; FlatFile'!$A$11:$RK$11,0) -> 26 | F93: =INDEX(rngFlatFileData,sysPlantRoomID,E93) ->  | G93: =IF(AND(F93<>0,COUNTIF(F$91:F93,F93)=1),TRUE,FALSE) ->  | H93: =IF(G93,B93,"") ->  | I93: ='INPT; FlatFile'!$G$10&" "&C93 -> Fuel input type 1 | J93: =MATCH(I93,'INPT; FlatFile'!$A$11:$RK$11,0) -> 7 | L93: ='INPT; FlatFile'!$I$10&" "&C93 -> Avg annual fuel use (metered) 1 | M93: =MATCH(L93,'INPT; FlatFile'!$A$11:$RK$11,0) -> 9 | O93: ='INPT; FlatFile'!$AC$10 & " " & C93 -> Cooling efficiency (boiler plate) 1 | P93: =MATCH(O93,'INPT; FlatFile'!$A$11:$RK$11,0) -> 29 | Q93: =INDEX(rngFlatFileData,sysPlantRoomID,P93) ->  | S93: =IF(G93,B93,"") ->  | V93: =V92+1 -> 3 | W93: Plant name 3 | X93: =MATCH(W93,'INPT; FlatFile'!$A$11:$RK$11,0) -> 59
A94: =IF(G94,MAX(A$90:A93)+1,0) ->  | C94: =MAX($C$90:C93)+1 -> 2 | D94: ='INPT; FlatFile'!$N$10&" "&C94 -> Heat output type 2 | E94: =MATCH(D94,'INPT; FlatFile'!$A$11:$RK$11,0) -> 41 | F94: =INDEX(rngFlatFileData,sysPlantRoomID,E94) ->  | G94: =IF(AND(F94<>0,COUNTIF(F$91:F94,F94)=1),TRUE,FALSE) ->  | H94: =IF(G94,F94,"") ->  | I94: ='INPT; FlatFile'!$G$10&" "&C94 -> Fuel input type 2 | J94: =MATCH(I94,'INPT; FlatFile'!$A$11:$RK$11,0) -> 34 | L94: ='INPT; FlatFile'!$I$10&" "&C94 -> Avg annual fuel use (metered) 2 | M94: =MATCH(L94,'INPT; FlatFile'!$A$11:$RK$11,0) -> 36 | O94: ='INPT; FlatFile'!$R$10 & " " & C94 -> Gross thermal efficiency (actual) 2 | P94: =MATCH(O94,'INPT; FlatFile'!$A$11:$RK$11,0) -> 45 | S94: =F94 ->  | T94: =IFERROR(SUM(R94:R96)/N94,0) -> 0 | V94: 4 | W94: Plant name 4 | X94: =MATCH(W94,'INPT; FlatFile'!$A$11:$RK$11,0) -> 86
A95: =IF(G95,MAX(A$90:A94)+1,0) ->  | B95: =$B$92 -> Electricity | C95: =C94 -> 2 | D95: ='INPT; FlatFile'!$T$10&" "&C95 -> Electrical output - % used on site 2 | E95: =MATCH(D95,'INPT; FlatFile'!$A$11:$RK$11,0) -> 47 | F95: =INDEX(rngFlatFileData,sysPlantRoomID,E95) ->  | G95: =IF(AND(F95<>0,COUNTIF(F$91:F95,F95)=1),TRUE,FALSE) ->  | H95: =IF(G95,B95,"") ->  | I95: ='INPT; FlatFile'!$G$10&" "&C95 -> Fuel input type 2 | J95: =MATCH(I95,'INPT; FlatFile'!$A$11:$RK$11,0) -> 34 | L95: ='INPT; FlatFile'!$I$10&" "&C95 -> Avg annual fuel use (metered) 2 | M95: =MATCH(L95,'INPT; FlatFile'!$A$11:$RK$11,0) -> 36 | N95: =INDEX(rngFlatFileData,sysPlantRoomID,M95) ->  | O95: ='INPT; FlatFile'!$X$10 & " " & C95 -> Electrical efficiency (actual) 2 | P95: =MATCH(O95,'INPT; FlatFile'!$A$11:$RK$11,0) -> 51 | S95: =IF(F95,B95,"") ->  | V95: 5 | W95: Plant name 5 | X95: =MATCH(W95,'INPT; FlatFile'!$A$11:$RK$11,0) -> 113
A96: =IF(G96,MAX(A$90:A95)+1,0) ->  | B96: =$B$93 -> Cooling | C96: =C94 -> 2 | D96: ='INPT; FlatFile'!$Z$10&" "&C96 -> Cooling output 2 | E96: =MATCH(D96,'INPT; FlatFile'!$A$11:$RK$11,0) -> 53 | G96: =IF(AND(F96<>0,COUNTIF(F$91:F96,F96)=1),TRUE,FALSE) ->  | H96: =IF(G96,B96,"") ->  | I96: ='INPT; FlatFile'!$G$10&" "&C96 -> Fuel input type 2 | J96: =MATCH(I96,'INPT; FlatFile'!$A$11:$RK$11,0) -> 34 | L96: ='INPT; FlatFile'!$I$10&" "&C96 -> Avg annual fuel use (metered) 2 | M96: =MATCH(L96,'INPT; FlatFile'!$A$11:$RK$11,0) -> 36 | O96: ='INPT; FlatFile'!$AC$10 & " " & C96 -> Cooling efficiency (boiler plate) 2 | P96: =MATCH(O96,'INPT; FlatFile'!$A$11:$RK$11,0) -> 56 | Q96: =INDEX(rngFlatFileData,sysPlantRoomID,P96) ->  | S96: =IF(G96,B96,"") ->  | V96: 6 | W96: Plant name 6 | X96: =MATCH(W96,'INPT; FlatFile'!$A$11:$RK$11,0) -> 140
A97: =IF(G97,MAX(A$90:A96)+1,0) ->  | C97: =MAX($C$90:C96)+1 -> 3 | D97: ='INPT; FlatFile'!$N$10&" "&C97 -> Heat output type 3 | E97: =MATCH(D97,'INPT; FlatFile'!$A$11:$RK$11,0) -> 68 | G97: =IF(AND(F97<>0,COUNTIF(F$91:F97,F97)=1),TRUE,FALSE) ->  | H97: =IF(G97,F97,"") ->  | I97: ='INPT; FlatFile'!$G$10&" "&C97 -> Fuel input type 3 | J97: =MATCH(I97,'INPT; FlatFile'!$A$11:$RK$11,0) -> 61 | L97: ='INPT; FlatFile'!$I$10&" "&C97 -> Avg annual fuel use (metered) 3 | M97: =MATCH(L97,'INPT; FlatFile'!$A$11:$RK$11,0) -> 63 | O97: ='INPT; FlatFile'!$R$10 & " " & C97 -> Gross thermal efficiency (actual) 3 | P97: =MATCH(O97,'INPT; FlatFile'!$A$11:$RK$11,0) -> 72 | S97: =F97 ->  | T97: =IFERROR(SUM(R97:R99)/N97,0) -> 0 | V97: 7 | W97: Plant name 7 | X97: =MATCH(W97,'INPT; FlatFile'!$A$11:$RK$11,0) -> 167
A98: =IF(G98,MAX(A$90:A97)+1,0) ->  | B98: =$B$92 -> Electricity | C98: =C97 -> 3 | D98: ='INPT; FlatFile'!$T$10&" "&C98 -> Electrical output - % used on site 3 | E98: =MATCH(D98,'INPT; FlatFile'!$A$11:$RK$11,0) -> 74 | G98: =IF(AND(F98<>0,COUNTIF(F$91:F98,F98)=1),TRUE,FALSE) ->  | H98: =IF(G98,B98,"") ->  | I98: ='INPT; FlatFile'!$G$10&" "&C98 -> Fuel input type 3 | J98: =MATCH(I98,'INPT; FlatFile'!$A$11:$RK$11,0) -> 61 | L98: ='INPT; FlatFile'!$I$10&" "&C98 -> Avg annual fuel use (metered) 3 | M98: =MATCH(L98,'INPT; FlatFile'!$A$11:$RK$11,0) -> 63 | N98: =INDEX(rngFlatFileData,sysPlantRoomID,M98) ->  | O98: ='INPT; FlatFile'!$X$10 & " " & C98 -> Electrical efficiency (actual) 3 | P98: =MATCH(O98,'INPT; FlatFile'!$A$11:$RK$11,0) -> 78 | S98: =IF(F98,B98,"") ->  | V98: 8 | W98: Plant name 8 | X98: =MATCH(W98,'INPT; FlatFile'!$A$11:$RK$11,0) -> 194
A99: =IF(G99,MAX(A$90:A98)+1,0) ->  | B99: =$B$93 -> Cooling | C99: =C97 -> 3 | D99: ='INPT; FlatFile'!$Z$10&" "&C99 -> Cooling output 3 | E99: =MATCH(D99,'INPT; FlatFile'!$A$11:$RK$11,0) -> 80 | G99: =IF(AND(F99<>0,COUNTIF(F$91:F99,F99)=1),TRUE,FALSE) ->  | H99: =IF(G99,B99,"") ->  | I99: ='INPT; FlatFile'!$G$10&" "&C99 -> Fuel input type 3 | J99: =MATCH(I99,'INPT; FlatFile'!$A$11:$RK$11,0) -> 61 | L99: ='INPT; FlatFile'!$I$10&" "&C99 -> Avg annual fuel use (metered) 3 | M99: =MATCH(L99,'INPT; FlatFile'!$A$11:$RK$11,0) -> 63 | O99: ='INPT; FlatFile'!$AC$10 & " " & C99 -> Cooling efficiency (boiler plate) 3 | P99: =MATCH(O99,'INPT; FlatFile'!$A$11:$RK$11,0) -> 83 | Q99: =INDEX(rngFlatFileData,sysPlantRoomID,P99) ->  | S99: =IF(G99,B99,"") ->  | V99: 9 | W99: Plant name 9 | X99: =MATCH(W99,'INPT; FlatFile'!$A$11:$RK$11,0) -> 221
A100: =IF(G100,MAX(A$90:A99)+1,0) ->  | C100: =MAX($C$90:C99)+1 -> 4 | D100: ='INPT; FlatFile'!$N$10&" "&C100 -> Heat output type 4 | E100: =MATCH(D100,'INPT; FlatFile'!$A$11:$RK$11,0) -> 95 | G100: =IF(AND(F100<>0,COUNTIF(F$91:F100,F100)=1),TRUE,FALSE) ->  | H100: =IF(G100,F100,"") ->  | I100: ='INPT; FlatFile'!$G$10&" "&C100 -> Fuel input type 4 | J100: =MATCH(I100,'INPT; FlatFile'!$A$11:$RK$11,0) -> 88 | L100: ='INPT; FlatFile'!$I$10&" "&C100 -> Avg annual fuel use (metered) 4 | M100: =MATCH(L100,'INPT; FlatFile'!$A$11:$RK$11,0) -> 90 | O100: ='INPT; FlatFile'!$R$10 & " " & C100 -> Gross thermal efficiency (actual) 4 | P100: =MATCH(O100,'INPT; FlatFile'!$A$11:$RK$11,0) -> 99 | S100: =F100 ->  | T100: =IFERROR(SUM(R100:R102)/N100,0) -> 0 | V100: 10 | W100: Plant name 10 | X100: =MATCH(W100,'INPT; FlatFile'!$A$11:$RK$11,0) -> 248
A101: =IF(G101,MAX(A$90:A100)+1,0) ->  | B101: =$B$92 -> Electricity | C101: =C100 -> 4 | D101: ='INPT; FlatFile'!$T$10&" "&C101 -> Electrical output - % used on site 4 | E101: =MATCH(D101,'INPT; FlatFile'!$A$11:$RK$11,0) -> 101 | G101: =IF(AND(F101<>0,COUNTIF(F$91:F101,F101)=1),TRUE,FALSE) ->  | H101: =IF(G101,B101,"") ->  | I101: ='INPT; FlatFile'!$G$10&" "&C101 -> Fuel input type 4 | J101: =MATCH(I101,'INPT; FlatFile'!$A$11:$RK$11,0) -> 88 | L101: ='INPT; FlatFile'!$I$10&" "&C101 -> Avg annual fuel use (metered) 4 | M101: =MATCH(L101,'INPT; FlatFile'!$A$11:$RK$11,0) -> 90 | O101: ='INPT; FlatFile'!$X$10 & " " & C101 -> Electrical efficiency (actual) 4 | P101: =MATCH(O101,'INPT; FlatFile'!$A$11:$RK$11,0) -> 105 | S101: =IF(F101,B101,"") ->  | V101: 11 | W101: Plant name 11 | X101: =MATCH(W101,'INPT; FlatFile'!$A$11:$RK$11,0) -> 275
A102: =IF(G102,MAX(A$90:A101)+1,0) ->  | B102: =$B$93 -> Cooling | C102: =C100 -> 4 | D102: ='INPT; FlatFile'!$Z$10&" "&C102 -> Cooling output 4 | E102: =MATCH(D102,'INPT; FlatFile'!$A$11:$RK$11,0) -> 107 | G102: =IF(AND(F102<>0,COUNTIF(F$91:F102,F102)=1),TRUE,FALSE) ->  | H102: =IF(G102,B102,"") ->  | I102: ='INPT; FlatFile'!$G$10&" "&C102 -> Fuel input type 4 | J102: =MATCH(I102,'INPT; FlatFile'!$A$11:$RK$11,0) -> 88 | L102: ='INPT; FlatFile'!$I$10&" "&C102 -> Avg annual fuel use (metered) 4 | M102: =MATCH(L102,'INPT; FlatFile'!$A$11:$RK$11,0) -> 90 | O102: ='INPT; FlatFile'!$AC$10 & " " & C102 -> Cooling efficiency (boiler plate) 4 | P102: =MATCH(O102,'INPT; FlatFile'!$A$11:$RK$11,0) -> 110 | S102: =IF(G102,B102,"") ->  | V102: 12 | W102: Plant name 12 | X102: =MATCH(W102,'INPT; FlatFile'!$A$11:$RK$11,0) -> 302
A103: =IF(G103,MAX(A$90:A102)+1,0) ->  | C103: =MAX($C$90:C102)+1 -> 5 | D103: ='INPT; FlatFile'!$N$10&" "&C103 -> Heat output type 5 | E103: =MATCH(D103,'INPT; FlatFile'!$A$11:$RK$11,0) -> 122 | G103: =IF(AND(F103<>0,COUNTIF(F$91:F103,F103)=1),TRUE,FALSE) ->  | H103: =IF(G103,F103,"") ->  | I103: ='INPT; FlatFile'!$G$10&" "&C103 -> Fuel input type 5 | J103: =MATCH(I103,'INPT; FlatFile'!$A$11:$RK$11,0) -> 115 | L103: ='INPT; FlatFile'!$I$10&" "&C103 -> Avg annual fuel use (metered) 5 | M103: =MATCH(L103,'INPT; FlatFile'!$A$11:$RK$11,0) -> 117 | O103: ='INPT; FlatFile'!$R$10 & " " & C103 -> Gross thermal efficiency (actual) 5 | P103: =MATCH(O103,'INPT; FlatFile'!$A$11:$RK$11,0) -> 126 | S103: =F103 ->  | T103: =IFERROR(SUM(R103:R105)/N103,0) -> 0 | V103: 13 | W103: Plant name 13 | X103: =MATCH(W103,'INPT; FlatFile'!$A$11:$RK$11,0) -> 329
A104: =IF(G104,MAX(A$90:A103)+1,0) ->  | B104: =$B$92 -> Electricity | C104: =C103 -> 5 | D104: ='INPT; FlatFile'!$T$10&" "&C104 -> Electrical output - % used on site 5 | E104: =MATCH(D104,'INPT; FlatFile'!$A$11:$RK$11,0) -> 128 | G104: =IF(AND(F104<>0,COUNTIF(F$91:F104,F104)=1),TRUE,FALSE) ->  | H104: =IF(G104,B104,"") ->  | I104: ='INPT; FlatFile'!$G$10&" "&C104 -> Fuel input type 5 | J104: =MATCH(I104,'INPT; FlatFile'!$A$11:$RK$11,0) -> 115 | L104: ='INPT; FlatFile'!$I$10&" "&C104 -> Avg annual fuel use (metered) 5 | M104: =MATCH(L104,'INPT; FlatFile'!$A$11:$RK$11,0) -> 117 | O104: ='INPT; FlatFile'!$X$10 & " " & C104 -> Electrical efficiency (actual) 5 | P104: =MATCH(O104,'INPT; FlatFile'!$A$11:$RK$11,0) -> 132 | S104: =IF(F104,B104,"") ->  | V104: 14 | W104: Plant name 14 | X104: =MATCH(W104,'INPT; FlatFile'!$A$11:$RK$11,0) -> 356
A105: =IF(G105,MAX(A$90:A104)+1,0) ->  | B105: =$B$93 -> Cooling | C105: =C103 -> 5 | D105: ='INPT; FlatFile'!$Z$10&" "&C105 -> Cooling output 5 | E105: =MATCH(D105,'INPT; FlatFile'!$A$11:$RK$11,0) -> 134 | G105: =IF(AND(F105<>0,COUNTIF(F$91:F105,F105)=1),TRUE,FALSE) ->  | H105: =IF(G105,B105,"") ->  | I105: ='INPT; FlatFile'!$G$10&" "&C105 -> Fuel input type 5 | J105: =MATCH(I105,'INPT; FlatFile'!$A$11:$RK$11,0) -> 115 | L105: ='INPT; FlatFile'!$I$10&" "&C105 -> Avg annual fuel use (metered) 5 | M105: =MATCH(L105,'INPT; FlatFile'!$A$11:$RK$11,0) -> 117 | O105: ='INPT; FlatFile'!$AC$10 & " " & C105 -> Cooling efficiency (boiler plate) 5 | P105: =MATCH(O105,'INPT; FlatFile'!$A$11:$RK$11,0) -> 137 | S105: =IF(G105,B105,"") ->  | V105: 15 | W105: Plant name 15 | X105: =MATCH(W105,'INPT; FlatFile'!$A$11:$RK$11,0) -> 383
A106: =IF(G106,MAX(A$90:A105)+1,0) ->  | C106: =MAX($C$90:C105)+1 -> 6 | D106: ='INPT; FlatFile'!$N$10&" "&C106 -> Heat output type 6 | E106: =MATCH(D106,'INPT; FlatFile'!$A$11:$RK$11,0) -> 149 | G106: =IF(AND(F106<>0,COUNTIF(F$91:F106,F106)=1),TRUE,FALSE) ->  | H106: =IF(G106,F106,"") ->  | I106: ='INPT; FlatFile'!$G$10&" "&C106 -> Fuel input type 6 | J106: =MATCH(I106,'INPT; FlatFile'!$A$11:$RK$11,0) -> 142 | L106: ='INPT; FlatFile'!$I$10&" "&C106 -> Avg annual fuel use (metered) 6 | M106: =MATCH(L106,'INPT; FlatFile'!$A$11:$RK$11,0) -> 144 | O106: ='INPT; FlatFile'!$R$10 & " " & C106 -> Gross thermal efficiency (actual) 6 | P106: =MATCH(O106,'INPT; FlatFile'!$A$11:$RK$11,0) -> 153 | S106: =F106 ->  | T106: =IFERROR(SUM(R106:R108)/N106,0) -> 0
A107: =IF(G107,MAX(A$90:A106)+1,0) ->  | B107: =$B$92 -> Electricity | C107: =C106 -> 6 | D107: ='INPT; FlatFile'!$T$10&" "&C107 -> Electrical output - % used on site 6 | E107: =MATCH(D107,'INPT; FlatFile'!$A$11:$RK$11,0) -> 155 | G107: =IF(AND(F107<>0,COUNTIF(F$91:F107,F107)=1),TRUE,FALSE) ->  | H107: =IF(G107,B107,"") ->  | I107: ='INPT; FlatFile'!$G$10&" "&C107 -> Fuel input type 6 | J107: =MATCH(I107,'INPT; FlatFile'!$A$11:$RK$11,0) -> 142 | L107: ='INPT; FlatFile'!$I$10&" "&C107 -> Avg annual fuel use (metered) 6 | M107: =MATCH(L107,'INPT; FlatFile'!$A$11:$RK$11,0) -> 144 | O107: ='INPT; FlatFile'!$X$10 & " " & C107 -> Electrical efficiency (actual) 6 | P107: =MATCH(O107,'INPT; FlatFile'!$A$11:$RK$11,0) -> 159 | S107: =IF(F107,B107,"") -> 
A108: =IF(G108,MAX(A$90:A107)+1,0) ->  | B108: =$B$93 -> Cooling | C108: =C106 -> 6 | D108: ='INPT; FlatFile'!$Z$10&" "&C108 -> Cooling output 6 | E108: =MATCH(D108,'INPT; FlatFile'!$A$11:$RK$11,0) -> 161 | G108: =IF(AND(F108<>0,COUNTIF(F$91:F108,F108)=1),TRUE,FALSE) ->  | H108: =IF(G108,B108,"") ->  | I108: ='INPT; FlatFile'!$G$10&" "&C108 -> Fuel input type 6 | J108: =MATCH(I108,'INPT; FlatFile'!$A$11:$RK$11,0) -> 142 | L108: ='INPT; FlatFile'!$I$10&" "&C108 -> Avg annual fuel use (metered) 6 | M108: =MATCH(L108,'INPT; FlatFile'!$A$11:$RK$11,0) -> 144 | O108: ='INPT; FlatFile'!$AC$10 & " " & C108 -> Cooling efficiency (boiler plate) 6 | P108: =MATCH(O108,'INPT; FlatFile'!$A$11:$RK$11,0) -> 164 | S108: =IF(G108,B108,"") -> 
A109: =IF(G109,MAX(A$90:A108)+1,0) ->  | C109: =MAX($C$90:C108)+1 -> 7 | D109: ='INPT; FlatFile'!$N$10&" "&C109 -> Heat output type 7 | E109: =MATCH(D109,'INPT; FlatFile'!$A$11:$RK$11,0) -> 176 | G109: =IF(AND(F109<>0,COUNTIF(F$91:F109,F109)=1),TRUE,FALSE) ->  | H109: =IF(G109,F109,"") ->  | I109: ='INPT; FlatFile'!$G$10&" "&C109 -> Fuel input type 7 | J109: =MATCH(I109,'INPT; FlatFile'!$A$11:$RK$11,0) -> 169 | L109: ='INPT; FlatFile'!$I$10&" "&C109 -> Avg annual fuel use (metered) 7 | M109: =MATCH(L109,'INPT; FlatFile'!$A$11:$RK$11,0) -> 171 | O109: ='INPT; FlatFile'!$R$10 & " " & C109 -> Gross thermal efficiency (actual) 7 | P109: =MATCH(O109,'INPT; FlatFile'!$A$11:$RK$11,0) -> 180 | S109: =F109 ->  | T109: =IFERROR(SUM(R109:R111)/N109,0) -> 0
A110: =IF(G110,MAX(A$90:A109)+1,0) ->  | B110: =$B$92 -> Electricity | C110: =C109 -> 7 | D110: ='INPT; FlatFile'!$T$10&" "&C110 -> Electrical output - % used on site 7 | E110: =MATCH(D110,'INPT; FlatFile'!$A$11:$RK$11,0) -> 182 | G110: =IF(AND(F110<>0,COUNTIF(F$91:F110,F110)=1),TRUE,FALSE) ->  | H110: =IF(G110,B110,"") ->  | I110: ='INPT; FlatFile'!$G$10&" "&C110 -> Fuel input type 7 | J110: =MATCH(I110,'INPT; FlatFile'!$A$11:$RK$11,0) -> 169 | L110: ='INPT; FlatFile'!$I$10&" "&C110 -> Avg annual fuel use (metered) 7 | M110: =MATCH(L110,'INPT; FlatFile'!$A$11:$RK$11,0) -> 171 | O110: ='INPT; FlatFile'!$X$10 & " " & C110 -> Electrical efficiency (actual) 7 | P110: =MATCH(O110,'INPT; FlatFile'!$A$11:$RK$11,0) -> 186 | S110: =IF(F110,B110,"") -> 
A111: =IF(G111,MAX(A$90:A110)+1,0) ->  | B111: =$B$93 -> Cooling | C111: =C109 -> 7 | D111: ='INPT; FlatFile'!$Z$10&" "&C111 -> Cooling output 7 | E111: =MATCH(D111,'INPT; FlatFile'!$A$11:$RK$11,0) -> 188 | G111: =IF(AND(F111<>0,COUNTIF(F$91:F111,F111)=1),TRUE,FALSE) ->  | H111: =IF(G111,B111,"") ->  | I111: ='INPT; FlatFile'!$G$10&" "&C111 -> Fuel input type 7 | J111: =MATCH(I111,'INPT; FlatFile'!$A$11:$RK$11,0) -> 169 | L111: ='INPT; FlatFile'!$I$10&" "&C111 -> Avg annual fuel use (metered) 7 | M111: =MATCH(L111,'INPT; FlatFile'!$A$11:$RK$11,0) -> 171 | O111: ='INPT; FlatFile'!$AC$10 & " " & C111 -> Cooling efficiency (boiler plate) 7 | P111: =MATCH(O111,'INPT; FlatFile'!$A$11:$RK$11,0) -> 191 | S111: =IF(G111,B111,"") -> 
A112: =IF(G112,MAX(A$90:A111)+1,0) ->  | C112: =MAX($C$90:C111)+1 -> 8 | D112: ='INPT; FlatFile'!$N$10&" "&C112 -> Heat output type 8 | E112: =MATCH(D112,'INPT; FlatFile'!$A$11:$RK$11,0) -> 203 | G112: =IF(AND(F112<>0,COUNTIF(F$91:F112,F112)=1),TRUE,FALSE) ->  | H112: =IF(G112,F112,"") ->  | I112: ='INPT; FlatFile'!$G$10&" "&C112 -> Fuel input type 8 | J112: =MATCH(I112,'INPT; FlatFile'!$A$11:$RK$11,0) -> 196 | L112: ='INPT; FlatFile'!$I$10&" "&C112 -> Avg annual fuel use (metered) 8 | M112: =MATCH(L112,'INPT; FlatFile'!$A$11:$RK$11,0) -> 198 | O112: ='INPT; FlatFile'!$R$10 & " " & C112 -> Gross thermal efficiency (actual) 8 | P112: =MATCH(O112,'INPT; FlatFile'!$A$11:$RK$11,0) -> 207 | S112: =F112 ->  | T112: =IFERROR(SUM(R112:R114)/N112,0) -> 0
A113: =IF(G113,MAX(A$90:A112)+1,0) ->  | B113: =$B$92 -> Electricity | C113: =C112 -> 8 | D113: ='INPT; FlatFile'!$T$10&" "&C113 -> Electrical output - % used on site 8 | E113: =MATCH(D113,'INPT; FlatFile'!$A$11:$RK$11,0) -> 209 | G113: =IF(AND(F113<>0,COUNTIF(F$91:F113,F113)=1),TRUE,FALSE) ->  | H113: =IF(G113,B113,"") ->  | I113: ='INPT; FlatFile'!$G$10&" "&C113 -> Fuel input type 8 | J113: =MATCH(I113,'INPT; FlatFile'!$A$11:$RK$11,0) -> 196 | L113: ='INPT; FlatFile'!$I$10&" "&C113 -> Avg annual fuel use (metered) 8 | M113: =MATCH(L113,'INPT; FlatFile'!$A$11:$RK$11,0) -> 198 | O113: ='INPT; FlatFile'!$X$10 & " " & C113 -> Electrical efficiency (actual) 8 | P113: =MATCH(O113,'INPT; FlatFile'!$A$11:$RK$11,0) -> 213 | S113: =IF(F113,B113,"") -> 
A114: =IF(G114,MAX(A$90:A113)+1,0) ->  | B114: =$B$93 -> Cooling | C114: =C112 -> 8 | D114: ='INPT; FlatFile'!$Z$10&" "&C114 -> Cooling output 8 | E114: =MATCH(D114,'INPT; FlatFile'!$A$11:$RK$11,0) -> 215 | G114: =IF(AND(F114<>0,COUNTIF(F$91:F114,F114)=1),TRUE,FALSE) ->  | H114: =IF(G114,B114,"") ->  | I114: ='INPT; FlatFile'!$G$10&" "&C114 -> Fuel input type 8 | J114: =MATCH(I114,'INPT; FlatFile'!$A$11:$RK$11,0) -> 196 | L114: ='INPT; FlatFile'!$I$10&" "&C114 -> Avg annual fuel use (metered) 8 | M114: =MATCH(L114,'INPT; FlatFile'!$A$11:$RK$11,0) -> 198 | O114: ='INPT; FlatFile'!$AC$10 & " " & C114 -> Cooling efficiency (boiler plate) 8 | P114: =MATCH(O114,'INPT; FlatFile'!$A$11:$RK$11,0) -> 218 | S114: =IF(G114,B114,"") -> 
A115: =IF(G115,MAX(A$90:A114)+1,0) ->  | C115: =MAX($C$90:C114)+1 -> 9 | D115: ='INPT; FlatFile'!$N$10&" "&C115 -> Heat output type 9 | E115: =MATCH(D115,'INPT; FlatFile'!$A$11:$RK$11,0) -> 230 | G115: =IF(AND(F115<>0,COUNTIF(F$91:F115,F115)=1),TRUE,FALSE) ->  | H115: =IF(G115,F115,"") ->  | I115: ='INPT; FlatFile'!$G$10&" "&C115 -> Fuel input type 9 | J115: =MATCH(I115,'INPT; FlatFile'!$A$11:$RK$11,0) -> 223 | L115: ='INPT; FlatFile'!$I$10&" "&C115 -> Avg annual fuel use (metered) 9 | M115: =MATCH(L115,'INPT; FlatFile'!$A$11:$RK$11,0) -> 225 | O115: ='INPT; FlatFile'!$R$10 & " " & C115 -> Gross thermal efficiency (actual) 9 | P115: =MATCH(O115,'INPT; FlatFile'!$A$11:$RK$11,0) -> 234 | S115: =F115 ->  | T115: =IFERROR(SUM(R115:R117)/N115,0) -> 0
A116: =IF(G116,MAX(A$90:A115)+1,0) ->  | B116: =$B$92 -> Electricity | C116: =C115 -> 9 | D116: ='INPT; FlatFile'!$T$10&" "&C116 -> Electrical output - % used on site 9 | E116: =MATCH(D116,'INPT; FlatFile'!$A$11:$RK$11,0) -> 236 | G116: =IF(AND(F116<>0,COUNTIF(F$91:F116,F116)=1),TRUE,FALSE) ->  | H116: =IF(G116,B116,"") ->  | I116: ='INPT; FlatFile'!$G$10&" "&C116 -> Fuel input type 9 | J116: =MATCH(I116,'INPT; FlatFile'!$A$11:$RK$11,0) -> 223 | L116: ='INPT; FlatFile'!$I$10&" "&C116 -> Avg annual fuel use (metered) 9 | M116: =MATCH(L116,'INPT; FlatFile'!$A$11:$RK$11,0) -> 225 | O116: ='INPT; FlatFile'!$X$10 & " " & C116 -> Electrical efficiency (actual) 9 | P116: =MATCH(O116,'INPT; FlatFile'!$A$11:$RK$11,0) -> 240 | S116: =IF(F116,B116,"") -> 
A117: =IF(G117,MAX(A$90:A116)+1,0) ->  | B117: =$B$93 -> Cooling | C117: =C115 -> 9 | D117: ='INPT; FlatFile'!$Z$10&" "&C117 -> Cooling output 9 | E117: =MATCH(D117,'INPT; FlatFile'!$A$11:$RK$11,0) -> 242 | G117: =IF(AND(F117<>0,COUNTIF(F$91:F117,F117)=1),TRUE,FALSE) ->  | H117: =IF(G117,B117,"") ->  | I117: ='INPT; FlatFile'!$G$10&" "&C117 -> Fuel input type 9 | J117: =MATCH(I117,'INPT; FlatFile'!$A$11:$RK$11,0) -> 223 | L117: ='INPT; FlatFile'!$I$10&" "&C117 -> Avg annual fuel use (metered) 9 | M117: =MATCH(L117,'INPT; FlatFile'!$A$11:$RK$11,0) -> 225 | O117: ='INPT; FlatFile'!$AC$10 & " " & C117 -> Cooling efficiency (boiler plate) 9 | P117: =MATCH(O117,'INPT; FlatFile'!$A$11:$RK$11,0) -> 245 | S117: =IF(G117,B117,"") -> 
A118: =IF(G118,MAX(A$90:A117)+1,0) ->  | C118: =MAX($C$90:C117)+1 -> 10 | D118: ='INPT; FlatFile'!$N$10&" "&C118 -> Heat output type 10 | E118: =MATCH(D118,'INPT; FlatFile'!$A$11:$RK$11,0) -> 257 | G118: =IF(AND(F118<>0,COUNTIF(F$91:F118,F118)=1),TRUE,FALSE) ->  | H118: =IF(G118,F118,"") ->  | I118: ='INPT; FlatFile'!$G$10&" "&C118 -> Fuel input type 10 | J118: =MATCH(I118,'INPT; FlatFile'!$A$11:$RK$11,0) -> 250 | L118: ='INPT; FlatFile'!$I$10&" "&C118 -> Avg annual fuel use (metered) 10 | M118: =MATCH(L118,'INPT; FlatFile'!$A$11:$RK$11,0) -> 252 | O118: ='INPT; FlatFile'!$R$10 & " " & C118 -> Gross thermal efficiency (actual) 10 | P118: =MATCH(O118,'INPT; FlatFile'!$A$11:$RK$11,0) -> 261 | S118: =F118 ->  | T118: =IFERROR(SUM(R118:R120)/N118,0) -> 0
A119: =IF(G119,MAX(A$90:A118)+1,0) ->  | B119: =$B$92 -> Electricity | C119: =C118 -> 10 | D119: ='INPT; FlatFile'!$T$10&" "&C119 -> Electrical output - % used on site 10 | E119: =MATCH(D119,'INPT; FlatFile'!$A$11:$RK$11,0) -> 263 | G119: =IF(AND(F119<>0,COUNTIF(F$91:F119,F119)=1),TRUE,FALSE) ->  | H119: =IF(G119,B119,"") ->  | I119: ='INPT; FlatFile'!$G$10&" "&C119 -> Fuel input type 10 | J119: =MATCH(I119,'INPT; FlatFile'!$A$11:$RK$11,0) -> 250 | L119: ='INPT; FlatFile'!$I$10&" "&C119 -> Avg annual fuel use (metered) 10 | M119: =MATCH(L119,'INPT; FlatFile'!$A$11:$RK$11,0) -> 252 | O119: ='INPT; FlatFile'!$X$10 & " " & C119 -> Electrical efficiency (actual) 10 | P119: =MATCH(O119,'INPT; FlatFile'!$A$11:$RK$11,0) -> 267 | S119: =IF(F119,B119,"") -> 
A120: =IF(G120,MAX(A$90:A119)+1,0) ->  | B120: =$B$93 -> Cooling | C120: =C118 -> 10 | D120: ='INPT; FlatFile'!$Z$10&" "&C120 -> Cooling output 10 | E120: =MATCH(D120,'INPT; FlatFile'!$A$11:$RK$11,0) -> 269 | G120: =IF(AND(F120<>0,COUNTIF(F$91:F120,F120)=1),TRUE,FALSE) ->  | H120: =IF(G120,B120,"") ->  | I120: ='INPT; FlatFile'!$G$10&" "&C120 -> Fuel input type 10 | J120: =MATCH(I120,'INPT; FlatFile'!$A$11:$RK$11,0) -> 250 | L120: ='INPT; FlatFile'!$I$10&" "&C120 -> Avg annual fuel use (metered) 10 | M120: =MATCH(L120,'INPT; FlatFile'!$A$11:$RK$11,0) -> 252 | O120: ='INPT; FlatFile'!$AC$10 & " " & C120 -> Cooling efficiency (boiler plate) 10 | P120: =MATCH(O120,'INPT; FlatFile'!$A$11:$RK$11,0) -> 272 | S120: =IF(G120,B120,"") -> 
A121: =IF(G121,MAX(A$90:A120)+1,0) ->  | C121: =MAX($C$90:C120)+1 -> 11 | D121: ='INPT; FlatFile'!$N$10&" "&C121 -> Heat output type 11 | E121: =MATCH(D121,'INPT; FlatFile'!$A$11:$RK$11,0) -> 284 | G121: =IF(AND(F121<>0,COUNTIF(F$91:F121,F121)=1),TRUE,FALSE) ->  | H121: =IF(G121,F121,"") ->  | I121: ='INPT; FlatFile'!$G$10&" "&C121 -> Fuel input type 11 | J121: =MATCH(I121,'INPT; FlatFile'!$A$11:$RK$11,0) -> 277 | L121: ='INPT; FlatFile'!$I$10&" "&C121 -> Avg annual fuel use (metered) 11 | M121: =MATCH(L121,'INPT; FlatFile'!$A$11:$RK$11,0) -> 279 | O121: ='INPT; FlatFile'!$R$10 & " " & C121 -> Gross thermal efficiency (actual) 11 | P121: =MATCH(O121,'INPT; FlatFile'!$A$11:$RK$11,0) -> 288 | S121: =F121 ->  | T121: =IFERROR(SUM(R121:R123)/N121,0) -> 0
A122: =IF(G122,MAX(A$90:A121)+1,0) ->  | B122: =$B$92 -> Electricity | C122: =C121 -> 11 | D122: ='INPT; FlatFile'!$T$10&" "&C122 -> Electrical output - % used on site 11 | E122: =MATCH(D122,'INPT; FlatFile'!$A$11:$RK$11,0) -> 290 | G122: =IF(AND(F122<>0,COUNTIF(F$91:F122,F122)=1),TRUE,FALSE) ->  | H122: =IF(G122,B122,"") ->  | I122: ='INPT; FlatFile'!$G$10&" "&C122 -> Fuel input type 11 | J122: =MATCH(I122,'INPT; FlatFile'!$A$11:$RK$11,0) -> 277 | L122: ='INPT; FlatFile'!$I$10&" "&C122 -> Avg annual fuel use (metered) 11 | M122: =MATCH(L122,'INPT; FlatFile'!$A$11:$RK$11,0) -> 279 | O122: ='INPT; FlatFile'!$X$10 & " " & C122 -> Electrical efficiency (actual) 11 | P122: =MATCH(O122,'INPT; FlatFile'!$A$11:$RK$11,0) -> 294 | S122: =IF(F122,B122,"") -> 
A123: =IF(G123,MAX(A$90:A122)+1,0) ->  | B123: =$B$93 -> Cooling | C123: =C121 -> 11 | D123: ='INPT; FlatFile'!$Z$10&" "&C123 -> Cooling output 11 | E123: =MATCH(D123,'INPT; FlatFile'!$A$11:$RK$11,0) -> 296 | G123: =IF(AND(F123<>0,COUNTIF(F$91:F123,F123)=1),TRUE,FALSE) ->  | H123: =IF(G123,B123,"") ->  | I123: ='INPT; FlatFile'!$G$10&" "&C123 -> Fuel input type 11 | J123: =MATCH(I123,'INPT; FlatFile'!$A$11:$RK$11,0) -> 277 | L123: ='INPT; FlatFile'!$I$10&" "&C123 -> Avg annual fuel use (metered) 11 | M123: =MATCH(L123,'INPT; FlatFile'!$A$11:$RK$11,0) -> 279 | O123: ='INPT; FlatFile'!$AC$10 & " " & C123 -> Cooling efficiency (boiler plate) 11 | P123: =MATCH(O123,'INPT; FlatFile'!$A$11:$RK$11,0) -> 299 | S123: =IF(G123,B123,"") -> 
A124: =IF(G124,MAX(A$90:A123)+1,0) ->  | C124: =MAX($C$90:C123)+1 -> 12 | D124: ='INPT; FlatFile'!$N$10&" "&C124 -> Heat output type 12 | E124: =MATCH(D124,'INPT; FlatFile'!$A$11:$RK$11,0) -> 311 | G124: =IF(AND(F124<>0,COUNTIF(F$91:F124,F124)=1),TRUE,FALSE) ->  | H124: =IF(G124,F124,"") ->  | I124: ='INPT; FlatFile'!$G$10&" "&C124 -> Fuel input type 12 | J124: =MATCH(I124,'INPT; FlatFile'!$A$11:$RK$11,0) -> 304 | L124: ='INPT; FlatFile'!$I$10&" "&C124 -> Avg annual fuel use (metered) 12 | M124: =MATCH(L124,'INPT; FlatFile'!$A$11:$RK$11,0) -> 306 | O124: ='INPT; FlatFile'!$R$10 & " " & C124 -> Gross thermal efficiency (actual) 12 | P124: =MATCH(O124,'INPT; FlatFile'!$A$11:$RK$11,0) -> 315 | S124: =F124 ->  | T124: =IFERROR(SUM(R124:R126)/N124,0) -> 0
A125: =IF(G125,MAX(A$90:A124)+1,0) ->  | B125: =$B$92 -> Electricity | C125: =C124 -> 12 | D125: ='INPT; FlatFile'!$T$10&" "&C125 -> Electrical output - % used on site 12 | E125: =MATCH(D125,'INPT; FlatFile'!$A$11:$RK$11,0) -> 317 | G125: =IF(AND(F125<>0,COUNTIF(F$91:F125,F125)=1),TRUE,FALSE) ->  | H125: =IF(G125,B125,"") ->  | I125: ='INPT; FlatFile'!$G$10&" "&C125 -> Fuel input type 12 | J125: =MATCH(I125,'INPT; FlatFile'!$A$11:$RK$11,0) -> 304 | L125: ='INPT; FlatFile'!$I$10&" "&C125 -> Avg annual fuel use (metered) 12 | M125: =MATCH(L125,'INPT; FlatFile'!$A$11:$RK$11,0) -> 306 | O125: ='INPT; FlatFile'!$X$10 & " " & C125 -> Electrical efficiency (actual) 12 | P125: =MATCH(O125,'INPT; FlatFile'!$A$11:$RK$11,0) -> 321 | S125: =IF(F125,B125,"") -> 
A126: =IF(G126,MAX(A$90:A125)+1,0) ->  | B126: =$B$93 -> Cooling | C126: =C124 -> 12 | D126: ='INPT; FlatFile'!$Z$10&" "&C126 -> Cooling output 12 | E126: =MATCH(D126,'INPT; FlatFile'!$A$11:$RK$11,0) -> 323 | G126: =IF(AND(F126<>0,COUNTIF(F$91:F126,F126)=1),TRUE,FALSE) ->  | H126: =IF(G126,B126,"") ->  | I126: ='INPT; FlatFile'!$G$10&" "&C126 -> Fuel input type 12 | J126: =MATCH(I126,'INPT; FlatFile'!$A$11:$RK$11,0) -> 304 | L126: ='INPT; FlatFile'!$I$10&" "&C126 -> Avg annual fuel use (metered) 12 | M126: =MATCH(L126,'INPT; FlatFile'!$A$11:$RK$11,0) -> 306 | O126: ='INPT; FlatFile'!$AC$10 & " " & C126 -> Cooling efficiency (boiler plate) 12 | P126: =MATCH(O126,'INPT; FlatFile'!$A$11:$RK$11,0) -> 326 | S126: =IF(G126,B126,"") -> 
A127: =IF(G127,MAX(A$90:A126)+1,0) ->  | C127: =MAX($C$90:C126)+1 -> 13 | D127: ='INPT; FlatFile'!$N$10&" "&C127 -> Heat output type 13 | E127: =MATCH(D127,'INPT; FlatFile'!$A$11:$RK$11,0) -> 338 | G127: =IF(AND(F127<>0,COUNTIF(F$91:F127,F127)=1),TRUE,FALSE) ->  | H127: =IF(G127,F127,"") ->  | I127: ='INPT; FlatFile'!$G$10&" "&C127 -> Fuel input type 13 | J127: =MATCH(I127,'INPT; FlatFile'!$A$11:$RK$11,0) -> 331 | L127: ='INPT; FlatFile'!$I$10&" "&C127 -> Avg annual fuel use (metered) 13 | M127: =MATCH(L127,'INPT; FlatFile'!$A$11:$RK$11,0) -> 333 | O127: ='INPT; FlatFile'!$R$10 & " " & C127 -> Gross thermal efficiency (actual) 13 | P127: =MATCH(O127,'INPT; FlatFile'!$A$11:$RK$11,0) -> 342 | S127: =F127 ->  | T127: =IFERROR(SUM(R127:R129)/N127,0) -> 0
A128: =IF(G128,MAX(A$90:A127)+1,0) ->  | B128: =$B$92 -> Electricity | C128: =C127 -> 13 | D128: ='INPT; FlatFile'!$T$10&" "&C128 -> Electrical output - % used on site 13 | E128: =MATCH(D128,'INPT; FlatFile'!$A$11:$RK$11,0) -> 344 | G128: =IF(AND(F128<>0,COUNTIF(F$91:F128,F128)=1),TRUE,FALSE) ->  | H128: =IF(G128,B128,"") ->  | I128: ='INPT; FlatFile'!$G$10&" "&C128 -> Fuel input type 13 | J128: =MATCH(I128,'INPT; FlatFile'!$A$11:$RK$11,0) -> 331 | L128: ='INPT; FlatFile'!$I$10&" "&C128 -> Avg annual fuel use (metered) 13 | M128: =MATCH(L128,'INPT; FlatFile'!$A$11:$RK$11,0) -> 333 | O128: ='INPT; FlatFile'!$X$10 & " " & C128 -> Electrical efficiency (actual) 13 | P128: =MATCH(O128,'INPT; FlatFile'!$A$11:$RK$11,0) -> 348 | S128: =IF(F128,B128,"") -> 
A129: =IF(G129,MAX(A$90:A128)+1,0) ->  | B129: =$B$93 -> Cooling | C129: =C127 -> 13 | D129: ='INPT; FlatFile'!$Z$10&" "&C129 -> Cooling output 13 | E129: =MATCH(D129,'INPT; FlatFile'!$A$11:$RK$11,0) -> 350 | G129: =IF(AND(F129<>0,COUNTIF(F$91:F129,F129)=1),TRUE,FALSE) ->  | H129: =IF(G129,B129,"") ->  | I129: ='INPT; FlatFile'!$G$10&" "&C129 -> Fuel input type 13 | J129: =MATCH(I129,'INPT; FlatFile'!$A$11:$RK$11,0) -> 331 | L129: ='INPT; FlatFile'!$I$10&" "&C129 -> Avg annual fuel use (metered) 13 | M129: =MATCH(L129,'INPT; FlatFile'!$A$11:$RK$11,0) -> 333 | O129: ='INPT; FlatFile'!$AC$10 & " " & C129 -> Cooling efficiency (boiler plate) 13 | P129: =MATCH(O129,'INPT; FlatFile'!$A$11:$RK$11,0) -> 353 | S129: =IF(G129,B129,"") -> 
A130: =IF(G130,MAX(A$90:A129)+1,0) ->  | C130: =MAX($C$90:C129)+1 -> 14 | D130: ='INPT; FlatFile'!$N$10&" "&C130 -> Heat output type 14 | E130: =MATCH(D130,'INPT; FlatFile'!$A$11:$RK$11,0) -> 365 | G130: =IF(AND(F130<>0,COUNTIF(F$91:F130,F130)=1),TRUE,FALSE) ->  | H130: =IF(G130,F130,"") ->  | I130: ='INPT; FlatFile'!$G$10&" "&C130 -> Fuel input type 14 | J130: =MATCH(I130,'INPT; FlatFile'!$A$11:$RK$11,0) -> 358 | L130: ='INPT; FlatFile'!$I$10&" "&C130 -> Avg annual fuel use (metered) 14 | M130: =MATCH(L130,'INPT; FlatFile'!$A$11:$RK$11,0) -> 360 | O130: ='INPT; FlatFile'!$R$10 & " " & C130 -> Gross thermal efficiency (actual) 14 | P130: =MATCH(O130,'INPT; FlatFile'!$A$11:$RK$11,0) -> 369 | S130: =F130 ->  | T130: =IFERROR(SUM(R130:R132)/N130,0) -> 0
A131: =IF(G131,MAX(A$90:A130)+1,0) ->  | B131: =$B$92 -> Electricity | C131: =C130 -> 14 | D131: ='INPT; FlatFile'!$T$10&" "&C131 -> Electrical output - % used on site 14 | E131: =MATCH(D131,'INPT; FlatFile'!$A$11:$RK$11,0) -> 371 | G131: =IF(AND(F131<>0,COUNTIF(F$91:F131,F131)=1),TRUE,FALSE) ->  | H131: =IF(G131,B131,"") ->  | I131: ='INPT; FlatFile'!$G$10&" "&C131 -> Fuel input type 14 | J131: =MATCH(I131,'INPT; FlatFile'!$A$11:$RK$11,0) -> 358 | L131: ='INPT; FlatFile'!$I$10&" "&C131 -> Avg annual fuel use (metered) 14 | M131: =MATCH(L131,'INPT; FlatFile'!$A$11:$RK$11,0) -> 360 | O131: ='INPT; FlatFile'!$X$10 & " " & C131 -> Electrical efficiency (actual) 14 | P131: =MATCH(O131,'INPT; FlatFile'!$A$11:$RK$11,0) -> 375 | S131: =IF(F131,B131,"") -> 
A132: =IF(G132,MAX(A$90:A131)+1,0) ->  | B132: =$B$93 -> Cooling | C132: =C130 -> 14 | D132: ='INPT; FlatFile'!$Z$10&" "&C132 -> Cooling output 14 | E132: =MATCH(D132,'INPT; FlatFile'!$A$11:$RK$11,0) -> 377 | G132: =IF(AND(F132<>0,COUNTIF(F$91:F132,F132)=1),TRUE,FALSE) ->  | H132: =IF(G132,B132,"") ->  | I132: ='INPT; FlatFile'!$G$10&" "&C132 -> Fuel input type 14 | J132: =MATCH(I132,'INPT; FlatFile'!$A$11:$RK$11,0) -> 358 | L132: ='INPT; FlatFile'!$I$10&" "&C132 -> Avg annual fuel use (metered) 14 | M132: =MATCH(L132,'INPT; FlatFile'!$A$11:$RK$11,0) -> 360 | O132: ='INPT; FlatFile'!$AC$10 & " " & C132 -> Cooling efficiency (boiler plate) 14 | P132: =MATCH(O132,'INPT; FlatFile'!$A$11:$RK$11,0) -> 380 | S132: =IF(G132,B132,"") -> 
A133: =IF(G133,MAX(A$90:A132)+1,0) ->  | C133: =MAX($C$90:C132)+1 -> 15 | D133: ='INPT; FlatFile'!$N$10&" "&C133 -> Heat output type 15 | E133: =MATCH(D133,'INPT; FlatFile'!$A$11:$RK$11,0) -> 392 | G133: =IF(AND(F133<>0,COUNTIF(F$91:F133,F133)=1),TRUE,FALSE) ->  | H133: =IF(G133,F133,"") ->  | I133: ='INPT; FlatFile'!$G$10&" "&C133 -> Fuel input type 15 | J133: =MATCH(I133,'INPT; FlatFile'!$A$11:$RK$11,0) -> 385 | L133: ='INPT; FlatFile'!$I$10&" "&C133 -> Avg annual fuel use (metered) 15 | M133: =MATCH(L133,'INPT; FlatFile'!$A$11:$RK$11,0) -> 387 | O133: ='INPT; FlatFile'!$R$10 & " " & C133 -> Gross thermal efficiency (actual) 15 | P133: =MATCH(O133,'INPT; FlatFile'!$A$11:$RK$11,0) -> 396 | S133: =F133 ->  | T133: =IFERROR(SUM(R133:R135)/N133,0) -> 0
A134: =IF(G134,MAX(A$90:A133)+1,0) ->  | B134: =$B$92 -> Electricity | C134: =C133 -> 15 | D134: ='INPT; FlatFile'!$T$10&" "&C134 -> Electrical output - % used on site 15 | E134: =MATCH(D134,'INPT; FlatFile'!$A$11:$RK$11,0) -> 398 | G134: =IF(AND(F134<>0,COUNTIF(F$91:F134,F134)=1),TRUE,FALSE) ->  | H134: =IF(G134,B134,"") ->  | I134: ='INPT; FlatFile'!$G$10&" "&C134 -> Fuel input type 15 | J134: =MATCH(I134,'INPT; FlatFile'!$A$11:$RK$11,0) -> 385 | L134: ='INPT; FlatFile'!$I$10&" "&C134 -> Avg annual fuel use (metered) 15 | M134: =MATCH(L134,'INPT; FlatFile'!$A$11:$RK$11,0) -> 387 | O134: ='INPT; FlatFile'!$X$10 & " " & C134 -> Electrical efficiency (actual) 15 | P134: =MATCH(O134,'INPT; FlatFile'!$A$11:$RK$11,0) -> 402 | S134: =IF(F134,B134,"") -> 
A135: =IF(G135,MAX(A$90:A134)+1,0) ->  | B135: =$B$93 -> Cooling | C135: =C133 -> 15 | D135: ='INPT; FlatFile'!$Z$10&" "&C135 -> Cooling output 15 | E135: =MATCH(D135,'INPT; FlatFile'!$A$11:$RK$11,0) -> 404 | G135: =IF(AND(F135<>0,COUNTIF(F$91:F135,F135)=1),TRUE,FALSE) ->  | H135: =IF(G135,B135,"") ->  | I135: ='INPT; FlatFile'!$G$10&" "&C135 -> Fuel input type 15 | J135: =MATCH(I135,'INPT; FlatFile'!$A$11:$RK$11,0) -> 385 | L135: ='INPT; FlatFile'!$I$10&" "&C135 -> Avg annual fuel use (metered) 15 | M135: =MATCH(L135,'INPT; FlatFile'!$A$11:$RK$11,0) -> 387 | O135: ='INPT; FlatFile'!$AC$10 & " " & C135 -> Cooling efficiency (boiler plate) 15 | P135: =MATCH(O135,'INPT; FlatFile'!$A$11:$RK$11,0) -> 407 | S135: =IF(G135,B135,"") -> 
G137: =MAX(G$136:G136)+1 -> 1 | H137: =IFERROR(INDEX($H$91:$H$135,MATCH(G137,$A$91:$A$135,0),1),"") ->  | I137: =MATCH(H137,lstAllEnergy,0) ->  | R137: =SUMIF($S$91:$S$135,$H137,$R$91:$R$135) -> 0
G138: =MAX(G$136:G137)+1 -> 2 | H138: =IFERROR(INDEX($H$91:$H$135,MATCH(G138,$A$91:$A$135,0),1),"") ->  | R138: =SUMIF($S$91:$S$135,$H138,$R$91:$R$135) -> 0
G139: =MAX(G$136:G138)+1 -> 3 | R139: 0
G140: =MAX(G$136:G139)+1 -> 4 | R140: 0
G141: =MAX(G$136:G140)+1 -> 5 | R141: 0
G142: =MAX(G$136:G141)+1 -> 6 | R142: 0
G143: =MAX(G$136:G142)+1 -> 7 | R143: 0
B145: Energy Import by plant in each plant room
C147: # | D147: Label | E147: Match | F147: Look up | G147: Include? | H147: Energy Type | I147: Col | J147: Consumption | K147: Cost
A149: =IF(G149,MAX(A$147:A147)+1,0) ->  | C149: =MAX(C$147:C147)+1 -> 1 | D149: ='INPT; FlatFile'!$OT$10&" "&C149 -> Fuel 1 | E149: =MATCH(D149,'INPT; FlatFile'!$A$11:$RK$11,0) -> 410 | F149: =INDEX(rngFlatFileData,sysPlantRoomID,E149) ->  | G149: =IF(AND(F149<>0,COUNTIF(F$149:F149,F149)=1),TRUE,FALSE) ->  | H149: =IF(G149,F149,"") ->  | I149: =MATCH(H149,lstFuelInput,0) ->  | J149: =SUM(OFFSET(INDIRECT("'" & sysPlantRoomID & "'!drngFuelConsumption"),,I149-1,,1)) ->  | K149: =INDEX(INDIRECT("'" & sysPlantRoomID & "'!drngFuelUnitCost"),,I149,1) -> 
A150: =IF(G150,MAX(A$147:A149)+1,0) ->  | C150: =MAX(C$147:C149)+1 -> 2 | D150: ='INPT; FlatFile'!$OT$10&" "&C150 -> Fuel 2 | E150: =MATCH(D150,'INPT; FlatFile'!$A$11:$RK$11,0) -> 417 | G150: =IF(AND(F150<>0,COUNTIF(F$149:F150,F150)=1),TRUE,FALSE) -> 
A151: =IF(G151,MAX(A$147:A150)+1,0) ->  | C151: =MAX(C$147:C150)+1 -> 3 | D151: ='INPT; FlatFile'!$OT$10&" "&C151 -> Fuel 3 | E151: =MATCH(D151,'INPT; FlatFile'!$A$11:$RK$11,0) -> 424 | G151: =IF(AND(F151<>0,COUNTIF(F$149:F151,F151)=1),TRUE,FALSE) -> 
A152: =IF(G152,MAX(A$147:A151)+1,0) ->  | C152: =MAX(C$147:C151)+1 -> 4 | D152: ='INPT; FlatFile'!$OT$10&" "&C152 -> Fuel 4 | E152: =MATCH(D152,'INPT; FlatFile'!$A$11:$RK$11,0) -> 431 | G152: =IF(AND(F152<>0,COUNTIF(F$149:F152,F152)=1),TRUE,FALSE) -> 
A153: =IF(G153,MAX(A$147:A152)+1,0) ->  | C153: =MAX(C$147:C152)+1 -> 5 | D153: ='INPT; FlatFile'!$OT$10&" "&C153 -> Fuel 5 | E153: =MATCH(D153,'INPT; FlatFile'!$A$11:$RK$11,0) -> 438 | G153: =IF(AND(F153<>0,COUNTIF(F$149:F153,F153)=1),TRUE,FALSE) -> 
A154: =IF(G154,MAX(A$147:A153)+1,0) ->  | C154: =MAX(C$147:C153)+1 -> 6 | D154: ='INPT; FlatFile'!$OT$10&" "&C154 -> Fuel 6 | E154: =MATCH(D154,'INPT; FlatFile'!$A$11:$RK$11,0) -> 445 | G154: =IF(AND(F154<>0,COUNTIF(F$149:F154,F154)=1),TRUE,FALSE) -> 
A155: =IF(G155,MAX(A$147:A154)+1,0) ->  | C155: =MAX(C$147:C154)+1 -> 7 | D155: ='INPT; FlatFile'!$OT$10&" "&C155 -> Fuel 7 | E155: =MATCH(D155,'INPT; FlatFile'!$A$11:$RK$11,0) -> 452 | G155: =IF(AND(F155<>0,COUNTIF(F$149:F155,F155)=1),TRUE,FALSE) ->  | H155: =IF(G155,F155,"") -> 
A156: =IF(G156,MAX(A$147:A155)+1,0) ->  | C156: =MAX(C$147:C155)+1 -> 8 | D156: ='INPT; FlatFile'!$OT$10&" "&C156 -> Fuel 8 | E156: =MATCH(D156,'INPT; FlatFile'!$A$11:$RK$11,0) -> 459 | G156: =IF(AND(F156<>0,COUNTIF(F$149:F156,F156)=1),TRUE,FALSE) -> 
A157: =IF(G157,MAX(A$147:A156)+1,0) ->  | C157: =MAX(C$147:C156)+1 -> 9 | D157: ='INPT; FlatFile'!$OT$10&" "&C157 -> Fuel 9 | E157: =MATCH(D157,'INPT; FlatFile'!$A$11:$RK$11,0) -> 466 | G157: =IF(AND(F157<>0,COUNTIF(F$149:F157,F157)=1),TRUE,FALSE) -> 
A158: =IF(G158,MAX(A$147:A157)+1,0) ->  | C158: =MAX(C$147:C157)+1 -> 10 | D158: ='INPT; FlatFile'!$OT$10&" "&C158 -> Fuel 10 | E158: =MATCH(D158,'INPT; FlatFile'!$A$11:$RK$11,0) -> 473 | G158: =IF(AND(F158<>0,COUNTIF(F$149:F158,F158)=1),TRUE,FALSE) -> 
A159: =IF(G159,MAX(A$147:A158)+1,0) ->  | C159: =MAX(C$147:C158)+1 -> 11 | D159: ='INPT; FlatFile'!$OT$10&" "&C159 -> Fuel 11 | E159: =MATCH(D159,'INPT; FlatFile'!$A$11:$RK$11,0) ->  | G159: =IF(AND(F159<>0,COUNTIF(F$149:F159,F159)=1),TRUE,FALSE) -> 
A160: =IF(G160,MAX(A$147:A159)+1,0) ->  | C160: =MAX(C$147:C159)+1 -> 12 | D160: ='INPT; FlatFile'!$OT$10&" "&C160 -> Fuel 12 | E160: =MATCH(D160,'INPT; FlatFile'!$A$11:$RK$11,0) ->  | G160: =IF(AND(F160<>0,COUNTIF(F$149:F160,F160)=1),TRUE,FALSE) -> 
A161: =IF(G161,MAX(A$147:A160)+1,0) ->  | C161: =MAX(C$147:C160)+1 -> 13 | D161: ='INPT; FlatFile'!$OT$10&" "&C161 -> Fuel 13 | E161: =MATCH(D161,'INPT; FlatFile'!$A$11:$RK$11,0) ->  | G161: =IF(AND(F161<>0,COUNTIF(F$149:F161,F161)=1),TRUE,FALSE) -> 
A162: =IF(G162,MAX(A$147:A161)+1,0) ->  | C162: =MAX(C$147:C161)+1 -> 14 | D162: ='INPT; FlatFile'!$OT$10&" "&C162 -> Fuel 14 | E162: =MATCH(D162,'INPT; FlatFile'!$A$11:$RK$11,0) ->  | G162: =IF(AND(F162<>0,COUNTIF(F$149:F162,F162)=1),TRUE,FALSE) -> 
A163: =IF(G163,MAX(A$147:A162)+1,0) ->  | C163: =MAX(C$147:C162)+1 -> 15 | D163: ='INPT; FlatFile'!$OT$10&" "&C163 -> Fuel 15 | E163: =MATCH(D163,'INPT; FlatFile'!$A$11:$RK$11,0) ->  | G163: =IF(AND(F163<>0,COUNTIF(F$149:F163,F163)=1),TRUE,FALSE) ->  | H163: =IF(G163,F163,"") -> 
G165: =MAX(G$164:G164)+1 -> 1 | H165: =IFERROR(INDEX($H$149:$H$163,MATCH(G165,$A$149:$A$163,0),1),"") -> 
G166: =MAX(G$164:G165)+1 -> 2
G167: =MAX(G$164:G166)+1 -> 3
G168: =MAX(G$164:G167)+1 -> 4
G169: =MAX(G$164:G168)+1 -> 5
G170: =MAX(G$164:G169)+1 -> 6
G171: =MAX(G$164:G170)+1 -> 7

Sheet CALC; LCOE Template (hidden)
B2: =INDEX(lstFlatFilePlantRooms,dcPRNum,1) -> 0 | J2: =Lists!J18 -> 2020 | K2: =Lists!K18 -> 2021 | L2: =Lists!L18 -> 2022 | M2: =Lists!M18 -> 2023 | N2: =Lists!N18 -> 2024 | O2: =Lists!O18 -> 2025 | P2: =Lists!P18 -> 2026 | Q2: =Lists!Q18 -> 2027 | R2: =Lists!R18 -> 2028 | S2: =Lists!S18 -> 2029 | T2: =Lists!T18 -> 2030 | U2: =Lists!U18 -> 2031 | V2: =Lists!V18 -> 2032 | W2: =Lists!W18 -> 2033 | X2: =Lists!X18 -> 2034 | Y2: =Lists!Y18 -> 2035 | Z2: =Lists!Z18 -> 2036 | AA2: =Lists!AA18 -> 2037 | AB2: =Lists!AB18 -> 2038 | AC2: =Lists!AC18 -> 2039 | AD2: =Lists!AD18 -> 2040 | AE2: =Lists!AE18 -> 2041 | AF2: =Lists!AF18 -> 2042 | AG2: =Lists!AG18 -> 2043 | AH2: =Lists!AH18 -> 2044 | AI2: =Lists!AI18 -> 2045 | AJ2: =Lists!AJ18 -> 2046 | AK2: =Lists!AK18 -> 2047 | AL2: =Lists!AL18 -> 2048 | AM2: =Lists!AM18 -> 2049 | AN2: =Lists!AN18 -> 2050 | AO2: =Lists!AO18 -> 2051 | AP2: =Lists!AP18 -> 2052 | AQ2: =Lists!AQ18 -> 2053 | AR2: =Lists!AR18 -> 2054 | AS2: =Lists!AS18 -> 2055 | AT2: =Lists!AT18 -> 2056 | AU2: =Lists!AU18 -> 2057 | AV2: =Lists!AV18 -> 2058 | AW2: =Lists!AW18 -> 2059 | AX2: =Lists!AX18 -> 2060 | AY2: =Lists!AY18 -> 2061 | AZ2: =Lists!AZ18 -> 2062 | BA2: =Lists!BA18 -> 2063 | BB2: =Lists!BB18 -> 2064 | BC2: =Lists!BC18 -> 2065 | BD2: =Lists!BD18 -> 2066 | BE2: =Lists!BE18 -> 2067 | BF2: =Lists!BF18 -> 2068 | BG2: =Lists!BG18 -> 2069 | BH2: =Lists!BH18 -> 2070 | BI2: =Lists!BI18 -> 2071 | BJ2: =Lists!BJ18 -> 2072 | BK2: =Lists!BK18 -> 2073 | BL2: =Lists!BL18 -> 2074 | BM2: =Lists!BM18 -> 2075 | BN2: =Lists!BN18 -> 2076 | BO2: =Lists!BO18 -> 2077 | BP2: =Lists!BP18 -> 2078 | BQ2: =Lists!BQ18 -> 2079
J3: =Lists!J19 -> 2020-01-01 | K3: =Lists!K19 -> 2021-01-01 | L3: =Lists!L19 -> 2022-01-01 | M3: =Lists!M19 -> 2023-01-01 | N3: =Lists!N19 -> 2024-01-01 | O3: =Lists!O19 -> 2025-01-01 | P3: =Lists!P19 -> 2026-01-01 | Q3: =Lists!Q19 -> 2027-01-01 | R3: =Lists!R19 -> 2028-01-01 | S3: =Lists!S19 -> 2029-01-01 | T3: =Lists!T19 -> 2030-01-01 | U3: =Lists!U19 -> 2031-01-01 | V3: =Lists!V19 -> 2032-01-01 | W3: =Lists!W19 -> 2033-01-01 | X3: =Lists!X19 -> 2034-01-01 | Y3: =Lists!Y19 -> 2035-01-01 | Z3: =Lists!Z19 -> 2036-01-01 | AA3: =Lists!AA19 -> 2037-01-01 | AB3: =Lists!AB19 -> 2038-01-01 | AC3: =Lists!AC19 -> 2039-01-01 | AD3: =Lists!AD19 -> 2040-01-01 | AE3: =Lists!AE19 -> 2041-01-01 | AF3: =Lists!AF19 -> 2042-01-01 | AG3: =Lists!AG19 -> 2043-01-01 | AH3: =Lists!AH19 -> 2044-01-01 | AI3: =Lists!AI19 -> 2045-01-01 | AJ3: =Lists!AJ19 -> 2046-01-01 | AK3: =Lists!AK19 -> 2047-01-01 | AL3: =Lists!AL19 -> 2048-01-01 | AM3: =Lists!AM19 -> 2049-01-01 | AN3: =Lists!AN19 -> 2050-01-01 | AO3: =Lists!AO19 -> 2051-01-01 | AP3: =Lists!AP19 -> 2052-01-01 | AQ3: =Lists!AQ19 -> 2053-01-01 | AR3: =Lists!AR19 -> 2054-01-01 | AS3: =Lists!AS19 -> 2055-01-01 | AT3: =Lists!AT19 -> 2056-01-01 | AU3: =Lists!AU19 -> 2057-01-01 | AV3: =Lists!AV19 -> 2058-01-01 | AW3: =Lists!AW19 -> 2059-01-01 | AX3: =Lists!AX19 -> 2060-01-01 | AY3: =Lists!AY19 -> 2061-01-01 | AZ3: =Lists!AZ19 -> 2062-01-01 | BA3: =Lists!BA19 -> 2063-01-01 | BB3: =Lists!BB19 -> 2064-01-01 | BC3: =Lists!BC19 -> 2065-01-01 | BD3: =Lists!BD19 -> 2066-01-01 | BE3: =Lists!BE19 -> 2067-01-01 | BF3: =Lists!BF19 -> 2068-01-01 | BG3: =Lists!BG19 -> 2069-01-01 | BH3: =Lists!BH19 -> 2070-01-01 | BI3: =Lists!BI19 -> 2071-01-01 | BJ3: =Lists!BJ19 -> 2072-01-01 | BK3: =Lists!BK19 -> 2073-01-01 | BL3: =Lists!BL19 -> 2074-01-01 | BM3: =Lists!BM19 -> 2075-01-01 | BN3: =Lists!BN19 -> 2076-01-01 | BO3: =Lists!BO19 -> 2077-01-01 | BP3: =Lists!BP19 -> 2078-01-01 | BQ3: =Lists!BQ19 -> 2079-01-01
J4: =Lists!J20 -> 2020-12-31 | K4: =Lists!K20 -> 2021-12-31 | L4: =Lists!L20 -> 2022-12-31 | M4: =Lists!M20 -> 2023-12-31 | N4: =Lists!N20 -> 2024-12-31 | O4: =Lists!O20 -> 2025-12-31 | P4: =Lists!P20 -> 2026-12-31 | Q4: =Lists!Q20 -> 2027-12-31 | R4: =Lists!R20 -> 2028-12-31 | S4: =Lists!S20 -> 2029-12-31 | T4: =Lists!T20 -> 2030-12-31 | U4: =Lists!U20 -> 2031-12-31 | V4: =Lists!V20 -> 2032-12-31 | W4: =Lists!W20 -> 2033-12-31 | X4: =Lists!X20 -> 2034-12-31 | Y4: =Lists!Y20 -> 2035-12-31 | Z4: =Lists!Z20 -> 2036-12-31 | AA4: =Lists!AA20 -> 2037-12-31 | AB4: =Lists!AB20 -> 2038-12-31 | AC4: =Lists!AC20 -> 2039-12-31 | AD4: =Lists!AD20 -> 2040-12-31 | AE4: =Lists!AE20 -> 2041-12-31 | AF4: =Lists!AF20 -> 2042-12-31 | AG4: =Lists!AG20 -> 2043-12-31 | AH4: =Lists!AH20 -> 2044-12-31 | AI4: =Lists!AI20 -> 2045-12-31 | AJ4: =Lists!AJ20 -> 2046-12-31 | AK4: =Lists!AK20 -> 2047-12-31 | AL4: =Lists!AL20 -> 2048-12-31 | AM4: =Lists!AM20 -> 2049-12-31 | AN4: =Lists!AN20 -> 2050-12-31 | AO4: =Lists!AO20 -> 2051-12-31 | AP4: =Lists!AP20 -> 2052-12-31 | AQ4: =Lists!AQ20 -> 2053-12-31 | AR4: =Lists!AR20 -> 2054-12-31 | AS4: =Lists!AS20 -> 2055-12-31 | AT4: =Lists!AT20 -> 2056-12-31 | AU4: =Lists!AU20 -> 2057-12-31 | AV4: =Lists!AV20 -> 2058-12-31 | AW4: =Lists!AW20 -> 2059-12-31 | AX4: =Lists!AX20 -> 2060-12-31 | AY4: =Lists!AY20 -> 2061-12-31 | AZ4: =Lists!AZ20 -> 2062-12-31 | BA4: =Lists!BA20 -> 2063-12-31 | BB4: =Lists!BB20 -> 2064-12-31 | BC4: =Lists!BC20 -> 2065-12-31 | BD4: =Lists!BD20 -> 2066-12-31 | BE4: =Lists!BE20 -> 2067-12-31 | BF4: =Lists!BF20 -> 2068-12-31 | BG4: =Lists!BG20 -> 2069-12-31 | BH4: =Lists!BH20 -> 2070-12-31 | BI4: =Lists!BI20 -> 2071-12-31 | BJ4: =Lists!BJ20 -> 2072-12-31 | BK4: =Lists!BK20 -> 2073-12-31 | BL4: =Lists!BL20 -> 2074-12-31 | BM4: =Lists!BM20 -> 2075-12-31 | BN4: =Lists!BN20 -> 2076-12-31 | BO4: =Lists!BO20 -> 2077-12-31 | BP4: =Lists!BP20 -> 2078-12-31 | BQ4: =Lists!BQ20 -> 2079-12-31
B5: Sheet Name Check: | D5: =VALUE(MID(CELL("filename",A1),FIND("]",CELL("filename",A1))+1,10)) ->  | E5: =IF(D5=dcPRNum,0,1) ->  | J5: =Lists!J21 -> 1 | K5: =Lists!K21 -> 2 | L5: =Lists!L21 -> 3 | M5: =Lists!M21 -> 4 | N5: =Lists!N21 -> 5 | O5: =Lists!O21 -> 6 | P5: =Lists!P21 -> 7 | Q5: =Lists!Q21 -> 8 | R5: =Lists!R21 -> 9 | S5: =Lists!S21 -> 10 | T5: =Lists!T21 -> 11 | U5: =Lists!U21 -> 12 | V5: =Lists!V21 -> 13 | W5: =Lists!W21 -> 14 | X5: =Lists!X21 -> 15 | Y5: =Lists!Y21 -> 16 | Z5: =Lists!Z21 -> 17 | AA5: =Lists!AA21 -> 18 | AB5: =Lists!AB21 -> 19 | AC5: =Lists!AC21 -> 20 | AD5: =Lists!AD21 -> 21 | AE5: =Lists!AE21 -> 22 | AF5: =Lists!AF21 -> 23 | AG5: =Lists!AG21 -> 24 | AH5: =Lists!AH21 -> 25 | AI5: =Lists!AI21 -> 26 | AJ5: =Lists!AJ21 -> 27 | AK5: =Lists!AK21 -> 28 | AL5: =Lists!AL21 -> 29 | AM5: =Lists!AM21 -> 30 | AN5: =Lists!AN21 -> 31 | AO5: =Lists!AO21 -> 32 | AP5: =Lists!AP21 -> 33 | AQ5: =Lists!AQ21 -> 34 | AR5: =Lists!AR21 -> 35 | AS5: =Lists!AS21 -> 36 | AT5: =Lists!AT21 -> 37 | AU5: =Lists!AU21 -> 38 | AV5: =Lists!AV21 -> 39 | AW5: =Lists!AW21 -> 40 | AX5: =Lists!AX21 -> 41 | AY5: =Lists!AY21 -> 42 | AZ5: =Lists!AZ21 -> 43 | BA5: =Lists!BA21 -> 44 | BB5: =Lists!BB21 -> 45 | BC5: =Lists!BC21 -> 46 | BD5: =Lists!BD21 -> 47 | BE5: =Lists!BE21 -> 48 | BF5: =Lists!BF21 -> 49 | BG5: =Lists!BG21 -> 50 | BH5: =Lists!BH21 -> 51 | BI5: =Lists!BI21 -> 52 | BJ5: =Lists!BJ21 -> 53 | BK5: =Lists!BK21 -> 54 | BL5: =Lists!BL21 -> 55 | BM5: =Lists!BM21 -> 56 | BN5: =Lists!BN21 -> 57 | BO5: =Lists!BO21 -> 58 | BP5: =Lists!BP21 -> 59 | BQ5: =Lists!BQ21 -> 60
B7: LEVELISED COST CALCULATIONS
B9: Appraisal period and discount rate
B11: ='INPT; General'!B5 -> Appraisal period | C11: Flag | D11: ='INPT; General'!$D$5 -> 40 | J11: =IF(J$5<=$D11,1,0) -> 1 | K11: =IF(K$5<=$D11,1,0) -> 1 | L11: 1 | M11: 1 | N11: 1 | O11: 1 | P11: 1 | Q11: 1 | R11: 1 | S11: 1 | T11: 1 | U11: 1 | V11: 1 | W11: 1 | X11: 1 | Y11: 1 | Z11: 1 | AA11: 1 | AB11: 1 | AC11: 1 | AD11: 1 | AE11: 1 | AF11: 1 | AG11: 1 | AH11: 1 | AI11: 1 | AJ11: 1 | AK11: 1 | AL11: 1 | AM11: 1 | AN11: 1 | AO11: 1 | AP11: 1 | AQ11: 1 | AR11: 1 | AS11: 1 | AT11: 1 | AU11: 1 | AV11: 1 | AW11: 1 | AX11: 0 | AY11: 0 | AZ11: 0 | BA11: 0 | BB11: 0 | BC11: 0 | BD11: 0 | BE11: 0 | BF11: 0 | BG11: 0 | BH11: 0 | BI11: 0 | BJ11: 0 | BK11: 0 | BL11: 0 | BM11: 0 | BN11: 0 | BO11: 0 | BP11: 0 | BQ11: 0
B12: Final period | C12: Flag | J12: =1*(J$5=$D11) -> 0 | K12: =1*(K$5=$D11) -> 0 | L12: 0 | M12: 0 | N12: 0 | O12: 0 | P12: 0 | Q12: 0 | R12: 0 | S12: 0 | T12: 0 | U12: 0 | V12: 0 | W12: 0 | X12: 0 | Y12: 0 | Z12: 0 | AA12: 0 | AB12: 0 | AC12: 0 | AD12: 0 | AE12: 0 | AF12: 0 | AG12: 0 | AH12: 0 | AI12: 0 | AJ12: 0 | AK12: 0 | AL12: 0 | AM12: 0 | AN12: 0 | AO12: 0 | AP12: 0 | AQ12: 0 | AR12: 0 | AS12: 0 | AT12: 0 | AU12: 0 | AV12: 0 | AW12: 1 | AX12: 0 | AY12: 0 | AZ12: 0 | BA12: 0 | BB12: 0 | BC12: 0 | BD12: 0 | BE12: 0 | BF12: 0 | BG12: 0 | BH12: 0 | BI12: 0 | BJ12: 0 | BK12: 0 | BL12: 0 | BM12: 0 | BN12: 0 | BO12: 0 | BP12: 0 | BQ12: 0
B13: Days in period | C13: Days | J13: =(J$4-J$3+1) -> 366 | K13: =(K$4-K$3+1) -> 365 | L13: 365 | M13: 365 | N13: 366 | O13: 365 | P13: 365 | Q13: 365 | R13: 366 | S13: 365 | T13: 365 | U13: 365 | V13: 366 | W13: 365 | X13: 365 | Y13: 365 | Z13: 366 | AA13: 365 | AB13: 365 | AC13: 365 | AD13: 366 | AE13: 365 | AF13: 365 | AG13: 365 | AH13: 366 | AI13: 365 | AJ13: 365 | AK13: 365 | AL13: 366 | AM13: 365 | AN13: 365 | AO13: 365 | AP13: 366 | AQ13: 365 | AR13: 365 | AS13: 365 | AT13: 366 | AU13: 365 | AV13: 365 | AW13: 365 | AX13: 366 | AY13: 365 | AZ13: 365 | BA13: 365 | BB13: 366 | BC13: 365 | BD13: 365 | BE13: 365 | BF13: 366 | BG13: 365 | BH13: 365 | BI13: 365 | BJ13: 366 | BK13: 365 | BL13: 365 | BM13: 365 | BN13: 366 | BO13: 365 | BP13: 365 | BQ13: 365
B14: Discount rate (Beginning of Period - BoP) | C14: % | D14: ='INPT; General'!$D$6 -> 0.03 | J14: =1/(1+$D14)^(J$5-1) -> 1 | K14: =1/(1+$D14)^(K$5-1) -> 0.9708737864 | L14: 0.9425959091 | M14: 0.9151416594 | N14: 0.8884870479 | O14: 0.8626087844 | P14: 0.8374842567 | Q14: 0.8130915113 | R14: 0.7894092343 | S14: 0.7664167323 | T14: 0.7440939149 | U14: 0.7224212766 | V14: 0.7013798802 | W14: 0.68095134 | X14: 0.6611178058 | Y14: 0.6418619474 | Z14: 0.6231669392 | AA14: 0.6050164458 | AB14: 0.5873946076 | AC14: 0.5702860268 | AD14: 0.5536757542 | AE14: 0.5375492759 | AF14: 0.5218925009 | AG14: 0.5066917484 | AH14: 0.4919337363 | AI14: 0.4776055693 | AJ14: 0.4636947274 | AK14: 0.4501890558 | AL14: 0.4370767532 | AM14: 0.4243463623 | AN14: 0.4119867595 | AO14: 0.3999871452 | AP14: 0.3883370341 | AQ14: 0.3770262467 | AR14: 0.3660448997 | AS14: 0.3553833978 | AT14: 0.3450324251 | AU14: 0.3349829369 | AV14: 0.3252261524 | AW14: 0.315753546 | AX14: 0.3065568408 | AY14: 0.2976280008 | AZ14: 0.288959224 | BA14: 0.280542936 | BB14: 0.2723717825 | BC14: 0.2644386238 | BD14: 0.2567365279 | BE14: 0.249258765 | BF14: 0.2419988009 | BG14: 0.2349502922 | BH14: 0.2281070798 | BI14: 0.2214631843 | BJ14: 0.2150128003 | BK14: 0.2087502915 | BL14: 0.2026701859 | BM14: 0.1967671708 | BN14: 0.1910360882 | BO14: 0.1854719303 | BP14: 0.1800698352 | BQ14: 0.1748250827
B15: Discount rate (Middle of Period - MoP) | C15: % | D15: ='INPT; General'!$D$6 -> 0.03 | J15: =1/(1+$D15)^(J$5-0.5) -> 0.9853292782 | K15: =1/(1+$D15)^(K$5-0.5) -> 0.9566303671 | L15: 0.9287673467 | M15: 0.9017158706 | N15: 0.8754523016 | O15: 0.8499536909 | P15: 0.8251977581 | Q15: 0.801162872 | R15: 0.777828031 | S15: 0.7551728457 | T15: 0.7331775201 | U15: 0.711822835 | V15: 0.6910901311 | W15: 0.6709612923 | X15: 0.6514187304 | Y15: 0.6324453693 | Z15: 0.6140246304 | AA15: 0.5961404179 | AB15: 0.5787771047 | AC15: 0.5619195191 | AD15: 0.5455529312 | AE15: 0.52966304 | AF15: 0.5142359612 | AG15: 0.4992582147 | AH15: 0.4847167133 | AI15: 0.4705987508 | AJ15: 0.4568919911 | AK15: 0.4435844574 | AL15: 0.4306645217 | AM15: 0.4181208949 | AN15: 0.4059426164 | AO15: 0.394119045 | AP15: 0.3826398495 | AQ15: 0.3714949995 | AR15: 0.3606747568 | AS15: 0.3501696668 | AT15: 0.3399705503 | AU15: 0.3300684955 | AV15: 0.32045485 | AW15: 0.3111212136 | AX15: 0.3020594306 | AY15: 0.2932615831 | AZ15: 0.2847199836 | BA15: 0.2764271686 | BB15: 0.2683758918 | BC15: 0.2605591183 | BD15: 0.2529700177 | BE15: 0.245601959 | BF15: 0.2384485039 | BG15: 0.2315034018 | BH15: 0.2247605843 | BI15: 0.2182141595 | BJ15: 0.2118584073 | BK15: 0.205687774 | BL15: 0.199696868 | BM15: 0.1938804544 | BN15: 0.1882334509 | BO15: 0.1827509232 | BP15: 0.1774280807 | BQ15: 0.1722602726
B16: Discount rate (End of Period - EoP) | C16: % | D16: ='INPT; General'!$D$6 -> 0.03 | J16: =1/(1+$D16)^J$5 -> 0.9708737864 | K16: =1/(1+$D16)^K$5 -> 0.9425959091 | L16: 0.9151416594 | M16: 0.8884870479 | N16: 0.8626087844 | O16: 0.8374842567 | P16: 0.8130915113 | Q16: 0.7894092343 | R16: 0.7664167323 | S16: 0.7440939149 | T16: 0.7224212766 | U16: 0.7013798802 | V16: 0.68095134 | W16: 0.6611178058 | X16: 0.6418619474 | Y16: 0.6231669392 | Z16: 0.6050164458 | AA16: 0.5873946076 | AB16: 0.5702860268 | AC16: 0.5536757542 | AD16: 0.5375492759 | AE16: 0.5218925009 | AF16: 0.5066917484 | AG16: 0.4919337363 | AH16: 0.4776055693 | AI16: 0.4636947274 | AJ16: 0.4501890558 | AK16: 0.4370767532 | AL16: 0.4243463623 | AM16: 0.4119867595 | AN16: 0.3999871452 | AO16: 0.3883370341 | AP16: 0.3770262467 | AQ16: 0.3660448997 | AR16: 0.3553833978 | AS16: 0.3450324251 | AT16: 0.3349829369 | AU16: 0.3252261524 | AV16: 0.315753546 | AW16: 0.3065568408 | AX16: 0.2976280008 | AY16: 0.288959224 | AZ16: 0.280542936 | BA16: 0.2723717825 | BB16: 0.2644386238 | BC16: 0.2567365279 | BD16: 0.249258765 | BE16: 0.2419988009 | BF16: 0.2349502922 | BG16: 0.2281070798 | BH16: 0.2214631843 | BI16: 0.2150128003 | BJ16: 0.2087502915 | BK16: 0.2026701859 | BL16: 0.1967671708 | BM16: 0.1910360882 | BN16: 0.1854719303 | BO16: 0.1800698352 | BP16: 0.1748250827 | BQ16: 0.16973309
B18: =INDEX(lstHeatOutput,G18,1) -> DHW | G18: =MAX(G$9:G17)+1 -> 1
B20: Repex
B21: Year purchase | C21: Year | D21: =INDEX($F$1230:$F$1236,G18,1) -> 0 | E21: =D21-$J$2 -> -2020
B22: UEL | C22: UEL | D22: =INDEX($G$1230:$G$1236,G18,1) -> 0 | E22: =ROUND(D22,0) -> 0
B23: 1st Replacement year (incl lead time) | C23: Flag | D23: ='INPT; General'!$D$10 -> 1 | E23: =ROUND(E22+E21,0)+D23 -> -2019 | J23: =1*($E23=J$5) -> 0 | K23: =1*($E23=K$5) -> 0 | L23: 0 | M23: 0 | N23: 0 | O23: 0 | P23: 0 | Q23: 0 | R23: 0 | S23: 0 | T23: 0 | U23: 0 | V23: 0 | W23: 0 | X23: 0 | Y23: 0 | Z23: 0 | AA23: 0 | AB23: 0 | AC23: 0 | AD23: 0 | AE23: 0 | AF23: 0 | AG23: 0 | AH23: 0 | AI23: 0 | AJ23: 0 | AK23: 0 | AL23: 0 | AM23: 0 | AN23: 0 | AO23: 0 | AP23: 0 | AQ23: 0 | AR23: 0 | AS23: 0 | AT23: 0 | AU23: 0 | AV23: 0 | AW23: 0 | AX23: 0 | AY23: 0 | AZ23: 0 | BA23: 0 | BB23: 0 | BC23: 0 | BD23: 0 | BE23: 0 | BF23: 0 | BG23: 0 | BH23: 0 | BI23: 0 | BJ23: 0 | BK23: 0 | BL23: 0 | BM23: 0 | BN23: 0 | BO23: 0 | BP23: 0 | BQ23: 0
B24: Subsequent replacement years | C24: Flag | J24: =OFFSET(J23,,-MIN(J$5,$E22)) -> 0 | K24: =OFFSET(K23,,-MIN(K$5,$E22)) -> 0 | L24: 0 | M24: 0 | N24: 0 | O24: 0 | P24: 0 | Q24: 0 | R24: 0 | S24: 0 | T24: 0 | U24: 0 | V24: 0 | W24: 0 | X24: 0 | Y24: 0 | Z24: 0 | AA24: 0 | AB24: 0 | AC24: 0 | AD24: 0 | AE24: 0 | AF24: 0 | AG24: 0 | AH24: 0 | AI24: 0 | AJ24: 0 | AK24: 0 | AL24: 0 | AM24: 0 | AN24: 0 | AO24: 0 | AP24: 0 | AQ24: 0 | AR24: 0 | AS24: 0 | AT24: 0 | AU24: 0 | AV24: 0 | AW24: 0 | AX24: 0 | AY24: 0 | AZ24: 0 | BA24: 0 | BB24: 0 | BC24: 0 | BD24: 0 | BE24: 0 | BF24: 0 | BG24: 0 | BH24: 0 | BI24: 0 | BJ24: 0 | BK24: 0 | BL24: 0 | BM24: 0 | BN24: 0 | BO24: 0 | BP24: 0 | BQ24: 0
B25: Replacement flag | C25: Flag | J25: =SUM(J23:J24) -> 0 | K25: =SUM(K23:K24) -> 0 | L25: 0 | M25: 0 | N25: 0 | O25: 0 | P25: 0 | Q25: 0 | R25: 0 | S25: 0 | T25: 0 | U25: 0 | V25: 0 | W25: 0 | X25: 0 | Y25: 0 | Z25: 0 | AA25: 0 | AB25: 0 | AC25: 0 | AD25: 0 | AE25: 0 | AF25: 0 | AG25: 0 | AH25: 0 | AI25: 0 | AJ25: 0 | AK25: 0 | AL25: 0 | AM25: 0 | AN25: 0 | AO25: 0 | AP25: 0 | AQ25: 0 | AR25: 0 | AS25: 0 | AT25: 0 | AU25: 0 | AV25: 0 | AW25: 0 | AX25: 0 | AY25: 0 | AZ25: 0 | BA25: 0 | BB25: 0 | BC25: 0 | BD25: 0 | BE25: 0 | BF25: 0 | BG25: 0 | BH25: 0 | BI25: 0 | BJ25: 0 | BK25: 0 | BL25: 0 | BM25: 0 | BN25: 0 | BO25: 0 | BP25: 0 | BQ25: 0
B27: Enter manually? | C27: T/F | E27: =IF(D27="",FALSE,D27) -> FALSE
B28: Manual entry | C28: £
B29: Per Flat File | C29: £ | D29: =INDEX($E$1230:$E$1236,G18,1) -> 0 | J29: =J25*$D29 -> 0 | K29: =K25*$D29 -> 0 | L29: 0 | M29: 0 | N29: 0 | O29: 0 | P29: 0 | Q29: 0 | R29: 0 | S29: 0 | T29: 0 | U29: 0 | V29: 0 | W29: 0 | X29: 0 | Y29: 0 | Z29: 0 | AA29: 0 | AB29: 0 | AC29: 0 | AD29: 0 | AE29: 0 | AF29: 0 | AG29: 0 | AH29: 0 | AI29: 0 | AJ29: 0 | AK29: 0 | AL29: 0 | AM29: 0 | AN29: 0 | AO29: 0 | AP29: 0 | AQ29: 0 | AR29: 0 | AS29: 0 | AT29: 0 | AU29: 0 | AV29: 0 | AW29: 0 | AX29: 0 | AY29: 0 | AZ29: 0 | BA29: 0 | BB29: 0 | BC29: 0 | BD29: 0 | BE29: 0 | BF29: 0 | BG29: 0 | BH29: 0 | BI29: 0 | BJ29: 0 | BK29: 0 | BL29: 0 | BM29: 0 | BN29: 0 | BO29: 0 | BP29: 0 | BQ29: 0
B30: Selected | C30: £ | J30: =IF($E27,J28,J29) -> 0 | K30: =IF($E27,K28,K29) -> 0 | L30: 0 | M30: 0 | N30: 0 | O30: 0 | P30: 0 | Q30: 0 | R30: 0 | S30: 0 | T30: 0 | U30: 0 | V30: 0 | W30: 0 | X30: 0 | Y30: 0 | Z30: 0 | AA30: 0 | AB30: 0 | AC30: 0 | AD30: 0 | AE30: 0 | AF30: 0 | AG30: 0 | AH30: 0 | AI30: 0 | AJ30: 0 | AK30: 0 | AL30: 0 | AM30: 0 | AN30: 0 | AO30: 0 | AP30: 0 | AQ30: 0 | AR30: 0 | AS30: 0 | AT30: 0 | AU30: 0 | AV30: 0 | AW30: 0 | AX30: 0 | AY30: 0 | AZ30: 0 | BA30: 0 | BB30: 0 | BC30: 0 | BD30: 0 | BE30: 0 | BF30: 0 | BG30: 0 | BH30: 0 | BI30: 0 | BJ30: 0 | BK30: 0 | BL30: 0 | BM30: 0 | BN30: 0 | BO30: 0 | BP30: 0 | BQ30: 0
B32: b/f balance | C32: £ | J32: =I36 -> 0 | K32: =J36 -> 0 | L32: 0 | M32: 0 | N32: 0 | O32: 0 | P32: 0 | Q32: 0 | R32: 0 | S32: 0 | T32: 0 | U32: 0 | V32: 0 | W32: 0 | X32: 0 | Y32: 0 | Z32: 0 | AA32: 0 | AB32: 0 | AC32: 0 | AD32: 0 | AE32: 0 | AF32: 0 | AG32: 0 | AH32: 0 | AI32: 0 | AJ32: 0 | AK32: 0 | AL32: 0 | AM32: 0 | AN32: 0 | AO32: 0 | AP32: 0 | AQ32: 0 | AR32: 0 | AS32: 0 | AT32: 0 | AU32: 0 | AV32: 0 | AW32: 0 | AX32: 0 | AY32: 0 | AZ32: 0 | BA32: 0 | BB32: 0 | BC32: 0 | BD32: 0 | BE32: 0 | BF32: 0 | BG32: 0 | BH32: 0 | BI32: 0 | BJ32: 0 | BK32: 0 | BL32: 0 | BM32: 0 | BN32: 0 | BO32: 0 | BP32: 0 | BQ32: 0
B33: Additions | C33: £ | J33: =J30 -> 0 | K33: =K30 -> 0 | L33: 0 | M33: 0 | N33: 0 | O33: 0 | P33: 0 | Q33: 0 | R33: 0 | S33: 0 | T33: 0 | U33: 0 | V33: 0 | W33: 0 | X33: 0 | Y33: 0 | Z33: 0 | AA33: 0 | AB33: 0 | AC33: 0 | AD33: 0 | AE33: 0 | AF33: 0 | AG33: 0 | AH33: 0 | AI33: 0 | AJ33: 0 | AK33: 0 | AL33: 0 | AM33: 0 | AN33: 0 | AO33: 0 | AP33: 0 | AQ33: 0 | AR33: 0 | AS33: 0 | AT33: 0 | AU33: 0 | AV33: 0 | AW33: 0 | AX33: 0 | AY33: 0 | AZ33: 0 | BA33: 0 | BB33: 0 | BC33: 0 | BD33: 0 | BE33: 0 | BF33: 0 | BG33: 0 | BH33: 0 | BI33: 0 | BJ33: 0 | BK33: 0 | BL33: 0 | BM33: 0 | BN33: 0 | BO33: 0 | BP33: 0 | BQ33: 0
B34: Depreciation | C34: £ | J34: =IFERROR(-SUM(OFFSET(J33,,,,-MIN(J$5,$E22)))/$E22,0) -> 0 | K34: 0 | L34: 0 | M34: 0 | N34: 0 | O34: 0 | P34: 0 | Q34: =IFERROR(-SUM(OFFSET(Q33,,,,-MIN(Q$5,$E22)))/$E22,0) -> 0 | R34: =IFERROR(-SUM(OFFSET(R33,,,,-MIN(R$5,$E22)))/$E22,0) -> 0 | S34: 0 | T34: 0 | U34: 0 | V34: 0 | W34: 0 | X34: 0 | Y34: 0 | Z34: 0 | AA34: 0 | AB34: 0 | AC34: 0 | AD34: 0 | AE34: 0 | AF34: 0 | AG34: 0 | AH34: 0 | AI34: 0 | AJ34: 0 | AK34: 0 | AL34: 0 | AM34: 0 | AN34: 0 | AO34: 0 | AP34: 0 | AQ34: 0 | AR34: 0 | AS34: 0 | AT34: 0 | AU34: 0 | AV34: 0 | AW34: 0 | AX34: 0 | AY34: 0 | AZ34: 0 | BA34: 0 | BB34: 0 | BC34: 0 | BD34: 0 | BE34: 0 | BF34: 0 | BG34: 0 | BH34: 0 | BI34: 0 | BJ34: 0 | BK34: 0 | BL34: 0 | BM34: 0 | BN34: 0 | BO34: 0 | BP34: 0 | BQ34: 0
B36: c/f balance | C36: £ | J36: =SUM(J32:J35) -> 0 | K36: =SUM(K32:K35) -> 0 | L36: 0 | M36: 0 | N36: 0 | O36: 0 | P36: 0 | Q36: 0 | R36: 0 | S36: 0 | T36: 0 | U36: 0 | V36: 0 | W36: 0 | X36: 0 | Y36: 0 | Z36: 0 | AA36: 0 | AB36: 0 | AC36: 0 | AD36: 0 | AE36: 0 | AF36: 0 | AG36: 0 | AH36: 0 | AI36: 0 | AJ36: 0 | AK36: 0 | AL36: 0 | AM36: 0 | AN36: 0 | AO36: 0 | AP36: 0 | AQ36: 0 | AR36: 0 | AS36: 0 | AT36: 0 | AU36: 0 | AV36: 0 | AW36: 0 | AX36: 0 | AY36: 0 | AZ36: 0 | BA36: 0 | BB36: 0 | BC36: 0 | BD36: 0 | BE36: 0 | BF36: 0 | BG36: 0 | BH36: 0 | BI36: 0 | BJ36: 0 | BK36: 0 | BL36: 0 | BM36: 0 | BN36: 0 | BO36: 0 | BP36: 0 | BQ36: 0
B38: Cost of additions | C38: £ | D38: =SUM(J38:BQ38) -> 0 | J38: =J33*J$11 -> 0 | K38: =K33*K$11 -> 0 | L38: 0 | M38: 0 | N38: 0 | O38: 0 | P38: 0 | Q38: 0 | R38: 0 | S38: 0 | T38: 0 | U38: 0 | V38: 0 | W38: 0 | X38: 0 | Y38: 0 | Z38: 0 | AA38: 0 | AB38: 0 | AC38: 0 | AD38: 0 | AE38: 0 | AF38: 0 | AG38: 0 | AH38: 0 | AI38: 0 | AJ38: 0 | AK38: 0 | AL38: 0 | AM38: 0 | AN38: 0 | AO38: 0 | AP38: 0 | AQ38: 0 | AR38: 0 | AS38: 0 | AT38: 0 | AU38: 0 | AV38: 0 | AW38: 0 | AX38: 0 | AY38: 0 | AZ38: 0 | BA38: 0 | BB38: 0 | BC38: 0 | BD38: 0 | BE38: 0 | BF38: 0 | BG38: 0 | BH38: 0 | BI38: 0 | BJ38: 0 | BK38: 0 | BL38: 0 | BM38: 0 | BN38: 0 | BO38: 0 | BP38: 0 | BQ38: 0
B39: Carrying balance at end of appraisal | C39: £ | D39: =SUM(J39:BQ39) -> 0 | J39: =-J36*J$12 -> 0 | K39: =-K36*K$12 -> 0 | L39: 0 | M39: 0 | N39: 0 | O39: 0 | P39: 0 | Q39: 0 | R39: 0 | S39: 0 | T39: 0 | U39: 0 | V39: 0 | W39: 0 | X39: 0 | Y39: 0 | Z39: 0 | AA39: 0 | AB39: 0 | AC39: 0 | AD39: 0 | AE39: 0 | AF39: 0 | AG39: 0 | AH39: 0 | AI39: 0 | AJ39: 0 | AK39: 0 | AL39: 0 | AM39: 0 | AN39: 0 | AO39: 0 | AP39: 0 | AQ39: 0 | AR39: 0 | AS39: 0 | AT39: 0 | AU39: 0 | AV39: 0 | AW39: 0 | AX39: 0 | AY39: 0 | AZ39: 0 | BA39: 0 | BB39: 0 | BC39: 0 | BD39: 0 | BE39: 0 | BF39: 0 | BG39: 0 | BH39: 0 | BI39: 0 | BJ39: 0 | BK39: 0 | BL39: 0 | BM39: 0 | BN39: 0 | BO39: 0 | BP39: 0 | BQ39: 0
B41: VAT on Repex
B42: Enter manually? | C42: T/F | E42: =IF(D42="",FALSE,D42) -> FALSE
B43: VAT rate per global assumptions | C43: % | D43: ='INPT; General'!$D$18 -> 0.2
B44: Proportion of VAT that is irrecoverable | C44: % | D44: ='INPT; General'!$F$18 -> 0
B46: Manual VAT rate | C46: %
B47: Manual irrecoverable VAT assumption | C47: %
B49: Selected - irrecoverable VAT | C49: £ | D49: =IF(E42,D46,D43) -> 0.2 | E49: =IF(E42,D47,D44) -> 0 | J49: =J38*$D49*$E49 -> 0 | K49: =K38*$D49*$E49 -> 0 | L49: =L38*$D49*$E49 -> 0 | M49: 0 | N49: 0 | O49: 0 | P49: 0 | Q49: 0 | R49: 0 | S49: 0 | T49: 0 | U49: 0 | V49: 0 | W49: 0 | X49: 0 | Y49: 0 | Z49: 0 | AA49: 0 | AB49: 0 | AC49: 0 | AD49: 0 | AE49: 0 | AF49: 0 | AG49: 0 | AH49: 0 | AI49: 0 | AJ49: 0 | AK49: 0 | AL49: 0 | AM49: 0 | AN49: 0 | AO49: 0 | AP49: 0 | AQ49: 0 | AR49: 0 | AS49: 0 | AT49: 0 | AU49: 0 | AV49: 0 | AW49: 0 | AX49: 0 | AY49: 0 | AZ49: 0 | BA49: 0 | BB49: 0 | BC49: 0 | BD49: 0 | BE49: 0 | BF49: 0 | BG49: 0 | BH49: 0 | BI49: 0 | BJ49: 0 | BK49: 0 | BL49: 0 | BM49: 0 | BN49: 0 | BO49: 0 | BP49: 0 | BQ49: 0
B51: Fuel - variable
B52: Enter manually? | C52: T/F | E52: =IF(D52="",FALSE,D52) -> FALSE
B53: Fuel cost per flat file | C53: £ | D53: =INDEX($E$1244:$E$1250,G18,1) -> 0 | J53: =$D53*J$11*SUMPRODUCT($E55:$E64,J55:J64) -> 0 | K53: =$D53*K$11*SUMPRODUCT($E55:$E64,K55:K64) -> 0 | L53: 0 | M53: 0 | N53: =$D53*N$11*SUMPRODUCT($E55:$E64,N55:N64) -> 0 | O53: 0 | P53: 0 | Q53: 0 | R53: 0 | S53: 0 | T53: 0 | U53: 0 | V53: 0 | W53: 0 | X53: 0 | Y53: 0 | Z53: 0 | AA53: 0 | AB53: 0 | AC53: 0 | AD53: 0 | AE53: 0 | AF53: 0 | AG53: 0 | AH53: 0 | AI53: 0 | AJ53: 0 | AK53: 0 | AL53: 0 | AM53: 0 | AN53: 0 | AO53: 0 | AP53: 0 | AQ53: 0 | AR53: 0 | AS53: 0 | AT53: 0 | AU53: 0 | AV53: 0 | AW53: 0 | AX53: 0 | AY53: 0 | AZ53: 0 | BA53: 0 | BB53: 0 | BC53: 0 | BD53: 0 | BE53: 0 | BF53: 0 | BG53: 0 | BH53: 0 | BI53: 0 | BJ53: 0 | BK53: 0 | BL53: 0 | BM53: 0 | BN53: 0 | BO53: 0 | BP53: 0 | BQ53: 0
A55: =A54+1 -> 1 | B55: ='INPT; General'!$B$25 -> Biofuel | C55: Factor | D55: ='INPT; General'!$G$25 -> 13 | E55: =INDEX($X$1230:$AG$1236,G18,A55) -> 0 | J55: =IF($D55<>0,INDEX('INPT; Fuel Indices'!J$34:J$53,$D55,1),0) -> 1 | K55: =IF($D55<>0,INDEX('INPT; Fuel Indices'!K$34:K$53,$D55,1),0) -> 1 | L55: =IF($D55<>0,INDEX('INPT; Fuel Indices'!L$34:L$53,$D55,1),0) -> 1 | M55: =IF($D55<>0,INDEX('INPT; Fuel Indices'!M$34:M$53,$D55,1),0) -> 1 | N55: =IF($D55<>0,INDEX('INPT; Fuel Indices'!N$34:N$53,$D55,1),0) -> 1 | O55: =IF($D55<>0,INDEX('INPT; Fuel Indices'!O$34:O$53,$D55,1),0) -> 1 | P55: =IF($D55<>0,INDEX('INPT; Fuel Indices'!P$34:P$53,$D55,1),0) -> 1 | Q55: =IF($D55<>0,INDEX('INPT; Fuel Indices'!Q$34:Q$53,$D55,1),0) -> 1 | R55: =IF($D55<>0,INDEX('INPT; Fuel Indices'!R$34:R$53,$D55,1),0) -> 1 | S55: =IF($D55<>0,INDEX('INPT; Fuel Indices'!S$34:S$53,$D55,1),0) -> 1 | T55: =IF($D55<>0,INDEX('INPT; Fuel Indices'!T$34:T$53,$D55,1),0) -> 1 | U55: =IF($D55<>0,INDEX('INPT; Fuel Indices'!U$34:U$53,$D55,1),0) -> 1 | V55: =IF($D55<>0,INDEX('INPT; Fuel Indices'!V$34:V$53,$D55,1),0) -> 1 | W55: =IF($D55<>0,INDEX('INPT; Fuel Indices'!W$34:W$53,$D55,1),0) -> 1 | X55: =IF($D55<>0,INDEX('INPT; Fuel Indices'!X$34:X$53,$D55,1),0) -> 1 | Y55: =IF($D55<>0,INDEX('INPT; Fuel Indices'!Y$34:Y$53,$D55,1),0) -> 1 | Z55: =IF($D55<>0,INDEX('INPT; Fuel Indices'!Z$34:Z$53,$D55,1),0) -> 1 | AA55: =IF($D55<>0,INDEX('INPT; Fuel Indices'!AA$34:AA$53,$D55,1),0) -> 1 | AB55: =IF($D55<>0,INDEX('INPT; Fuel Indices'!AB$34:AB$53,$D55,1),0) -> 1 | AC55: =IF($D55<>0,INDEX('INPT; Fuel Indices'!AC$34:AC$53,$D55,1),0) -> 1 | AD55: =IF($D55<>0,INDEX('INPT; Fuel Indices'!AD$34:AD$53,$D55,1),0) -> 1 | AE55: =IF($D55<>0,INDEX('INPT; Fuel Indices'!AE$34:AE$53,$D55,1),0) -> 1 | AF55: =IF($D55<>0,INDEX('INPT; Fuel Indices'!AF$34:AF$53,$D55,1),0) -> 1 | AG55: =IF($D55<>0,INDEX('INPT; Fuel Indices'!AG$34:AG$53,$D55,1),0) -> 1 | AH55: =IF($D55<>0,INDEX('INPT; Fuel Indices'!AH$34:AH$53,$D55,1),0) -> 1 | AI55: =IF($D55<>0,INDEX('INPT; Fuel Indices'!AI$34:AI$53,$D55,1),0) -> 1 | AJ55: =IF($D55<>0,INDEX('INPT; Fuel Indices'!AJ$34:AJ$53,$D55,1),0) -> 1 | AK55: =IF($D55<>0,INDEX('INPT; Fuel Indices'!AK$34:AK$53,$D55,1),0) -> 1 | AL55: =IF($D55<>0,INDEX('INPT; Fuel Indices'!AL$34:AL$53,$D55,1),0) -> 1 | AM55: =IF($D55<>0,INDEX('INPT; Fuel Indices'!AM$34:AM$53,$D55,1),0) -> 1 | AN55: =IF($D55<>0,INDEX('INPT; Fuel Indices'!AN$34:AN$53,$D55,1),0) -> 1 | AO55: =IF($D55<>0,INDEX('INPT; Fuel Indices'!AO$34:AO$53,$D55,1),0) -> 1 | AP55: =IF($D55<>0,INDEX('INPT; Fuel Indices'!AP$34:AP$53,$D55,1),0) -> 1 | AQ55: =IF($D55<>0,INDEX('INPT; Fuel Indices'!AQ$34:AQ$53,$D55,1),0) -> 1 | AR55: =IF($D55<>0,INDEX('INPT; Fuel Indices'!AR$34:AR$53,$D55,1),0) -> 1 | AS55: =IF($D55<>0,INDEX('INPT; Fuel Indices'!AS$34:AS$53,$D55,1),0) -> 1 | AT55: =IF($D55<>0,INDEX('INPT; Fuel Indices'!AT$34:AT$53,$D55,1),0) -> 1 | AU55: =IF($D55<>0,INDEX('INPT; Fuel Indices'!AU$34:AU$53,$D55,1),0) -> 1 | AV55: =IF($D55<>0,INDEX('INPT; Fuel Indices'!AV$34:AV$53,$D55,1),0) -> 1 | AW55: =IF($D55<>0,INDEX('INPT; Fuel Indices'!AW$34:AW$53,$D55,1),0) -> 1 | AX55: =IF($D55<>0,INDEX('INPT; Fuel Indices'!AX$34:AX$53,$D55,1),0) -> 1 | AY55: =IF($D55<>0,INDEX('INPT; Fuel Indices'!AY$34:AY$53,$D55,1),0) -> 1 | AZ55: =IF($D55<>0,INDEX('INPT; Fuel Indices'!AZ$34:AZ$53,$D55,1),0) -> 1 | BA55: =IF($D55<>0,INDEX('INPT; Fuel Indices'!BA$34:BA$53,$D55,1),0) -> 1 | BB55: =IF($D55<>0,INDEX('INPT; Fuel Indices'!BB$34:BB$53,$D55,1),0) -> 1 | BC55: =IF($D55<>0,INDEX('INPT; Fuel Indices'!BC$34:BC$53,$D55,1),0) -> 1 | BD55: =IF($D55<>0,INDEX('INPT; Fuel Indices'!BD$34:BD$53,$D55,1),0) -> 1 | BE55: =IF($D55<>0,INDEX('INPT; Fuel Indices'!BE$34:BE$53,$D55,1),0) -> 1 | BF55: =IF($D55<>0,INDEX('INPT; Fuel Indices'!BF$34:BF$53,$D55,1),0) -> 1 | BG55: =IF($D55<>0,INDEX('INPT; Fuel Indices'!BG$34:BG$53,$D55,1),0) -> 1 | BH55: =IF($D55<>0,INDEX('INPT; Fuel Indices'!BH$34:BH$53,$D55,1),0) -> 1 | BI55: =IF($D55<>0,INDEX('INPT; Fuel Indices'!BI$34:BI$53,$D55,1),0) -> 1 | BJ55: =IF($D55<>0,INDEX('INPT; Fuel Indices'!BJ$34:BJ$53,$D55,1),0) -> 1 | BK55: =IF($D55<>0,INDEX('INPT; Fuel Indices'!BK$34:BK$53,$D55,1),0) -> 1 | BL55: =IF($D55<>0,INDEX('INPT; Fuel Indices'!BL$34:BL$53,$D55,1),0) -> 1 | BM55: =IF($D55<>0,INDEX('INPT; Fuel Indices'!BM$34:BM$53,$D55,1),0) -> 1 | BN55: =IF($D55<>0,INDEX('INPT; Fuel Indices'!BN$34:BN$53,$D55,1),0) -> 1 | BO55: =IF($D55<>0,INDEX('INPT; Fuel Indices'!BO$34:BO$53,$D55,1),0) -> 1 | BP55: =IF($D55<>0,INDEX('INPT; Fuel Indices'!BP$34:BP$53,$D55,1),0) -> 1 | BQ55: =IF($D55<>0,INDEX('INPT; Fuel Indices'!BQ$34:BQ$53,$D55,1),0) -> 1
A56: =A55+1 -> 2 | B56: ='INPT; General'!$B$26 -> Biomass | C56: Factor | D56: ='INPT; General'!$G$26 -> 0 | E56: =INDEX($X$1230:$AG$1236,G18,A56) -> 0 | J56: =IF($D56<>0,INDEX('INPT; Fuel Indices'!J$34:J$53,$D56,1),0) -> 0 | K56: =IF($D56<>0,INDEX('INPT; Fuel Indices'!K$34:K$53,$D56,1),0) -> 0 | L56: =IF($D56<>0,INDEX('INPT; Fuel Indices'!L$34:L$53,$D56,1),0) -> 0 | M56: =IF($D56<>0,INDEX('INPT; Fuel Indices'!M$34:M$53,$D56,1),0) -> 0 | N56: =IF($D56<>0,INDEX('INPT; Fuel Indices'!N$34:N$53,$D56,1),0) -> 0 | O56: =IF($D56<>0,INDEX('INPT; Fuel Indices'!O$34:O$53,$D56,1),0) -> 0 | P56: =IF($D56<>0,INDEX('INPT; Fuel Indices'!P$34:P$53,$D56,1),0) -> 0 | Q56: =IF($D56<>0,INDEX('INPT; Fuel Indices'!Q$34:Q$53,$D56,1),0) -> 0 | R56: =IF($D56<>0,INDEX('INPT; Fuel Indices'!R$34:R$53,$D56,1),0) -> 0 | S56: =IF($D56<>0,INDEX('INPT; Fuel Indices'!S$34:S$53,$D56,1),0) -> 0 | T56: =IF($D56<>0,INDEX('INPT; Fuel Indices'!T$34:T$53,$D56,1),0) -> 0 | U56: =IF($D56<>0,INDEX('INPT; Fuel Indices'!U$34:U$53,$D56,1),0) -> 0 | V56: =IF($D56<>0,INDEX('INPT; Fuel Indices'!V$34:V$53,$D56,1),0) -> 0 | W56: =IF($D56<>0,INDEX('INPT; Fuel Indices'!W$34:W$53,$D56,1),0) -> 0 | X56: =IF($D56<>0,INDEX('INPT; Fuel Indices'!X$34:X$53,$D56,1),0) -> 0 | Y56: =IF($D56<>0,INDEX('INPT; Fuel Indices'!Y$34:Y$53,$D56,1),0) -> 0 | Z56: =IF($D56<>0,INDEX('INPT; Fuel Indices'!Z$34:Z$53,$D56,1),0) -> 0 | AA56: =IF($D56<>0,INDEX('INPT; Fuel Indices'!AA$34:AA$53,$D56,1),0) -> 0 | AB56: =IF($D56<>0,INDEX('INPT; Fuel Indices'!AB$34:AB$53,$D56,1),0) -> 0 | AC56: =IF($D56<>0,INDEX('INPT; Fuel Indices'!AC$34:AC$53,$D56,1),0) -> 0 | AD56: =IF($D56<>0,INDEX('INPT; Fuel Indices'!AD$34:AD$53,$D56,1),0) -> 0 | AE56: =IF($D56<>0,INDEX('INPT; Fuel Indices'!AE$34:AE$53,$D56,1),0) -> 0 | AF56: =IF($D56<>0,INDEX('INPT; Fuel Indices'!AF$34:AF$53,$D56,1),0) -> 0 | AG56: =IF($D56<>0,INDEX('INPT; Fuel Indices'!AG$34:AG$53,$D56,1),0) -> 0 | AH56: =IF($D56<>0,INDEX('INPT; Fuel Indices'!AH$34:AH$53,$D56,1),0) -> 0 | AI56: =IF($D56<>0,INDEX('INPT; Fuel Indices'!AI$34:AI$53,$D56,1),0) -> 0 | AJ56: =IF($D56<>0,INDEX('INPT; Fuel Indices'!AJ$34:AJ$53,$D56,1),0) -> 0 | AK56: =IF($D56<>0,INDEX('INPT; Fuel Indices'!AK$34:AK$53,$D56,1),0) -> 0 | AL56: =IF($D56<>0,INDEX('INPT; Fuel Indices'!AL$34:AL$53,$D56,1),0) -> 0 | AM56: =IF($D56<>0,INDEX('INPT; Fuel Indices'!AM$34:AM$53,$D56,1),0) -> 0 | AN56: =IF($D56<>0,INDEX('INPT; Fuel Indices'!AN$34:AN$53,$D56,1),0) -> 0 | AO56: =IF($D56<>0,INDEX('INPT; Fuel Indices'!AO$34:AO$53,$D56,1),0) -> 0 | AP56: =IF($D56<>0,INDEX('INPT; Fuel Indices'!AP$34:AP$53,$D56,1),0) -> 0 | AQ56: =IF($D56<>0,INDEX('INPT; Fuel Indices'!AQ$34:AQ$53,$D56,1),0) -> 0 | AR56: =IF($D56<>0,INDEX('INPT; Fuel Indices'!AR$34:AR$53,$D56,1),0) -> 0 | AS56: =IF($D56<>0,INDEX('INPT; Fuel Indices'!AS$34:AS$53,$D56,1),0) -> 0 | AT56: =IF($D56<>0,INDEX('INPT; Fuel Indices'!AT$34:AT$53,$D56,1),0) -> 0 | AU56: =IF($D56<>0,INDEX('INPT; Fuel Indices'!AU$34:AU$53,$D56,1),0) -> 0 | AV56: =IF($D56<>0,INDEX('INPT; Fuel Indices'!AV$34:AV$53,$D56,1),0) -> 0 | AW56: =IF($D56<>0,INDEX('INPT; Fuel Indices'!AW$34:AW$53,$D56,1),0) -> 0 | AX56: =IF($D56<>0,INDEX('INPT; Fuel Indices'!AX$34:AX$53,$D56,1),0) -> 0 | AY56: =IF($D56<>0,INDEX('INPT; Fuel Indices'!AY$34:AY$53,$D56,1),0) -> 0 | AZ56: =IF($D56<>0,INDEX('INPT; Fuel Indices'!AZ$34:AZ$53,$D56,1),0) -> 0 | BA56: =IF($D56<>0,INDEX('INPT; Fuel Indices'!BA$34:BA$53,$D56,1),0) -> 0 | BB56: =IF($D56<>0,INDEX('INPT; Fuel Indices'!BB$34:BB$53,$D56,1),0) -> 0 | BC56: =IF($D56<>0,INDEX('INPT; Fuel Indices'!BC$34:BC$53,$D56,1),0) -> 0 | BD56: =IF($D56<>0,INDEX('INPT; Fuel Indices'!BD$34:BD$53,$D56,1),0) -> 0 | BE56: =IF($D56<>0,INDEX('INPT; Fuel Indices'!BE$34:BE$53,$D56,1),0) -> 0 | BF56: =IF($D56<>0,INDEX('INPT; Fuel Indices'!BF$34:BF$53,$D56,1),0) -> 0 | BG56: =IF($D56<>0,INDEX('INPT; Fuel Indices'!BG$34:BG$53,$D56,1),0) -> 0 | BH56: =IF($D56<>0,INDEX('INPT; Fuel Indices'!BH$34:BH$53,$D56,1),0) -> 0 | BI56: =IF($D56<>0,INDEX('INPT; Fuel Indices'!BI$34:BI$53,$D56,1),0) -> 0 | BJ56: =IF($D56<>0,INDEX('INPT; Fuel Indices'!BJ$34:BJ$53,$D56,1),0) -> 0 | BK56: =IF($D56<>0,INDEX('INPT; Fuel Indices'!BK$34:BK$53,$D56,1),0) -> 0 | BL56: =IF($D56<>0,INDEX('INPT; Fuel Indices'!BL$34:BL$53,$D56,1),0) -> 0 | BM56: =IF($D56<>0,INDEX('INPT; Fuel Indices'!BM$34:BM$53,$D56,1),0) -> 0 | BN56: =IF($D56<>0,INDEX('INPT; Fuel Indices'!BN$34:BN$53,$D56,1),0) -> 0 | BO56: =IF($D56<>0,INDEX('INPT; Fuel Indices'!BO$34:BO$53,$D56,1),0) -> 0 | BP56: =IF($D56<>0,INDEX('INPT; Fuel Indices'!BP$34:BP$53,$D56,1),0) -> 0 | BQ56: =IF($D56<>0,INDEX('INPT; Fuel Indices'!BQ$34:BQ$53,$D56,1),0) -> 0
A57: 3 | B57: ='INPT; General'!$B$27 -> Coal | C57: Factor | D57: ='INPT; General'!$G$27 -> 0 | E57: =INDEX($X$1230:$AG$1236,G18,A57) -> 0 | J57: =IF($D57<>0,INDEX('INPT; Fuel Indices'!J$34:J$53,$D57,1),0) -> 0 | K57: =IF($D57<>0,INDEX('INPT; Fuel Indices'!K$34:K$53,$D57,1),0) -> 0 | L57: =IF($D57<>0,INDEX('INPT; Fuel Indices'!L$34:L$53,$D57,1),0) -> 0 | M57: =IF($D57<>0,INDEX('INPT; Fuel Indices'!M$34:M$53,$D57,1),0) -> 0 | N57: =IF($D57<>0,INDEX('INPT; Fuel Indices'!N$34:N$53,$D57,1),0) -> 0 | O57: =IF($D57<>0,INDEX('INPT; Fuel Indices'!O$34:O$53,$D57,1),0) -> 0 | P57: =IF($D57<>0,INDEX('INPT; Fuel Indices'!P$34:P$53,$D57,1),0) -> 0 | Q57: =IF($D57<>0,INDEX('INPT; Fuel Indices'!Q$34:Q$53,$D57,1),0) -> 0 | R57: =IF($D57<>0,INDEX('INPT; Fuel Indices'!R$34:R$53,$D57,1),0) -> 0 | S57: =IF($D57<>0,INDEX('INPT; Fuel Indices'!S$34:S$53,$D57,1),0) -> 0 | T57: =IF($D57<>0,INDEX('INPT; Fuel Indices'!T$34:T$53,$D57,1),0) -> 0 | U57: =IF($D57<>0,INDEX('INPT; Fuel Indices'!U$34:U$53,$D57,1),0) -> 0 | V57: =IF($D57<>0,INDEX('INPT; Fuel Indices'!V$34:V$53,$D57,1),0) -> 0 | W57: =IF($D57<>0,INDEX('INPT; Fuel Indices'!W$34:W$53,$D57,1),0) -> 0 | X57: =IF($D57<>0,INDEX('INPT; Fuel Indices'!X$34:X$53,$D57,1),0) -> 0 | Y57: =IF($D57<>0,INDEX('INPT; Fuel Indices'!Y$34:Y$53,$D57,1),0) -> 0 | Z57: =IF($D57<>0,INDEX('INPT; Fuel Indices'!Z$34:Z$53,$D57,1),0) -> 0 | AA57: =IF($D57<>0,INDEX('INPT; Fuel Indices'!AA$34:AA$53,$D57,1),0) -> 0 | AB57: =IF($D57<>0,INDEX('INPT; Fuel Indices'!AB$34:AB$53,$D57,1),0) -> 0 | AC57: =IF($D57<>0,INDEX('INPT; Fuel Indices'!AC$34:AC$53,$D57,1),0) -> 0 | AD57: =IF($D57<>0,INDEX('INPT; Fuel Indices'!AD$34:AD$53,$D57,1),0) -> 0 | AE57: =IF($D57<>0,INDEX('INPT; Fuel Indices'!AE$34:AE$53,$D57,1),0) -> 0 | AF57: =IF($D57<>0,INDEX('INPT; Fuel Indices'!AF$34:AF$53,$D57,1),0) -> 0 | AG57: =IF($D57<>0,INDEX('INPT; Fuel Indices'!AG$34:AG$53,$D57,1),0) -> 0 | AH57: =IF($D57<>0,INDEX('INPT; Fuel Indices'!AH$34:AH$53,$D57,1),0) -> 0 | AI57: =IF($D57<>0,INDEX('INPT; Fuel Indices'!AI$34:AI$53,$D57,1),0) -> 0 | AJ57: =IF($D57<>0,INDEX('INPT; Fuel Indices'!AJ$34:AJ$53,$D57,1),0) -> 0 | AK57: =IF($D57<>0,INDEX('INPT; Fuel Indices'!AK$34:AK$53,$D57,1),0) -> 0 | AL57: =IF($D57<>0,INDEX('INPT; Fuel Indices'!AL$34:AL$53,$D57,1),0) -> 0 | AM57: =IF($D57<>0,INDEX('INPT; Fuel Indices'!AM$34:AM$53,$D57,1),0) -> 0 | AN57: =IF($D57<>0,INDEX('INPT; Fuel Indices'!AN$34:AN$53,$D57,1),0) -> 0 | AO57: =IF($D57<>0,INDEX('INPT; Fuel Indices'!AO$34:AO$53,$D57,1),0) -> 0 | AP57: =IF($D57<>0,INDEX('INPT; Fuel Indices'!AP$34:AP$53,$D57,1),0) -> 0 | AQ57: =IF($D57<>0,INDEX('INPT; Fuel Indices'!AQ$34:AQ$53,$D57,1),0) -> 0 | AR57: =IF($D57<>0,INDEX('INPT; Fuel Indices'!AR$34:AR$53,$D57,1),0) -> 0 | AS57: =IF($D57<>0,INDEX('INPT; Fuel Indices'!AS$34:AS$53,$D57,1),0) -> 0 | AT57: =IF($D57<>0,INDEX('INPT; Fuel Indices'!AT$34:AT$53,$D57,1),0) -> 0 | AU57: =IF($D57<>0,INDEX('INPT; Fuel Indices'!AU$34:AU$53,$D57,1),0) -> 0 | AV57: =IF($D57<>0,INDEX('INPT; Fuel Indices'!AV$34:AV$53,$D57,1),0) -> 0 | AW57: =IF($D57<>0,INDEX('INPT; Fuel Indices'!AW$34:AW$53,$D57,1),0) -> 0 | AX57: =IF($D57<>0,INDEX('INPT; Fuel Indices'!AX$34:AX$53,$D57,1),0) -> 0 | AY57: =IF($D57<>0,INDEX('INPT; Fuel Indices'!AY$34:AY$53,$D57,1),0) -> 0 | AZ57: =IF($D57<>0,INDEX('INPT; Fuel Indices'!AZ$34:AZ$53,$D57,1),0) -> 0 | BA57: =IF($D57<>0,INDEX('INPT; Fuel Indices'!BA$34:BA$53,$D57,1),0) -> 0 | BB57: =IF($D57<>0,INDEX('INPT; Fuel Indices'!BB$34:BB$53,$D57,1),0) -> 0 | BC57: =IF($D57<>0,INDEX('INPT; Fuel Indices'!BC$34:BC$53,$D57,1),0) -> 0 | BD57: =IF($D57<>0,INDEX('INPT; Fuel Indices'!BD$34:BD$53,$D57,1),0) -> 0 | BE57: =IF($D57<>0,INDEX('INPT; Fuel Indices'!BE$34:BE$53,$D57,1),0) -> 0 | BF57: =IF($D57<>0,INDEX('INPT; Fuel Indices'!BF$34:BF$53,$D57,1),0) -> 0 | BG57: =IF($D57<>0,INDEX('INPT; Fuel Indices'!BG$34:BG$53,$D57,1),0) -> 0 | BH57: =IF($D57<>0,INDEX('INPT; Fuel Indices'!BH$34:BH$53,$D57,1),0) -> 0 | BI57: =IF($D57<>0,INDEX('INPT; Fuel Indices'!BI$34:BI$53,$D57,1),0) -> 0 | BJ57: =IF($D57<>0,INDEX('INPT; Fuel Indices'!BJ$34:BJ$53,$D57,1),0) -> 0 | BK57: =IF($D57<>0,INDEX('INPT; Fuel Indices'!BK$34:BK$53,$D57,1),0) -> 0 | BL57: =IF($D57<>0,INDEX('INPT; Fuel Indices'!BL$34:BL$53,$D57,1),0) -> 0 | BM57: =IF($D57<>0,INDEX('INPT; Fuel Indices'!BM$34:BM$53,$D57,1),0) -> 0 | BN57: =IF($D57<>0,INDEX('INPT; Fuel Indices'!BN$34:BN$53,$D57,1),0) -> 0 | BO57: =IF($D57<>0,INDEX('INPT; Fuel Indices'!BO$34:BO$53,$D57,1),0) -> 0 | BP57: =IF($D57<>0,INDEX('INPT; Fuel Indices'!BP$34:BP$53,$D57,1),0) -> 0 | BQ57: =IF($D57<>0,INDEX('INPT; Fuel Indices'!BQ$34:BQ$53,$D57,1),0) -> 0
A58: 4 | B58: ='INPT; General'!$B$28 -> Electricity | C58: Factor | D58: ='INPT; General'!$G$28 -> 3 | E58: =INDEX($X$1230:$AG$1236,G18,A58) -> 0 | J58: =IF($D58<>0,INDEX('INPT; Fuel Indices'!J$34:J$53,$D58,1),0) -> 1 | K58: =IF($D58<>0,INDEX('INPT; Fuel Indices'!K$34:K$53,$D58,1),0) -> 1.005295709 | L58: =IF($D58<>0,INDEX('INPT; Fuel Indices'!L$34:L$53,$D58,1),0) -> 1.013972624 | M58: =IF($D58<>0,INDEX('INPT; Fuel Indices'!M$34:M$53,$D58,1),0) -> 1.024278802 | N58: =IF($D58<>0,INDEX('INPT; Fuel Indices'!N$34:N$53,$D58,1),0) -> 1.034326001 | O58: =IF($D58<>0,INDEX('INPT; Fuel Indices'!O$34:O$53,$D58,1),0) -> 1.041875273 | P58: =IF($D58<>0,INDEX('INPT; Fuel Indices'!P$34:P$53,$D58,1),0) -> 1.06162725 | Q58: =IF($D58<>0,INDEX('INPT; Fuel Indices'!Q$34:Q$53,$D58,1),0) -> 1.09101751 | R58: =IF($D58<>0,INDEX('INPT; Fuel Indices'!R$34:R$53,$D58,1),0) -> 1.050519779 | S58: =IF($D58<>0,INDEX('INPT; Fuel Indices'!S$34:S$53,$D58,1),0) -> 1.037018805 | T58: =IF($D58<>0,INDEX('INPT; Fuel Indices'!T$34:T$53,$D58,1),0) -> 1.062870581 | U58: =IF($D58<>0,INDEX('INPT; Fuel Indices'!U$34:U$53,$D58,1),0) -> 1.058292755 | V58: =IF($D58<>0,INDEX('INPT; Fuel Indices'!V$34:V$53,$D58,1),0) -> 1.058292755 | W58: =IF($D58<>0,INDEX('INPT; Fuel Indices'!W$34:W$53,$D58,1),0) -> 1.058292755 | X58: =IF($D58<>0,INDEX('INPT; Fuel Indices'!X$34:X$53,$D58,1),0) -> 1.058292755 | Y58: =IF($D58<>0,INDEX('INPT; Fuel Indices'!Y$34:Y$53,$D58,1),0) -> 1.058292755 | Z58: =IF($D58<>0,INDEX('INPT; Fuel Indices'!Z$34:Z$53,$D58,1),0) -> 1.058292755 | AA58: =IF($D58<>0,INDEX('INPT; Fuel Indices'!AA$34:AA$53,$D58,1),0) -> 1.058292755 | AB58: =IF($D58<>0,INDEX('INPT; Fuel Indices'!AB$34:AB$53,$D58,1),0) -> 1.058292755 | AC58: =IF($D58<>0,INDEX('INPT; Fuel Indices'!AC$34:AC$53,$D58,1),0) -> 1.058292755 | AD58: =IF($D58<>0,INDEX('INPT; Fuel Indices'!AD$34:AD$53,$D58,1),0) -> 1.058292755 | AE58: =IF($D58<>0,INDEX('INPT; Fuel Indices'!AE$34:AE$53,$D58,1),0) -> 1.058292755 | AF58: =IF($D58<>0,INDEX('INPT; Fuel Indices'!AF$34:AF$53,$D58,1),0) -> 1.058292755 | AG58: =IF($D58<>0,INDEX('INPT; Fuel Indices'!AG$34:AG$53,$D58,1),0) -> 1.058292755 | AH58: =IF($D58<>0,INDEX('INPT; Fuel Indices'!AH$34:AH$53,$D58,1),0) -> 1.058292755 | AI58: =IF($D58<>0,INDEX('INPT; Fuel Indices'!AI$34:AI$53,$D58,1),0) -> 1.058292755 | AJ58: =IF($D58<>0,INDEX('INPT; Fuel Indices'!AJ$34:AJ$53,$D58,1),0) -> 1.058292755 | AK58: =IF($D58<>0,INDEX('INPT; Fuel Indices'!AK$34:AK$53,$D58,1),0) -> 1.058292755 | AL58: =IF($D58<>0,INDEX('INPT; Fuel Indices'!AL$34:AL$53,$D58,1),0) -> 1.058292755 | AM58: =IF($D58<>0,INDEX('INPT; Fuel Indices'!AM$34:AM$53,$D58,1),0) -> 1.058292755 | AN58: =IF($D58<>0,INDEX('INPT; Fuel Indices'!AN$34:AN$53,$D58,1),0) -> 1.058292755 | AO58: =IF($D58<>0,INDEX('INPT; Fuel Indices'!AO$34:AO$53,$D58,1),0) -> 1.058292755 | AP58: =IF($D58<>0,INDEX('INPT; Fuel Indices'!AP$34:AP$53,$D58,1),0) -> 1.058292755 | AQ58: =IF($D58<>0,INDEX('INPT; Fuel Indices'!AQ$34:AQ$53,$D58,1),0) -> 1.058292755 | AR58: =IF($D58<>0,INDEX('INPT; Fuel Indices'!AR$34:AR$53,$D58,1),0) -> 1.058292755 | AS58: =IF($D58<>0,INDEX('INPT; Fuel Indices'!AS$34:AS$53,$D58,1),0) -> 1.058292755 | AT58: =IF($D58<>0,INDEX('INPT; Fuel Indices'!AT$34:AT$53,$D58,1),0) -> 1.058292755 | AU58: =IF($D58<>0,INDEX('INPT; Fuel Indices'!AU$34:AU$53,$D58,1),0) -> 1.058292755 | AV58: =IF($D58<>0,INDEX('INPT; Fuel Indices'!AV$34:AV$53,$D58,1),0) -> 1.058292755 | AW58: =IF($D58<>0,INDEX('INPT; Fuel Indices'!AW$34:AW$53,$D58,1),0) -> 1.058292755 | AX58: =IF($D58<>0,INDEX('INPT; Fuel Indices'!AX$34:AX$53,$D58,1),0) -> 1.058292755 | AY58: =IF($D58<>0,INDEX('INPT; Fuel Indices'!AY$34:AY$53,$D58,1),0) -> 1.058292755 | AZ58: =IF($D58<>0,INDEX('INPT; Fuel Indices'!AZ$34:AZ$53,$D58,1),0) -> 1.058292755 | BA58: =IF($D58<>0,INDEX('INPT; Fuel Indices'!BA$34:BA$53,$D58,1),0) -> 1.058292755 | BB58: =IF($D58<>0,INDEX('INPT; Fuel Indices'!BB$34:BB$53,$D58,1),0) -> 1.058292755 | BC58: =IF($D58<>0,INDEX('INPT; Fuel Indices'!BC$34:BC$53,$D58,1),0) -> 1.058292755 | BD58: =IF($D58<>0,INDEX('INPT; Fuel Indices'!BD$34:BD$53,$D58,1),0) -> 1.058292755 | BE58: =IF($D58<>0,INDEX('INPT; Fuel Indices'!BE$34:BE$53,$D58,1),0) -> 1.058292755 | BF58: =IF($D58<>0,INDEX('INPT; Fuel Indices'!BF$34:BF$53,$D58,1),0) -> 1.058292755 | BG58: =IF($D58<>0,INDEX('INPT; Fuel Indices'!BG$34:BG$53,$D58,1),0) -> 1.058292755 | BH58: =IF($D58<>0,INDEX('INPT; Fuel Indices'!BH$34:BH$53,$D58,1),0) -> 1.058292755 | BI58: =IF($D58<>0,INDEX('INPT; Fuel Indices'!BI$34:BI$53,$D58,1),0) -> 1.058292755 | BJ58: =IF($D58<>0,INDEX('INPT; Fuel Indices'!BJ$34:BJ$53,$D58,1),0) -> 1.058292755 | BK58: =IF($D58<>0,INDEX('INPT; Fuel Indices'!BK$34:BK$53,$D58,1),0) -> 1.058292755 | BL58: =IF($D58<>0,INDEX('INPT; Fuel Indices'!BL$34:BL$53,$D58,1),0) -> 1.058292755 | BM58: =IF($D58<>0,INDEX('INPT; Fuel Indices'!BM$34:BM$53,$D58,1),0) -> 1.058292755 | BN58: =IF($D58<>0,INDEX('INPT; Fuel Indices'!BN$34:BN$53,$D58,1),0) -> 1.058292755 | BO58: =IF($D58<>0,INDEX('INPT; Fuel Indices'!BO$34:BO$53,$D58,1),0) -> 1.058292755 | BP58: =IF($D58<>0,INDEX('INPT; Fuel Indices'!BP$34:BP$53,$D58,1),0) -> 1.058292755 | BQ58: =IF($D58<>0,INDEX('INPT; Fuel Indices'!BQ$34:BQ$53,$D58,1),0) -> 1.058292755
A59: 5 | B59: ='INPT; General'!$B$29 -> Gas | C59: Factor | D59: ='INPT; General'!$G$29 -> 6 | E59: =INDEX($X$1230:$AG$1236,G18,A59) -> 0 | J59: =IF($D59<>0,INDEX('INPT; Fuel Indices'!J$34:J$53,$D59,1),0) -> 1 | K59: =IF($D59<>0,INDEX('INPT; Fuel Indices'!K$34:K$53,$D59,1),0) -> 0.9673841276 | L59: =IF($D59<>0,INDEX('INPT; Fuel Indices'!L$34:L$53,$D59,1),0) -> 0.9793374042 | M59: =IF($D59<>0,INDEX('INPT; Fuel Indices'!M$34:M$53,$D59,1),0) -> 1.035220284 | N59: =IF($D59<>0,INDEX('INPT; Fuel Indices'!N$34:N$53,$D59,1),0) -> 1.076722459 | O59: =IF($D59<>0,INDEX('INPT; Fuel Indices'!O$34:O$53,$D59,1),0) -> 1.131620617 | P59: =IF($D59<>0,INDEX('INPT; Fuel Indices'!P$34:P$53,$D59,1),0) -> 1.186850619 | Q59: =IF($D59<>0,INDEX('INPT; Fuel Indices'!Q$34:Q$53,$D59,1),0) -> 1.202049094 | R59: =IF($D59<>0,INDEX('INPT; Fuel Indices'!R$34:R$53,$D59,1),0) -> 1.23043977 | S59: =IF($D59<>0,INDEX('INPT; Fuel Indices'!S$34:S$53,$D59,1),0) -> 1.245752916 | T59: =IF($D59<>0,INDEX('INPT; Fuel Indices'!T$34:T$53,$D59,1),0) -> 1.274137434 | U59: =IF($D59<>0,INDEX('INPT; Fuel Indices'!U$34:U$53,$D59,1),0) -> 1.289363761 | V59: =IF($D59<>0,INDEX('INPT; Fuel Indices'!V$34:V$53,$D59,1),0) -> 1.289363761 | W59: =IF($D59<>0,INDEX('INPT; Fuel Indices'!W$34:W$53,$D59,1),0) -> 1.289363761 | X59: =IF($D59<>0,INDEX('INPT; Fuel Indices'!X$34:X$53,$D59,1),0) -> 1.289363761 | Y59: =IF($D59<>0,INDEX('INPT; Fuel Indices'!Y$34:Y$53,$D59,1),0) -> 1.289363761 | Z59: =IF($D59<>0,INDEX('INPT; Fuel Indices'!Z$34:Z$53,$D59,1),0) -> 1.289363761 | AA59: =IF($D59<>0,INDEX('INPT; Fuel Indices'!AA$34:AA$53,$D59,1),0) -> 1.289363761 | AB59: =IF($D59<>0,INDEX('INPT; Fuel Indices'!AB$34:AB$53,$D59,1),0) -> 1.289363761 | AC59: =IF($D59<>0,INDEX('INPT; Fuel Indices'!AC$34:AC$53,$D59,1),0) -> 1.289363761 | AD59: =IF($D59<>0,INDEX('INPT; Fuel Indices'!AD$34:AD$53,$D59,1),0) -> 1.289363761 | AE59: =IF($D59<>0,INDEX('INPT; Fuel Indices'!AE$34:AE$53,$D59,1),0) -> 1.289363761 | AF59: =IF($D59<>0,INDEX('INPT; Fuel Indices'!AF$34:AF$53,$D59,1),0) -> 1.289363761 | AG59: =IF($D59<>0,INDEX('INPT; Fuel Indices'!AG$34:AG$53,$D59,1),0) -> 1.289363761 | AH59: =IF($D59<>0,INDEX('INPT; Fuel Indices'!AH$34:AH$53,$D59,1),0) -> 1.289363761 | AI59: =IF($D59<>0,INDEX('INPT; Fuel Indices'!AI$34:AI$53,$D59,1),0) -> 1.289363761 | AJ59: =IF($D59<>0,INDEX('INPT; Fuel Indices'!AJ$34:AJ$53,$D59,1),0) -> 1.289363761 | AK59: =IF($D59<>0,INDEX('INPT; Fuel Indices'!AK$34:AK$53,$D59,1),0) -> 1.289363761 | AL59: =IF($D59<>0,INDEX('INPT; Fuel Indices'!AL$34:AL$53,$D59,1),0) -> 1.289363761 | AM59: =IF($D59<>0,INDEX('INPT; Fuel Indices'!AM$34:AM$53,$D59,1),0) -> 1.289363761 | AN59: =IF($D59<>0,INDEX('INPT; Fuel Indices'!AN$34:AN$53,$D59,1),0) -> 1.289363761 | AO59: =IF($D59<>0,INDEX('INPT; Fuel Indices'!AO$34:AO$53,$D59,1),0) -> 1.289363761 | AP59: =IF($D59<>0,INDEX('INPT; Fuel Indices'!AP$34:AP$53,$D59,1),0) -> 1.289363761 | AQ59: =IF($D59<>0,INDEX('INPT; Fuel Indices'!AQ$34:AQ$53,$D59,1),0) -> 1.289363761 | AR59: =IF($D59<>0,INDEX('INPT; Fuel Indices'!AR$34:AR$53,$D59,1),0) -> 1.289363761 | AS59: =IF($D59<>0,INDEX('INPT; Fuel Indices'!AS$34:AS$53,$D59,1),0) -> 1.289363761 | AT59: =IF($D59<>0,INDEX('INPT; Fuel Indices'!AT$34:AT$53,$D59,1),0) -> 1.289363761 | AU59: =IF($D59<>0,INDEX('INPT; Fuel Indices'!AU$34:AU$53,$D59,1),0) -> 1.289363761 | AV59: =IF($D59<>0,INDEX('INPT; Fuel Indices'!AV$34:AV$53,$D59,1),0) -> 1.289363761 | AW59: =IF($D59<>0,INDEX('INPT; Fuel Indices'!AW$34:AW$53,$D59,1),0) -> 1.289363761 | AX59: =IF($D59<>0,INDEX('INPT; Fuel Indices'!AX$34:AX$53,$D59,1),0) -> 1.289363761 | AY59: =IF($D59<>0,INDEX('INPT; Fuel Indices'!AY$34:AY$53,$D59,1),0) -> 1.289363761 | AZ59: =IF($D59<>0,INDEX('INPT; Fuel Indices'!AZ$34:AZ$53,$D59,1),0) -> 1.289363761 | BA59: =IF($D59<>0,INDEX('INPT; Fuel Indices'!BA$34:BA$53,$D59,1),0) -> 1.289363761 | BB59: =IF($D59<>0,INDEX('INPT; Fuel Indices'!BB$34:BB$53,$D59,1),0) -> 1.289363761 | BC59: =IF($D59<>0,INDEX('INPT; Fuel Indices'!BC$34:BC$53,$D59,1),0) -> 1.289363761 | BD59: =IF($D59<>0,INDEX('INPT; Fuel Indices'!BD$34:BD$53,$D59,1),0) -> 1.289363761 | BE59: =IF($D59<>0,INDEX('INPT; Fuel Indices'!BE$34:BE$53,$D59,1),0) -> 1.289363761 | BF59: =IF($D59<>0,INDEX('INPT; Fuel Indices'!BF$34:BF$53,$D59,1),0) -> 1.289363761 | BG59: =IF($D59<>0,INDEX('INPT; Fuel Indices'!BG$34:BG$53,$D59,1),0) -> 1.289363761 | BH59: =IF($D59<>0,INDEX('INPT; Fuel Indices'!BH$34:BH$53,$D59,1),0) -> 1.289363761 | BI59: =IF($D59<>0,INDEX('INPT; Fuel Indices'!BI$34:BI$53,$D59,1),0) -> 1.289363761 | BJ59: =IF($D59<>0,INDEX('INPT; Fuel Indices'!BJ$34:BJ$53,$D59,1),0) -> 1.289363761 | BK59: =IF($D59<>0,INDEX('INPT; Fuel Indices'!BK$34:BK$53,$D59,1),0) -> 1.289363761 | BL59: =IF($D59<>0,INDEX('INPT; Fuel Indices'!BL$34:BL$53,$D59,1),0) -> 1.289363761 | BM59: =IF($D59<>0,INDEX('INPT; Fuel Indices'!BM$34:BM$53,$D59,1),0) -> 1.289363761 | BN59: =IF($D59<>0,INDEX('INPT; Fuel Indices'!BN$34:BN$53,$D59,1),0) -> 1.289363761 | BO59: =IF($D59<>0,INDEX('INPT; Fuel Indices'!BO$34:BO$53,$D59,1),0) -> 1.289363761 | BP59: =IF($D59<>0,INDEX('INPT; Fuel Indices'!BP$34:BP$53,$D59,1),0) -> 1.289363761 | BQ59: =IF($D59<>0,INDEX('INPT; Fuel Indices'!BQ$34:BQ$53,$D59,1),0) -> 1.289363761
A60: 6 | B60: ='INPT; General'!$B$30 -> Heat | C60: Factor | D60: ='INPT; General'!$G$30 -> 0 | E60: =INDEX($X$1230:$AG$1236,G18,A60) -> 0 | J60: =IF($D60<>0,INDEX('INPT; Fuel Indices'!J$34:J$53,$D60,1),0) -> 0 | K60: =IF($D60<>0,INDEX('INPT; Fuel Indices'!K$34:K$53,$D60,1),0) -> 0 | L60: =IF($D60<>0,INDEX('INPT; Fuel Indices'!L$34:L$53,$D60,1),0) -> 0 | M60: =IF($D60<>0,INDEX('INPT; Fuel Indices'!M$34:M$53,$D60,1),0) -> 0 | N60: =IF($D60<>0,INDEX('INPT; Fuel Indices'!N$34:N$53,$D60,1),0) -> 0 | O60: =IF($D60<>0,INDEX('INPT; Fuel Indices'!O$34:O$53,$D60,1),0) -> 0 | P60: =IF($D60<>0,INDEX('INPT; Fuel Indices'!P$34:P$53,$D60,1),0) -> 0 | Q60: =IF($D60<>0,INDEX('INPT; Fuel Indices'!Q$34:Q$53,$D60,1),0) -> 0 | R60: =IF($D60<>0,INDEX('INPT; Fuel Indices'!R$34:R$53,$D60,1),0) -> 0 | S60: =IF($D60<>0,INDEX('INPT; Fuel Indices'!S$34:S$53,$D60,1),0) -> 0 | T60: =IF($D60<>0,INDEX('INPT; Fuel Indices'!T$34:T$53,$D60,1),0) -> 0 | U60: =IF($D60<>0,INDEX('INPT; Fuel Indices'!U$34:U$53,$D60,1),0) -> 0 | V60: =IF($D60<>0,INDEX('INPT; Fuel Indices'!V$34:V$53,$D60,1),0) -> 0 | W60: =IF($D60<>0,INDEX('INPT; Fuel Indices'!W$34:W$53,$D60,1),0) -> 0 | X60: =IF($D60<>0,INDEX('INPT; Fuel Indices'!X$34:X$53,$D60,1),0) -> 0 | Y60: =IF($D60<>0,INDEX('INPT; Fuel Indices'!Y$34:Y$53,$D60,1),0) -> 0 | Z60: =IF($D60<>0,INDEX('INPT; Fuel Indices'!Z$34:Z$53,$D60,1),0) -> 0 | AA60: =IF($D60<>0,INDEX('INPT; Fuel Indices'!AA$34:AA$53,$D60,1),0) -> 0 | AB60: =IF($D60<>0,INDEX('INPT; Fuel Indices'!AB$34:AB$53,$D60,1),0) -> 0 | AC60: =IF($D60<>0,INDEX('INPT; Fuel Indices'!AC$34:AC$53,$D60,1),0) -> 0 | AD60: =IF($D60<>0,INDEX('INPT; Fuel Indices'!AD$34:AD$53,$D60,1),0) -> 0 | AE60: =IF($D60<>0,INDEX('INPT; Fuel Indices'!AE$34:AE$53,$D60,1),0) -> 0 | AF60: =IF($D60<>0,INDEX('INPT; Fuel Indices'!AF$34:AF$53,$D60,1),0) -> 0 | AG60: =IF($D60<>0,INDEX('INPT; Fuel Indices'!AG$34:AG$53,$D60,1),0) -> 0 | AH60: =IF($D60<>0,INDEX('INPT; Fuel Indices'!AH$34:AH$53,$D60,1),0) -> 0 | AI60: =IF($D60<>0,INDEX('INPT; Fuel Indices'!AI$34:AI$53,$D60,1),0) -> 0 | AJ60: =IF($D60<>0,INDEX('INPT; Fuel Indices'!AJ$34:AJ$53,$D60,1),0) -> 0 | AK60: =IF($D60<>0,INDEX('INPT; Fuel Indices'!AK$34:AK$53,$D60,1),0) -> 0 | AL60: =IF($D60<>0,INDEX('INPT; Fuel Indices'!AL$34:AL$53,$D60,1),0) -> 0 | AM60: =IF($D60<>0,INDEX('INPT; Fuel Indices'!AM$34:AM$53,$D60,1),0) -> 0 | AN60: =IF($D60<>0,INDEX('INPT; Fuel Indices'!AN$34:AN$53,$D60,1),0) -> 0 | AO60: =IF($D60<>0,INDEX('INPT; Fuel Indices'!AO$34:AO$53,$D60,1),0) -> 0 | AP60: =IF($D60<>0,INDEX('INPT; Fuel Indices'!AP$34:AP$53,$D60,1),0) -> 0 | AQ60: =IF($D60<>0,INDEX('INPT; Fuel Indices'!AQ$34:AQ$53,$D60,1),0) -> 0 | AR60: =IF($D60<>0,INDEX('INPT; Fuel Indices'!AR$34:AR$53,$D60,1),0) -> 0 | AS60: =IF($D60<>0,INDEX('INPT; Fuel Indices'!AS$34:AS$53,$D60,1),0) -> 0 | AT60: =IF($D60<>0,INDEX('INPT; Fuel Indices'!AT$34:AT$53,$D60,1),0) -> 0 | AU60: =IF($D60<>0,INDEX('INPT; Fuel Indices'!AU$34:AU$53,$D60,1),0) -> 0 | AV60: =IF($D60<>0,INDEX('INPT; Fuel Indices'!AV$34:AV$53,$D60,1),0) -> 0 | AW60: =IF($D60<>0,INDEX('INPT; Fuel Indices'!AW$34:AW$53,$D60,1),0) -> 0 | AX60: =IF($D60<>0,INDEX('INPT; Fuel Indices'!AX$34:AX$53,$D60,1),0) -> 0 | AY60: =IF($D60<>0,INDEX('INPT; Fuel Indices'!AY$34:AY$53,$D60,1),0) -> 0 | AZ60: =IF($D60<>0,INDEX('INPT; Fuel Indices'!AZ$34:AZ$53,$D60,1),0) -> 0 | BA60: =IF($D60<>0,INDEX('INPT; Fuel Indices'!BA$34:BA$53,$D60,1),0) -> 0 | BB60: =IF($D60<>0,INDEX('INPT; Fuel Indices'!BB$34:BB$53,$D60,1),0) -> 0 | BC60: =IF($D60<>0,INDEX('INPT; Fuel Indices'!BC$34:BC$53,$D60,1),0) -> 0 | BD60: =IF($D60<>0,INDEX('INPT; Fuel Indices'!BD$34:BD$53,$D60,1),0) -> 0 | BE60: =IF($D60<>0,INDEX('INPT; Fuel Indices'!BE$34:BE$53,$D60,1),0) -> 0 | BF60: =IF($D60<>0,INDEX('INPT; Fuel Indices'!BF$34:BF$53,$D60,1),0) -> 0 | BG60: =IF($D60<>0,INDEX('INPT; Fuel Indices'!BG$34:BG$53,$D60,1),0) -> 0 | BH60: =IF($D60<>0,INDEX('INPT; Fuel Indices'!BH$34:BH$53,$D60,1),0) -> 0 | BI60: =IF($D60<>0,INDEX('INPT; Fuel Indices'!BI$34:BI$53,$D60,1),0) -> 0 | BJ60: =IF($D60<>0,INDEX('INPT; Fuel Indices'!BJ$34:BJ$53,$D60,1),0) -> 0 | BK60: =IF($D60<>0,INDEX('INPT; Fuel Indices'!BK$34:BK$53,$D60,1),0) -> 0 | BL60: =IF($D60<>0,INDEX('INPT; Fuel Indices'!BL$34:BL$53,$D60,1),0) -> 0 | BM60: =IF($D60<>0,INDEX('INPT; Fuel Indices'!BM$34:BM$53,$D60,1),0) -> 0 | BN60: =IF($D60<>0,INDEX('INPT; Fuel Indices'!BN$34:BN$53,$D60,1),0) -> 0 | BO60: =IF($D60<>0,INDEX('INPT; Fuel Indices'!BO$34:BO$53,$D60,1),0) -> 0 | BP60: =IF($D60<>0,INDEX('INPT; Fuel Indices'!BP$34:BP$53,$D60,1),0) -> 0 | BQ60: =IF($D60<>0,INDEX('INPT; Fuel Indices'!BQ$34:BQ$53,$D60,1),0) -> 0
A61: 7 | B61: ='INPT; General'!$B$31 -> LPG | C61: Factor | D61: ='INPT; General'!$G$31 -> 0 | E61: =INDEX($X$1230:$AG$1236,G18,A61) -> 0 | J61: =IF($D61<>0,INDEX('INPT; Fuel Indices'!J$34:J$53,$D61,1),0) -> 0 | K61: =IF($D61<>0,INDEX('INPT; Fuel Indices'!K$34:K$53,$D61,1),0) -> 0 | L61: =IF($D61<>0,INDEX('INPT; Fuel Indices'!L$34:L$53,$D61,1),0) -> 0 | M61: =IF($D61<>0,INDEX('INPT; Fuel Indices'!M$34:M$53,$D61,1),0) -> 0 | N61: =IF($D61<>0,INDEX('INPT; Fuel Indices'!N$34:N$53,$D61,1),0) -> 0 | O61: =IF($D61<>0,INDEX('INPT; Fuel Indices'!O$34:O$53,$D61,1),0) -> 0 | P61: =IF($D61<>0,INDEX('INPT; Fuel Indices'!P$34:P$53,$D61,1),0) -> 0 | Q61: =IF($D61<>0,INDEX('INPT; Fuel Indices'!Q$34:Q$53,$D61,1),0) -> 0 | R61: =IF($D61<>0,INDEX('INPT; Fuel Indices'!R$34:R$53,$D61,1),0) -> 0 | S61: =IF($D61<>0,INDEX('INPT; Fuel Indices'!S$34:S$53,$D61,1),0) -> 0 | T61: =IF($D61<>0,INDEX('INPT; Fuel Indices'!T$34:T$53,$D61,1),0) -> 0 | U61: =IF($D61<>0,INDEX('INPT; Fuel Indices'!U$34:U$53,$D61,1),0) -> 0 | V61: =IF($D61<>0,INDEX('INPT; Fuel Indices'!V$34:V$53,$D61,1),0) -> 0 | W61: =IF($D61<>0,INDEX('INPT; Fuel Indices'!W$34:W$53,$D61,1),0) -> 0 | X61: =IF($D61<>0,INDEX('INPT; Fuel Indices'!X$34:X$53,$D61,1),0) -> 0 | Y61: =IF($D61<>0,INDEX('INPT; Fuel Indices'!Y$34:Y$53,$D61,1),0) -> 0 | Z61: =IF($D61<>0,INDEX('INPT; Fuel Indices'!Z$34:Z$53,$D61,1),0) -> 0 | AA61: =IF($D61<>0,INDEX('INPT; Fuel Indices'!AA$34:AA$53,$D61,1),0) -> 0 | AB61: =IF($D61<>0,INDEX('INPT; Fuel Indices'!AB$34:AB$53,$D61,1),0) -> 0 | AC61: =IF($D61<>0,INDEX('INPT; Fuel Indices'!AC$34:AC$53,$D61,1),0) -> 0 | AD61: =IF($D61<>0,INDEX('INPT; Fuel Indices'!AD$34:AD$53,$D61,1),0) -> 0 | AE61: =IF($D61<>0,INDEX('INPT; Fuel Indices'!AE$34:AE$53,$D61,1),0) -> 0 | AF61: =IF($D61<>0,INDEX('INPT; Fuel Indices'!AF$34:AF$53,$D61,1),0) -> 0 | AG61: =IF($D61<>0,INDEX('INPT; Fuel Indices'!AG$34:AG$53,$D61,1),0) -> 0 | AH61: =IF($D61<>0,INDEX('INPT; Fuel Indices'!AH$34:AH$53,$D61,1),0) -> 0 | AI61: =IF($D61<>0,INDEX('INPT; Fuel Indices'!AI$34:AI$53,$D61,1),0) -> 0 | AJ61: =IF($D61<>0,INDEX('INPT; Fuel Indices'!AJ$34:AJ$53,$D61,1),0) -> 0 | AK61: =IF($D61<>0,INDEX('INPT; Fuel Indices'!AK$34:AK$53,$D61,1),0) -> 0 | AL61: =IF($D61<>0,INDEX('INPT; Fuel Indices'!AL$34:AL$53,$D61,1),0) -> 0 | AM61: =IF($D61<>0,INDEX('INPT; Fuel Indices'!AM$34:AM$53,$D61,1),0) -> 0 | AN61: =IF($D61<>0,INDEX('INPT; Fuel Indices'!AN$34:AN$53,$D61,1),0) -> 0 | AO61: =IF($D61<>0,INDEX('INPT; Fuel Indices'!AO$34:AO$53,$D61,1),0) -> 0 | AP61: =IF($D61<>0,INDEX('INPT; Fuel Indices'!AP$34:AP$53,$D61,1),0) -> 0 | AQ61: =IF($D61<>0,INDEX('INPT; Fuel Indices'!AQ$34:AQ$53,$D61,1),0) -> 0 | AR61: =IF($D61<>0,INDEX('INPT; Fuel Indices'!AR$34:AR$53,$D61,1),0) -> 0 | AS61: =IF($D61<>0,INDEX('INPT; Fuel Indices'!AS$34:AS$53,$D61,1),0) -> 0 | AT61: =IF($D61<>0,INDEX('INPT; Fuel Indices'!AT$34:AT$53,$D61,1),0) -> 0 | AU61: =IF($D61<>0,INDEX('INPT; Fuel Indices'!AU$34:AU$53,$D61,1),0) -> 0 | AV61: =IF($D61<>0,INDEX('INPT; Fuel Indices'!AV$34:AV$53,$D61,1),0) -> 0 | AW61: =IF($D61<>0,INDEX('INPT; Fuel Indices'!AW$34:AW$53,$D61,1),0) -> 0 | AX61: =IF($D61<>0,INDEX('INPT; Fuel Indices'!AX$34:AX$53,$D61,1),0) -> 0 | AY61: =IF($D61<>0,INDEX('INPT; Fuel Indices'!AY$34:AY$53,$D61,1),0) -> 0 | AZ61: =IF($D61<>0,INDEX('INPT; Fuel Indices'!AZ$34:AZ$53,$D61,1),0) -> 0 | BA61: =IF($D61<>0,INDEX('INPT; Fuel Indices'!BA$34:BA$53,$D61,1),0) -> 0 | BB61: =IF($D61<>0,INDEX('INPT; Fuel Indices'!BB$34:BB$53,$D61,1),0) -> 0 | BC61: =IF($D61<>0,INDEX('INPT; Fuel Indices'!BC$34:BC$53,$D61,1),0) -> 0 | BD61: =IF($D61<>0,INDEX('INPT; Fuel Indices'!BD$34:BD$53,$D61,1),0) -> 0 | BE61: =IF($D61<>0,INDEX('INPT; Fuel Indices'!BE$34:BE$53,$D61,1),0) -> 0 | BF61: =IF($D61<>0,INDEX('INPT; Fuel Indices'!BF$34:BF$53,$D61,1),0) -> 0 | BG61: =IF($D61<>0,INDEX('INPT; Fuel Indices'!BG$34:BG$53,$D61,1),0) -> 0 | BH61: =IF($D61<>0,INDEX('INPT; Fuel Indices'!BH$34:BH$53,$D61,1),0) -> 0 | BI61: =IF($D61<>0,INDEX('INPT; Fuel Indices'!BI$34:BI$53,$D61,1),0) -> 0 | BJ61: =IF($D61<>0,INDEX('INPT; Fuel Indices'!BJ$34:BJ$53,$D61,1),0) -> 0 | BK61: =IF($D61<>0,INDEX('INPT; Fuel Indices'!BK$34:BK$53,$D61,1),0) -> 0 | BL61: =IF($D61<>0,INDEX('INPT; Fuel Indices'!BL$34:BL$53,$D61,1),0) -> 0 | BM61: =IF($D61<>0,INDEX('INPT; Fuel Indices'!BM$34:BM$53,$D61,1),0) -> 0 | BN61: =IF($D61<>0,INDEX('INPT; Fuel Indices'!BN$34:BN$53,$D61,1),0) -> 0 | BO61: =IF($D61<>0,INDEX('INPT; Fuel Indices'!BO$34:BO$53,$D61,1),0) -> 0 | BP61: =IF($D61<>0,INDEX('INPT; Fuel Indices'!BP$34:BP$53,$D61,1),0) -> 0 | BQ61: =IF($D61<>0,INDEX('INPT; Fuel Indices'!BQ$34:BQ$53,$D61,1),0) -> 0
A62: 8 | B62: ='INPT; General'!$B$32 -> Oil | C62: Factor | D62: ='INPT; General'!$G$32 -> 8 | E62: =INDEX($X$1230:$AG$1236,G18,A62) -> 0 | J62: =IF($D62<>0,INDEX('INPT; Fuel Indices'!J$34:J$53,$D62,1),0) -> 1 | K62: =IF($D62<>0,INDEX('INPT; Fuel Indices'!K$34:K$53,$D62,1),0) -> 0.9972239985 | L62: =IF($D62<>0,INDEX('INPT; Fuel Indices'!L$34:L$53,$D62,1),0) -> 0.9958596078 | M62: =IF($D62<>0,INDEX('INPT; Fuel Indices'!M$34:M$53,$D62,1),0) -> 1.006728976 | N62: =IF($D62<>0,INDEX('INPT; Fuel Indices'!N$34:N$53,$D62,1),0) -> 1.017743572 | O62: =IF($D62<>0,INDEX('INPT; Fuel Indices'!O$34:O$53,$D62,1),0) -> 1.028758168 | P62: =IF($D62<>0,INDEX('INPT; Fuel Indices'!P$34:P$53,$D62,1),0) -> 1.039772764 | Q62: =IF($D62<>0,INDEX('INPT; Fuel Indices'!Q$34:Q$53,$D62,1),0) -> 1.061801956 | R62: =IF($D62<>0,INDEX('INPT; Fuel Indices'!R$34:R$53,$D62,1),0) -> 1.072816552 | S62: =IF($D62<>0,INDEX('INPT; Fuel Indices'!S$34:S$53,$D62,1),0) -> 1.083831148 | T62: =IF($D62<>0,INDEX('INPT; Fuel Indices'!T$34:T$53,$D62,1),0) -> 1.10586034 | U62: =IF($D62<>0,INDEX('INPT; Fuel Indices'!U$34:U$53,$D62,1),0) -> 1.116874936 | V62: =IF($D62<>0,INDEX('INPT; Fuel Indices'!V$34:V$53,$D62,1),0) -> 1.116874936 | W62: =IF($D62<>0,INDEX('INPT; Fuel Indices'!W$34:W$53,$D62,1),0) -> 1.116874936 | X62: =IF($D62<>0,INDEX('INPT; Fuel Indices'!X$34:X$53,$D62,1),0) -> 1.116874936 | Y62: =IF($D62<>0,INDEX('INPT; Fuel Indices'!Y$34:Y$53,$D62,1),0) -> 1.116874936 | Z62: =IF($D62<>0,INDEX('INPT; Fuel Indices'!Z$34:Z$53,$D62,1),0) -> 1.116874936 | AA62: =IF($D62<>0,INDEX('INPT; Fuel Indices'!AA$34:AA$53,$D62,1),0) -> 1.116874936 | AB62: =IF($D62<>0,INDEX('INPT; Fuel Indices'!AB$34:AB$53,$D62,1),0) -> 1.116874936 | AC62: =IF($D62<>0,INDEX('INPT; Fuel Indices'!AC$34:AC$53,$D62,1),0) -> 1.116874936 | AD62: =IF($D62<>0,INDEX('INPT; Fuel Indices'!AD$34:AD$53,$D62,1),0) -> 1.116874936 | AE62: =IF($D62<>0,INDEX('INPT; Fuel Indices'!AE$34:AE$53,$D62,1),0) -> 1.116874936 | AF62: =IF($D62<>0,INDEX('INPT; Fuel Indices'!AF$34:AF$53,$D62,1),0) -> 1.116874936 | AG62: =IF($D62<>0,INDEX('INPT; Fuel Indices'!AG$34:AG$53,$D62,1),0) -> 1.116874936 | AH62: =IF($D62<>0,INDEX('INPT; Fuel Indices'!AH$34:AH$53,$D62,1),0) -> 1.116874936 | AI62: =IF($D62<>0,INDEX('INPT; Fuel Indices'!AI$34:AI$53,$D62,1),0) -> 1.116874936 | AJ62: =IF($D62<>0,INDEX('INPT; Fuel Indices'!AJ$34:AJ$53,$D62,1),0) -> 1.116874936 | AK62: =IF($D62<>0,INDEX('INPT; Fuel Indices'!AK$34:AK$53,$D62,1),0) -> 1.116874936 | AL62: =IF($D62<>0,INDEX('INPT; Fuel Indices'!AL$34:AL$53,$D62,1),0) -> 1.116874936 | AM62: =IF($D62<>0,INDEX('INPT; Fuel Indices'!AM$34:AM$53,$D62,1),0) -> 1.116874936 | AN62: =IF($D62<>0,INDEX('INPT; Fuel Indices'!AN$34:AN$53,$D62,1),0) -> 1.116874936 | AO62: =IF($D62<>0,INDEX('INPT; Fuel Indices'!AO$34:AO$53,$D62,1),0) -> 1.116874936 | AP62: =IF($D62<>0,INDEX('INPT; Fuel Indices'!AP$34:AP$53,$D62,1),0) -> 1.116874936 | AQ62: =IF($D62<>0,INDEX('INPT; Fuel Indices'!AQ$34:AQ$53,$D62,1),0) -> 1.116874936 | AR62: =IF($D62<>0,INDEX('INPT; Fuel Indices'!AR$34:AR$53,$D62,1),0) -> 1.116874936 | AS62: =IF($D62<>0,INDEX('INPT; Fuel Indices'!AS$34:AS$53,$D62,1),0) -> 1.116874936 | AT62: =IF($D62<>0,INDEX('INPT; Fuel Indices'!AT$34:AT$53,$D62,1),0) -> 1.116874936 | AU62: =IF($D62<>0,INDEX('INPT; Fuel Indices'!AU$34:AU$53,$D62,1),0) -> 1.116874936 | AV62: =IF($D62<>0,INDEX('INPT; Fuel Indices'!AV$34:AV$53,$D62,1),0) -> 1.116874936 | AW62: =IF($D62<>0,INDEX('INPT; Fuel Indices'!AW$34:AW$53,$D62,1),0) -> 1.116874936 | AX62: =IF($D62<>0,INDEX('INPT; Fuel Indices'!AX$34:AX$53,$D62,1),0) -> 1.116874936 | AY62: =IF($D62<>0,INDEX('INPT; Fuel Indices'!AY$34:AY$53,$D62,1),0) -> 1.116874936 | AZ62: =IF($D62<>0,INDEX('INPT; Fuel Indices'!AZ$34:AZ$53,$D62,1),0) -> 1.116874936 | BA62: =IF($D62<>0,INDEX('INPT; Fuel Indices'!BA$34:BA$53,$D62,1),0) -> 1.116874936 | BB62: =IF($D62<>0,INDEX('INPT; Fuel Indices'!BB$34:BB$53,$D62,1),0) -> 1.116874936 | BC62: =IF($D62<>0,INDEX('INPT; Fuel Indices'!BC$34:BC$53,$D62,1),0) -> 1.116874936 | BD62: =IF($D62<>0,INDEX('INPT; Fuel Indices'!BD$34:BD$53,$D62,1),0) -> 1.116874936 | BE62: =IF($D62<>0,INDEX('INPT; Fuel Indices'!BE$34:BE$53,$D62,1),0) -> 1.116874936 | BF62: =IF($D62<>0,INDEX('INPT; Fuel Indices'!BF$34:BF$53,$D62,1),0) -> 1.116874936 | BG62: =IF($D62<>0,INDEX('INPT; Fuel Indices'!BG$34:BG$53,$D62,1),0) -> 1.116874936 | BH62: =IF($D62<>0,INDEX('INPT; Fuel Indices'!BH$34:BH$53,$D62,1),0) -> 1.116874936 | BI62: =IF($D62<>0,INDEX('INPT; Fuel Indices'!BI$34:BI$53,$D62,1),0) -> 1.116874936 | BJ62: =IF($D62<>0,INDEX('INPT; Fuel Indices'!BJ$34:BJ$53,$D62,1),0) -> 1.116874936 | BK62: =IF($D62<>0,INDEX('INPT; Fuel Indices'!BK$34:BK$53,$D62,1),0) -> 1.116874936 | BL62: =IF($D62<>0,INDEX('INPT; Fuel Indices'!BL$34:BL$53,$D62,1),0) -> 1.116874936 | BM62: =IF($D62<>0,INDEX('INPT; Fuel Indices'!BM$34:BM$53,$D62,1),0) -> 1.116874936 | BN62: =IF($D62<>0,INDEX('INPT; Fuel Indices'!BN$34:BN$53,$D62,1),0) -> 1.116874936 | BO62: =IF($D62<>0,INDEX('INPT; Fuel Indices'!BO$34:BO$53,$D62,1),0) -> 1.116874936 | BP62: =IF($D62<>0,INDEX('INPT; Fuel Indices'!BP$34:BP$53,$D62,1),0) -> 1.116874936 | BQ62: =IF($D62<>0,INDEX('INPT; Fuel Indices'!BQ$34:BQ$53,$D62,1),0) -> 1.116874936
A63: 9 | B63: ='INPT; General'!$B$33 -> Other | C63: Factor | D63: ='INPT; General'!$G$33 -> 0 | E63: =INDEX($X$1230:$AG$1236,G18,A63) -> 0 | J63: =IF($D63<>0,INDEX('INPT; Fuel Indices'!J$34:J$53,$D63,1),0) -> 0 | K63: =IF($D63<>0,INDEX('INPT; Fuel Indices'!K$34:K$53,$D63,1),0) -> 0 | L63: =IF($D63<>0,INDEX('INPT; Fuel Indices'!L$34:L$53,$D63,1),0) -> 0 | M63: =IF($D63<>0,INDEX('INPT; Fuel Indices'!M$34:M$53,$D63,1),0) -> 0 | N63: =IF($D63<>0,INDEX('INPT; Fuel Indices'!N$34:N$53,$D63,1),0) -> 0 | O63: =IF($D63<>0,INDEX('INPT; Fuel Indices'!O$34:O$53,$D63,1),0) -> 0 | P63: =IF($D63<>0,INDEX('INPT; Fuel Indices'!P$34:P$53,$D63,1),0) -> 0 | Q63: =IF($D63<>0,INDEX('INPT; Fuel Indices'!Q$34:Q$53,$D63,1),0) -> 0 | R63: =IF($D63<>0,INDEX('INPT; Fuel Indices'!R$34:R$53,$D63,1),0) -> 0 | S63: =IF($D63<>0,INDEX('INPT; Fuel Indices'!S$34:S$53,$D63,1),0) -> 0 | T63: =IF($D63<>0,INDEX('INPT; Fuel Indices'!T$34:T$53,$D63,1),0) -> 0 | U63: =IF($D63<>0,INDEX('INPT; Fuel Indices'!U$34:U$53,$D63,1),0) -> 0 | V63: =IF($D63<>0,INDEX('INPT; Fuel Indices'!V$34:V$53,$D63,1),0) -> 0 | W63: =IF($D63<>0,INDEX('INPT; Fuel Indices'!W$34:W$53,$D63,1),0) -> 0 | X63: =IF($D63<>0,INDEX('INPT; Fuel Indices'!X$34:X$53,$D63,1),0) -> 0 | Y63: =IF($D63<>0,INDEX('INPT; Fuel Indices'!Y$34:Y$53,$D63,1),0) -> 0 | Z63: =IF($D63<>0,INDEX('INPT; Fuel Indices'!Z$34:Z$53,$D63,1),0) -> 0 | AA63: =IF($D63<>0,INDEX('INPT; Fuel Indices'!AA$34:AA$53,$D63,1),0) -> 0 | AB63: =IF($D63<>0,INDEX('INPT; Fuel Indices'!AB$34:AB$53,$D63,1),0) -> 0 | AC63: =IF($D63<>0,INDEX('INPT; Fuel Indices'!AC$34:AC$53,$D63,1),0) -> 0 | AD63: =IF($D63<>0,INDEX('INPT; Fuel Indices'!AD$34:AD$53,$D63,1),0) -> 0 | AE63: =IF($D63<>0,INDEX('INPT; Fuel Indices'!AE$34:AE$53,$D63,1),0) -> 0 | AF63: =IF($D63<>0,INDEX('INPT; Fuel Indices'!AF$34:AF$53,$D63,1),0) -> 0 | AG63: =IF($D63<>0,INDEX('INPT; Fuel Indices'!AG$34:AG$53,$D63,1),0) -> 0 | AH63: =IF($D63<>0,INDEX('INPT; Fuel Indices'!AH$34:AH$53,$D63,1),0) -> 0 | AI63: =IF($D63<>0,INDEX('INPT; Fuel Indices'!AI$34:AI$53,$D63,1),0) -> 0 | AJ63: =IF($D63<>0,INDEX('INPT; Fuel Indices'!AJ$34:AJ$53,$D63,1),0) -> 0 | AK63: =IF($D63<>0,INDEX('INPT; Fuel Indices'!AK$34:AK$53,$D63,1),0) -> 0 | AL63: =IF($D63<>0,INDEX('INPT; Fuel Indices'!AL$34:AL$53,$D63,1),0) -> 0 | AM63: =IF($D63<>0,INDEX('INPT; Fuel Indices'!AM$34:AM$53,$D63,1),0) -> 0 | AN63: =IF($D63<>0,INDEX('INPT; Fuel Indices'!AN$34:AN$53,$D63,1),0) -> 0 | AO63: =IF($D63<>0,INDEX('INPT; Fuel Indices'!AO$34:AO$53,$D63,1),0) -> 0 | AP63: =IF($D63<>0,INDEX('INPT; Fuel Indices'!AP$34:AP$53,$D63,1),0) -> 0 | AQ63: =IF($D63<>0,INDEX('INPT; Fuel Indices'!AQ$34:AQ$53,$D63,1),0) -> 0 | AR63: =IF($D63<>0,INDEX('INPT; Fuel Indices'!AR$34:AR$53,$D63,1),0) -> 0 | AS63: =IF($D63<>0,INDEX('INPT; Fuel Indices'!AS$34:AS$53,$D63,1),0) -> 0 | AT63: =IF($D63<>0,INDEX('INPT; Fuel Indices'!AT$34:AT$53,$D63,1),0) -> 0 | AU63: =IF($D63<>0,INDEX('INPT; Fuel Indices'!AU$34:AU$53,$D63,1),0) -> 0 | AV63: =IF($D63<>0,INDEX('INPT; Fuel Indices'!AV$34:AV$53,$D63,1),0) -> 0 | AW63: =IF($D63<>0,INDEX('INPT; Fuel Indices'!AW$34:AW$53,$D63,1),0) -> 0 | AX63: =IF($D63<>0,INDEX('INPT; Fuel Indices'!AX$34:AX$53,$D63,1),0) -> 0 | AY63: =IF($D63<>0,INDEX('INPT; Fuel Indices'!AY$34:AY$53,$D63,1),0) -> 0 | AZ63: =IF($D63<>0,INDEX('INPT; Fuel Indices'!AZ$34:AZ$53,$D63,1),0) -> 0 | BA63: =IF($D63<>0,INDEX('INPT; Fuel Indices'!BA$34:BA$53,$D63,1),0) -> 0 | BB63: =IF($D63<>0,INDEX('INPT; Fuel Indices'!BB$34:BB$53,$D63,1),0) -> 0 | BC63: =IF($D63<>0,INDEX('INPT; Fuel Indices'!BC$34:BC$53,$D63,1),0) -> 0 | BD63: =IF($D63<>0,INDEX('INPT; Fuel Indices'!BD$34:BD$53,$D63,1),0) -> 0 | BE63: =IF($D63<>0,INDEX('INPT; Fuel Indices'!BE$34:BE$53,$D63,1),0) -> 0 | BF63: =IF($D63<>0,INDEX('INPT; Fuel Indices'!BF$34:BF$53,$D63,1),0) -> 0 | BG63: =IF($D63<>0,INDEX('INPT; Fuel Indices'!BG$34:BG$53,$D63,1),0) -> 0 | BH63: =IF($D63<>0,INDEX('INPT; Fuel Indices'!BH$34:BH$53,$D63,1),0) -> 0 | BI63: =IF($D63<>0,INDEX('INPT; Fuel Indices'!BI$34:BI$53,$D63,1),0) -> 0 | BJ63: =IF($D63<>0,INDEX('INPT; Fuel Indices'!BJ$34:BJ$53,$D63,1),0) -> 0 | BK63: =IF($D63<>0,INDEX('INPT; Fuel Indices'!BK$34:BK$53,$D63,1),0) -> 0 | BL63: =IF($D63<>0,INDEX('INPT; Fuel Indices'!BL$34:BL$53,$D63,1),0) -> 0 | BM63: =IF($D63<>0,INDEX('INPT; Fuel Indices'!BM$34:BM$53,$D63,1),0) -> 0 | BN63: =IF($D63<>0,INDEX('INPT; Fuel Indices'!BN$34:BN$53,$D63,1),0) -> 0 | BO63: =IF($D63<>0,INDEX('INPT; Fuel Indices'!BO$34:BO$53,$D63,1),0) -> 0 | BP63: =IF($D63<>0,INDEX('INPT; Fuel Indices'!BP$34:BP$53,$D63,1),0) -> 0 | BQ63: =IF($D63<>0,INDEX('INPT; Fuel Indices'!BQ$34:BQ$53,$D63,1),0) -> 0
A64: 10 | B64: ='INPT; General'!$B$34 -> RDF | C64: Factor | D64: ='INPT; General'!$G$34 -> 0 | E64: =INDEX($X$1230:$AG$1236,G18,A64) -> 0 | J64: =IF($D64<>0,INDEX('INPT; Fuel Indices'!J$34:J$53,$D64,1),0) -> 0 | K64: =IF($D64<>0,INDEX('INPT; Fuel Indices'!K$34:K$53,$D64,1),0) -> 0 | L64: =IF($D64<>0,INDEX('INPT; Fuel Indices'!L$34:L$53,$D64,1),0) -> 0 | M64: =IF($D64<>0,INDEX('INPT; Fuel Indices'!M$34:M$53,$D64,1),0) -> 0 | N64: =IF($D64<>0,INDEX('INPT; Fuel Indices'!N$34:N$53,$D64,1),0) -> 0 | O64: =IF($D64<>0,INDEX('INPT; Fuel Indices'!O$34:O$53,$D64,1),0) -> 0 | P64: =IF($D64<>0,INDEX('INPT; Fuel Indices'!P$34:P$53,$D64,1),0) -> 0 | Q64: =IF($D64<>0,INDEX('INPT; Fuel Indices'!Q$34:Q$53,$D64,1),0) -> 0 | R64: =IF($D64<>0,INDEX('INPT; Fuel Indices'!R$34:R$53,$D64,1),0) -> 0 | S64: =IF($D64<>0,INDEX('INPT; Fuel Indices'!S$34:S$53,$D64,1),0) -> 0 | T64: =IF($D64<>0,INDEX('INPT; Fuel Indices'!T$34:T$53,$D64,1),0) -> 0 | U64: =IF($D64<>0,INDEX('INPT; Fuel Indices'!U$34:U$53,$D64,1),0) -> 0 | V64: =IF($D64<>0,INDEX('INPT; Fuel Indices'!V$34:V$53,$D64,1),0) -> 0 | W64: =IF($D64<>0,INDEX('INPT; Fuel Indices'!W$34:W$53,$D64,1),0) -> 0 | X64: =IF($D64<>0,INDEX('INPT; Fuel Indices'!X$34:X$53,$D64,1),0) -> 0 | Y64: =IF($D64<>0,INDEX('INPT; Fuel Indices'!Y$34:Y$53,$D64,1),0) -> 0 | Z64: =IF($D64<>0,INDEX('INPT; Fuel Indices'!Z$34:Z$53,$D64,1),0) -> 0 | AA64: =IF($D64<>0,INDEX('INPT; Fuel Indices'!AA$34:AA$53,$D64,1),0) -> 0 | AB64: =IF($D64<>0,INDEX('INPT; Fuel Indices'!AB$34:AB$53,$D64,1),0) -> 0 | AC64: =IF($D64<>0,INDEX('INPT; Fuel Indices'!AC$34:AC$53,$D64,1),0) -> 0 | AD64: =IF($D64<>0,INDEX('INPT; Fuel Indices'!AD$34:AD$53,$D64,1),0) -> 0 | AE64: =IF($D64<>0,INDEX('INPT; Fuel Indices'!AE$34:AE$53,$D64,1),0) -> 0 | AF64: =IF($D64<>0,INDEX('INPT; Fuel Indices'!AF$34:AF$53,$D64,1),0) -> 0 | AG64: =IF($D64<>0,INDEX('INPT; Fuel Indices'!AG$34:AG$53,$D64,1),0) -> 0 | AH64: =IF($D64<>0,INDEX('INPT; Fuel Indices'!AH$34:AH$53,$D64,1),0) -> 0 | AI64: =IF($D64<>0,INDEX('INPT; Fuel Indices'!AI$34:AI$53,$D64,1),0) -> 0 | AJ64: =IF($D64<>0,INDEX('INPT; Fuel Indices'!AJ$34:AJ$53,$D64,1),0) -> 0 | AK64: =IF($D64<>0,INDEX('INPT; Fuel Indices'!AK$34:AK$53,$D64,1),0) -> 0 | AL64: =IF($D64<>0,INDEX('INPT; Fuel Indices'!AL$34:AL$53,$D64,1),0) -> 0 | AM64: =IF($D64<>0,INDEX('INPT; Fuel Indices'!AM$34:AM$53,$D64,1),0) -> 0 | AN64: =IF($D64<>0,INDEX('INPT; Fuel Indices'!AN$34:AN$53,$D64,1),0) -> 0 | AO64: =IF($D64<>0,INDEX('INPT; Fuel Indices'!AO$34:AO$53,$D64,1),0) -> 0 | AP64: =IF($D64<>0,INDEX('INPT; Fuel Indices'!AP$34:AP$53,$D64,1),0) -> 0 | AQ64: =IF($D64<>0,INDEX('INPT; Fuel Indices'!AQ$34:AQ$53,$D64,1),0) -> 0 | AR64: =IF($D64<>0,INDEX('INPT; Fuel Indices'!AR$34:AR$53,$D64,1),0) -> 0 | AS64: =IF($D64<>0,INDEX('INPT; Fuel Indices'!AS$34:AS$53,$D64,1),0) -> 0 | AT64: =IF($D64<>0,INDEX('INPT; Fuel Indices'!AT$34:AT$53,$D64,1),0) -> 0 | AU64: =IF($D64<>0,INDEX('INPT; Fuel Indices'!AU$34:AU$53,$D64,1),0) -> 0 | AV64: =IF($D64<>0,INDEX('INPT; Fuel Indices'!AV$34:AV$53,$D64,1),0) -> 0 | AW64: =IF($D64<>0,INDEX('INPT; Fuel Indices'!AW$34:AW$53,$D64,1),0) -> 0 | AX64: =IF($D64<>0,INDEX('INPT; Fuel Indices'!AX$34:AX$53,$D64,1),0) -> 0 | AY64: =IF($D64<>0,INDEX('INPT; Fuel Indices'!AY$34:AY$53,$D64,1),0) -> 0 | AZ64: =IF($D64<>0,INDEX('INPT; Fuel Indices'!AZ$34:AZ$53,$D64,1),0) -> 0 | BA64: =IF($D64<>0,INDEX('INPT; Fuel Indices'!BA$34:BA$53,$D64,1),0) -> 0 | BB64: =IF($D64<>0,INDEX('INPT; Fuel Indices'!BB$34:BB$53,$D64,1),0) -> 0 | BC64: =IF($D64<>0,INDEX('INPT; Fuel Indices'!BC$34:BC$53,$D64,1),0) -> 0 | BD64: =IF($D64<>0,INDEX('INPT; Fuel Indices'!BD$34:BD$53,$D64,1),0) -> 0 | BE64: =IF($D64<>0,INDEX('INPT; Fuel Indices'!BE$34:BE$53,$D64,1),0) -> 0 | BF64: =IF($D64<>0,INDEX('INPT; Fuel Indices'!BF$34:BF$53,$D64,1),0) -> 0 | BG64: =IF($D64<>0,INDEX('INPT; Fuel Indices'!BG$34:BG$53,$D64,1),0) -> 0 | BH64: =IF($D64<>0,INDEX('INPT; Fuel Indices'!BH$34:BH$53,$D64,1),0) -> 0 | BI64: =IF($D64<>0,INDEX('INPT; Fuel Indices'!BI$34:BI$53,$D64,1),0) -> 0 | BJ64: =IF($D64<>0,INDEX('INPT; Fuel Indices'!BJ$34:BJ$53,$D64,1),0) -> 0 | BK64: =IF($D64<>0,INDEX('INPT; Fuel Indices'!BK$34:BK$53,$D64,1),0) -> 0 | BL64: =IF($D64<>0,INDEX('INPT; Fuel Indices'!BL$34:BL$53,$D64,1),0) -> 0 | BM64: =IF($D64<>0,INDEX('INPT; Fuel Indices'!BM$34:BM$53,$D64,1),0) -> 0 | BN64: =IF($D64<>0,INDEX('INPT; Fuel Indices'!BN$34:BN$53,$D64,1),0) -> 0 | BO64: =IF($D64<>0,INDEX('INPT; Fuel Indices'!BO$34:BO$53,$D64,1),0) -> 0 | BP64: =IF($D64<>0,INDEX('INPT; Fuel Indices'!BP$34:BP$53,$D64,1),0) -> 0 | BQ64: =IF($D64<>0,INDEX('INPT; Fuel Indices'!BQ$34:BQ$53,$D64,1),0) -> 0
B66: Fuel 1 - manual
B67: Fuel purchases - manual entry | C67: kWh
B68: Variable fuel cost - manual entry | C68: p/kWh | F68: =IFERROR(MATCH(D68,rngUserIndices,0),0) -> 0 | J68: =IF($F68<>0,INDEX('INPT; Fuel Indices'!J$14:J$32,$F68,1),0) -> 0 | K68: =IF($F68<>0,INDEX('INPT; Fuel Indices'!K$14:K$32,$F68,1),0) -> 0 | L68: =IF($F68<>0,INDEX('INPT; Fuel Indices'!L$14:L$32,$F68,1),0) -> 0 | M68: =IF($F68<>0,INDEX('INPT; Fuel Indices'!M$14:M$32,$F68,1),0) -> 0 | N68: =IF($F68<>0,INDEX('INPT; Fuel Indices'!N$14:N$32,$F68,1),0) -> 0 | O68: =IF($F68<>0,INDEX('INPT; Fuel Indices'!O$14:O$32,$F68,1),0) -> 0 | P68: =IF($F68<>0,INDEX('INPT; Fuel Indices'!P$14:P$32,$F68,1),0) -> 0 | Q68: =IF($F68<>0,INDEX('INPT; Fuel Indices'!Q$14:Q$32,$F68,1),0) -> 0 | R68: =IF($F68<>0,INDEX('INPT; Fuel Indices'!R$14:R$32,$F68,1),0) -> 0 | S68: =IF($F68<>0,INDEX('INPT; Fuel Indices'!S$14:S$32,$F68,1),0) -> 0 | T68: =IF($F68<>0,INDEX('INPT; Fuel Indices'!T$14:T$32,$F68,1),0) -> 0 | U68: =IF($F68<>0,INDEX('INPT; Fuel Indices'!U$14:U$32,$F68,1),0) -> 0 | V68: =IF($F68<>0,INDEX('INPT; Fuel Indices'!V$14:V$32,$F68,1),0) -> 0 | W68: =IF($F68<>0,INDEX('INPT; Fuel Indices'!W$14:W$32,$F68,1),0) -> 0 | X68: =IF($F68<>0,INDEX('INPT; Fuel Indices'!X$14:X$32,$F68,1),0) -> 0 | Y68: =IF($F68<>0,INDEX('INPT; Fuel Indices'!Y$14:Y$32,$F68,1),0) -> 0 | Z68: =IF($F68<>0,INDEX('INPT; Fuel Indices'!Z$14:Z$32,$F68,1),0) -> 0 | AA68: =IF($F68<>0,INDEX('INPT; Fuel Indices'!AA$14:AA$32,$F68,1),0) -> 0 | AB68: =IF($F68<>0,INDEX('INPT; Fuel Indices'!AB$14:AB$32,$F68,1),0) -> 0 | AC68: =IF($F68<>0,INDEX('INPT; Fuel Indices'!AC$14:AC$32,$F68,1),0) -> 0 | AD68: =IF($F68<>0,INDEX('INPT; Fuel Indices'!AD$14:AD$32,$F68,1),0) -> 0 | AE68: =IF($F68<>0,INDEX('INPT; Fuel Indices'!AE$14:AE$32,$F68,1),0) -> 0 | AF68: =IF($F68<>0,INDEX('INPT; Fuel Indices'!AF$14:AF$32,$F68,1),0) -> 0 | AG68: =IF($F68<>0,INDEX('INPT; Fuel Indices'!AG$14:AG$32,$F68,1),0) -> 0 | AH68: =IF($F68<>0,INDEX('INPT; Fuel Indices'!AH$14:AH$32,$F68,1),0) -> 0 | AI68: =IF($F68<>0,INDEX('INPT; Fuel Indices'!AI$14:AI$32,$F68,1),0) -> 0 | AJ68: =IF($F68<>0,INDEX('INPT; Fuel Indices'!AJ$14:AJ$32,$F68,1),0) -> 0 | AK68: =IF($F68<>0,INDEX('INPT; Fuel Indices'!AK$14:AK$32,$F68,1),0) -> 0 | AL68: =IF($F68<>0,INDEX('INPT; Fuel Indices'!AL$14:AL$32,$F68,1),0) -> 0 | AM68: =IF($F68<>0,INDEX('INPT; Fuel Indices'!AM$14:AM$32,$F68,1),0) -> 0 | AN68: =IF($F68<>0,INDEX('INPT; Fuel Indices'!AN$14:AN$32,$F68,1),0) -> 0 | AO68: =IF($F68<>0,INDEX('INPT; Fuel Indices'!AO$14:AO$32,$F68,1),0) -> 0 | AP68: =IF($F68<>0,INDEX('INPT; Fuel Indices'!AP$14:AP$32,$F68,1),0) -> 0 | AQ68: =IF($F68<>0,INDEX('INPT; Fuel Indices'!AQ$14:AQ$32,$F68,1),0) -> 0 | AR68: =IF($F68<>0,INDEX('INPT; Fuel Indices'!AR$14:AR$32,$F68,1),0) -> 0 | AS68: =IF($F68<>0,INDEX('INPT; Fuel Indices'!AS$14:AS$32,$F68,1),0) -> 0 | AT68: =IF($F68<>0,INDEX('INPT; Fuel Indices'!AT$14:AT$32,$F68,1),0) -> 0 | AU68: =IF($F68<>0,INDEX('INPT; Fuel Indices'!AU$14:AU$32,$F68,1),0) -> 0 | AV68: =IF($F68<>0,INDEX('INPT; Fuel Indices'!AV$14:AV$32,$F68,1),0) -> 0 | AW68: =IF($F68<>0,INDEX('INPT; Fuel Indices'!AW$14:AW$32,$F68,1),0) -> 0 | AX68: =IF($F68<>0,INDEX('INPT; Fuel Indices'!AX$14:AX$32,$F68,1),0) -> 0 | AY68: =IF($F68<>0,INDEX('INPT; Fuel Indices'!AY$14:AY$32,$F68,1),0) -> 0 | AZ68: =IF($F68<>0,INDEX('INPT; Fuel Indices'!AZ$14:AZ$32,$F68,1),0) -> 0 | BA68: =IF($F68<>0,INDEX('INPT; Fuel Indices'!BA$14:BA$32,$F68,1),0) -> 0 | BB68: =IF($F68<>0,INDEX('INPT; Fuel Indices'!BB$14:BB$32,$F68,1),0) -> 0 | BC68: =IF($F68<>0,INDEX('INPT; Fuel Indices'!BC$14:BC$32,$F68,1),0) -> 0 | BD68: =IF($F68<>0,INDEX('INPT; Fuel Indices'!BD$14:BD$32,$F68,1),0) -> 0 | BE68: =IF($F68<>0,INDEX('INPT; Fuel Indices'!BE$14:BE$32,$F68,1),0) -> 0 | BF68: =IF($F68<>0,INDEX('INPT; Fuel Indices'!BF$14:BF$32,$F68,1),0) -> 0 | BG68: =IF($F68<>0,INDEX('INPT; Fuel Indices'!BG$14:BG$32,$F68,1),0) -> 0 | BH68: =IF($F68<>0,INDEX('INPT; Fuel Indices'!BH$14:BH$32,$F68,1),0) -> 0 | BI68: =IF($F68<>0,INDEX('INPT; Fuel Indices'!BI$14:BI$32,$F68,1),0) -> 0 | BJ68: =IF($F68<>0,INDEX('INPT; Fuel Indices'!BJ$14:BJ$32,$F68,1),0) -> 0 | BK68: =IF($F68<>0,INDEX('INPT; Fuel Indices'!BK$14:BK$32,$F68,1),0) -> 0 | BL68: =IF($F68<>0,INDEX('INPT; Fuel Indices'!BL$14:BL$32,$F68,1),0) -> 0 | BM68: =IF($F68<>0,INDEX('INPT; Fuel Indices'!BM$14:BM$32,$F68,1),0) -> 0 | BN68: =IF($F68<>0,INDEX('INPT; Fuel Indices'!BN$14:BN$32,$F68,1),0) -> 0 | BO68: =IF($F68<>0,INDEX('INPT; Fuel Indices'!BO$14:BO$32,$F68,1),0) -> 0 | BP68: =IF($F68<>0,INDEX('INPT; Fuel Indices'!BP$14:BP$32,$F68,1),0) -> 0 | BQ68: =IF($F68<>0,INDEX('INPT; Fuel Indices'!BQ$14:BQ$32,$F68,1),0) -> 0
B69: Annual fuel cost - manual entry | C69: £/yr | J69: =J67*J68/100 -> 0 | K69: =K67*K68/100 -> 0 | L69: 0 | M69: 0 | N69: 0 | O69: 0 | P69: 0 | Q69: 0 | R69: 0 | S69: 0 | T69: 0 | U69: 0 | V69: 0 | W69: 0 | X69: 0 | Y69: 0 | Z69: 0 | AA69: 0 | AB69: 0 | AC69: 0 | AD69: 0 | AE69: 0 | AF69: 0 | AG69: 0 | AH69: 0 | AI69: 0 | AJ69: 0 | AK69: 0 | AL69: 0 | AM69: 0 | AN69: 0 | AO69: 0 | AP69: 0 | AQ69: 0 | AR69: 0 | AS69: 0 | AT69: 0 | AU69: 0 | AV69: 0 | AW69: 0 | AX69: 0 | AY69: 0 | AZ69: 0 | BA69: 0 | BB69: 0 | BC69: 0 | BD69: 0 | BE69: 0 | BF69: 0 | BG69: 0 | BH69: 0 | BI69: 0 | BJ69: 0 | BK69: 0 | BL69: 0 | BM69: 0 | BN69: 0 | BO69: 0 | BP69: 0 | BQ69: 0
B71: Fuel 2 - manual
B72: Fuel purchases - manual entry | C72: kWh
B73: Variable fuel cost - manual entry | C73: p/kWh | F73: =IFERROR(MATCH(D73,rngUserIndices,0),0) -> 0 | J73: =IF($F73<>0,INDEX('INPT; Fuel Indices'!J$14:J$32,$F73,1),0) -> 0 | K73: =IF($F73<>0,INDEX('INPT; Fuel Indices'!K$14:K$32,$F73,1),0) -> 0 | L73: =IF($F73<>0,INDEX('INPT; Fuel Indices'!L$14:L$32,$F73,1),0) -> 0 | M73: =IF($F73<>0,INDEX('INPT; Fuel Indices'!M$14:M$32,$F73,1),0) -> 0 | N73: =IF($F73<>0,INDEX('INPT; Fuel Indices'!N$14:N$32,$F73,1),0) -> 0 | O73: =IF($F73<>0,INDEX('INPT; Fuel Indices'!O$14:O$32,$F73,1),0) -> 0 | P73: =IF($F73<>0,INDEX('INPT; Fuel Indices'!P$14:P$32,$F73,1),0) -> 0 | Q73: =IF($F73<>0,INDEX('INPT; Fuel Indices'!Q$14:Q$32,$F73,1),0) -> 0 | R73: =IF($F73<>0,INDEX('INPT; Fuel Indices'!R$14:R$32,$F73,1),0) -> 0 | S73: =IF($F73<>0,INDEX('INPT; Fuel Indices'!S$14:S$32,$F73,1),0) -> 0 | T73: =IF($F73<>0,INDEX('INPT; Fuel Indices'!T$14:T$32,$F73,1),0) -> 0 | U73: =IF($F73<>0,INDEX('INPT; Fuel Indices'!U$14:U$32,$F73,1),0) -> 0 | V73: =IF($F73<>0,INDEX('INPT; Fuel Indices'!V$14:V$32,$F73,1),0) -> 0 | W73: =IF($F73<>0,INDEX('INPT; Fuel Indices'!W$14:W$32,$F73,1),0) -> 0 | X73: =IF($F73<>0,INDEX('INPT; Fuel Indices'!X$14:X$32,$F73,1),0) -> 0 | Y73: =IF($F73<>0,INDEX('INPT; Fuel Indices'!Y$14:Y$32,$F73,1),0) -> 0 | Z73: =IF($F73<>0,INDEX('INPT; Fuel Indices'!Z$14:Z$32,$F73,1),0) -> 0 | AA73: =IF($F73<>0,INDEX('INPT; Fuel Indices'!AA$14:AA$32,$F73,1),0) -> 0 | AB73: =IF($F73<>0,INDEX('INPT; Fuel Indices'!AB$14:AB$32,$F73,1),0) -> 0 | AC73: =IF($F73<>0,INDEX('INPT; Fuel Indices'!AC$14:AC$32,$F73,1),0) -> 0 | AD73: =IF($F73<>0,INDEX('INPT; Fuel Indices'!AD$14:AD$32,$F73,1),0) -> 0 | AE73: =IF($F73<>0,INDEX('INPT; Fuel Indices'!AE$14:AE$32,$F73,1),0) -> 0 | AF73: =IF($F73<>0,INDEX('INPT; Fuel Indices'!AF$14:AF$32,$F73,1),0) -> 0 | AG73: =IF($F73<>0,INDEX('INPT; Fuel Indices'!AG$14:AG$32,$F73,1),0) -> 0 | AH73: =IF($F73<>0,INDEX('INPT; Fuel Indices'!AH$14:AH$32,$F73,1),0) -> 0 | AI73: =IF($F73<>0,INDEX('INPT; Fuel Indices'!AI$14:AI$32,$F73,1),0) -> 0 | AJ73: =IF($F73<>0,INDEX('INPT; Fuel Indices'!AJ$14:AJ$32,$F73,1),0) -> 0 | AK73: =IF($F73<>0,INDEX('INPT; Fuel Indices'!AK$14:AK$32,$F73,1),0) -> 0 | AL73: =IF($F73<>0,INDEX('INPT; Fuel Indices'!AL$14:AL$32,$F73,1),0) -> 0 | AM73: =IF($F73<>0,INDEX('INPT; Fuel Indices'!AM$14:AM$32,$F73,1),0) -> 0 | AN73: =IF($F73<>0,INDEX('INPT; Fuel Indices'!AN$14:AN$32,$F73,1),0) -> 0 | AO73: =IF($F73<>0,INDEX('INPT; Fuel Indices'!AO$14:AO$32,$F73,1),0) -> 0 | AP73: =IF($F73<>0,INDEX('INPT; Fuel Indices'!AP$14:AP$32,$F73,1),0) -> 0 | AQ73: =IF($F73<>0,INDEX('INPT; Fuel Indices'!AQ$14:AQ$32,$F73,1),0) -> 0 | AR73: =IF($F73<>0,INDEX('INPT; Fuel Indices'!AR$14:AR$32,$F73,1),0) -> 0 | AS73: =IF($F73<>0,INDEX('INPT; Fuel Indices'!AS$14:AS$32,$F73,1),0) -> 0 | AT73: =IF($F73<>0,INDEX('INPT; Fuel Indices'!AT$14:AT$32,$F73,1),0) -> 0 | AU73: =IF($F73<>0,INDEX('INPT; Fuel Indices'!AU$14:AU$32,$F73,1),0) -> 0 | AV73: =IF($F73<>0,INDEX('INPT; Fuel Indices'!AV$14:AV$32,$F73,1),0) -> 0 | AW73: =IF($F73<>0,INDEX('INPT; Fuel Indices'!AW$14:AW$32,$F73,1),0) -> 0 | AX73: =IF($F73<>0,INDEX('INPT; Fuel Indices'!AX$14:AX$32,$F73,1),0) -> 0 | AY73: =IF($F73<>0,INDEX('INPT; Fuel Indices'!AY$14:AY$32,$F73,1),0) -> 0 | AZ73: =IF($F73<>0,INDEX('INPT; Fuel Indices'!AZ$14:AZ$32,$F73,1),0) -> 0 | BA73: =IF($F73<>0,INDEX('INPT; Fuel Indices'!BA$14:BA$32,$F73,1),0) -> 0 | BB73: =IF($F73<>0,INDEX('INPT; Fuel Indices'!BB$14:BB$32,$F73,1),0) -> 0 | BC73: =IF($F73<>0,INDEX('INPT; Fuel Indices'!BC$14:BC$32,$F73,1),0) -> 0 | BD73: =IF($F73<>0,INDEX('INPT; Fuel Indices'!BD$14:BD$32,$F73,1),0) -> 0 | BE73: =IF($F73<>0,INDEX('INPT; Fuel Indices'!BE$14:BE$32,$F73,1),0) -> 0 | BF73: =IF($F73<>0,INDEX('INPT; Fuel Indices'!BF$14:BF$32,$F73,1),0) -> 0 | BG73: =IF($F73<>0,INDEX('INPT; Fuel Indices'!BG$14:BG$32,$F73,1),0) -> 0 | BH73: =IF($F73<>0,INDEX('INPT; Fuel Indices'!BH$14:BH$32,$F73,1),0) -> 0 | BI73: =IF($F73<>0,INDEX('INPT; Fuel Indices'!BI$14:BI$32,$F73,1),0) -> 0 | BJ73: =IF($F73<>0,INDEX('INPT; Fuel Indices'!BJ$14:BJ$32,$F73,1),0) -> 0 | BK73: =IF($F73<>0,INDEX('INPT; Fuel Indices'!BK$14:BK$32,$F73,1),0) -> 0 | BL73: =IF($F73<>0,INDEX('INPT; Fuel Indices'!BL$14:BL$32,$F73,1),0) -> 0 | BM73: =IF($F73<>0,INDEX('INPT; Fuel Indices'!BM$14:BM$32,$F73,1),0) -> 0 | BN73: =IF($F73<>0,INDEX('INPT; Fuel Indices'!BN$14:BN$32,$F73,1),0) -> 0 | BO73: =IF($F73<>0,INDEX('INPT; Fuel Indices'!BO$14:BO$32,$F73,1),0) -> 0 | BP73: =IF($F73<>0,INDEX('INPT; Fuel Indices'!BP$14:BP$32,$F73,1),0) -> 0 | BQ73: =IF($F73<>0,INDEX('INPT; Fuel Indices'!BQ$14:BQ$32,$F73,1),0) -> 0
B74: Annual fuel cost - manual entry | C74: £/yr | J74: =J72*J73/100 -> 0 | K74: =K72*K73/100 -> 0 | L74: 0 | M74: 0 | N74: 0 | O74: 0 | P74: 0 | Q74: 0 | R74: 0 | S74: 0 | T74: 0 | U74: 0 | V74: 0 | W74: 0 | X74: 0 | Y74: 0 | Z74: 0 | AA74: 0 | AB74: 0 | AC74: 0 | AD74: 0 | AE74: 0 | AF74: 0 | AG74: 0 | AH74: 0 | AI74: 0 | AJ74: 0 | AK74: 0 | AL74: 0 | AM74: 0 | AN74: 0 | AO74: 0 | AP74: 0 | AQ74: 0 | AR74: 0 | AS74: 0 | AT74: 0 | AU74: 0 | AV74: 0 | AW74: 0 | AX74: 0 | AY74: 0 | AZ74: 0 | BA74: 0 | BB74: 0 | BC74: 0 | BD74: 0 | BE74: 0 | BF74: 0 | BG74: 0 | BH74: 0 | BI74: 0 | BJ74: 0 | BK74: 0 | BL74: 0 | BM74: 0 | BN74: 0 | BO74: 0 | BP74: 0 | BQ74: 0
B76: Fuel 3 - manual
B77: Fuel purchases - manual entry | C77: kWh
B78: Variable fuel cost - manual entry | C78: p/kWh | F78: =IFERROR(MATCH(D78,rngUserIndices,0),0) -> 0 | J78: =IF($F78<>0,INDEX('INPT; Fuel Indices'!J$14:J$32,$F78,1),0) -> 0 | K78: =IF($F78<>0,INDEX('INPT; Fuel Indices'!K$14:K$32,$F78,1),0) -> 0 | L78: =IF($F78<>0,INDEX('INPT; Fuel Indices'!L$14:L$32,$F78,1),0) -> 0 | M78: =IF($F78<>0,INDEX('INPT; Fuel Indices'!M$14:M$32,$F78,1),0) -> 0 | N78: =IF($F78<>0,INDEX('INPT; Fuel Indices'!N$14:N$32,$F78,1),0) -> 0 | O78: =IF($F78<>0,INDEX('INPT; Fuel Indices'!O$14:O$32,$F78,1),0) -> 0 | P78: =IF($F78<>0,INDEX('INPT; Fuel Indices'!P$14:P$32,$F78,1),0) -> 0 | Q78: =IF($F78<>0,INDEX('INPT; Fuel Indices'!Q$14:Q$32,$F78,1),0) -> 0 | R78: =IF($F78<>0,INDEX('INPT; Fuel Indices'!R$14:R$32,$F78,1),0) -> 0 | S78: =IF($F78<>0,INDEX('INPT; Fuel Indices'!S$14:S$32,$F78,1),0) -> 0 | T78: =IF($F78<>0,INDEX('INPT; Fuel Indices'!T$14:T$32,$F78,1),0) -> 0 | U78: =IF($F78<>0,INDEX('INPT; Fuel Indices'!U$14:U$32,$F78,1),0) -> 0 | V78: =IF($F78<>0,INDEX('INPT; Fuel Indices'!V$14:V$32,$F78,1),0) -> 0 | W78: =IF($F78<>0,INDEX('INPT; Fuel Indices'!W$14:W$32,$F78,1),0) -> 0 | X78: =IF($F78<>0,INDEX('INPT; Fuel Indices'!X$14:X$32,$F78,1),0) -> 0 | Y78: =IF($F78<>0,INDEX('INPT; Fuel Indices'!Y$14:Y$32,$F78,1),0) -> 0 | Z78: =IF($F78<>0,INDEX('INPT; Fuel Indices'!Z$14:Z$32,$F78,1),0) -> 0 | AA78: =IF($F78<>0,INDEX('INPT; Fuel Indices'!AA$14:AA$32,$F78,1),0) -> 0 | AB78: =IF($F78<>0,INDEX('INPT; Fuel Indices'!AB$14:AB$32,$F78,1),0) -> 0 | AC78: =IF($F78<>0,INDEX('INPT; Fuel Indices'!AC$14:AC$32,$F78,1),0) -> 0 | AD78: =IF($F78<>0,INDEX('INPT; Fuel Indices'!AD$14:AD$32,$F78,1),0) -> 0 | AE78: =IF($F78<>0,INDEX('INPT; Fuel Indices'!AE$14:AE$32,$F78,1),0) -> 0 | AF78: =IF($F78<>0,INDEX('INPT; Fuel Indices'!AF$14:AF$32,$F78,1),0) -> 0 | AG78: =IF($F78<>0,INDEX('INPT; Fuel Indices'!AG$14:AG$32,$F78,1),0) -> 0 | AH78: =IF($F78<>0,INDEX('INPT; Fuel Indices'!AH$14:AH$32,$F78,1),0) -> 0 | AI78: =IF($F78<>0,INDEX('INPT; Fuel Indices'!AI$14:AI$32,$F78,1),0) -> 0 | AJ78: =IF($F78<>0,INDEX('INPT; Fuel Indices'!AJ$14:AJ$32,$F78,1),0) -> 0 | AK78: =IF($F78<>0,INDEX('INPT; Fuel Indices'!AK$14:AK$32,$F78,1),0) -> 0 | AL78: =IF($F78<>0,INDEX('INPT; Fuel Indices'!AL$14:AL$32,$F78,1),0) -> 0 | AM78: =IF($F78<>0,INDEX('INPT; Fuel Indices'!AM$14:AM$32,$F78,1),0) -> 0 | AN78: =IF($F78<>0,INDEX('INPT; Fuel Indices'!AN$14:AN$32,$F78,1),0) -> 0 | AO78: =IF($F78<>0,INDEX('INPT; Fuel Indices'!AO$14:AO$32,$F78,1),0) -> 0 | AP78: =IF($F78<>0,INDEX('INPT; Fuel Indices'!AP$14:AP$32,$F78,1),0) -> 0 | AQ78: =IF($F78<>0,INDEX('INPT; Fuel Indices'!AQ$14:AQ$32,$F78,1),0) -> 0 | AR78: =IF($F78<>0,INDEX('INPT; Fuel Indices'!AR$14:AR$32,$F78,1),0) -> 0 | AS78: =IF($F78<>0,INDEX('INPT; Fuel Indices'!AS$14:AS$32,$F78,1),0) -> 0 | AT78: =IF($F78<>0,INDEX('INPT; Fuel Indices'!AT$14:AT$32,$F78,1),0) -> 0 | AU78: =IF($F78<>0,INDEX('INPT; Fuel Indices'!AU$14:AU$32,$F78,1),0) -> 0 | AV78: =IF($F78<>0,INDEX('INPT; Fuel Indices'!AV$14:AV$32,$F78,1),0) -> 0 | AW78: =IF($F78<>0,INDEX('INPT; Fuel Indices'!AW$14:AW$32,$F78,1),0) -> 0 | AX78: =IF($F78<>0,INDEX('INPT; Fuel Indices'!AX$14:AX$32,$F78,1),0) -> 0 | AY78: =IF($F78<>0,INDEX('INPT; Fuel Indices'!AY$14:AY$32,$F78,1),0) -> 0 | AZ78: =IF($F78<>0,INDEX('INPT; Fuel Indices'!AZ$14:AZ$32,$F78,1),0) -> 0 | BA78: =IF($F78<>0,INDEX('INPT; Fuel Indices'!BA$14:BA$32,$F78,1),0) -> 0 | BB78: =IF($F78<>0,INDEX('INPT; Fuel Indices'!BB$14:BB$32,$F78,1),0) -> 0 | BC78: =IF($F78<>0,INDEX('INPT; Fuel Indices'!BC$14:BC$32,$F78,1),0) -> 0 | BD78: =IF($F78<>0,INDEX('INPT; Fuel Indices'!BD$14:BD$32,$F78,1),0) -> 0 | BE78: =IF($F78<>0,INDEX('INPT; Fuel Indices'!BE$14:BE$32,$F78,1),0) -> 0 | BF78: =IF($F78<>0,INDEX('INPT; Fuel Indices'!BF$14:BF$32,$F78,1),0) -> 0 | BG78: =IF($F78<>0,INDEX('INPT; Fuel Indices'!BG$14:BG$32,$F78,1),0) -> 0 | BH78: =IF($F78<>0,INDEX('INPT; Fuel Indices'!BH$14:BH$32,$F78,1),0) -> 0 | BI78: =IF($F78<>0,INDEX('INPT; Fuel Indices'!BI$14:BI$32,$F78,1),0) -> 0 | BJ78: =IF($F78<>0,INDEX('INPT; Fuel Indices'!BJ$14:BJ$32,$F78,1),0) -> 0 | BK78: =IF($F78<>0,INDEX('INPT; Fuel Indices'!BK$14:BK$32,$F78,1),0) -> 0 | BL78: =IF($F78<>0,INDEX('INPT; Fuel Indices'!BL$14:BL$32,$F78,1),0) -> 0 | BM78: =IF($F78<>0,INDEX('INPT; Fuel Indices'!BM$14:BM$32,$F78,1),0) -> 0 | BN78: =IF($F78<>0,INDEX('INPT; Fuel Indices'!BN$14:BN$32,$F78,1),0) -> 0 | BO78: =IF($F78<>0,INDEX('INPT; Fuel Indices'!BO$14:BO$32,$F78,1),0) -> 0 | BP78: =IF($F78<>0,INDEX('INPT; Fuel Indices'!BP$14:BP$32,$F78,1),0) -> 0 | BQ78: =IF($F78<>0,INDEX('INPT; Fuel Indices'!BQ$14:BQ$32,$F78,1),0) -> 0
B79: Annual fuel cost - manual entry | C79: £/yr | J79: =J77*J78/100 -> 0 | K79: =K77*K78/100 -> 0 | L79: 0 | M79: 0 | N79: 0 | O79: 0 | P79: 0 | Q79: 0 | R79: 0 | S79: 0 | T79: 0 | U79: 0 | V79: 0 | W79: 0 | X79: 0 | Y79: 0 | Z79: 0 | AA79: 0 | AB79: 0 | AC79: 0 | AD79: 0 | AE79: 0 | AF79: 0 | AG79: 0 | AH79: 0 | AI79: 0 | AJ79: 0 | AK79: 0 | AL79: 0 | AM79: 0 | AN79: 0 | AO79: 0 | AP79: 0 | AQ79: 0 | AR79: 0 | AS79: 0 | AT79: 0 | AU79: 0 | AV79: 0 | AW79: 0 | AX79: 0 | AY79: 0 | AZ79: 0 | BA79: 0 | BB79: 0 | BC79: 0 | BD79: 0 | BE79: 0 | BF79: 0 | BG79: 0 | BH79: 0 | BI79: 0 | BJ79: 0 | BK79: 0 | BL79: 0 | BM79: 0 | BN79: 0 | BO79: 0 | BP79: 0 | BQ79: 0
B81: Fuel 4 - manual
B82: Fuel purchases - manual entry | C82: kWh
B83: Variable fuel cost - manual entry | C83: p/kWh | F83: =IFERROR(MATCH(D83,rngUserIndices,0),0) -> 0 | J83: =IF($F83<>0,INDEX('INPT; Fuel Indices'!J$14:J$32,$F83,1),0) -> 0 | K83: =IF($F83<>0,INDEX('INPT; Fuel Indices'!K$14:K$32,$F83,1),0) -> 0 | L83: =IF($F83<>0,INDEX('INPT; Fuel Indices'!L$14:L$32,$F83,1),0) -> 0 | M83: =IF($F83<>0,INDEX('INPT; Fuel Indices'!M$14:M$32,$F83,1),0) -> 0 | N83: =IF($F83<>0,INDEX('INPT; Fuel Indices'!N$14:N$32,$F83,1),0) -> 0 | O83: =IF($F83<>0,INDEX('INPT; Fuel Indices'!O$14:O$32,$F83,1),0) -> 0 | P83: =IF($F83<>0,INDEX('INPT; Fuel Indices'!P$14:P$32,$F83,1),0) -> 0 | Q83: =IF($F83<>0,INDEX('INPT; Fuel Indices'!Q$14:Q$32,$F83,1),0) -> 0 | R83: =IF($F83<>0,INDEX('INPT; Fuel Indices'!R$14:R$32,$F83,1),0) -> 0 | S83: =IF($F83<>0,INDEX('INPT; Fuel Indices'!S$14:S$32,$F83,1),0) -> 0 | T83: =IF($F83<>0,INDEX('INPT; Fuel Indices'!T$14:T$32,$F83,1),0) -> 0 | U83: =IF($F83<>0,INDEX('INPT; Fuel Indices'!U$14:U$32,$F83,1),0) -> 0 | V83: =IF($F83<>0,INDEX('INPT; Fuel Indices'!V$14:V$32,$F83,1),0) -> 0 | W83: =IF($F83<>0,INDEX('INPT; Fuel Indices'!W$14:W$32,$F83,1),0) -> 0 | X83: =IF($F83<>0,INDEX('INPT; Fuel Indices'!X$14:X$32,$F83,1),0) -> 0 | Y83: =IF($F83<>0,INDEX('INPT; Fuel Indices'!Y$14:Y$32,$F83,1),0) -> 0 | Z83: =IF($F83<>0,INDEX('INPT; Fuel Indices'!Z$14:Z$32,$F83,1),0) -> 0 | AA83: =IF($F83<>0,INDEX('INPT; Fuel Indices'!AA$14:AA$32,$F83,1),0) -> 0 | AB83: =IF($F83<>0,INDEX('INPT; Fuel Indices'!AB$14:AB$32,$F83,1),0) -> 0 | AC83: =IF($F83<>0,INDEX('INPT; Fuel Indices'!AC$14:AC$32,$F83,1),0) -> 0 | AD83: =IF($F83<>0,INDEX('INPT; Fuel Indices'!AD$14:AD$32,$F83,1),0) -> 0 | AE83: =IF($F83<>0,INDEX('INPT; Fuel Indices'!AE$14:AE$32,$F83,1),0) -> 0 | AF83: =IF($F83<>0,INDEX('INPT; Fuel Indices'!AF$14:AF$32,$F83,1),0) -> 0 | AG83: =IF($F83<>0,INDEX('INPT; Fuel Indices'!AG$14:AG$32,$F83,1),0) -> 0 | AH83: =IF($F83<>0,INDEX('INPT; Fuel Indices'!AH$14:AH$32,$F83,1),0) -> 0 | AI83: =IF($F83<>0,INDEX('INPT; Fuel Indices'!AI$14:AI$32,$F83,1),0) -> 0 | AJ83: =IF($F83<>0,INDEX('INPT; Fuel Indices'!AJ$14:AJ$32,$F83,1),0) -> 0 | AK83: =IF($F83<>0,INDEX('INPT; Fuel Indices'!AK$14:AK$32,$F83,1),0) -> 0 | AL83: =IF($F83<>0,INDEX('INPT; Fuel Indices'!AL$14:AL$32,$F83,1),0) -> 0 | AM83: =IF($F83<>0,INDEX('INPT; Fuel Indices'!AM$14:AM$32,$F83,1),0) -> 0 | AN83: =IF($F83<>0,INDEX('INPT; Fuel Indices'!AN$14:AN$32,$F83,1),0) -> 0 | AO83: =IF($F83<>0,INDEX('INPT; Fuel Indices'!AO$14:AO$32,$F83,1),0) -> 0 | AP83: =IF($F83<>0,INDEX('INPT; Fuel Indices'!AP$14:AP$32,$F83,1),0) -> 0 | AQ83: =IF($F83<>0,INDEX('INPT; Fuel Indices'!AQ$14:AQ$32,$F83,1),0) -> 0 | AR83: =IF($F83<>0,INDEX('INPT; Fuel Indices'!AR$14:AR$32,$F83,1),0) -> 0 | AS83: =IF($F83<>0,INDEX('INPT; Fuel Indices'!AS$14:AS$32,$F83,1),0) -> 0 | AT83: =IF($F83<>0,INDEX('INPT; Fuel Indices'!AT$14:AT$32,$F83,1),0) -> 0 | AU83: =IF($F83<>0,INDEX('INPT; Fuel Indices'!AU$14:AU$32,$F83,1),0) -> 0 | AV83: =IF($F83<>0,INDEX('INPT; Fuel Indices'!AV$14:AV$32,$F83,1),0) -> 0 | AW83: =IF($F83<>0,INDEX('INPT; Fuel Indices'!AW$14:AW$32,$F83,1),0) -> 0 | AX83: =IF($F83<>0,INDEX('INPT; Fuel Indices'!AX$14:AX$32,$F83,1),0) -> 0 | AY83: =IF($F83<>0,INDEX('INPT; Fuel Indices'!AY$14:AY$32,$F83,1),0) -> 0 | AZ83: =IF($F83<>0,INDEX('INPT; Fuel Indices'!AZ$14:AZ$32,$F83,1),0) -> 0 | BA83: =IF($F83<>0,INDEX('INPT; Fuel Indices'!BA$14:BA$32,$F83,1),0) -> 0 | BB83: =IF($F83<>0,INDEX('INPT; Fuel Indices'!BB$14:BB$32,$F83,1),0) -> 0 | BC83: =IF($F83<>0,INDEX('INPT; Fuel Indices'!BC$14:BC$32,$F83,1),0) -> 0 | BD83: =IF($F83<>0,INDEX('INPT; Fuel Indices'!BD$14:BD$32,$F83,1),0) -> 0 | BE83: =IF($F83<>0,INDEX('INPT; Fuel Indices'!BE$14:BE$32,$F83,1),0) -> 0 | BF83: =IF($F83<>0,INDEX('INPT; Fuel Indices'!BF$14:BF$32,$F83,1),0) -> 0 | BG83: =IF($F83<>0,INDEX('INPT; Fuel Indices'!BG$14:BG$32,$F83,1),0) -> 0 | BH83: =IF($F83<>0,INDEX('INPT; Fuel Indices'!BH$14:BH$32,$F83,1),0) -> 0 | BI83: =IF($F83<>0,INDEX('INPT; Fuel Indices'!BI$14:BI$32,$F83,1),0) -> 0 | BJ83: =IF($F83<>0,INDEX('INPT; Fuel Indices'!BJ$14:BJ$32,$F83,1),0) -> 0 | BK83: =IF($F83<>0,INDEX('INPT; Fuel Indices'!BK$14:BK$32,$F83,1),0) -> 0 | BL83: =IF($F83<>0,INDEX('INPT; Fuel Indices'!BL$14:BL$32,$F83,1),0) -> 0 | BM83: =IF($F83<>0,INDEX('INPT; Fuel Indices'!BM$14:BM$32,$F83,1),0) -> 0 | BN83: =IF($F83<>0,INDEX('INPT; Fuel Indices'!BN$14:BN$32,$F83,1),0) -> 0 | BO83: =IF($F83<>0,INDEX('INPT; Fuel Indices'!BO$14:BO$32,$F83,1),0) -> 0 | BP83: =IF($F83<>0,INDEX('INPT; Fuel Indices'!BP$14:BP$32,$F83,1),0) -> 0 | BQ83: =IF($F83<>0,INDEX('INPT; Fuel Indices'!BQ$14:BQ$32,$F83,1),0) -> 0
B84: Annual fuel cost - manual entry | C84: £/yr | J84: =J82*J83/100 -> 0 | K84: =K82*K83/100 -> 0 | L84: 0 | M84: 0 | N84: 0 | O84: 0 | P84: 0 | Q84: 0 | R84: 0 | S84: 0 | T84: 0 | U84: 0 | V84: 0 | W84: 0 | X84: 0 | Y84: 0 | Z84: 0 | AA84: 0 | AB84: 0 | AC84: 0 | AD84: 0 | AE84: 0 | AF84: 0 | AG84: 0 | AH84: 0 | AI84: 0 | AJ84: 0 | AK84: 0 | AL84: 0 | AM84: 0 | AN84: 0 | AO84: 0 | AP84: 0 | AQ84: 0 | AR84: 0 | AS84: 0 | AT84: 0 | AU84: 0 | AV84: 0 | AW84: 0 | AX84: 0 | AY84: 0 | AZ84: 0 | BA84: 0 | BB84: 0 | BC84: 0 | BD84: 0 | BE84: 0 | BF84: 0 | BG84: 0 | BH84: 0 | BI84: 0 | BJ84: 0 | BK84: 0 | BL84: 0 | BM84: 0 | BN84: 0 | BO84: 0 | BP84: 0 | BQ84: 0
B86: Fuel 5 - manual
B87: Fuel purchases - manual entry | C87: kWh
B88: Variable fuel cost - manual entry | C88: p/kWh | F88: =IFERROR(MATCH(D88,rngUserIndices,0),0) -> 0 | J88: =IF($F88<>0,INDEX('INPT; Fuel Indices'!J$14:J$32,$F88,1),0) -> 0 | K88: =IF($F88<>0,INDEX('INPT; Fuel Indices'!K$14:K$32,$F88,1),0) -> 0 | L88: =IF($F88<>0,INDEX('INPT; Fuel Indices'!L$14:L$32,$F88,1),0) -> 0 | M88: =IF($F88<>0,INDEX('INPT; Fuel Indices'!M$14:M$32,$F88,1),0) -> 0 | N88: =IF($F88<>0,INDEX('INPT; Fuel Indices'!N$14:N$32,$F88,1),0) -> 0 | O88: =IF($F88<>0,INDEX('INPT; Fuel Indices'!O$14:O$32,$F88,1),0) -> 0 | P88: =IF($F88<>0,INDEX('INPT; Fuel Indices'!P$14:P$32,$F88,1),0) -> 0 | Q88: =IF($F88<>0,INDEX('INPT; Fuel Indices'!Q$14:Q$32,$F88,1),0) -> 0 | R88: =IF($F88<>0,INDEX('INPT; Fuel Indices'!R$14:R$32,$F88,1),0) -> 0 | S88: =IF($F88<>0,INDEX('INPT; Fuel Indices'!S$14:S$32,$F88,1),0) -> 0 | T88: =IF($F88<>0,INDEX('INPT; Fuel Indices'!T$14:T$32,$F88,1),0) -> 0 | U88: =IF($F88<>0,INDEX('INPT; Fuel Indices'!U$14:U$32,$F88,1),0) -> 0 | V88: =IF($F88<>0,INDEX('INPT; Fuel Indices'!V$14:V$32,$F88,1),0) -> 0 | W88: =IF($F88<>0,INDEX('INPT; Fuel Indices'!W$14:W$32,$F88,1),0) -> 0 | X88: =IF($F88<>0,INDEX('INPT; Fuel Indices'!X$14:X$32,$F88,1),0) -> 0 | Y88: =IF($F88<>0,INDEX('INPT; Fuel Indices'!Y$14:Y$32,$F88,1),0) -> 0 | Z88: =IF($F88<>0,INDEX('INPT; Fuel Indices'!Z$14:Z$32,$F88,1),0) -> 0 | AA88: =IF($F88<>0,INDEX('INPT; Fuel Indices'!AA$14:AA$32,$F88,1),0) -> 0 | AB88: =IF($F88<>0,INDEX('INPT; Fuel Indices'!AB$14:AB$32,$F88,1),0) -> 0 | AC88: =IF($F88<>0,INDEX('INPT; Fuel Indices'!AC$14:AC$32,$F88,1),0) -> 0 | AD88: =IF($F88<>0,INDEX('INPT; Fuel Indices'!AD$14:AD$32,$F88,1),0) -> 0 | AE88: =IF($F88<>0,INDEX('INPT; Fuel Indices'!AE$14:AE$32,$F88,1),0) -> 0 | AF88: =IF($F88<>0,INDEX('INPT; Fuel Indices'!AF$14:AF$32,$F88,1),0) -> 0 | AG88: =IF($F88<>0,INDEX('INPT; Fuel Indices'!AG$14:AG$32,$F88,1),0) -> 0 | AH88: =IF($F88<>0,INDEX('INPT; Fuel Indices'!AH$14:AH$32,$F88,1),0) -> 0 | AI88: =IF($F88<>0,INDEX('INPT; Fuel Indices'!AI$14:AI$32,$F88,1),0) -> 0 | AJ88: =IF($F88<>0,INDEX('INPT; Fuel Indices'!AJ$14:AJ$32,$F88,1),0) -> 0 | AK88: =IF($F88<>0,INDEX('INPT; Fuel Indices'!AK$14:AK$32,$F88,1),0) -> 0 | AL88: =IF($F88<>0,INDEX('INPT; Fuel Indices'!AL$14:AL$32,$F88,1),0) -> 0 | AM88: =IF($F88<>0,INDEX('INPT; Fuel Indices'!AM$14:AM$32,$F88,1),0) -> 0 | AN88: =IF($F88<>0,INDEX('INPT; Fuel Indices'!AN$14:AN$32,$F88,1),0) -> 0 | AO88: =IF($F88<>0,INDEX('INPT; Fuel Indices'!AO$14:AO$32,$F88,1),0) -> 0 | AP88: =IF($F88<>0,INDEX('INPT; Fuel Indices'!AP$14:AP$32,$F88,1),0) -> 0 | AQ88: =IF($F88<>0,INDEX('INPT; Fuel Indices'!AQ$14:AQ$32,$F88,1),0) -> 0 | AR88: =IF($F88<>0,INDEX('INPT; Fuel Indices'!AR$14:AR$32,$F88,1),0) -> 0 | AS88: =IF($F88<>0,INDEX('INPT; Fuel Indices'!AS$14:AS$32,$F88,1),0) -> 0 | AT88: =IF($F88<>0,INDEX('INPT; Fuel Indices'!AT$14:AT$32,$F88,1),0) -> 0 | AU88: =IF($F88<>0,INDEX('INPT; Fuel Indices'!AU$14:AU$32,$F88,1),0) -> 0 | AV88: =IF($F88<>0,INDEX('INPT; Fuel Indices'!AV$14:AV$32,$F88,1),0) -> 0 | AW88: =IF($F88<>0,INDEX('INPT; Fuel Indices'!AW$14:AW$32,$F88,1),0) -> 0 | AX88: =IF($F88<>0,INDEX('INPT; Fuel Indices'!AX$14:AX$32,$F88,1),0) -> 0 | AY88: =IF($F88<>0,INDEX('INPT; Fuel Indices'!AY$14:AY$32,$F88,1),0) -> 0 | AZ88: =IF($F88<>0,INDEX('INPT; Fuel Indices'!AZ$14:AZ$32,$F88,1),0) -> 0 | BA88: =IF($F88<>0,INDEX('INPT; Fuel Indices'!BA$14:BA$32,$F88,1),0) -> 0 | BB88: =IF($F88<>0,INDEX('INPT; Fuel Indices'!BB$14:BB$32,$F88,1),0) -> 0 | BC88: =IF($F88<>0,INDEX('INPT; Fuel Indices'!BC$14:BC$32,$F88,1),0) -> 0 | BD88: =IF($F88<>0,INDEX('INPT; Fuel Indices'!BD$14:BD$32,$F88,1),0) -> 0 | BE88: =IF($F88<>0,INDEX('INPT; Fuel Indices'!BE$14:BE$32,$F88,1),0) -> 0 | BF88: =IF($F88<>0,INDEX('INPT; Fuel Indices'!BF$14:BF$32,$F88,1),0) -> 0 | BG88: =IF($F88<>0,INDEX('INPT; Fuel Indices'!BG$14:BG$32,$F88,1),0) -> 0 | BH88: =IF($F88<>0,INDEX('INPT; Fuel Indices'!BH$14:BH$32,$F88,1),0) -> 0 | BI88: =IF($F88<>0,INDEX('INPT; Fuel Indices'!BI$14:BI$32,$F88,1),0) -> 0 | BJ88: =IF($F88<>0,INDEX('INPT; Fuel Indices'!BJ$14:BJ$32,$F88,1),0) -> 0 | BK88: =IF($F88<>0,INDEX('INPT; Fuel Indices'!BK$14:BK$32,$F88,1),0) -> 0 | BL88: =IF($F88<>0,INDEX('INPT; Fuel Indices'!BL$14:BL$32,$F88,1),0) -> 0 | BM88: =IF($F88<>0,INDEX('INPT; Fuel Indices'!BM$14:BM$32,$F88,1),0) -> 0 | BN88: =IF($F88<>0,INDEX('INPT; Fuel Indices'!BN$14:BN$32,$F88,1),0) -> 0 | BO88: =IF($F88<>0,INDEX('INPT; Fuel Indices'!BO$14:BO$32,$F88,1),0) -> 0 | BP88: =IF($F88<>0,INDEX('INPT; Fuel Indices'!BP$14:BP$32,$F88,1),0) -> 0 | BQ88: =IF($F88<>0,INDEX('INPT; Fuel Indices'!BQ$14:BQ$32,$F88,1),0) -> 0
B89: Annual fuel cost - manual entry | C89: £/yr | J89: =J87*J88/100 -> 0 | K89: =K87*K88/100 -> 0 | L89: 0 | M89: 0 | N89: 0 | O89: 0 | P89: 0 | Q89: 0 | R89: 0 | S89: 0 | T89: 0 | U89: 0 | V89: 0 | W89: 0 | X89: 0 | Y89: 0 | Z89: 0 | AA89: 0 | AB89: 0 | AC89: 0 | AD89: 0 | AE89: 0 | AF89: 0 | AG89: 0 | AH89: 0 | AI89: 0 | AJ89: 0 | AK89: 0 | AL89: 0 | AM89: 0 | AN89: 0 | AO89: 0 | AP89: 0 | AQ89: 0 | AR89: 0 | AS89: 0 | AT89: 0 | AU89: 0 | AV89: 0 | AW89: 0 | AX89: 0 | AY89: 0 | AZ89: 0 | BA89: 0 | BB89: 0 | BC89: 0 | BD89: 0 | BE89: 0 | BF89: 0 | BG89: 0 | BH89: 0 | BI89: 0 | BJ89: 0 | BK89: 0 | BL89: 0 | BM89: 0 | BN89: 0 | BO89: 0 | BP89: 0 | BQ89: 0
B91: Manual fuel cost | C91: £/yr | J91: =J89+J84+J79+J74+J69 -> 0 | K91: =K89+K84+K79+K74+K69 -> 0 | L91: 0 | M91: 0 | N91: 0 | O91: 0 | P91: 0 | Q91: 0 | R91: 0 | S91: 0 | T91: 0 | U91: 0 | V91: 0 | W91: 0 | X91: 0 | Y91: 0 | Z91: 0 | AA91: 0 | AB91: 0 | AC91: 0 | AD91: 0 | AE91: 0 | AF91: 0 | AG91: 0 | AH91: 0 | AI91: 0 | AJ91: 0 | AK91: 0 | AL91: 0 | AM91: 0 | AN91: 0 | AO91: 0 | AP91: 0 | AQ91: 0 | AR91: 0 | AS91: 0 | AT91: 0 | AU91: 0 | AV91: 0 | AW91: 0 | AX91: 0 | AY91: 0 | AZ91: 0 | BA91: 0 | BB91: 0 | BC91: 0 | BD91: 0 | BE91: 0 | BF91: 0 | BG91: 0 | BH91: 0 | BI91: 0 | BJ91: 0 | BK91: 0 | BL91: 0 | BM91: 0 | BN91: 0 | BO91: 0 | BP91: 0 | BQ91: 0
B93: Fuel cost selected | C93: £/yr | J93: =IF($E52,J91,J53) -> 0 | K93: 0 | L93: 0 | M93: 0 | N93: 0 | O93: 0 | P93: 0 | Q93: 0 | R93: 0 | S93: 0 | T93: 0 | U93: 0 | V93: 0 | W93: 0 | X93: 0 | Y93: 0 | Z93: 0 | AA93: 0 | AB93: 0 | AC93: 0 | AD93: 0 | AE93: 0 | AF93: 0 | AG93: 0 | AH93: 0 | AI93: 0 | AJ93: 0 | AK93: 0 | AL93: 0 | AM93: 0 | AN93: 0 | AO93: 0 | AP93: =IF($E52,AP91,AP53) -> 0 | AQ93: 0 | AR93: 0 | AS93: 0 | AT93: 0 | AU93: 0 | AV93: 0 | AW93: 0 | AX93: 0 | AY93: 0 | AZ93: 0 | BA93: 0 | BB93: 0 | BC93: 0 | BD93: 0 | BE93: 0 | BF93: 0 | BG93: 0 | BH93: 0 | BI93: 0 | BJ93: 0 | BK93: 0 | BL93: 0 | BM93: 0 | BN93: 0 | BO93: 0 | BP93: 0 | BQ93: 0
B95: VAT on variable fuel
B96: Enter manually? | C96: T/F | E96: =IF(D96="",FALSE,D96) -> FALSE
B97: VAT rate per global assumptions | C97: % | D97: ='INPT; General'!$D$17 -> 0.2
B98: Irrecoverable VAT | C98: % | D98: ='INPT; General'!$F$17 -> 0
B100: VAT rate - manual entry | C100: %
B101: Proportion of VAT that is irrecoverable - manual entry | C101: %
B103: Selected - irrecoverable VAT | C103: £ | D103: =IF(E96,D100,D97) -> 0.2 | E103: =IF(E96,D101,D98) -> 0 | J103: =J93*$D103*$E103 -> 0 | K103: =K93*$D103*$E103 -> 0 | L103: 0 | M103: 0 | N103: 0 | O103: 0 | P103: 0 | Q103: 0 | R103: 0 | S103: 0 | T103: 0 | U103: 0 | V103: 0 | W103: 0 | X103: 0 | Y103: 0 | Z103: 0 | AA103: 0 | AB103: 0 | AC103: 0 | AD103: 0 | AE103: 0 | AF103: 0 | AG103: 0 | AH103: 0 | AI103: 0 | AJ103: 0 | AK103: 0 | AL103: 0 | AM103: 0 | AN103: 0 | AO103: 0 | AP103: 0 | AQ103: 0 | AR103: 0 | AS103: 0 | AT103: 0 | AU103: 0 | AV103: 0 | AW103: 0 | AX103: 0 | AY103: 0 | AZ103: 0 | BA103: 0 | BB103: 0 | BC103: 0 | BD103: 0 | BE103: 0 | BF103: 0 | BG103: 0 | BH103: 0 | BI103: 0 | BJ103: 0 | BK103: 0 | BL103: 0 | BM103: 0 | BN103: 0 | BO103: 0 | BP103: 0 | BQ103: 0
B105: Fuel - fixed
B106: Enter manually? | C106: T/F | E106: =IF(D106="",FALSE,D106) -> FALSE
B107: Fixed day rate for fuel per flat file | C107: £/day | D107: =INDEX($E$1254:$E$1260,G18,1) -> 0 | J107: =$D107*J$11 -> 0 | K107: =$D107*K$11 -> 0 | L107: 0 | M107: 0 | N107: 0 | O107: 0 | P107: 0 | Q107: 0 | R107: 0 | S107: 0 | T107: 0 | U107: 0 | V107: 0 | W107: 0 | X107: 0 | Y107: 0 | Z107: 0 | AA107: 0 | AB107: 0 | AC107: 0 | AD107: 0 | AE107: 0 | AF107: 0 | AG107: 0 | AH107: 0 | AI107: 0 | AJ107: 0 | AK107: 0 | AL107: 0 | AM107: 0 | AN107: 0 | AO107: 0 | AP107: 0 | AQ107: 0 | AR107: 0 | AS107: 0 | AT107: 0 | AU107: 0 | AV107: 0 | AW107: 0 | AX107: 0 | AY107: 0 | AZ107: 0 | BA107: 0 | BB107: 0 | BC107: 0 | BD107: 0 | BE107: 0 | BF107: 0 | BG107: 0 | BH107: 0 | BI107: 0 | BJ107: 0 | BK107: 0 | BL107: 0 | BM107: 0 | BN107: 0 | BO107: 0 | BP107: 0 | BQ107: 0
B108: Fixed day rate for fuel per flat file | C108: £/yr | J108: =J107*J$13 -> 0 | K108: =K107*K$13 -> 0 | L108: 0 | M108: 0 | N108: 0 | O108: 0 | P108: 0 | Q108: 0 | R108: 0 | S108: 0 | T108: 0 | U108: 0 | V108: 0 | W108: 0 | X108: 0 | Y108: 0 | Z108: 0 | AA108: 0 | AB108: 0 | AC108: 0 | AD108: 0 | AE108: 0 | AF108: 0 | AG108: 0 | AH108: 0 | AI108: 0 | AJ108: 0 | AK108: 0 | AL108: 0 | AM108: 0 | AN108: 0 | AO108: 0 | AP108: 0 | AQ108: 0 | AR108: 0 | AS108: 0 | AT108: 0 | AU108: 0 | AV108: 0 | AW108: 0 | AX108: 0 | AY108: 0 | AZ108: 0 | BA108: 0 | BB108: 0 | BC108: 0 | BD108: 0 | BE108: 0 | BF108: 0 | BG108: 0 | BH108: 0 | BI108: 0 | BJ108: 0 | BK108: 0 | BL108: 0 | BM108: 0 | BN108: 0 | BO108: 0 | BP108: 0 | BQ108: 0
B110: Fixed day rate for fuel - manual entry | C110: £/day
B111: Fixed day rate for fuel - manual entry | C111: £/yr | J111: =J110*J13 -> 0 | K111: 0 | L111: 0 | M111: 0 | N111: 0 | O111: 0 | P111: 0 | Q111: 0 | R111: 0 | S111: 0 | T111: 0 | U111: 0 | V111: 0 | W111: 0 | X111: 0 | Y111: 0 | Z111: 0 | AA111: 0 | AB111: 0 | AC111: 0 | AD111: 0 | AE111: 0 | AF111: 0 | AG111: 0 | AH111: 0 | AI111: 0 | AJ111: 0 | AK111: 0 | AL111: 0 | AM111: 0 | AN111: 0 | AO111: 0 | AP111: =AP110*AP13 -> 0 | AQ111: 0 | AR111: 0 | AS111: 0 | AT111: 0 | AU111: 0 | AV111: 0 | AW111: 0 | AX111: 0 | AY111: 0 | AZ111: 0 | BA111: 0 | BB111: 0 | BC111: 0 | BD111: 0 | BE111: 0 | BF111: 0 | BG111: 0 | BH111: 0 | BI111: 0 | BJ111: 0 | BK111: 0 | BL111: 0 | BM111: 0 | BN111: 0 | BO111: 0 | BP111: 0 | BQ111: 0
B113: Fixed rate selected | C113: £ | J113: =IF($E106,J111,J108) -> 0 | K113: =IF($E106,K111,K108) -> 0 | L113: 0 | M113: 0 | N113: 0 | O113: 0 | P113: 0 | Q113: 0 | R113: 0 | S113: 0 | T113: 0 | U113: 0 | V113: 0 | W113: 0 | X113: 0 | Y113: 0 | Z113: 0 | AA113: 0 | AB113: 0 | AC113: 0 | AD113: 0 | AE113: 0 | AF113: 0 | AG113: 0 | AH113: 0 | AI113: 0 | AJ113: 0 | AK113: 0 | AL113: 0 | AM113: 0 | AN113: 0 | AO113: 0 | AP113: 0 | AQ113: 0 | AR113: 0 | AS113: 0 | AT113: 0 | AU113: 0 | AV113: 0 | AW113: 0 | AX113: 0 | AY113: 0 | AZ113: 0 | BA113: 0 | BB113: 0 | BC113: 0 | BD113: 0 | BE113: 0 | BF113: 0 | BG113: 0 | BH113: 0 | BI113: 0 | BJ113: 0 | BK113: 0 | BL113: 0 | BM113: 0 | BN113: 0 | BO113: 0 | BP113: 0 | BQ113: 0
B115: VAT on fixed fuel
B116: Enter manually? | C116: T/F | E116: =IF(D116="",FALSE,D116) -> FALSE
B117: VAT rate per global assumptions | C117: % | D117: ='INPT; General'!$D$17 -> 0.2
B118: Proportion of VAT that is irrecoverable | C118: % | D118: ='INPT; General'!$F$17 -> 0
B120: VAT rate - manual entry | C120: %
B121: Proportion of VAT that is irrecoverable - manual entry | C121: %
B123: Selected - irrecoverable VAT | C123: £ | D123: =IF(E116,D120,D117) -> 0.2 | E123: =IF(E116,D121,D118) -> 0 | J123: =J113*$D123*$E123 -> 0 | K123: =K113*$D123*$E123 -> 0 | L123: 0 | M123: 0 | N123: 0 | O123: 0 | P123: 0 | Q123: 0 | R123: 0 | S123: 0 | T123: 0 | U123: 0 | V123: 0 | W123: 0 | X123: 0 | Y123: 0 | Z123: 0 | AA123: 0 | AB123: 0 | AC123: 0 | AD123: 0 | AE123: 0 | AF123: 0 | AG123: 0 | AH123: 0 | AI123: 0 | AJ123: 0 | AK123: 0 | AL123: 0 | AM123: 0 | AN123: 0 | AO123: 0 | AP123: 0 | AQ123: 0 | AR123: 0 | AS123: 0 | AT123: 0 | AU123: 0 | AV123: 0 | AW123: 0 | AX123: 0 | AY123: 0 | AZ123: 0 | BA123: 0 | BB123: 0 | BC123: 0 | BD123: 0 | BE123: 0 | BF123: 0 | BG123: 0 | BH123: 0 | BI123: 0 | BJ123: 0 | BK123: 0 | BL123: 0 | BM123: 0 | BN123: 0 | BO123: 0 | BP123: 0 | BQ123: 0
B125: O&M
B126: Enter manually? | C126: T/F | E126: =IF(D126="",FALSE,D126) -> FALSE
B127: O&M per flatfile | C127: £ | D127: =INDEX($H$1230:$H$1236,G18,1)+INDEX($I$1230:$I$1236,G18,1) -> 0 | J127: =$D127*J$11 -> 0 | K127: =$D127*K$11 -> 0 | L127: 0 | M127: 0 | N127: 0 | O127: 0 | P127: 0 | Q127: 0 | R127: 0 | S127: 0 | T127: 0 | U127: 0 | V127: 0 | W127: 0 | X127: 0 | Y127: 0 | Z127: 0 | AA127: 0 | AB127: 0 | AC127: 0 | AD127: 0 | AE127: 0 | AF127: 0 | AG127: 0 | AH127: 0 | AI127: 0 | AJ127: 0 | AK127: 0 | AL127: 0 | AM127: 0 | AN127: 0 | AO127: 0 | AP127: 0 | AQ127: 0 | AR127: 0 | AS127: 0 | AT127: 0 | AU127: 0 | AV127: 0 | AW127: 0 | AX127: 0 | AY127: 0 | AZ127: 0 | BA127: 0 | BB127: 0 | BC127: 0 | BD127: 0 | BE127: 0 | BF127: 0 | BG127: 0 | BH127: 0 | BI127: 0 | BJ127: 0 | BK127: 0 | BL127: 0 | BM127: 0 | BN127: 0 | BO127: 0 | BP127: 0 | BQ127: 0
B128: O&M - manual entry | C128: £
B130: O&M Selected | C130: £ | J130: =IF($E126,J128,J127) -> 0 | K130: =IF($E126,K128,K127) -> 0 | L130: 0 | M130: 0 | N130: 0 | O130: 0 | P130: 0 | Q130: 0 | R130: 0 | S130: 0 | T130: 0 | U130: 0 | V130: 0 | W130: 0 | X130: 0 | Y130: 0 | Z130: 0 | AA130: 0 | AB130: 0 | AC130: 0 | AD130: 0 | AE130: 0 | AF130: 0 | AG130: 0 | AH130: 0 | AI130: 0 | AJ130: 0 | AK130: 0 | AL130: 0 | AM130: 0 | AN130: 0 | AO130: 0 | AP130: 0 | AQ130: 0 | AR130: 0 | AS130: 0 | AT130: 0 | AU130: 0 | AV130: 0 | AW130: 0 | AX130: 0 | AY130: 0 | AZ130: 0 | BA130: 0 | BB130: 0 | BC130: 0 | BD130: 0 | BE130: 0 | BF130: 0 | BG130: 0 | BH130: 0 | BI130: 0 | BJ130: 0 | BK130: 0 | BL130: 0 | BM130: 0 | BN130: 0 | BO130: 0 | BP130: 0 | BQ130: 0
B132: VAT on O&M
B133: Enter manually | C133: T/F | E133: =IF(D133="",FALSE,D133) -> FALSE
B134: VAT rate per global assumptions | C134: % | D134: ='INPT; General'!$D$19 -> 0.2
B135: Proportion of VAT that is irrecoverable | C135: % | D135: ='INPT; General'!$F$19 -> 0
B137: VAT rate - manual entry | C137: %
B138: Proportion of VAT that is irrecoverable - manual entry | C138: %
B140: Selected - irrecoverable VAT | C140: £ | D140: =IF(E133,D137,D134) -> 0.2 | E140: =IF(E133,D138,D135) -> 0 | J140: =J130*$D140*$E140 -> 0 | K140: =K130*$D140*$E140 -> 0 | L140: 0 | M140: 0 | N140: 0 | O140: 0 | P140: 0 | Q140: 0 | R140: 0 | S140: 0 | T140: 0 | U140: 0 | V140: 0 | W140: 0 | X140: 0 | Y140: 0 | Z140: 0 | AA140: 0 | AB140: 0 | AC140: 0 | AD140: 0 | AE140: 0 | AF140: 0 | AG140: 0 | AH140: 0 | AI140: 0 | AJ140: 0 | AK140: 0 | AL140: 0 | AM140: 0 | AN140: 0 | AO140: 0 | AP140: 0 | AQ140: 0 | AR140: 0 | AS140: 0 | AT140: 0 | AU140: 0 | AV140: 0 | AW140: 0 | AX140: 0 | AY140: 0 | AZ140: 0 | BA140: 0 | BB140: 0 | BC140: 0 | BD140: 0 | BE140: 0 | BF140: 0 | BG140: 0 | BH140: 0 | BI140: 0 | BJ140: 0 | BK140: 0 | BL140: 0 | BM140: 0 | BN140: 0 | BO140: 0 | BP140: 0 | BQ140: 0
B142: Combined Cash Flows
B143: Repex | C143: £ | D143: =SUM(J143:BQ143) -> 0 | J143: =J38 -> 0 | K143: 0 | L143: 0 | M143: 0 | N143: 0 | O143: 0 | P143: 0 | Q143: 0 | R143: 0 | S143: 0 | T143: 0 | U143: 0 | V143: 0 | W143: 0 | X143: 0 | Y143: 0 | Z143: 0 | AA143: 0 | AB143: 0 | AC143: 0 | AD143: 0 | AE143: 0 | AF143: 0 | AG143: 0 | AH143: 0 | AI143: 0 | AJ143: 0 | AK143: 0 | AL143: 0 | AM143: 0 | AN143: 0 | AO143: 0 | AP143: =AP38 -> 0 | AQ143: 0 | AR143: 0 | AS143: 0 | AT143: 0 | AU143: 0 | AV143: 0 | AW143: 0 | AX143: 0 | AY143: 0 | AZ143: 0 | BA143: 0 | BB143: 0 | BC143: 0 | BD143: 0 | BE143: 0 | BF143: 0 | BG143: 0 | BH143: 0 | BI143: 0 | BJ143: 0 | BK143: 0 | BL143: 0 | BM143: 0 | BN143: 0 | BO143: 0 | BP143: 0 | BQ143: 0
B144: Irrecoverable VAT on repex | C144: £ | D144: =SUM(J144:BQ144) -> 0 | J144: =J49 -> 0 | K144: 0 | L144: 0 | M144: 0 | N144: 0 | O144: 0 | P144: 0 | Q144: 0 | R144: 0 | S144: 0 | T144: 0 | U144: 0 | V144: 0 | W144: 0 | X144: 0 | Y144: 0 | Z144: 0 | AA144: 0 | AB144: 0 | AC144: 0 | AD144: 0 | AE144: 0 | AF144: 0 | AG144: 0 | AH144: 0 | AI144: 0 | AJ144: 0 | AK144: 0 | AL144: 0 | AM144: 0 | AN144: 0 | AO144: 0 | AP144: =AP49 -> 0 | AQ144: 0 | AR144: 0 | AS144: 0 | AT144: 0 | AU144: 0 | AV144: 0 | AW144: 0 | AX144: 0 | AY144: 0 | AZ144: 0 | BA144: 0 | BB144: 0 | BC144: 0 | BD144: 0 | BE144: 0 | BF144: 0 | BG144: 0 | BH144: 0 | BI144: 0 | BJ144: 0 | BK144: 0 | BL144: 0 | BM144: 0 | BN144: 0 | BO144: 0 | BP144: 0 | BQ144: 0
B145: Repex carrying value at end of appraisal | C145: £ | D145: =SUM(J145:BQ145) -> 0 | J145: =J39 -> 0 | K145: 0 | L145: 0 | M145: 0 | N145: 0 | O145: 0 | P145: 0 | Q145: 0 | R145: 0 | S145: 0 | T145: 0 | U145: 0 | V145: 0 | W145: 0 | X145: 0 | Y145: 0 | Z145: 0 | AA145: 0 | AB145: 0 | AC145: 0 | AD145: 0 | AE145: 0 | AF145: 0 | AG145: 0 | AH145: 0 | AI145: 0 | AJ145: 0 | AK145: 0 | AL145: 0 | AM145: 0 | AN145: 0 | AO145: 0 | AP145: =AP39 -> 0 | AQ145: 0 | AR145: 0 | AS145: 0 | AT145: 0 | AU145: 0 | AV145: 0 | AW145: 0 | AX145: 0 | AY145: 0 | AZ145: 0 | BA145: 0 | BB145: 0 | BC145: 0 | BD145: 0 | BE145: 0 | BF145: 0 | BG145: 0 | BH145: 0 | BI145: 0 | BJ145: 0 | BK145: 0 | BL145: 0 | BM145: 0 | BN145: 0 | BO145: 0 | BP145: 0 | BQ145: 0
B146: Fuel - variable | C146: £ | D146: 0 | J146: =J93 -> 0 | K146: =K93 -> 0 | L146: 0 | M146: 0 | N146: 0 | O146: 0 | P146: 0 | Q146: 0 | R146: 0 | S146: 0 | T146: 0 | U146: 0 | V146: 0 | W146: 0 | X146: 0 | Y146: 0 | Z146: 0 | AA146: 0 | AB146: 0 | AC146: 0 | AD146: 0 | AE146: 0 | AF146: 0 | AG146: 0 | AH146: 0 | AI146: 0 | AJ146: 0 | AK146: 0 | AL146: 0 | AM146: 0 | AN146: 0 | AO146: 0 | AP146: 0 | AQ146: 0 | AR146: 0 | AS146: 0 | AT146: 0 | AU146: 0 | AV146: 0 | AW146: 0 | AX146: 0 | AY146: 0 | AZ146: 0 | BA146: 0 | BB146: 0 | BC146: 0 | BD146: 0 | BE146: 0 | BF146: 0 | BG146: 0 | BH146: 0 | BI146: 0 | BJ146: 0 | BK146: 0 | BL146: 0 | BM146: 0 | BN146: 0 | BO146: 0 | BP146: 0 | BQ146: 0
B147: Irrecoverable VAT on variable fuel | C147: £ | D147: 0 | J147: =J103 -> 0 | K147: =K103 -> 0 | L147: 0 | M147: 0 | N147: 0 | O147: 0 | P147: 0 | Q147: 0 | R147: 0 | S147: 0 | T147: 0 | U147: 0 | V147: 0 | W147: 0 | X147: 0 | Y147: 0 | Z147: 0 | AA147: 0 | AB147: 0 | AC147: 0 | AD147: 0 | AE147: 0 | AF147: 0 | AG147: 0 | AH147: 0 | AI147: 0 | AJ147: 0 | AK147: 0 | AL147: 0 | AM147: 0 | AN147: 0 | AO147: 0 | AP147: 0 | AQ147: 0 | AR147: 0 | AS147: 0 | AT147: 0 | AU147: 0 | AV147: 0 | AW147: 0 | AX147: 0 | AY147: 0 | AZ147: 0 | BA147: 0 | BB147: 0 | BC147: 0 | BD147: 0 | BE147: 0 | BF147: 0 | BG147: 0 | BH147: 0 | BI147: 0 | BJ147: 0 | BK147: 0 | BL147: 0 | BM147: 0 | BN147: 0 | BO147: 0 | BP147: 0 | BQ147: 0
B148: Fuel - fixed day rate | C148: £ | D148: 0 | J148: =J113 -> 0 | K148: =K113 -> 0 | L148: 0 | M148: 0 | N148: 0 | O148: 0 | P148: 0 | Q148: 0 | R148: 0 | S148: 0 | T148: 0 | U148: 0 | V148: 0 | W148: 0 | X148: 0 | Y148: 0 | Z148: 0 | AA148: 0 | AB148: 0 | AC148: 0 | AD148: 0 | AE148: 0 | AF148: 0 | AG148: 0 | AH148: 0 | AI148: 0 | AJ148: 0 | AK148: 0 | AL148: 0 | AM148: 0 | AN148: 0 | AO148: 0 | AP148: 0 | AQ148: 0 | AR148: 0 | AS148: 0 | AT148: 0 | AU148: 0 | AV148: 0 | AW148: 0 | AX148: 0 | AY148: 0 | AZ148: 0 | BA148: 0 | BB148: 0 | BC148: 0 | BD148: 0 | BE148: 0 | BF148: 0 | BG148: 0 | BH148: 0 | BI148: 0 | BJ148: 0 | BK148: 0 | BL148: 0 | BM148: 0 | BN148: 0 | BO148: 0 | BP148: 0 | BQ148: 0
B149: Irrecoverable VAT on fuel day rate | C149: £ | D149: 0 | J149: =J123 -> 0 | K149: =K123 -> 0 | L149: 0 | M149: 0 | N149: 0 | O149: 0 | P149: 0 | Q149: 0 | R149: 0 | S149: 0 | T149: 0 | U149: 0 | V149: 0 | W149: 0 | X149: 0 | Y149: 0 | Z149: 0 | AA149: 0 | AB149: 0 | AC149: 0 | AD149: 0 | AE149: 0 | AF149: 0 | AG149: 0 | AH149: 0 | AI149: 0 | AJ149: 0 | AK149: 0 | AL149: 0 | AM149: 0 | AN149: 0 | AO149: 0 | AP149: 0 | AQ149: 0 | AR149: 0 | AS149: 0 | AT149: 0 | AU149: 0 | AV149: 0 | AW149: 0 | AX149: 0 | AY149: 0 | AZ149: 0 | BA149: 0 | BB149: 0 | BC149: 0 | BD149: 0 | BE149: 0 | BF149: 0 | BG149: 0 | BH149: 0 | BI149: 0 | BJ149: 0 | BK149: 0 | BL149: 0 | BM149: 0 | BN149: 0 | BO149: 0 | BP149: 0 | BQ149: 0
B150: O&M | C150: £ | D150: 0 | J150: =J130 -> 0 | K150: 0 | L150: 0 | M150: 0 | N150: 0 | O150: 0 | P150: 0 | Q150: 0 | R150: 0 | S150: 0 | T150: 0 | U150: 0 | V150: 0 | W150: 0 | X150: 0 | Y150: 0 | Z150: 0 | AA150: 0 | AB150: 0 | AC150: 0 | AD150: 0 | AE150: 0 | AF150: 0 | AG150: 0 | AH150: 0 | AI150: 0 | AJ150: 0 | AK150: 0 | AL150: 0 | AM150: 0 | AN150: 0 | AO150: 0 | AP150: =AP130 -> 0 | AQ150: 0 | AR150: 0 | AS150: 0 | AT150: 0 | AU150: 0 | AV150: 0 | AW150: 0 | AX150: 0 | AY150: 0 | AZ150: 0 | BA150: 0 | BB150: 0 | BC150: 0 | BD150: 0 | BE150: 0 | BF150: 0 | BG150: 0 | BH150: 0 | BI150: 0 | BJ150: 0 | BK150: 0 | BL150: 0 | BM150: 0 | BN150: 0 | BO150: 0 | BP150: 0 | BQ150: 0
B151: Irrecoverable VAT on O&M | C151: £ | D151: =SUM(J151:BQ151) -> 0 | J151: =J140 -> 0 | K151: =K140 -> 0 | L151: 0 | M151: 0 | N151: 0 | O151: 0 | P151: 0 | Q151: 0 | R151: 0 | S151: 0 | T151: 0 | U151: 0 | V151: 0 | W151: 0 | X151: 0 | Y151: 0 | Z151: 0 | AA151: 0 | AB151: 0 | AC151: 0 | AD151: 0 | AE151: 0 | AF151: 0 | AG151: 0 | AH151: 0 | AI151: 0 | AJ151: 0 | AK151: 0 | AL151: 0 | AM151: 0 | AN151: 0 | AO151: 0 | AP151: 0 | AQ151: 0 | AR151: 0 | AS151: 0 | AT151: 0 | AU151: 0 | AV151: 0 | AW151: 0 | AX151: 0 | AY151: 0 | AZ151: 0 | BA151: 0 | BB151: 0 | BC151: 0 | BD151: 0 | BE151: 0 | BF151: 0 | BG151: 0 | BH151: 0 | BI151: 0 | BJ151: 0 | BK151: 0 | BL151: 0 | BM151: 0 | BN151: 0 | BO151: 0 | BP151: 0 | BQ151: 0
B153: Combined cost of energy | C153: £ | D153: 0 | J153: =SUM(J143:J152) -> 0 | K153: =SUM(K143:K152) -> 0 | L153: 0 | M153: 0 | N153: 0 | O153: 0 | P153: 0 | Q153: 0 | R153: 0 | S153: 0 | T153: 0 | U153: 0 | V153: 0 | W153: 0 | X153: 0 | Y153: 0 | Z153: 0 | AA153: 0 | AB153: 0 | AC153: 0 | AD153: 0 | AE153: 0 | AF153: 0 | AG153: 0 | AH153: 0 | AI153: 0 | AJ153: 0 | AK153: 0 | AL153: 0 | AM153: 0 | AN153: 0 | AO153: 0 | AP153: 0 | AQ153: 0 | AR153: 0 | AS153: 0 | AT153: 0 | AU153: 0 | AV153: 0 | AW153: 0 | AX153: 0 | AY153: 0 | AZ153: 0 | BA153: 0 | BB153: 0 | BC153: 0 | BD153: 0 | BE153: 0 | BF153: 0 | BG153: 0 | BH153: 0 | BI153: 0 | BJ153: 0 | BK153: 0 | BL153: 0 | BM153: 0 | BN153: 0 | BO153: 0 | BP153: 0 | BQ153: 0
B155: =B18 -> DHW
B156: Enter manually? | C156: T/F | E156: =IF(D156="",FALSE,D156) -> FALSE
B157: Energy generated per user | C157: kWh | D157: =INDEX($D$1230:$D$1236,G18,1) -> 0 | J157: =$D157*J$11 -> 0 | K157: =$D157*K$11 -> 0 | L157: 0 | M157: 0 | N157: 0 | O157: 0 | P157: 0 | Q157: 0 | R157: 0 | S157: 0 | T157: 0 | U157: 0 | V157: 0 | W157: 0 | X157: 0 | Y157: 0 | Z157: 0 | AA157: 0 | AB157: 0 | AC157: 0 | AD157: 0 | AE157: 0 | AF157: 0 | AG157: 0 | AH157: 0 | AI157: 0 | AJ157: 0 | AK157: 0 | AL157: 0 | AM157: 0 | AN157: 0 | AO157: 0 | AP157: 0 | AQ157: 0 | AR157: 0 | AS157: 0 | AT157: 0 | AU157: 0 | AV157: 0 | AW157: 0 | AX157: 0 | AY157: 0 | AZ157: 0 | BA157: 0 | BB157: 0 | BC157: 0 | BD157: 0 | BE157: 0 | BF157: 0 | BG157: 0 | BH157: 0 | BI157: 0 | BJ157: 0 | BK157: 0 | BL157: 0 | BM157: 0 | BN157: 0 | BO157: 0 | BP157: 0 | BQ157: 0
B158: Energy generated - manual entry | C158: kWh
B159: Energy generated - selected | C159: kWh | J159: =IF($E156,J158,J157) -> 0 | K159: =IF($E156,K158,K157) -> 0 | L159: 0 | M159: 0 | N159: 0 | O159: 0 | P159: 0 | Q159: 0 | R159: 0 | S159: 0 | T159: 0 | U159: 0 | V159: 0 | W159: 0 | X159: 0 | Y159: 0 | Z159: 0 | AA159: 0 | AB159: 0 | AC159: 0 | AD159: 0 | AE159: 0 | AF159: 0 | AG159: 0 | AH159: 0 | AI159: 0 | AJ159: 0 | AK159: 0 | AL159: 0 | AM159: 0 | AN159: 0 | AO159: 0 | AP159: 0 | AQ159: 0 | AR159: 0 | AS159: 0 | AT159: 0 | AU159: 0 | AV159: 0 | AW159: 0 | AX159: 0 | AY159: 0 | AZ159: 0 | BA159: 0 | BB159: 0 | BC159: 0 | BD159: 0 | BE159: 0 | BF159: 0 | BG159: 0 | BH159: 0 | BI159: 0 | BJ159: 0 | BK159: 0 | BL159: 0 | BM159: 0 | BN159: 0 | BO159: 0 | BP159: 0 | BQ159: 0
B161: Levelised cost
B162: Discounted repex + VAT (BoP) | C162: £ PC | D162: =SUM(J162:BQ162) -> 0 | J162: =SUM(J143:J145)*J$14 -> 0 | K162: =SUM(K143:K145)*K$14 -> 0 | L162: 0 | M162: 0 | N162: 0 | O162: 0 | P162: 0 | Q162: 0 | R162: 0 | S162: 0 | T162: 0 | U162: 0 | V162: 0 | W162: 0 | X162: 0 | Y162: 0 | Z162: 0 | AA162: 0 | AB162: 0 | AC162: 0 | AD162: 0 | AE162: 0 | AF162: 0 | AG162: 0 | AH162: 0 | AI162: 0 | AJ162: 0 | AK162: 0 | AL162: 0 | AM162: 0 | AN162: 0 | AO162: 0 | AP162: 0 | AQ162: 0 | AR162: 0 | AS162: 0 | AT162: 0 | AU162: 0 | AV162: 0 | AW162: 0 | AX162: 0 | AY162: 0 | AZ162: 0 | BA162: 0 | BB162: 0 | BC162: 0 | BD162: 0 | BE162: 0 | BF162: 0 | BG162: 0 | BH162: 0 | BI162: 0 | BJ162: 0 | BK162: 0 | BL162: 0 | BM162: 0 | BN162: 0 | BO162: 0 | BP162: 0 | BQ162: 0
B163: Discounted fuel + VAT (MoP) | C163: £ PC | D163: =SUM(J163:BQ163) -> 0 | J163: =SUM(J146:J149)*J$15 -> 0 | K163: =SUM(K146:K149)*K$15 -> 0 | L163: 0 | M163: 0 | N163: 0 | O163: 0 | P163: 0 | Q163: 0 | R163: 0 | S163: 0 | T163: 0 | U163: 0 | V163: 0 | W163: 0 | X163: 0 | Y163: 0 | Z163: 0 | AA163: 0 | AB163: 0 | AC163: 0 | AD163: 0 | AE163: 0 | AF163: 0 | AG163: 0 | AH163: 0 | AI163: 0 | AJ163: 0 | AK163: 0 | AL163: 0 | AM163: 0 | AN163: 0 | AO163: 0 | AP163: 0 | AQ163: 0 | AR163: 0 | AS163: 0 | AT163: 0 | AU163: 0 | AV163: 0 | AW163: 0 | AX163: 0 | AY163: 0 | AZ163: 0 | BA163: 0 | BB163: 0 | BC163: 0 | BD163: 0 | BE163: 0 | BF163: 0 | BG163: 0 | BH163: 0 | BI163: 0 | BJ163: 0 | BK163: 0 | BL163: 0 | BM163: 0 | BN163: 0 | BO163: 0 | BP163: 0 | BQ163: 0
B164: Discounted opex + VAT (MoP) | C164: £ PC | D164: =SUM(J164:BQ164) -> 0 | J164: =SUM(J150:J151)*J$15 -> 0 | K164: =SUM(K150:K151)*K$15 -> 0 | L164: 0 | M164: 0 | N164: 0 | O164: 0 | P164: 0 | Q164: 0 | R164: 0 | S164: 0 | T164: 0 | U164: 0 | V164: 0 | W164: 0 | X164: 0 | Y164: 0 | Z164: 0 | AA164: 0 | AB164: 0 | AC164: 0 | AD164: 0 | AE164: 0 | AF164: 0 | AG164: 0 | AH164: 0 | AI164: 0 | AJ164: 0 | AK164: 0 | AL164: 0 | AM164: 0 | AN164: 0 | AO164: 0 | AP164: 0 | AQ164: 0 | AR164: 0 | AS164: 0 | AT164: 0 | AU164: 0 | AV164: 0 | AW164: 0 | AX164: 0 | AY164: 0 | AZ164: 0 | BA164: 0 | BB164: 0 | BC164: 0 | BD164: 0 | BE164: 0 | BF164: 0 | BG164: 0 | BH164: 0 | BI164: 0 | BJ164: 0 | BK164: 0 | BL164: 0 | BM164: 0 | BN164: 0 | BO164: 0 | BP164: 0 | BQ164: 0
B166: Discounted energy costs | C166: £ PC | D166: =SUM(J166:BQ166) -> 0 | J166: =SUM(J162:J165) -> 0 | K166: =SUM(K162:K165) -> 0 | L166: 0 | M166: 0 | N166: 0 | O166: 0 | P166: 0 | Q166: 0 | R166: 0 | S166: 0 | T166: 0 | U166: 0 | V166: 0 | W166: 0 | X166: 0 | Y166: 0 | Z166: 0 | AA166: 0 | AB166: 0 | AC166: 0 | AD166: 0 | AE166: 0 | AF166: 0 | AG166: 0 | AH166: 0 | AI166: 0 | AJ166: 0 | AK166: 0 | AL166: 0 | AM166: 0 | AN166: 0 | AO166: 0 | AP166: 0 | AQ166: 0 | AR166: 0 | AS166: 0 | AT166: 0 | AU166: 0 | AV166: 0 | AW166: 0 | AX166: 0 | AY166: 0 | AZ166: 0 | BA166: 0 | BB166: 0 | BC166: 0 | BD166: 0 | BE166: 0 | BF166: 0 | BG166: 0 | BH166: 0 | BI166: 0 | BJ166: 0 | BK166: 0 | BL166: 0 | BM166: 0 | BN166: 0 | BO166: 0 | BP166: 0 | BQ166: 0
B168: Discounted energy | C168: kWh PV | D168: =SUM(J168:BQ168) -> 0 | J168: =J159*J$15 -> 0 | K168: =K159*K$15 -> 0 | L168: 0 | M168: 0 | N168: 0 | O168: 0 | P168: 0 | Q168: 0 | R168: 0 | S168: 0 | T168: 0 | U168: 0 | V168: 0 | W168: 0 | X168: 0 | Y168: 0 | Z168: 0 | AA168: 0 | AB168: 0 | AC168: 0 | AD168: 0 | AE168: 0 | AF168: 0 | AG168: 0 | AH168: 0 | AI168: 0 | AJ168: 0 | AK168: 0 | AL168: 0 | AM168: 0 | AN168: 0 | AO168: 0 | AP168: 0 | AQ168: 0 | AR168: 0 | AS168: 0 | AT168: 0 | AU168: 0 | AV168: 0 | AW168: 0 | AX168: 0 | AY168: 0 | AZ168: 0 | BA168: 0 | BB168: 0 | BC168: 0 | BD168: 0 | BE168: 0 | BF168: 0 | BG168: 0 | BH168: 0 | BI168: 0 | BJ168: 0 | BK168: 0 | BL168: 0 | BM168: 0 | BN168: 0 | BO168: 0 | BP168: 0 | BQ168: 0
B170: LCO - repex | C170: p/kWh | D170: =IFERROR((D162*100)/D168,0) -> 0
B171: LCO - fuel | C171: p/kWh | D171: =IFERROR((D163*100)/D168,0) -> 0
B172: LCO - opex | C172: p/kWh | D172: =IFERROR((D164*100)/D168,0) -> 0
B174: ="LCO - " &B18 -> LCO - DHW | C174: p/kWh | D174: =SUM(D170:D173) -> 0
B176: =INDEX(lstHeatOutput,G176,1) -> LTHW | G176: =MAX(G$9:G175)+1 -> 2
B178: Repex
B179: Year purchase | C179: Year | D179: =INDEX($F$1230:$F$1236,G176,1) -> 0 | E179: =D179-$J$2 -> -2020
B180: UEL | C180: UEL | D180: =INDEX($G$1230:$G$1236,G176,1) -> 0 | E180: =ROUND(D180,0) -> 0
B181: 1st Replacement year (incl lead time) | C181: Flag | D181: ='INPT; General'!$D$10 -> 1 | E181: =ROUND(E180+E179,0)+D181 -> -2019 | J181: =1*($E181=J$5) -> 0 | K181: =1*($E181=K$5) -> 0 | L181: 0 | M181: 0 | N181: 0 | O181: 0 | P181: 0 | Q181: 0 | R181: 0 | S181: 0 | T181: 0 | U181: 0 | V181: 0 | W181: 0 | X181: 0 | Y181: 0 | Z181: 0 | AA181: 0 | AB181: 0 | AC181: 0 | AD181: 0 | AE181: 0 | AF181: 0 | AG181: 0 | AH181: 0 | AI181: 0 | AJ181: 0 | AK181: 0 | AL181: 0 | AM181: 0 | AN181: 0 | AO181: 0 | AP181: 0 | AQ181: 0 | AR181: 0 | AS181: 0 | AT181: 0 | AU181: 0 | AV181: 0 | AW181: 0 | AX181: 0 | AY181: 0 | AZ181: 0 | BA181: 0 | BB181: 0 | BC181: 0 | BD181: 0 | BE181: 0 | BF181: 0 | BG181: 0 | BH181: 0 | BI181: 0 | BJ181: 0 | BK181: 0 | BL181: 0 | BM181: 0 | BN181: 0 | BO181: 0 | BP181: 0 | BQ181: 0
B182: Subsequent replacement years | C182: Flag | J182: =OFFSET(J181,,-MIN(J$5,$E180)) -> 0 | K182: =OFFSET(K181,,-MIN(K$5,$E180)) -> 0 | L182: 0 | M182: 0 | N182: 0 | O182: 0 | P182: 0 | Q182: 0 | R182: 0 | S182: 0 | T182: 0 | U182: 0 | V182: 0 | W182: 0 | X182: 0 | Y182: 0 | Z182: 0 | AA182: 0 | AB182: 0 | AC182: 0 | AD182: 0 | AE182: 0 | AF182: 0 | AG182: 0 | AH182: 0 | AI182: 0 | AJ182: 0 | AK182: 0 | AL182: 0 | AM182: 0 | AN182: 0 | AO182: 0 | AP182: 0 | AQ182: 0 | AR182: 0 | AS182: 0 | AT182: 0 | AU182: 0 | AV182: 0 | AW182: 0 | AX182: 0 | AY182: 0 | AZ182: 0 | BA182: 0 | BB182: 0 | BC182: 0 | BD182: 0 | BE182: 0 | BF182: 0 | BG182: 0 | BH182: 0 | BI182: 0 | BJ182: 0 | BK182: 0 | BL182: 0 | BM182: 0 | BN182: 0 | BO182: 0 | BP182: 0 | BQ182: 0
B183: Replacement flag | C183: Flag | J183: =SUM(J181:J182) -> 0 | K183: =SUM(K181:K182) -> 0 | L183: 0 | M183: 0 | N183: 0 | O183: 0 | P183: 0 | Q183: 0 | R183: 0 | S183: 0 | T183: 0 | U183: 0 | V183: 0 | W183: 0 | X183: 0 | Y183: 0 | Z183: 0 | AA183: 0 | AB183: 0 | AC183: 0 | AD183: 0 | AE183: 0 | AF183: 0 | AG183: 0 | AH183: 0 | AI183: 0 | AJ183: 0 | AK183: 0 | AL183: 0 | AM183: 0 | AN183: 0 | AO183: 0 | AP183: 0 | AQ183: 0 | AR183: 0 | AS183: 0 | AT183: 0 | AU183: 0 | AV183: 0 | AW183: 0 | AX183: 0 | AY183: 0 | AZ183: 0 | BA183: 0 | BB183: 0 | BC183: 0 | BD183: 0 | BE183: 0 | BF183: 0 | BG183: 0 | BH183: 0 | BI183: 0 | BJ183: 0 | BK183: 0 | BL183: 0 | BM183: 0 | BN183: 0 | BO183: 0 | BP183: 0 | BQ183: 0
B185: Enter manually? | C185: T/F | E185: =IF(D185="",FALSE,D185) -> FALSE
B186: Manual entry | C186: £
B187: Per Flat File | C187: £ | D187: =INDEX($E$1230:$E$1236,G176,1) -> 0 | J187: =J183*$D187 -> 0 | K187: =K183*$D187 -> 0 | L187: 0 | M187: 0 | N187: 0 | O187: 0 | P187: 0 | Q187: 0 | R187: 0 | S187: 0 | T187: 0 | U187: 0 | V187: 0 | W187: 0 | X187: 0 | Y187: 0 | Z187: 0 | AA187: 0 | AB187: 0 | AC187: 0 | AD187: 0 | AE187: 0 | AF187: 0 | AG187: 0 | AH187: 0 | AI187: 0 | AJ187: 0 | AK187: 0 | AL187: 0 | AM187: 0 | AN187: 0 | AO187: 0 | AP187: 0 | AQ187: 0 | AR187: 0 | AS187: 0 | AT187: 0 | AU187: 0 | AV187: 0 | AW187: 0 | AX187: 0 | AY187: 0 | AZ187: 0 | BA187: 0 | BB187: 0 | BC187: 0 | BD187: 0 | BE187: 0 | BF187: 0 | BG187: 0 | BH187: 0 | BI187: 0 | BJ187: 0 | BK187: 0 | BL187: 0 | BM187: 0 | BN187: 0 | BO187: 0 | BP187: 0 | BQ187: 0
B188: Selected | C188: £ | J188: =IF($E185,J186,J187) -> 0 | K188: =IF($E185,K186,K187) -> 0 | L188: 0 | M188: 0 | N188: 0 | O188: 0 | P188: 0 | Q188: 0 | R188: 0 | S188: 0 | T188: 0 | U188: 0 | V188: 0 | W188: 0 | X188: 0 | Y188: 0 | Z188: 0 | AA188: 0 | AB188: 0 | AC188: 0 | AD188: 0 | AE188: 0 | AF188: 0 | AG188: 0 | AH188: 0 | AI188: 0 | AJ188: 0 | AK188: 0 | AL188: 0 | AM188: 0 | AN188: 0 | AO188: 0 | AP188: 0 | AQ188: 0 | AR188: 0 | AS188: 0 | AT188: 0 | AU188: 0 | AV188: 0 | AW188: 0 | AX188: 0 | AY188: 0 | AZ188: 0 | BA188: 0 | BB188: 0 | BC188: 0 | BD188: 0 | BE188: 0 | BF188: 0 | BG188: 0 | BH188: 0 | BI188: 0 | BJ188: 0 | BK188: 0 | BL188: 0 | BM188: 0 | BN188: 0 | BO188: 0 | BP188: 0 | BQ188: 0
B190: b/f balance | C190: £ | J190: =I194 -> 0 | K190: =J194 -> 0 | L190: =K194 -> 0 | M190: =L194 -> 0 | N190: =M194 -> 0 | O190: =N194 -> 0 | P190: =O194 -> 0 | Q190: =P194 -> 0 | R190: =Q194 -> 0 | S190: =R194 -> 0 | T190: =S194 -> 0 | U190: =T194 -> 0 | V190: =U194 -> 0 | W190: =V194 -> 0 | X190: =W194 -> 0 | Y190: =X194 -> 0 | Z190: =Y194 -> 0 | AA190: =Z194 -> 0 | AB190: =AA194 -> 0 | AC190: =AB194 -> 0 | AD190: =AC194 -> 0 | AE190: =AD194 -> 0 | AF190: =AE194 -> 0 | AG190: =AF194 -> 0 | AH190: =AG194 -> 0 | AI190: =AH194 -> 0 | AJ190: =AI194 -> 0 | AK190: =AJ194 -> 0 | AL190: =AK194 -> 0 | AM190: =AL194 -> 0 | AN190: =AM194 -> 0 | AO190: =AN194 -> 0 | AP190: =AO194 -> 0 | AQ190: =AP194 -> 0 | AR190: =AQ194 -> 0 | AS190: =AR194 -> 0 | AT190: =AS194 -> 0 | AU190: =AT194 -> 0 | AV190: =AU194 -> 0 | AW190: =AV194 -> 0 | AX190: =AW194 -> 0 | AY190: =AX194 -> 0 | AZ190: =AY194 -> 0 | BA190: =AZ194 -> 0 | BB190: =BA194 -> 0 | BC190: =BB194 -> 0 | BD190: =BC194 -> 0 | BE190: =BD194 -> 0 | BF190: =BE194 -> 0 | BG190: =BF194 -> 0 | BH190: =BG194 -> 0 | BI190: =BH194 -> 0 | BJ190: =BI194 -> 0 | BK190: =BJ194 -> 0 | BL190: =BK194 -> 0 | BM190: =BL194 -> 0 | BN190: =BM194 -> 0 | BO190: =BN194 -> 0 | BP190: =BO194 -> 0 | BQ190: =BP194 -> 0
B191: Additions | C191: £ | J191: =J188 -> 0 | K191: =K188 -> 0 | L191: 0 | M191: 0 | N191: 0 | O191: 0 | P191: 0 | Q191: 0 | R191: 0 | S191: 0 | T191: 0 | U191: 0 | V191: 0 | W191: 0 | X191: 0 | Y191: 0 | Z191: 0 | AA191: 0 | AB191: 0 | AC191: 0 | AD191: 0 | AE191: 0 | AF191: 0 | AG191: 0 | AH191: 0 | AI191: 0 | AJ191: 0 | AK191: 0 | AL191: 0 | AM191: 0 | AN191: 0 | AO191: 0 | AP191: 0 | AQ191: 0 | AR191: 0 | AS191: 0 | AT191: 0 | AU191: 0 | AV191: 0 | AW191: 0 | AX191: 0 | AY191: 0 | AZ191: 0 | BA191: 0 | BB191: 0 | BC191: 0 | BD191: 0 | BE191: 0 | BF191: 0 | BG191: 0 | BH191: 0 | BI191: 0 | BJ191: 0 | BK191: 0 | BL191: 0 | BM191: 0 | BN191: 0 | BO191: 0 | BP191: 0 | BQ191: 0
B192: Depreciation | C192: £ | J192: =IFERROR(-SUM(OFFSET(J191,,,,-MIN(J$5,$E180)))/$E180,0) -> 0 | K192: 0 | L192: 0 | M192: 0 | N192: 0 | O192: 0 | P192: 0 | Q192: =IFERROR(-SUM(OFFSET(Q191,,,,-MIN(Q$5,$E180)))/$E180,0) -> 0 | R192: =IFERROR(-SUM(OFFSET(R191,,,,-MIN(R$5,$E180)))/$E180,0) -> 0 | S192: 0 | T192: 0 | U192: 0 | V192: 0 | W192: 0 | X192: 0 | Y192: 0 | Z192: 0 | AA192: 0 | AB192: 0 | AC192: 0 | AD192: 0 | AE192: 0 | AF192: 0 | AG192: 0 | AH192: 0 | AI192: 0 | AJ192: 0 | AK192: 0 | AL192: 0 | AM192: 0 | AN192: 0 | AO192: 0 | AP192: 0 | AQ192: 0 | AR192: 0 | AS192: 0 | AT192: 0 | AU192: 0 | AV192: 0 | AW192: 0 | AX192: 0 | AY192: 0 | AZ192: 0 | BA192: 0 | BB192: 0 | BC192: 0 | BD192: 0 | BE192: 0 | BF192: 0 | BG192: 0 | BH192: 0 | BI192: 0 | BJ192: 0 | BK192: 0 | BL192: 0 | BM192: 0 | BN192: 0 | BO192: 0 | BP192: 0 | BQ192: 0
B194: c/f balance | C194: £ | J194: =SUM(J190:J193) -> 0 | K194: =SUM(K190:K193) -> 0 | L194: 0 | M194: 0 | N194: 0 | O194: 0 | P194: 0 | Q194: 0 | R194: 0 | S194: 0 | T194: 0 | U194: 0 | V194: 0 | W194: 0 | X194: 0 | Y194: 0 | Z194: 0 | AA194: 0 | AB194: 0 | AC194: 0 | AD194: 0 | AE194: 0 | AF194: 0 | AG194: 0 | AH194: 0 | AI194: 0 | AJ194: 0 | AK194: 0 | AL194: 0 | AM194: 0 | AN194: 0 | AO194: 0 | AP194: 0 | AQ194: 0 | AR194: 0 | AS194: 0 | AT194: 0 | AU194: 0 | AV194: 0 | AW194: 0 | AX194: 0 | AY194: 0 | AZ194: 0 | BA194: 0 | BB194: 0 | BC194: 0 | BD194: 0 | BE194: 0 | BF194: 0 | BG194: 0 | BH194: 0 | BI194: 0 | BJ194: 0 | BK194: 0 | BL194: 0 | BM194: 0 | BN194: 0 | BO194: 0 | BP194: 0 | BQ194: 0
B196: Cost of additions | C196: £ | D196: =SUM(J196:BQ196) -> 0 | J196: =J191*J$11 -> 0 | K196: =K191*K$11 -> 0 | L196: 0 | M196: 0 | N196: 0 | O196: 0 | P196: 0 | Q196: 0 | R196: 0 | S196: 0 | T196: 0 | U196: 0 | V196: 0 | W196: 0 | X196: 0 | Y196: 0 | Z196: 0 | AA196: 0 | AB196: 0 | AC196: 0 | AD196: 0 | AE196: 0 | AF196: 0 | AG196: 0 | AH196: 0 | AI196: 0 | AJ196: 0 | AK196: 0 | AL196: 0 | AM196: 0 | AN196: 0 | AO196: 0 | AP196: 0 | AQ196: 0 | AR196: 0 | AS196: 0 | AT196: 0 | AU196: 0 | AV196: 0 | AW196: 0 | AX196: 0 | AY196: 0 | AZ196: 0 | BA196: 0 | BB196: 0 | BC196: 0 | BD196: 0 | BE196: 0 | BF196: 0 | BG196: 0 | BH196: 0 | BI196: 0 | BJ196: 0 | BK196: 0 | BL196: 0 | BM196: 0 | BN196: 0 | BO196: 0 | BP196: 0 | BQ196: 0
B197: Carrying balance at end of appraisal | C197: £ | D197: =SUM(J197:BQ197) -> 0 | J197: =-J194*J$12 -> 0 | K197: =-K194*K$12 -> 0 | L197: 0 | M197: 0 | N197: 0 | O197: 0 | P197: 0 | Q197: 0 | R197: 0 | S197: 0 | T197: 0 | U197: 0 | V197: 0 | W197: 0 | X197: 0 | Y197: 0 | Z197: 0 | AA197: 0 | AB197: 0 | AC197: 0 | AD197: 0 | AE197: 0 | AF197: 0 | AG197: 0 | AH197: 0 | AI197: 0 | AJ197: 0 | AK197: 0 | AL197: 0 | AM197: 0 | AN197: 0 | AO197: 0 | AP197: 0 | AQ197: 0 | AR197: 0 | AS197: 0 | AT197: 0 | AU197: 0 | AV197: 0 | AW197: 0 | AX197: 0 | AY197: 0 | AZ197: 0 | BA197: 0 | BB197: 0 | BC197: 0 | BD197: 0 | BE197: 0 | BF197: 0 | BG197: 0 | BH197: 0 | BI197: 0 | BJ197: 0 | BK197: 0 | BL197: 0 | BM197: 0 | BN197: 0 | BO197: 0 | BP197: 0 | BQ197: 0
B199: VAT on Repex
B200: Enter manually? | C200: T/F | E200: =IF(D200="",FALSE,D200) -> FALSE
B201: VAT rate per global assumptions | C201: % | D201: ='INPT; General'!$D$18 -> 0.2
B202: Proportion of VAT that is irrecoverable | C202: % | D202: ='INPT; General'!$F$18 -> 0
B204: Manual VAT rate | C204: %
B205: Manual irrecoverable VAT assumption | C205: %
B207: Selected - irrecoverable VAT | C207: £ | D207: =IF(E200,D204,D201) -> 0.2 | E207: =IF(E200,D205,D202) -> 0 | J207: =J196*$D207*$E207 -> 0 | K207: =K196*$D207*$E207 -> 0 | L207: =L196*$D207*$E207 -> 0 | M207: 0 | N207: 0 | O207: 0 | P207: 0 | Q207: 0 | R207: 0 | S207: 0 | T207: 0 | U207: 0 | V207: 0 | W207: 0 | X207: 0 | Y207: 0 | Z207: 0 | AA207: 0 | AB207: 0 | AC207: 0 | AD207: 0 | AE207: 0 | AF207: 0 | AG207: 0 | AH207: 0 | AI207: 0 | AJ207: 0 | AK207: 0 | AL207: 0 | AM207: 0 | AN207: 0 | AO207: 0 | AP207: 0 | AQ207: 0 | AR207: 0 | AS207: 0 | AT207: 0 | AU207: 0 | AV207: 0 | AW207: 0 | AX207: 0 | AY207: 0 | AZ207: 0 | BA207: 0 | BB207: 0 | BC207: 0 | BD207: 0 | BE207: 0 | BF207: 0 | BG207: 0 | BH207: 0 | BI207: 0 | BJ207: 0 | BK207: 0 | BL207: 0 | BM207: 0 | BN207: 0 | BO207: 0 | BP207: 0 | BQ207: 0
B209: Fuel - variable
B210: Enter manually? | C210: T/F | E210: =IF(D210="",FALSE,D210) -> FALSE
B211: Fuel cost per flat file | C211: £ | D211: =INDEX($E$1244:$E$1250,G176,1) -> 0 | J211: =$D211*J$11*SUMPRODUCT($E213:$E222,J213:J222) -> 0 | K211: =$D211*K$11*SUMPRODUCT($E213:$E222,K213:K222) -> 0 | L211: =$D211*L$11*SUMPRODUCT($E213:$E222,L213:L222) -> 0 | M211: 0 | N211: =$D211*N$11*SUMPRODUCT($E213:$E222,N213:N222) -> 0 | O211: 0 | P211: 0 | Q211: 0 | R211: 0 | S211: 0 | T211: 0 | U211: 0 | V211: 0 | W211: 0 | X211: 0 | Y211: 0 | Z211: 0 | AA211: 0 | AB211: 0 | AC211: 0 | AD211: 0 | AE211: 0 | AF211: 0 | AG211: 0 | AH211: 0 | AI211: 0 | AJ211: 0 | AK211: 0 | AL211: 0 | AM211: 0 | AN211: 0 | AO211: 0 | AP211: 0 | AQ211: 0 | AR211: 0 | AS211: 0 | AT211: 0 | AU211: 0 | AV211: 0 | AW211: 0 | AX211: 0 | AY211: 0 | AZ211: 0 | BA211: 0 | BB211: 0 | BC211: 0 | BD211: 0 | BE211: 0 | BF211: 0 | BG211: 0 | BH211: 0 | BI211: 0 | BJ211: 0 | BK211: 0 | BL211: 0 | BM211: 0 | BN211: 0 | BO211: 0 | BP211: 0 | BQ211: 0
A213: =A212+1 -> 1 | B213: ='INPT; General'!$B$25 -> Biofuel | C213: Factor | D213: ='INPT; General'!$G$25 -> 13 | E213: =INDEX($X$1230:$AG$1236,G176,A213) -> 0 | J213: =IF($D213<>0,INDEX('INPT; Fuel Indices'!J$34:J$53,$D213,1),0) -> 1 | K213: =IF($D213<>0,INDEX('INPT; Fuel Indices'!K$34:K$53,$D213,1),0) -> 1 | L213: =IF($D213<>0,INDEX('INPT; Fuel Indices'!L$34:L$53,$D213,1),0) -> 1 | M213: =IF($D213<>0,INDEX('INPT; Fuel Indices'!M$34:M$53,$D213,1),0) -> 1 | N213: =IF($D213<>0,INDEX('INPT; Fuel Indices'!N$34:N$53,$D213,1),0) -> 1 | O213: =IF($D213<>0,INDEX('INPT; Fuel Indices'!O$34:O$53,$D213,1),0) -> 1 | P213: =IF($D213<>0,INDEX('INPT; Fuel Indices'!P$34:P$53,$D213,1),0) -> 1 | Q213: =IF($D213<>0,INDEX('INPT; Fuel Indices'!Q$34:Q$53,$D213,1),0) -> 1 | R213: =IF($D213<>0,INDEX('INPT; Fuel Indices'!R$34:R$53,$D213,1),0) -> 1 | S213: =IF($D213<>0,INDEX('INPT; Fuel Indices'!S$34:S$53,$D213,1),0) -> 1 | T213: =IF($D213<>0,INDEX('INPT; Fuel Indices'!T$34:T$53,$D213,1),0) -> 1 | U213: =IF($D213<>0,INDEX('INPT; Fuel Indices'!U$34:U$53,$D213,1),0) -> 1 | V213: =IF($D213<>0,INDEX('INPT; Fuel Indices'!V$34:V$53,$D213,1),0) -> 1 | W213: =IF($D213<>0,INDEX('INPT; Fuel Indices'!W$34:W$53,$D213,1),0) -> 1 | X213: =IF($D213<>0,INDEX('INPT; Fuel Indices'!X$34:X$53,$D213,1),0) -> 1 | Y213: =IF($D213<>0,INDEX('INPT; Fuel Indices'!Y$34:Y$53,$D213,1),0) -> 1 | Z213: =IF($D213<>0,INDEX('INPT; Fuel Indices'!Z$34:Z$53,$D213,1),0) -> 1 | AA213: =IF($D213<>0,INDEX('INPT; Fuel Indices'!AA$34:AA$53,$D213,1),0) -> 1 | AB213: =IF($D213<>0,INDEX('INPT; Fuel Indices'!AB$34:AB$53,$D213,1),0) -> 1 | AC213: =IF($D213<>0,INDEX('INPT; Fuel Indices'!AC$34:AC$53,$D213,1),0) -> 1 | AD213: =IF($D213<>0,INDEX('INPT; Fuel Indices'!AD$34:AD$53,$D213,1),0) -> 1 | AE213: =IF($D213<>0,INDEX('INPT; Fuel Indices'!AE$34:AE$53,$D213,1),0) -> 1 | AF213: =IF($D213<>0,INDEX('INPT; Fuel Indices'!AF$34:AF$53,$D213,1),0) -> 1 | AG213: =IF($D213<>0,INDEX('INPT; Fuel Indices'!AG$34:AG$53,$D213,1),0) -> 1 | AH213: =IF($D213<>0,INDEX('INPT; Fuel Indices'!AH$34:AH$53,$D213,1),0) -> 1 | AI213: =IF($D213<>0,INDEX('INPT; Fuel Indices'!AI$34:AI$53,$D213,1),0) -> 1 | AJ213: =IF($D213<>0,INDEX('INPT; Fuel Indices'!AJ$34:AJ$53,$D213,1),0) -> 1 | AK213: =IF($D213<>0,INDEX('INPT; Fuel Indices'!AK$34:AK$53,$D213,1),0) -> 1 | AL213: =IF($D213<>0,INDEX('INPT; Fuel Indices'!AL$34:AL$53,$D213,1),0) -> 1 | AM213: =IF($D213<>0,INDEX('INPT; Fuel Indices'!AM$34:AM$53,$D213,1),0) -> 1 | AN213: =IF($D213<>0,INDEX('INPT; Fuel Indices'!AN$34:AN$53,$D213,1),0) -> 1 | AO213: =IF($D213<>0,INDEX('INPT; Fuel Indices'!AO$34:AO$53,$D213,1),0) -> 1 | AP213: =IF($D213<>0,INDEX('INPT; Fuel Indices'!AP$34:AP$53,$D213,1),0) -> 1 | AQ213: =IF($D213<>0,INDEX('INPT; Fuel Indices'!AQ$34:AQ$53,$D213,1),0) -> 1 | AR213: =IF($D213<>0,INDEX('INPT; Fuel Indices'!AR$34:AR$53,$D213,1),0) -> 1 | AS213: =IF($D213<>0,INDEX('INPT; Fuel Indices'!AS$34:AS$53,$D213,1),0) -> 1 | AT213: =IF($D213<>0,INDEX('INPT; Fuel Indices'!AT$34:AT$53,$D213,1),0) -> 1 | AU213: =IF($D213<>0,INDEX('INPT; Fuel Indices'!AU$34:AU$53,$D213,1),0) -> 1 | AV213: =IF($D213<>0,INDEX('INPT; Fuel Indices'!AV$34:AV$53,$D213,1),0) -> 1 | AW213: =IF($D213<>0,INDEX('INPT; Fuel Indices'!AW$34:AW$53,$D213,1),0) -> 1 | AX213: =IF($D213<>0,INDEX('INPT; Fuel Indices'!AX$34:AX$53,$D213,1),0) -> 1 | AY213: =IF($D213<>0,INDEX('INPT; Fuel Indices'!AY$34:AY$53,$D213,1),0) -> 1 | AZ213: =IF($D213<>0,INDEX('INPT; Fuel Indices'!AZ$34:AZ$53,$D213,1),0) -> 1 | BA213: =IF($D213<>0,INDEX('INPT; Fuel Indices'!BA$34:BA$53,$D213,1),0) -> 1 | BB213: =IF($D213<>0,INDEX('INPT; Fuel Indices'!BB$34:BB$53,$D213,1),0) -> 1 | BC213: =IF($D213<>0,INDEX('INPT; Fuel Indices'!BC$34:BC$53,$D213,1),0) -> 1 | BD213: =IF($D213<>0,INDEX('INPT; Fuel Indices'!BD$34:BD$53,$D213,1),0) -> 1 | BE213: =IF($D213<>0,INDEX('INPT; Fuel Indices'!BE$34:BE$53,$D213,1),0) -> 1 | BF213: =IF($D213<>0,INDEX('INPT; Fuel Indices'!BF$34:BF$53,$D213,1),0) -> 1 | BG213: =IF($D213<>0,INDEX('INPT; Fuel Indices'!BG$34:BG$53,$D213,1),0) -> 1 | BH213: =IF($D213<>0,INDEX('INPT; Fuel Indices'!BH$34:BH$53,$D213,1),0) -> 1 | BI213: =IF($D213<>0,INDEX('INPT; Fuel Indices'!BI$34:BI$53,$D213,1),0) -> 1 | BJ213: =IF($D213<>0,INDEX('INPT; Fuel Indices'!BJ$34:BJ$53,$D213,1),0) -> 1 | BK213: =IF($D213<>0,INDEX('INPT; Fuel Indices'!BK$34:BK$53,$D213,1),0) -> 1 | BL213: =IF($D213<>0,INDEX('INPT; Fuel Indices'!BL$34:BL$53,$D213,1),0) -> 1 | BM213: =IF($D213<>0,INDEX('INPT; Fuel Indices'!BM$34:BM$53,$D213,1),0) -> 1 | BN213: =IF($D213<>0,INDEX('INPT; Fuel Indices'!BN$34:BN$53,$D213,1),0) -> 1 | BO213: =IF($D213<>0,INDEX('INPT; Fuel Indices'!BO$34:BO$53,$D213,1),0) -> 1 | BP213: =IF($D213<>0,INDEX('INPT; Fuel Indices'!BP$34:BP$53,$D213,1),0) -> 1 | BQ213: =IF($D213<>0,INDEX('INPT; Fuel Indices'!BQ$34:BQ$53,$D213,1),0) -> 1
A214: =A213+1 -> 2 | B214: ='INPT; General'!$B$26 -> Biomass | C214: Factor | D214: ='INPT; General'!$G$26 -> 0 | E214: =INDEX($X$1230:$AG$1236,G176,A214) -> 0 | J214: =IF($D214<>0,INDEX('INPT; Fuel Indices'!J$34:J$53,$D214,1),0) -> 0 | K214: =IF($D214<>0,INDEX('INPT; Fuel Indices'!K$34:K$53,$D214,1),0) -> 0 | L214: =IF($D214<>0,INDEX('INPT; Fuel Indices'!L$34:L$53,$D214,1),0) -> 0 | M214: =IF($D214<>0,INDEX('INPT; Fuel Indices'!M$34:M$53,$D214,1),0) -> 0 | N214: =IF($D214<>0,INDEX('INPT; Fuel Indices'!N$34:N$53,$D214,1),0) -> 0 | O214: =IF($D214<>0,INDEX('INPT; Fuel Indices'!O$34:O$53,$D214,1),0) -> 0 | P214: =IF($D214<>0,INDEX('INPT; Fuel Indices'!P$34:P$53,$D214,1),0) -> 0 | Q214: =IF($D214<>0,INDEX('INPT; Fuel Indices'!Q$34:Q$53,$D214,1),0) -> 0 | R214: =IF($D214<>0,INDEX('INPT; Fuel Indices'!R$34:R$53,$D214,1),0) -> 0 | S214: =IF($D214<>0,INDEX('INPT; Fuel Indices'!S$34:S$53,$D214,1),0) -> 0 | T214: =IF($D214<>0,INDEX('INPT; Fuel Indices'!T$34:T$53,$D214,1),0) -> 0 | U214: =IF($D214<>0,INDEX('INPT; Fuel Indices'!U$34:U$53,$D214,1),0) -> 0 | V214: =IF($D214<>0,INDEX('INPT; Fuel Indices'!V$34:V$53,$D214,1),0) -> 0 | W214: =IF($D214<>0,INDEX('INPT; Fuel Indices'!W$34:W$53,$D214,1),0) -> 0 | X214: =IF($D214<>0,INDEX('INPT; Fuel Indices'!X$34:X$53,$D214,1),0) -> 0 | Y214: =IF($D214<>0,INDEX('INPT; Fuel Indices'!Y$34:Y$53,$D214,1),0) -> 0 | Z214: =IF($D214<>0,INDEX('INPT; Fuel Indices'!Z$34:Z$53,$D214,1),0) -> 0 | AA214: =IF($D214<>0,INDEX('INPT; Fuel Indices'!AA$34:AA$53,$D214,1),0) -> 0 | AB214: =IF($D214<>0,INDEX('INPT; Fuel Indices'!AB$34:AB$53,$D214,1),0) -> 0 | AC214: =IF($D214<>0,INDEX('INPT; Fuel Indices'!AC$34:AC$53,$D214,1),0) -> 0 | AD214: =IF($D214<>0,INDEX('INPT; Fuel Indices'!AD$34:AD$53,$D214,1),0) -> 0 | AE214: =IF($D214<>0,INDEX('INPT; Fuel Indices'!AE$34:AE$53,$D214,1),0) -> 0 | AF214: =IF($D214<>0,INDEX('INPT; Fuel Indices'!AF$34:AF$53,$D214,1),0) -> 0 | AG214: =IF($D214<>0,INDEX('INPT; Fuel Indices'!AG$34:AG$53,$D214,1),0) -> 0 | AH214: =IF($D214<>0,INDEX('INPT; Fuel Indices'!AH$34:AH$53,$D214,1),0) -> 0 | AI214: =IF($D214<>0,INDEX('INPT; Fuel Indices'!AI$34:AI$53,$D214,1),0) -> 0 | AJ214: =IF($D214<>0,INDEX('INPT; Fuel Indices'!AJ$34:AJ$53,$D214,1),0) -> 0 | AK214: =IF($D214<>0,INDEX('INPT; Fuel Indices'!AK$34:AK$53,$D214,1),0) -> 0 | AL214: =IF($D214<>0,INDEX('INPT; Fuel Indices'!AL$34:AL$53,$D214,1),0) -> 0 | AM214: =IF($D214<>0,INDEX('INPT; Fuel Indices'!AM$34:AM$53,$D214,1),0) -> 0 | AN214: =IF($D214<>0,INDEX('INPT; Fuel Indices'!AN$34:AN$53,$D214,1),0) -> 0 | AO214: =IF($D214<>0,INDEX('INPT; Fuel Indices'!AO$34:AO$53,$D214,1),0) -> 0 | AP214: =IF($D214<>0,INDEX('INPT; Fuel Indices'!AP$34:AP$53,$D214,1),0) -> 0 | AQ214: =IF($D214<>0,INDEX('INPT; Fuel Indices'!AQ$34:AQ$53,$D214,1),0) -> 0 | AR214: =IF($D214<>0,INDEX('INPT; Fuel Indices'!AR$34:AR$53,$D214,1),0) -> 0 | AS214: =IF($D214<>0,INDEX('INPT; Fuel Indices'!AS$34:AS$53,$D214,1),0) -> 0 | AT214: =IF($D214<>0,INDEX('INPT; Fuel Indices'!AT$34:AT$53,$D214,1),0) -> 0 | AU214: =IF($D214<>0,INDEX('INPT; Fuel Indices'!AU$34:AU$53,$D214,1),0) -> 0 | AV214: =IF($D214<>0,INDEX('INPT; Fuel Indices'!AV$34:AV$53,$D214,1),0) -> 0 | AW214: =IF($D214<>0,INDEX('INPT; Fuel Indices'!AW$34:AW$53,$D214,1),0) -> 0 | AX214: =IF($D214<>0,INDEX('INPT; Fuel Indices'!AX$34:AX$53,$D214,1),0) -> 0 | AY214: =IF($D214<>0,INDEX('INPT; Fuel Indices'!AY$34:AY$53,$D214,1),0) -> 0 | AZ214: =IF($D214<>0,INDEX('INPT; Fuel Indices'!AZ$34:AZ$53,$D214,1),0) -> 0 | BA214: =IF($D214<>0,INDEX('INPT; Fuel Indices'!BA$34:BA$53,$D214,1),0) -> 0 | BB214: =IF($D214<>0,INDEX('INPT; Fuel Indices'!BB$34:BB$53,$D214,1),0) -> 0 | BC214: =IF($D214<>0,INDEX('INPT; Fuel Indices'!BC$34:BC$53,$D214,1),0) -> 0 | BD214: =IF($D214<>0,INDEX('INPT; Fuel Indices'!BD$34:BD$53,$D214,1),0) -> 0 | BE214: =IF($D214<>0,INDEX('INPT; Fuel Indices'!BE$34:BE$53,$D214,1),0) -> 0 | BF214: =IF($D214<>0,INDEX('INPT; Fuel Indices'!BF$34:BF$53,$D214,1),0) -> 0 | BG214: =IF($D214<>0,INDEX('INPT; Fuel Indices'!BG$34:BG$53,$D214,1),0) -> 0 | BH214: =IF($D214<>0,INDEX('INPT; Fuel Indices'!BH$34:BH$53,$D214,1),0) -> 0 | BI214: =IF($D214<>0,INDEX('INPT; Fuel Indices'!BI$34:BI$53,$D214,1),0) -> 0 | BJ214: =IF($D214<>0,INDEX('INPT; Fuel Indices'!BJ$34:BJ$53,$D214,1),0) -> 0 | BK214: =IF($D214<>0,INDEX('INPT; Fuel Indices'!BK$34:BK$53,$D214,1),0) -> 0 | BL214: =IF($D214<>0,INDEX('INPT; Fuel Indices'!BL$34:BL$53,$D214,1),0) -> 0 | BM214: =IF($D214<>0,INDEX('INPT; Fuel Indices'!BM$34:BM$53,$D214,1),0) -> 0 | BN214: =IF($D214<>0,INDEX('INPT; Fuel Indices'!BN$34:BN$53,$D214,1),0) -> 0 | BO214: =IF($D214<>0,INDEX('INPT; Fuel Indices'!BO$34:BO$53,$D214,1),0) -> 0 | BP214: =IF($D214<>0,INDEX('INPT; Fuel Indices'!BP$34:BP$53,$D214,1),0) -> 0 | BQ214: =IF($D214<>0,INDEX('INPT; Fuel Indices'!BQ$34:BQ$53,$D214,1),0) -> 0
A215: 3 | B215: ='INPT; General'!$B$27 -> Coal | C215: Factor | D215: ='INPT; General'!$G$27 -> 0 | E215: =INDEX($X$1230:$AG$1236,G176,A215) -> 0 | J215: =IF($D215<>0,INDEX('INPT; Fuel Indices'!J$34:J$53,$D215,1),0) -> 0 | K215: =IF($D215<>0,INDEX('INPT; Fuel Indices'!K$34:K$53,$D215,1),0) -> 0 | L215: =IF($D215<>0,INDEX('INPT; Fuel Indices'!L$34:L$53,$D215,1),0) -> 0 | M215: =IF($D215<>0,INDEX('INPT; Fuel Indices'!M$34:M$53,$D215,1),0) -> 0 | N215: =IF($D215<>0,INDEX('INPT; Fuel Indices'!N$34:N$53,$D215,1),0) -> 0 | O215: =IF($D215<>0,INDEX('INPT; Fuel Indices'!O$34:O$53,$D215,1),0) -> 0 | P215: =IF($D215<>0,INDEX('INPT; Fuel Indices'!P$34:P$53,$D215,1),0) -> 0 | Q215: =IF($D215<>0,INDEX('INPT; Fuel Indices'!Q$34:Q$53,$D215,1),0) -> 0 | R215: =IF($D215<>0,INDEX('INPT; Fuel Indices'!R$34:R$53,$D215,1),0) -> 0 | S215: =IF($D215<>0,INDEX('INPT; Fuel Indices'!S$34:S$53,$D215,1),0) -> 0 | T215: =IF($D215<>0,INDEX('INPT; Fuel Indices'!T$34:T$53,$D215,1),0) -> 0 | U215: =IF($D215<>0,INDEX('INPT; Fuel Indices'!U$34:U$53,$D215,1),0) -> 0 | V215: =IF($D215<>0,INDEX('INPT; Fuel Indices'!V$34:V$53,$D215,1),0) -> 0 | W215: =IF($D215<>0,INDEX('INPT; Fuel Indices'!W$34:W$53,$D215,1),0) -> 0 | X215: =IF($D215<>0,INDEX('INPT; Fuel Indices'!X$34:X$53,$D215,1),0) -> 0 | Y215: =IF($D215<>0,INDEX('INPT; Fuel Indices'!Y$34:Y$53,$D215,1),0) -> 0 | Z215: =IF($D215<>0,INDEX('INPT; Fuel Indices'!Z$34:Z$53,$D215,1),0) -> 0 | AA215: =IF($D215<>0,INDEX('INPT; Fuel Indices'!AA$34:AA$53,$D215,1),0) -> 0 | AB215: =IF($D215<>0,INDEX('INPT; Fuel Indices'!AB$34:AB$53,$D215,1),0) -> 0 | AC215: =IF($D215<>0,INDEX('INPT; Fuel Indices'!AC$34:AC$53,$D215,1),0) -> 0 | AD215: =IF($D215<>0,INDEX('INPT; Fuel Indices'!AD$34:AD$53,$D215,1),0) -> 0 | AE215: =IF($D215<>0,INDEX('INPT; Fuel Indices'!AE$34:AE$53,$D215,1),0) -> 0 | AF215: =IF($D215<>0,INDEX('INPT; Fuel Indices'!AF$34:AF$53,$D215,1),0) -> 0 | AG215: =IF($D215<>0,INDEX('INPT; Fuel Indices'!AG$34:AG$53,$D215,1),0) -> 0 | AH215: =IF($D215<>0,INDEX('INPT; Fuel Indices'!AH$34:AH$53,$D215,1),0) -> 0 | AI215: =IF($D215<>0,INDEX('INPT; Fuel Indices'!AI$34:AI$53,$D215,1),0) -> 0 | AJ215: =IF($D215<>0,INDEX('INPT; Fuel Indices'!AJ$34:AJ$53,$D215,1),0) -> 0 | AK215: =IF($D215<>0,INDEX('INPT; Fuel Indices'!AK$34:AK$53,$D215,1),0) -> 0 | AL215: =IF($D215<>0,INDEX('INPT; Fuel Indices'!AL$34:AL$53,$D215,1),0) -> 0 | AM215: =IF($D215<>0,INDEX('INPT; Fuel Indices'!AM$34:AM$53,$D215,1),0) -> 0 | AN215: =IF($D215<>0,INDEX('INPT; Fuel Indices'!AN$34:AN$53,$D215,1),0) -> 0 | AO215: =IF($D215<>0,INDEX('INPT; Fuel Indices'!AO$34:AO$53,$D215,1),0) -> 0 | AP215: =IF($D215<>0,INDEX('INPT; Fuel Indices'!AP$34:AP$53,$D215,1),0) -> 0 | AQ215: =IF($D215<>0,INDEX('INPT; Fuel Indices'!AQ$34:AQ$53,$D215,1),0) -> 0 | AR215: =IF($D215<>0,INDEX('INPT; Fuel Indices'!AR$34:AR$53,$D215,1),0) -> 0 | AS215: =IF($D215<>0,INDEX('INPT; Fuel Indices'!AS$34:AS$53,$D215,1),0) -> 0 | AT215: =IF($D215<>0,INDEX('INPT; Fuel Indices'!AT$34:AT$53,$D215,1),0) -> 0 | AU215: =IF($D215<>0,INDEX('INPT; Fuel Indices'!AU$34:AU$53,$D215,1),0) -> 0 | AV215: =IF($D215<>0,INDEX('INPT; Fuel Indices'!AV$34:AV$53,$D215,1),0) -> 0 | AW215: =IF($D215<>0,INDEX('INPT; Fuel Indices'!AW$34:AW$53,$D215,1),0) -> 0 | AX215: =IF($D215<>0,INDEX('INPT; Fuel Indices'!AX$34:AX$53,$D215,1),0) -> 0 | AY215: =IF($D215<>0,INDEX('INPT; Fuel Indices'!AY$34:AY$53,$D215,1),0) -> 0 | AZ215: =IF($D215<>0,INDEX('INPT; Fuel Indices'!AZ$34:AZ$53,$D215,1),0) -> 0 | BA215: =IF($D215<>0,INDEX('INPT; Fuel Indices'!BA$34:BA$53,$D215,1),0) -> 0 | BB215: =IF($D215<>0,INDEX('INPT; Fuel Indices'!BB$34:BB$53,$D215,1),0) -> 0 | BC215: =IF($D215<>0,INDEX('INPT; Fuel Indices'!BC$34:BC$53,$D215,1),0) -> 0 | BD215: =IF($D215<>0,INDEX('INPT; Fuel Indices'!BD$34:BD$53,$D215,1),0) -> 0 | BE215: =IF($D215<>0,INDEX('INPT; Fuel Indices'!BE$34:BE$53,$D215,1),0) -> 0 | BF215: =IF($D215<>0,INDEX('INPT; Fuel Indices'!BF$34:BF$53,$D215,1),0) -> 0 | BG215: =IF($D215<>0,INDEX('INPT; Fuel Indices'!BG$34:BG$53,$D215,1),0) -> 0 | BH215: =IF($D215<>0,INDEX('INPT; Fuel Indices'!BH$34:BH$53,$D215,1),0) -> 0 | BI215: =IF($D215<>0,INDEX('INPT; Fuel Indices'!BI$34:BI$53,$D215,1),0) -> 0 | BJ215: =IF($D215<>0,INDEX('INPT; Fuel Indices'!BJ$34:BJ$53,$D215,1),0) -> 0 | BK215: =IF($D215<>0,INDEX('INPT; Fuel Indices'!BK$34:BK$53,$D215,1),0) -> 0 | BL215: =IF($D215<>0,INDEX('INPT; Fuel Indices'!BL$34:BL$53,$D215,1),0) -> 0 | BM215: =IF($D215<>0,INDEX('INPT; Fuel Indices'!BM$34:BM$53,$D215,1),0) -> 0 | BN215: =IF($D215<>0,INDEX('INPT; Fuel Indices'!BN$34:BN$53,$D215,1),0) -> 0 | BO215: =IF($D215<>0,INDEX('INPT; Fuel Indices'!BO$34:BO$53,$D215,1),0) -> 0 | BP215: =IF($D215<>0,INDEX('INPT; Fuel Indices'!BP$34:BP$53,$D215,1),0) -> 0 | BQ215: =IF($D215<>0,INDEX('INPT; Fuel Indices'!BQ$34:BQ$53,$D215,1),0) -> 0
A216: 4 | B216: ='INPT; General'!$B$28 -> Electricity | C216: Factor | D216: ='INPT; General'!$G$28 -> 3 | E216: =INDEX($X$1230:$AG$1236,G176,A216) -> 0 | J216: =IF($D216<>0,INDEX('INPT; Fuel Indices'!J$34:J$53,$D216,1),0) -> 1 | K216: =IF($D216<>0,INDEX('INPT; Fuel Indices'!K$34:K$53,$D216,1),0) -> 1.005295709 | L216: =IF($D216<>0,INDEX('INPT; Fuel Indices'!L$34:L$53,$D216,1),0) -> 1.013972624 | M216: =IF($D216<>0,INDEX('INPT; Fuel Indices'!M$34:M$53,$D216,1),0) -> 1.024278802 | N216: =IF($D216<>0,INDEX('INPT; Fuel Indices'!N$34:N$53,$D216,1),0) -> 1.034326001 | O216: =IF($D216<>0,INDEX('INPT; Fuel Indices'!O$34:O$53,$D216,1),0) -> 1.041875273 | P216: =IF($D216<>0,INDEX('INPT; Fuel Indices'!P$34:P$53,$D216,1),0) -> 1.06162725 | Q216: =IF($D216<>0,INDEX('INPT; Fuel Indices'!Q$34:Q$53,$D216,1),0) -> 1.09101751 | R216: =IF($D216<>0,INDEX('INPT; Fuel Indices'!R$34:R$53,$D216,1),0) -> 1.050519779 | S216: =IF($D216<>0,INDEX('INPT; Fuel Indices'!S$34:S$53,$D216,1),0) -> 1.037018805 | T216: =IF($D216<>0,INDEX('INPT; Fuel Indices'!T$34:T$53,$D216,1),0) -> 1.062870581 | U216: =IF($D216<>0,INDEX('INPT; Fuel Indices'!U$34:U$53,$D216,1),0) -> 1.058292755 | V216: =IF($D216<>0,INDEX('INPT; Fuel Indices'!V$34:V$53,$D216,1),0) -> 1.058292755 | W216: =IF($D216<>0,INDEX('INPT; Fuel Indices'!W$34:W$53,$D216,1),0) -> 1.058292755 | X216: =IF($D216<>0,INDEX('INPT; Fuel Indices'!X$34:X$53,$D216,1),0) -> 1.058292755 | Y216: =IF($D216<>0,INDEX('INPT; Fuel Indices'!Y$34:Y$53,$D216,1),0) -> 1.058292755 | Z216: =IF($D216<>0,INDEX('INPT; Fuel Indices'!Z$34:Z$53,$D216,1),0) -> 1.058292755 | AA216: =IF($D216<>0,INDEX('INPT; Fuel Indices'!AA$34:AA$53,$D216,1),0) -> 1.058292755 | AB216: =IF($D216<>0,INDEX('INPT; Fuel Indices'!AB$34:AB$53,$D216,1),0) -> 1.058292755 | AC216: =IF($D216<>0,INDEX('INPT; Fuel Indices'!AC$34:AC$53,$D216,1),0) -> 1.058292755 | AD216: =IF($D216<>0,INDEX('INPT; Fuel Indices'!AD$34:AD$53,$D216,1),0) -> 1.058292755 | AE216: =IF($D216<>0,INDEX('INPT; Fuel Indices'!AE$34:AE$53,$D216,1),0) -> 1.058292755 | AF216: =IF($D216<>0,INDEX('INPT; Fuel Indices'!AF$34:AF$53,$D216,1),0) -> 1.058292755 | AG216: =IF($D216<>0,INDEX('INPT; Fuel Indices'!AG$34:AG$53,$D216,1),0) -> 1.058292755 | AH216: =IF($D216<>0,INDEX('INPT; Fuel Indices'!AH$34:AH$53,$D216,1),0) -> 1.058292755 | AI216: =IF($D216<>0,INDEX('INPT; Fuel Indices'!AI$34:AI$53,$D216,1),0) -> 1.058292755 | AJ216: =IF($D216<>0,INDEX('INPT; Fuel Indices'!AJ$34:AJ$53,$D216,1),0) -> 1.058292755 | AK216: =IF($D216<>0,INDEX('INPT; Fuel Indices'!AK$34:AK$53,$D216,1),0) -> 1.058292755 | AL216: =IF($D216<>0,INDEX('INPT; Fuel Indices'!AL$34:AL$53,$D216,1),0) -> 1.058292755 | AM216: =IF($D216<>0,INDEX('INPT; Fuel Indices'!AM$34:AM$53,$D216,1),0) -> 1.058292755 | AN216: =IF($D216<>0,INDEX('INPT; Fuel Indices'!AN$34:AN$53,$D216,1),0) -> 1.058292755 | AO216: =IF($D216<>0,INDEX('INPT; Fuel Indices'!AO$34:AO$53,$D216,1),0) -> 1.058292755 | AP216: =IF($D216<>0,INDEX('INPT; Fuel Indices'!AP$34:AP$53,$D216,1),0) -> 1.058292755 | AQ216: =IF($D216<>0,INDEX('INPT; Fuel Indices'!AQ$34:AQ$53,$D216,1),0) -> 1.058292755 | AR216: =IF($D216<>0,INDEX('INPT; Fuel Indices'!AR$34:AR$53,$D216,1),0) -> 1.058292755 | AS216: =IF($D216<>0,INDEX('INPT; Fuel Indices'!AS$34:AS$53,$D216,1),0) -> 1.058292755 | AT216: =IF($D216<>0,INDEX('INPT; Fuel Indices'!AT$34:AT$53,$D216,1),0) -> 1.058292755 | AU216: =IF($D216<>0,INDEX('INPT; Fuel Indices'!AU$34:AU$53,$D216,1),0) -> 1.058292755 | AV216: =IF($D216<>0,INDEX('INPT; Fuel Indices'!AV$34:AV$53,$D216,1),0) -> 1.058292755 | AW216: =IF($D216<>0,INDEX('INPT; Fuel Indices'!AW$34:AW$53,$D216,1),0) -> 1.058292755 | AX216: =IF($D216<>0,INDEX('INPT; Fuel Indices'!AX$34:AX$53,$D216,1),0) -> 1.058292755 | AY216: =IF($D216<>0,INDEX('INPT; Fuel Indices'!AY$34:AY$53,$D216,1),0) -> 1.058292755 | AZ216: =IF($D216<>0,INDEX('INPT; Fuel Indices'!AZ$34:AZ$53,$D216,1),0) -> 1.058292755 | BA216: =IF($D216<>0,INDEX('INPT; Fuel Indices'!BA$34:BA$53,$D216,1),0) -> 1.058292755 | BB216: =IF($D216<>0,INDEX('INPT; Fuel Indices'!BB$34:BB$53,$D216,1),0) -> 1.058292755 | BC216: =IF($D216<>0,INDEX('INPT; Fuel Indices'!BC$34:BC$53,$D216,1),0) -> 1.058292755 | BD216: =IF($D216<>0,INDEX('INPT; Fuel Indices'!BD$34:BD$53,$D216,1),0) -> 1.058292755 | BE216: =IF($D216<>0,INDEX('INPT; Fuel Indices'!BE$34:BE$53,$D216,1),0) -> 1.058292755 | BF216: =IF($D216<>0,INDEX('INPT; Fuel Indices'!BF$34:BF$53,$D216,1),0) -> 1.058292755 | BG216: =IF($D216<>0,INDEX('INPT; Fuel Indices'!BG$34:BG$53,$D216,1),0) -> 1.058292755 | BH216: =IF($D216<>0,INDEX('INPT; Fuel Indices'!BH$34:BH$53,$D216,1),0) -> 1.058292755 | BI216: =IF($D216<>0,INDEX('INPT; Fuel Indices'!BI$34:BI$53,$D216,1),0) -> 1.058292755 | BJ216: =IF($D216<>0,INDEX('INPT; Fuel Indices'!BJ$34:BJ$53,$D216,1),0) -> 1.058292755 | BK216: =IF($D216<>0,INDEX('INPT; Fuel Indices'!BK$34:BK$53,$D216,1),0) -> 1.058292755 | BL216: =IF($D216<>0,INDEX('INPT; Fuel Indices'!BL$34:BL$53,$D216,1),0) -> 1.058292755 | BM216: =IF($D216<>0,INDEX('INPT; Fuel Indices'!BM$34:BM$53,$D216,1),0) -> 1.058292755 | BN216: =IF($D216<>0,INDEX('INPT; Fuel Indices'!BN$34:BN$53,$D216,1),0) -> 1.058292755 | BO216: =IF($D216<>0,INDEX('INPT; Fuel Indices'!BO$34:BO$53,$D216,1),0) -> 1.058292755 | BP216: =IF($D216<>0,INDEX('INPT; Fuel Indices'!BP$34:BP$53,$D216,1),0) -> 1.058292755 | BQ216: =IF($D216<>0,INDEX('INPT; Fuel Indices'!BQ$34:BQ$53,$D216,1),0) -> 1.058292755
